Workbook

Sheet Proxy Group Criteria
A1: PROXY GROUP SELECTION
F4: (a) | I4: (b) | L4: (c) | R4: (c)
F5: S&P | I5: Moody's | L5: Value Line | X5: Override:
F6: Credit | I6: Issuer | L6: Safety | N6: Financial | R6: Market | T6: Gas | V6: Gas | X6: "Y" for Incl.
B7: Included | C7: SYM | D7: Company | F7: Rating | I7: Rating | L7: Rank | N7: Strength | P7: Beta | R7: Cap | T7: Utility | V7: Utility | X7: "X" for Excl. | Y7: Comments
A8: =A7+1 -> 1 | B8: =IF(AND(G8<=$G$56,G8>=$G$57,J8<=$J$56,J8>=$J$57,L8<=$L$56,X8<>"X"),"Y",IF(X8="Y","Y","")) -> Y | C8: ='Electric Utility Data'!B8 -> AQN | D8: ='Electric Utility Data'!C8 -> Algonquin Pwr & Util | F8: ='Electric Utility Data'!AA8 -> BBB | G8: =VLOOKUP(F8,'Ordinal Ratings'!$A$6:$B$28,2,FALSE) -> 9 | I8: ='Electric Utility Data'!AB8 -> NR | J8: =VLOOKUP(I8,'Ordinal Ratings'!I$6:J$25,2,FALSE) -> -- | L8: ='Electric Utility Data'!W8 -> n/a | N8: ='Electric Utility Data'!Y8 -> n/a | P8: ='Electric Utility Data'!X8 -> 0.9 | R8: ='Electric Utility Data'!AC8 -> 8126 | T8: Y | V8: ='Electric Utility Data'!AD8 -> Y | X8: Y | Y8: S&P rating meets criteria.
A9: =A8+1 -> 2 | B9: =IF(AND(G9<=$G$56,G9>=$G$57,J9<=$J$56,J9>=$J$57,L9<=$L$56,X9<>"X"),"Y",IF(X9="Y","Y","")) -> Y | C9: ='Electric Utility Data'!B9 -> ALE | D9: ='Electric Utility Data'!C9 -> ALLETE | F9: ='Electric Utility Data'!AA9 -> BBB | G9: =VLOOKUP(F9,'Ordinal Ratings'!$A$6:$B$28,2,FALSE) -> 9 | I9: ='Electric Utility Data'!AB9 -> Baa1 | J9: =VLOOKUP(I9,'Ordinal Ratings'!I$6:J$25,2,FALSE) -> 8 | L9: ='Electric Utility Data'!W9 -> 2 | N9: ='Electric Utility Data'!Y9 -> A | P9: ='Electric Utility Data'!X9 -> 0.85 | R9: ='Electric Utility Data'!AC9 -> 2800 | T9: Y | V9: ='Electric Utility Data'!AD9 -> Y
A10: 3 | B10: Y | C10: ='Electric Utility Data'!B10 -> LNT | D10: ='Electric Utility Data'!C10 -> Alliant Energy | F10: ='Electric Utility Data'!AA10 -> A- | G10: =VLOOKUP(F10,'Ordinal Ratings'!$A$6:$B$28,2,FALSE) -> 7 | I10: ='Electric Utility Data'!AB10 -> Baa2 | J10: =VLOOKUP(I10,'Ordinal Ratings'!I$6:J$25,2,FALSE) -> 9 | L10: ='Electric Utility Data'!W10 -> 2 | N10: ='Electric Utility Data'!Y10 -> A | P10: ='Electric Utility Data'!X10 -> 0.85 | R10: ='Electric Utility Data'!AC10 -> 13500 | T10: Y | V10: ='Electric Utility Data'!AD10 -> Y
A11: 4 | B11: Y | C11: ='Electric Utility Data'!B11 -> AEE | D11: ='Electric Utility Data'!C11 -> Ameren Corp. | F11: ='Electric Utility Data'!AA11 -> BBB+ | G11: =VLOOKUP(F11,'Ordinal Ratings'!$A$6:$B$28,2,FALSE) -> 8 | I11: ='Electric Utility Data'!AB11 -> Baa1 | J11: =VLOOKUP(I11,'Ordinal Ratings'!I$6:J$25,2,FALSE) -> 8 | L11: ='Electric Utility Data'!W11 -> 2 | N11: ='Electric Utility Data'!Y11 -> A | P11: ='Electric Utility Data'!X11 -> 0.8 | R11: ='Electric Utility Data'!AC11 -> 20000 | T11: Y | V11: ='Electric Utility Data'!AD11 -> Y
A12: 5 | C12: ='Electric Utility Data'!B12 -> AEP | D12: ='Electric Utility Data'!C12 -> American Elec Pwr | F12: ='Electric Utility Data'!AA12 -> A- | G12: =VLOOKUP(F12,'Ordinal Ratings'!$A$6:$B$28,2,FALSE) -> 7 | I12: ='Electric Utility Data'!AB12 -> Baa2 | J12: =VLOOKUP(I12,'Ordinal Ratings'!I$6:J$25,2,FALSE) -> 9 | L12: ='Electric Utility Data'!W12 -> 1 | N12: ='Electric Utility Data'!Y12 -> A+ | P12: ='Electric Utility Data'!X12 -> 0.75 | R12: ='Electric Utility Data'!AC12 -> 39000 | T12: N | V12: ='Electric Utility Data'!AD12 -> N | X12: X | Y12: No gas utility operations.
A13: 6 | B13: Y | C13: ='Electric Utility Data'!B13 -> AGR | D13: ='Electric Utility Data'!C13 -> Avangrid, Inc. | F13: ='Electric Utility Data'!AA13 -> BBB+ | G13: =VLOOKUP(F13,'Ordinal Ratings'!$A$6:$B$28,2,FALSE) -> 8 | I13: ='Electric Utility Data'!AB13 -> Baa1 | J13: =VLOOKUP(I13,'Ordinal Ratings'!I$6:J$25,2,FALSE) -> 8 | L13: ='Electric Utility Data'!W13 -> 2 | N13: ='Electric Utility Data'!Y13 -> B++ | P13: ='Electric Utility Data'!X13 -> 0.8 | R13: ='Electric Utility Data'!AC13 -> 15000 | T13: Y | V13: ='Electric Utility Data'!AD13 -> Y
A14: 7 | B14: Y | C14: ='Electric Utility Data'!B14 -> AVA | D14: ='Electric Utility Data'!C14 -> Avista Corp. | F14: ='Electric Utility Data'!AA14 -> BBB | G14: =VLOOKUP(F14,'Ordinal Ratings'!$A$6:$B$28,2,FALSE) -> 9 | I14: ='Electric Utility Data'!AB14 -> Baa2 | J14: =VLOOKUP(I14,'Ordinal Ratings'!I$6:J$25,2,FALSE) -> 9 | L14: ='Electric Utility Data'!W14 -> 2 | N14: ='Electric Utility Data'!Y14 -> B++ | P14: ='Electric Utility Data'!X14 -> 0.9 | R14: ='Electric Utility Data'!AC14 -> 2400 | T14: Y | V14: ='Electric Utility Data'!AD14 -> Y
A15: 8 | B15: Y | C15: ='Electric Utility Data'!B15 -> BKH | D15: ='Electric Utility Data'!C15 -> Black Hills Corp. | F15: ='Electric Utility Data'!AA15 -> BBB+ | G15: =VLOOKUP(F15,'Ordinal Ratings'!$A$6:$B$28,2,FALSE) -> 8 | I15: ='Electric Utility Data'!AB15 -> Baa2 | J15: =VLOOKUP(I15,'Ordinal Ratings'!I$6:J$25,2,FALSE) -> 9 | L15: ='Electric Utility Data'!W15 -> 2 | N15: ='Electric Utility Data'!Y15 -> A | P15: ='Electric Utility Data'!X15 -> 0.95 | R15: ='Electric Utility Data'!AC15 -> 3800 | T15: Y | V15: ='Electric Utility Data'!AD15 -> Y
A16: 9 | C16: ='Electric Utility Data'!B16 -> CNP | D16: ='Electric Utility Data'!C16 -> CenterPoint Energy | F16: ='Electric Utility Data'!AA16 -> BBB+ | G16: =VLOOKUP(F16,'Ordinal Ratings'!$A$6:$B$28,2,FALSE) -> 8 | I16: ='Electric Utility Data'!AB16 -> Baa2 | J16: =VLOOKUP(I16,'Ordinal Ratings'!I$6:J$25,2,FALSE) -> 9 | L16: ='Electric Utility Data'!W16 -> 3 | N16: ='Electric Utility Data'!Y16 -> B+ | P16: ='Electric Utility Data'!X16 -> 1.1 | R16: ='Electric Utility Data'!AC16 -> 11000 | T16: Y | V16: ='Electric Utility Data'!AD16 -> Y
A17: 10 | B17: Y | C17: ='Electric Utility Data'!B17 -> CMS | D17: ='Electric Utility Data'!C17 -> CMS Energy Corp. | F17: ='Electric Utility Data'!AA17 -> BBB+ | G17: =VLOOKUP(F17,'Ordinal Ratings'!$A$6:$B$28,2,FALSE) -> 8 | I17: ='Electric Utility Data'!AB17 -> Baa1 | J17: =VLOOKUP(I17,'Ordinal Ratings'!I$6:J$25,2,FALSE) -> 8 | L17: ='Electric Utility Data'!W17 -> 2 | N17: ='Electric Utility Data'!Y17 -> B++ | P17: ='Electric Utility Data'!X17 -> 0.8 | R17: ='Electric Utility Data'!AC17 -> 17000 | T17: Y | V17: ='Electric Utility Data'!AD17 -> Y
A18: 11 | B18: Y | C18: ='Electric Utility Data'!B18 -> ED | D18: ='Electric Utility Data'!C18 -> Consolidated Edison | F18: ='Electric Utility Data'!AA18 -> A- | G18: =VLOOKUP(F18,'Ordinal Ratings'!$A$6:$B$28,2,FALSE) -> 7 | I18: ='Electric Utility Data'!AB18 -> Baa2 | J18: =VLOOKUP(I18,'Ordinal Ratings'!I$6:J$25,2,FALSE) -> 9 | L18: ='Electric Utility Data'!W18 -> 1 | N18: ='Electric Utility Data'!Y18 -> A+ | P18: ='Electric Utility Data'!X18 -> 0.75 | R18: ='Electric Utility Data'!AC18 -> 25000 | T18: Y | V18: ='Electric Utility Data'!AD18 -> Y
A19: 12 | C19: ='Electric Utility Data'!B19 -> D | D19: ='Electric Utility Data'!C19 -> Dominion Energy | F19: ='Electric Utility Data'!AA19 -> BBB+ | G19: =VLOOKUP(F19,'Ordinal Ratings'!$A$6:$B$28,2,FALSE) -> 8 | I19: ='Electric Utility Data'!AB19 -> Baa2 | J19: =VLOOKUP(I19,'Ordinal Ratings'!I$6:J$25,2,FALSE) -> 9 | L19: ='Electric Utility Data'!W19 -> 2 | N19: ='Electric Utility Data'!Y19 -> B++ | P19: ='Electric Utility Data'!X19 -> 0.8 | R19: ='Electric Utility Data'!AC19 -> 67000 | T19: Y | V19: ='Electric Utility Data'!AD19 -> Y | X19: X | Y19: Announced sale of gas transmission/storage segment ($9.5/$69.9 total capital = 13.6%); reduction in annual dividend in Q4 from $3.76 to $2.50.
A20: 13 | B20: Y | C20: ='Electric Utility Data'!B20 -> DTE | D20: ='Electric Utility Data'!C20 -> DTE Energy Co. | F20: ='Electric Utility Data'!AA20 -> BBB+ | G20: =VLOOKUP(F20,'Ordinal Ratings'!$A$6:$B$28,2,FALSE) -> 8 | I20: ='Electric Utility Data'!AB20 -> Baa2 | J20: =VLOOKUP(I20,'Ordinal Ratings'!I$6:J$25,2,FALSE) -> 9 | L20: ='Electric Utility Data'!W20 -> 2 | N20: ='Electric Utility Data'!Y20 -> A | P20: ='Electric Utility Data'!X20 -> 0.9 | R20: ='Electric Utility Data'!AC20 -> 23000 | T20: Y | V20: ='Electric Utility Data'!AD20 -> Y
A21: 14 | B21: Y | C21: ='Electric Utility Data'!B21 -> DUK | D21: ='Electric Utility Data'!C21 -> Duke Energy Corp. | F21: ='Electric Utility Data'!AA21 -> A- | G21: =VLOOKUP(F21,'Ordinal Ratings'!$A$6:$B$28,2,FALSE) -> 7 | I21: ='Electric Utility Data'!AB21 -> Baa1 | J21: =VLOOKUP(I21,'Ordinal Ratings'!I$6:J$25,2,FALSE) -> 8 | L21: ='Electric Utility Data'!W21 -> 2 | N21: ='Electric Utility Data'!Y21 -> A | P21: ='Electric Utility Data'!X21 -> 0.85 | R21: ='Electric Utility Data'!AC21 -> 62000 | T21: Y | V21: ='Electric Utility Data'!AD21 -> Y
A22: 15 | C22: ='Electric Utility Data'!B22 -> EIX | D22: ='Electric Utility Data'!C22 -> Edison International | F22: ='Electric Utility Data'!AA22 -> BBB | G22: =VLOOKUP(F22,'Ordinal Ratings'!$A$6:$B$28,2,FALSE) -> 9 | I22: ='Electric Utility Data'!AB22 -> Baa3 | J22: =VLOOKUP(I22,'Ordinal Ratings'!I$6:J$25,2,FALSE) -> 10 | L22: ='Electric Utility Data'!W22 -> 3 | N22: ='Electric Utility Data'!Y22 -> B+ | P22: ='Electric Utility Data'!X22 -> 0.9 | R22: ='Electric Utility Data'!AC22 -> 20000 | T22: N | V22: ='Electric Utility Data'!AD22 -> N
A23: 16 | C23: ='Electric Utility Data'!B23 -> EMA | D23: ='Electric Utility Data'!C23 -> Emera Inc. | F23: ='Electric Utility Data'!AA23 -> BBB | G23: =VLOOKUP(F23,'Ordinal Ratings'!$A$6:$B$28,2,FALSE) -> 9 | I23: ='Electric Utility Data'!AB23 -> Baa3 | J23: =VLOOKUP(I23,'Ordinal Ratings'!I$6:J$25,2,FALSE) -> 10 | L23: ='Electric Utility Data'!W23 -> 2 | N23: ='Electric Utility Data'!Y23 -> B+ | P23: ='Electric Utility Data'!X23 -> 0.75 | R23: ='Electric Utility Data'!AC23 -> 13100 | T23: Y | V23: ='Electric Utility Data'!AD23 -> Y
A24: 17 | B24: Y | C24: ='Electric Utility Data'!B24 -> ETR | D24: ='Electric Utility Data'!C24 -> Entergy Corp. | F24: ='Electric Utility Data'!AA24 -> BBB+ | G24: =VLOOKUP(F24,'Ordinal Ratings'!$A$6:$B$28,2,FALSE) -> 8 | I24: ='Electric Utility Data'!AB24 -> Baa2 | J24: =VLOOKUP(I24,'Ordinal Ratings'!I$6:J$25,2,FALSE) -> 9 | L24: ='Electric Utility Data'!W24 -> 2 | N24: ='Electric Utility Data'!Y24 -> B++ | P24: ='Electric Utility Data'!X24 -> 0.95 | R24: ='Electric Utility Data'!AC24 -> 20000 | T24: Y | V24: ='Electric Utility Data'!AD24 -> Y
A25: 18 | C25: ='Electric Utility Data'!B25 -> EVRG | D25: ='Electric Utility Data'!C25 -> Evergy Inc. | F25: ='Electric Utility Data'!AA25 -> A- | G25: =VLOOKUP(F25,'Ordinal Ratings'!$A$6:$B$28,2,FALSE) -> 7 | I25: ='Electric Utility Data'!AB25 -> Baa2 | J25: =VLOOKUP(I25,'Ordinal Ratings'!I$6:J$25,2,FALSE) -> 9 | L25: ='Electric Utility Data'!W25 -> 2 | N25: ='Electric Utility Data'!Y25 -> B++ | P25: ='Electric Utility Data'!X25 -> 1 | R25: ='Electric Utility Data'!AC25 -> 12000 | T25: N | V25: ='Electric Utility Data'!AD25 -> N | X25: X | Y25: No gas utility operations.
A26: 19 | B26: Y | C26: ='Electric Utility Data'!B26 -> ES | D26: ='Electric Utility Data'!C26 -> Eversource Energy | F26: ='Electric Utility Data'!AA26 -> A- | G26: =VLOOKUP(F26,'Ordinal Ratings'!$A$6:$B$28,2,FALSE) -> 7 | I26: ='Electric Utility Data'!AB26 -> Baa1 | J26: =VLOOKUP(I26,'Ordinal Ratings'!I$6:J$25,2,FALSE) -> 8 | L26: ='Electric Utility Data'!W26 -> 1 | N26: ='Electric Utility Data'!Y26 -> A | P26: ='Electric Utility Data'!X26 -> 0.9 | R26: ='Electric Utility Data'!AC26 -> 30000 | T26: Y | V26: ='Electric Utility Data'!AD26 -> Y
A27: 20 | C27: ='Electric Utility Data'!B27 -> EXC | D27: ='Electric Utility Data'!C27 -> Exelon Corp. | F27: ='Electric Utility Data'!AA27 -> BBB+ | G27: =VLOOKUP(F27,'Ordinal Ratings'!$A$6:$B$28,2,FALSE) -> 8 | I27: ='Electric Utility Data'!AB27 -> Baa2 | J27: =VLOOKUP(I27,'Ordinal Ratings'!I$6:J$25,2,FALSE) -> 9 | L27: ='Electric Utility Data'!W27 -> 3 | N27: ='Electric Utility Data'!Y27 -> B+ | P27: ='Electric Utility Data'!X27 -> 0.95 | R27: ='Electric Utility Data'!AC27 -> 37000 | T27: Y | V27: ='Electric Utility Data'!AD27 -> Y
A28: 21 | C28: ='Electric Utility Data'!B28 -> FE | D28: ='Electric Utility Data'!C28 -> FirstEnergy Corp. | F28: ='Electric Utility Data'!AA28 -> BBB | G28: =VLOOKUP(F28,'Ordinal Ratings'!$A$6:$B$28,2,FALSE) -> 9 | I28: ='Electric Utility Data'!AB28 -> Baa3 | J28: =VLOOKUP(I28,'Ordinal Ratings'!I$6:J$25,2,FALSE) -> 10 | L28: ='Electric Utility Data'!W28 -> 3 | N28: ='Electric Utility Data'!Y28 -> B+ | P28: ='Electric Utility Data'!X28 -> 0.85 | R28: ='Electric Utility Data'!AC28 -> 16000 | T28: N | V28: ='Electric Utility Data'!AD28 -> N
A29: 22 | C29: ='Electric Utility Data'!B29 -> FTS | D29: ='Electric Utility Data'!C29 -> Fortis Inc. | F29: ='Electric Utility Data'!AA29 -> A- | G29: =VLOOKUP(F29,'Ordinal Ratings'!$A$6:$B$28,2,FALSE) -> 7 | I29: ='Electric Utility Data'!AB29 -> Baa3 | J29: =VLOOKUP(I29,'Ordinal Ratings'!I$6:J$25,2,FALSE) -> 10 | L29: ='Electric Utility Data'!W29 -> 2 | N29: ='Electric Utility Data'!Y29 -> B++ | P29: ='Electric Utility Data'!X29 -> 0.8 | R29: ='Electric Utility Data'!AC29 -> 24000 | T29: Y | V29: ='Electric Utility Data'!AD29 -> Y
A30: 23 | C30: ='Electric Utility Data'!B30 -> HE | D30: ='Electric Utility Data'!C30 -> Hawaiian Elec. | F30: ='Electric Utility Data'!AA30 -> BBB- | G30: =VLOOKUP(F30,'Ordinal Ratings'!$A$6:$B$28,2,FALSE) -> 10 | I30: ='Electric Utility Data'!AB30 -> NR | J30: =VLOOKUP(I30,'Ordinal Ratings'!I$6:J$25,2,FALSE) -> -- | L30: ='Electric Utility Data'!W30 -> 2 | N30: ='Electric Utility Data'!Y30 -> A | P30: ='Electric Utility Data'!X30 -> 0.8 | R30: ='Electric Utility Data'!AC30 -> 4000 | T30: N | V30: ='Electric Utility Data'!AD30 -> N
A31: 24 | C31: ='Electric Utility Data'!B31 -> IDA | D31: ='Electric Utility Data'!C31 -> IDACORP, Inc. | F31: ='Electric Utility Data'!AA31 -> BBB | G31: =VLOOKUP(F31,'Ordinal Ratings'!$A$6:$B$28,2,FALSE) -> 9 | I31: ='Electric Utility Data'!AB31 -> Baa1 | J31: =VLOOKUP(I31,'Ordinal Ratings'!I$6:J$25,2,FALSE) -> 8 | L31: ='Electric Utility Data'!W31 -> 2 | N31: ='Electric Utility Data'!Y31 -> A | P31: ='Electric Utility Data'!X31 -> 0.8 | R31: ='Electric Utility Data'!AC31 -> 4600 | T31: N | V31: ='Electric Utility Data'!AD31 -> N | X31: X | Y31: No gas utility operations.
A32: 25 | C32: ='Electric Utility Data'!B32 -> MGEE | D32: ='Electric Utility Data'!C32 -> MGE Energy | F32: ='Electric Utility Data'!AA32 -> NR | G32: =VLOOKUP(F32,'Ordinal Ratings'!$A$6:$B$28,2,FALSE) -> -- | I32: ='Electric Utility Data'!AB32 -> NR | J32: =VLOOKUP(I32,'Ordinal Ratings'!I$6:J$25,2,FALSE) -> -- | L32: ='Electric Utility Data'!W32 -> 1 | N32: ='Electric Utility Data'!Y32 -> A+ | P32: ='Electric Utility Data'!X32 -> 0.7 | R32: ='Electric Utility Data'!AC32 -> 2400 | T32: Y | V32: ='Electric Utility Data'!AD32 -> Y
A33: 26 | C33: ='Electric Utility Data'!B33 -> NEE | D33: ='Electric Utility Data'!C33 -> NextEra Energy, Inc. | F33: ='Electric Utility Data'!AA33 -> A- | G33: =VLOOKUP(F33,'Ordinal Ratings'!$A$6:$B$28,2,FALSE) -> 7 | I33: ='Electric Utility Data'!AB33 -> Baa1 | J33: =VLOOKUP(I33,'Ordinal Ratings'!I$6:J$25,2,FALSE) -> 8 | L33: ='Electric Utility Data'!W33 -> 1 | N33: ='Electric Utility Data'!Y33 -> A+ | P33: ='Electric Utility Data'!X33 -> 0.85 | R33: ='Electric Utility Data'!AC33 -> 136000 | T33: N | V33: ='Electric Utility Data'!AD33 -> N | X33: X | Y33: No gas utility operations.
A34: 27 | B34: Y | C34: ='Electric Utility Data'!B34 -> NWE | D34: ='Electric Utility Data'!C34 -> NorthWestern Corp. | F34: ='Electric Utility Data'!AA34 -> BBB | G34: =VLOOKUP(F34,'Ordinal Ratings'!$A$6:$B$28,2,FALSE) -> 9 | I34: ='Electric Utility Data'!AB34 -> Baa2 | J34: =VLOOKUP(I34,'Ordinal Ratings'!I$6:J$25,2,FALSE) -> 9 | L34: ='Electric Utility Data'!W34 -> 2 | N34: ='Electric Utility Data'!Y34 -> B++ | P34: ='Electric Utility Data'!X34 -> 0.9 | R34: ='Electric Utility Data'!AC34 -> 2700 | T34: Y | V34: ='Electric Utility Data'!AD34 -> Y
A35: 28 | C35: ='Electric Utility Data'!B35 -> OGE | D35: ='Electric Utility Data'!C35 -> OGE Energy Corp. | F35: ='Electric Utility Data'!AA35 -> BBB+ | G35: =VLOOKUP(F35,'Ordinal Ratings'!$A$6:$B$28,2,FALSE) -> 8 | I35: ='Electric Utility Data'!AB35 -> Baa1 | J35: =VLOOKUP(I35,'Ordinal Ratings'!I$6:J$25,2,FALSE) -> 8 | L35: ='Electric Utility Data'!W35 -> 2 | N35: ='Electric Utility Data'!Y35 -> A | P35: ='Electric Utility Data'!X35 -> 1.05 | R35: ='Electric Utility Data'!AC35 -> 6400 | T35: N | V35: ='Electric Utility Data'!AD35 -> N | X35: X | Y35: No gas utility operations.
A36: 29 | C36: ='Electric Utility Data'!B36 -> OTTR | D36: ='Electric Utility Data'!C36 -> Otter Tail Corp. | F36: ='Electric Utility Data'!AA36 -> BBB | G36: =VLOOKUP(F36,'Ordinal Ratings'!$A$6:$B$28,2,FALSE) -> 9 | I36: ='Electric Utility Data'!AB36 -> Baa2 | J36: =VLOOKUP(I36,'Ordinal Ratings'!I$6:J$25,2,FALSE) -> 9 | L36: ='Electric Utility Data'!W36 -> 2 | N36: ='Electric Utility Data'!Y36 -> A | P36: ='Electric Utility Data'!X36 -> 0.85 | R36: ='Electric Utility Data'!AC36 -> 1600 | T36: N | V36: ='Electric Utility Data'!AD36 -> N | X36: X | Y36: No gas utility operations.
A37: 30 | C37: ='Electric Utility Data'!B37 -> PNW | D37: ='Electric Utility Data'!C37 -> Pinnacle West Capital | F37: ='Electric Utility Data'!AA37 -> A- | G37: =VLOOKUP(F37,'Ordinal Ratings'!$A$6:$B$28,2,FALSE) -> 7 | I37: ='Electric Utility Data'!AB37 -> A3 | J37: =VLOOKUP(I37,'Ordinal Ratings'!I$6:J$25,2,FALSE) -> 7 | L37: ='Electric Utility Data'!W37 -> 1 | N37: ='Electric Utility Data'!Y37 -> A+ | P37: ='Electric Utility Data'!X37 -> 0.85 | R37: ='Electric Utility Data'!AC37 -> 8900 | T37: N | V37: ='Electric Utility Data'!AD37 -> N | X37: X | Y37: No gas utility operations.
A38: 31 | C38: ='Electric Utility Data'!B38 -> PNM | D38: ='Electric Utility Data'!C38 -> PNM Resources | F38: ='Electric Utility Data'!AA38 -> BBB | G38: =VLOOKUP(F38,'Ordinal Ratings'!$A$6:$B$28,2,FALSE) -> 9 | I38: ='Electric Utility Data'!AB38 -> Baa3 | J38: =VLOOKUP(I38,'Ordinal Ratings'!I$6:J$25,2,FALSE) -> 10 | L38: ='Electric Utility Data'!W38 -> 3 | N38: ='Electric Utility Data'!Y38 -> B+ | P38: ='Electric Utility Data'!X38 -> 0.95 | R38: ='Electric Utility Data'!AC38 -> 3100 | T38: N | V38: ='Electric Utility Data'!AD38 -> N
A39: 32 | C39: ='Electric Utility Data'!B39 -> POR | D39: ='Electric Utility Data'!C39 -> Portland General Elec. | F39: ='Electric Utility Data'!AA39 -> BBB+ | G39: =VLOOKUP(F39,'Ordinal Ratings'!$A$6:$B$28,2,FALSE) -> 8 | I39: ='Electric Utility Data'!AB39 -> A3 | J39: =VLOOKUP(I39,'Ordinal Ratings'!I$6:J$25,2,FALSE) -> 7 | L39: ='Electric Utility Data'!W39 -> 2 | N39: ='Electric Utility Data'!Y39 -> B++ | P39: ='Electric Utility Data'!X39 -> 0.85 | R39: ='Electric Utility Data'!AC39 -> 3800 | T39: N | V39: ='Electric Utility Data'!AD39 -> N | X39: X | Y39: No gas utility operations.
A40: 33 | C40: ='Electric Utility Data'!B40 -> PPL | D40: ='Electric Utility Data'!C40 -> PPL Corp. | F40: ='Electric Utility Data'!AA40 -> A- | G40: =VLOOKUP(F40,'Ordinal Ratings'!$A$6:$B$28,2,FALSE) -> 7 | I40: ='Electric Utility Data'!AB40 -> Baa2 | J40: =VLOOKUP(I40,'Ordinal Ratings'!I$6:J$25,2,FALSE) -> 9 | L40: ='Electric Utility Data'!W40 -> 2 | N40: ='Electric Utility Data'!Y40 -> B++ | P40: ='Electric Utility Data'!X40 -> 1.1 | R40: ='Electric Utility Data'!AC40 -> 20000 | T40: Y | V40: ='Electric Utility Data'!AD40 -> Y | X40: X | Y40: Announced planned sale of UK utility operations 8/10/20. Represents approx. 38.6% of total assets and 56% of net income.
A41: 34 | B41: Y | C41: ='Electric Utility Data'!B41 -> PEG | D41: ='Electric Utility Data'!C41 -> Pub Sv Enterprise Grp. | F41: ='Electric Utility Data'!AA41 -> BBB+ | G41: =VLOOKUP(F41,'Ordinal Ratings'!$A$6:$B$28,2,FALSE) -> 8 | I41: ='Electric Utility Data'!AB41 -> Baa1 | J41: =VLOOKUP(I41,'Ordinal Ratings'!I$6:J$25,2,FALSE) -> 8 | L41: ='Electric Utility Data'!W41 -> 1 | N41: ='Electric Utility Data'!Y41 -> A++ | P41: ='Electric Utility Data'!X41 -> 0.9 | R41: ='Electric Utility Data'!AC41 -> 28000 | T41: Y | V41: ='Electric Utility Data'!AD41 -> Y
A42: 35 | B42: Y | C42: ='Electric Utility Data'!B42 -> SRE | D42: ='Electric Utility Data'!C42 -> Sempra Energy | F42: ='Electric Utility Data'!AA42 -> BBB+ | G42: =VLOOKUP(F42,'Ordinal Ratings'!$A$6:$B$28,2,FALSE) -> 8 | I42: ='Electric Utility Data'!AB42 -> Baa2 | J42: =VLOOKUP(I42,'Ordinal Ratings'!I$6:J$25,2,FALSE) -> 9 | L42: ='Electric Utility Data'!W42 -> 2 | N42: ='Electric Utility Data'!Y42 -> A | P42: ='Electric Utility Data'!X42 -> 0.95 | R42: ='Electric Utility Data'!AC42 -> 35000 | T42: Y | V42: ='Electric Utility Data'!AD42 -> Y
A43: 36 | B43: Y | C43: ='Electric Utility Data'!B43 -> SO | D43: ='Electric Utility Data'!C43 -> Southern Company | F43: ='Electric Utility Data'!AA43 -> A- | G43: =VLOOKUP(F43,'Ordinal Ratings'!$A$6:$B$28,2,FALSE) -> 7 | I43: ='Electric Utility Data'!AB43 -> Baa2 | J43: =VLOOKUP(I43,'Ordinal Ratings'!I$6:J$25,2,FALSE) -> 9 | L43: ='Electric Utility Data'!W43 -> 2 | N43: ='Electric Utility Data'!Y43 -> A | P43: ='Electric Utility Data'!X43 -> 0.9 | R43: ='Electric Utility Data'!AC43 -> 57000 | T43: Y | V43: ='Electric Utility Data'!AD43 -> Y
A44: 37 | B44: Y | C44: ='Electric Utility Data'!B44 -> WEC | D44: ='Electric Utility Data'!C44 -> WEC Energy Group | F44: ='Electric Utility Data'!AA44 -> A- | G44: =VLOOKUP(F44,'Ordinal Ratings'!$A$6:$B$28,2,FALSE) -> 7 | I44: ='Electric Utility Data'!AB44 -> Baa1 | J44: =VLOOKUP(I44,'Ordinal Ratings'!I$6:J$25,2,FALSE) -> 8 | L44: ='Electric Utility Data'!W44 -> 1 | N44: ='Electric Utility Data'!Y44 -> A+ | P44: ='Electric Utility Data'!X44 -> 0.8 | R44: ='Electric Utility Data'!AC44 -> 30000 | T44: Y | V44: ='Electric Utility Data'!AD44 -> Y
A45: 38 | B45: Y | C45: ='Electric Utility Data'!B45 -> XEL | D45: ='Electric Utility Data'!C45 -> Xcel Energy Inc. | F45: ='Electric Utility Data'!AA45 -> A- | G45: =VLOOKUP(F45,'Ordinal Ratings'!$A$6:$B$28,2,FALSE) -> 7 | I45: ='Electric Utility Data'!AB45 -> Baa1 | J45: =VLOOKUP(I45,'Ordinal Ratings'!I$6:J$25,2,FALSE) -> 8 | L45: ='Electric Utility Data'!W45 -> 1 | N45: ='Electric Utility Data'!Y45 -> A+ | P45: ='Electric Utility Data'!X45 -> 0.8 | R45: ='Electric Utility Data'!AC45 -> 34000 | T45: Y | V45: ='Electric Utility Data'!AD45 -> Y
C47: =IF(AND(H47<=$G$56,H47>=$G$57,Y47<>"X"),"Y",IF(AND(K47<=$J$56,K47>=$J$57,Y47<>"X"),"Y",IF(Y47="Y","Y",""))) -> 
A48: (a) | B48: ='Electric Utility Data'!B51 -> Issuer credit rating from www.standardandpoors.com (retrieved Oct. 3, 2020).
A49: (b) | B49: ='Electric Utility Data'!B52 -> Long-term rating from www.moodys.com (retrieved Oct. 3, 2020).
A50: (c) | B50: ='Electric Utility Data'!B50 -> The Value Line Investment Survey (Jul. 24, Aug. 14 and Sep. 11, 2020).
L53: Safety | N53: Financial | P53: Max
B54: =COUNTIF(B8:B45,"Y") -> 19 | C54: Proxy Group Criteria | F54: S&P | I54: Moodys | L54: Rank | N54: Strength | P54: Beta
C55: Guideline Rating | F55: A- | G55: =VLOOKUP(F55,'Ordinal Ratings'!$A$6:$B$28,2,FALSE) -> 7 | I55: A3 | J55: =VLOOKUP(I55,'Ordinal Ratings'!I$6:J$25,2,FALSE) -> 7 | L55: 2
C56: Low Rating | F56: =VLOOKUP(G56,'Ordinal Ratings'!$B$6:$C$26,2,FALSE) -> BBB | G56: =G55+2 -> 9 | I56: =VLOOKUP(J56,'Ordinal Ratings'!$J$6:$K$24,2,FALSE) -> Baa2 | J56: =J55+2 -> 9 | L56: 2
C57: High Rating | F57: =VLOOKUP(G57,'Ordinal Ratings'!$B$6:$C$26,2,FALSE) -> A+ | G57: =G55-2 -> 5 | I57: =VLOOKUP(J57,'Ordinal Ratings'!$J$6:$K$24,2,FALSE) -> A1 | J57: =J55-2 -> 5
C59: Louisville Gas & Electric Co. | F59: A- | I59: A3
C60: Kentucky Utilities Co. | F60: A- | I60: A3
C67: =IF($B8="Y",C8,"zzz") -> AQN | D67: Algonquin Pwr & Util
C68: ALE | D68: ALLETE
C69: LNT | D69: Alliant Energy
C70: AEE | D70: Ameren Corp.
C71: zzz | D71: zzz
C72: AGR | D72: Avangrid, Inc.
C73: AVA | D73: Avista Corp.
C74: BKH | D74: Black Hills Corp.
C75: zzz | D75: zzz
C76: CMS | D76: CMS Energy Corp.
C77: ED | D77: Consolidated Edison
C78: zzz | D78: zzz
C79: DTE | D79: DTE Energy Co.
C80: DUK | D80: Duke Energy Corp.
C81: zzz | D81: zzz
C82: =IF(#REF!="Y",#REF!,"zzz") ->  | D82: =IF(#REF!="Y",#REF!,"zzz") -> 
C83: =IF($B23="Y",C23,"zzz") -> zzz | D83: zzz
C84: ETR | D84: Entergy Corp.
C85: zzz | D85: zzz
C86: ES | D86: Eversource Energy
C87: zzz | D87: zzz
C88: zzz | D88: zzz
C89: zzz | D89: zzz
C90: zzz | D90: zzz
C91: zzz | D91: zzz
C92: zzz | D92: zzz
C93: zzz | D93: zzz
C94: NWE | D94: NorthWestern Corp.
C95: zzz | D95: zzz
C96: zzz | D96: zzz
C97: zzz | D97: zzz
C98: zzz | D98: zzz
C99: zzz | D99: zzz
C100: zzz | D100: zzz
C101: PEG | D101: Pub Sv Enterprise Grp.
C102: SRE | D102: Sempra Energy
C103: SO | D103: Southern Company
C104: WEC | D104: WEC Energy Group
C105: XEL | D105: Xcel Energy Inc.

Sheet Proxy Group Ticker
B2: SYM | C2: Company
A3: =A2+1 -> 1 | B3: ='Proxy Group Criteria'!C67 -> AQN | C3: ='Proxy Group Criteria'!D67 -> Algonquin Pwr & Util
A4: =A3+1 -> 2 | B4: ='Proxy Group Criteria'!C68 -> ALE | C4: ='Proxy Group Criteria'!D68 -> ALLETE
A5: 3 | B5: ='Proxy Group Criteria'!C69 -> LNT | C5: ='Proxy Group Criteria'!D69 -> Alliant Energy
A6: 4 | B6: ='Proxy Group Criteria'!C70 -> AEE | C6: ='Proxy Group Criteria'!D70 -> Ameren Corp.
A7: 5 | B7: ='Proxy Group Criteria'!C72 -> AGR | C7: ='Proxy Group Criteria'!D72 -> Avangrid, Inc.
A8: 6 | B8: ='Proxy Group Criteria'!C73 -> AVA | C8: ='Proxy Group Criteria'!D73 -> Avista Corp.
A9: 7 | B9: ='Proxy Group Criteria'!C74 -> BKH | C9: ='Proxy Group Criteria'!D74 -> Black Hills Corp.
A10: 8 | B10: ='Proxy Group Criteria'!C76 -> CMS | C10: ='Proxy Group Criteria'!D76 -> CMS Energy Corp.
A11: 9 | B11: ='Proxy Group Criteria'!C77 -> ED | C11: ='Proxy Group Criteria'!D77 -> Consolidated Edison
A12: 10 | B12: ='Proxy Group Criteria'!C79 -> DTE | C12: ='Proxy Group Criteria'!D79 -> DTE Energy Co.
A13: 11 | B13: ='Proxy Group Criteria'!C80 -> DUK | C13: ='Proxy Group Criteria'!D80 -> Duke Energy Corp.
A14: 12 | B14: ='Proxy Group Criteria'!C84 -> ETR | C14: ='Proxy Group Criteria'!D84 -> Entergy Corp.
A15: 13 | B15: ='Proxy Group Criteria'!C86 -> ES | C15: ='Proxy Group Criteria'!D86 -> Eversource Energy
A16: 14 | B16: ='Proxy Group Criteria'!C94 -> NWE | C16: ='Proxy Group Criteria'!D94 -> NorthWestern Corp.
A17: 15 | B17: ='Proxy Group Criteria'!C101 -> PEG | C17: ='Proxy Group Criteria'!D101 -> Pub Sv Enterprise Grp.
A18: 16 | B18: ='Proxy Group Criteria'!C102 -> SRE | C18: ='Proxy Group Criteria'!D102 -> Sempra Energy
A19: 17 | B19: ='Proxy Group Criteria'!C103 -> SO | C19: ='Proxy Group Criteria'!D103 -> Southern Company
A20: 18 | B20: ='Proxy Group Criteria'!C104 -> WEC | C20: ='Proxy Group Criteria'!D104 -> WEC Energy Group
A21: 19 | B21: ='Proxy Group Criteria'!C105 -> XEL | C21: ='Proxy Group Criteria'!D105 -> Xcel Energy Inc.
A22: 20 | B22: ='Proxy Group Criteria'!C75 -> zzz | C22: ='Proxy Group Criteria'!D75 -> zzz
A23: 21 | B23: ='Proxy Group Criteria'!C87 -> zzz | C23: ='Proxy Group Criteria'!D87 -> zzz
A24: 22 | B24: ='Proxy Group Criteria'!C78 -> zzz | C24: ='Proxy Group Criteria'!D78 -> zzz
A25: 23 | B25: ='Proxy Group Criteria'!C100 -> zzz | C25: ='Proxy Group Criteria'!D100 -> zzz
A26: 24 | B26: ='Proxy Group Criteria'!C93 -> zzz | C26: ='Proxy Group Criteria'!D93 -> zzz
A27: 25 | B27: ='Proxy Group Criteria'!C95 -> zzz | C27: ='Proxy Group Criteria'!D95 -> zzz
A28: 26 | B28: ='Proxy Group Criteria'!C97 -> zzz | C28: ='Proxy Group Criteria'!D97 -> zzz
A29: 27 | B29: ='Proxy Group Criteria'!C99 -> zzz | C29: ='Proxy Group Criteria'!D99 -> zzz
A30: 28 | B30: ='Proxy Group Criteria'!C81 -> zzz | C30: ='Proxy Group Criteria'!D81 -> zzz
A31: 29 | B31: ='Proxy Group Criteria'!C83 -> zzz | C31: ='Proxy Group Criteria'!D83 -> zzz
A32: 30 | B32: ='Proxy Group Criteria'!C88 -> zzz | C32: ='Proxy Group Criteria'!D88 -> zzz
A33: 31 | B33: ='Proxy Group Criteria'!C90 -> zzz | C33: ='Proxy Group Criteria'!D90 -> zzz
A34: 32 | B34: ='Proxy Group Criteria'!C91 -> zzz | C34: ='Proxy Group Criteria'!D91 -> zzz
A35: 33 | B35: ='Proxy Group Criteria'!C96 -> zzz | C35: ='Proxy Group Criteria'!D96 -> zzz
A36: 34 | B36: ='Proxy Group Criteria'!C98 -> zzz | C36: ='Proxy Group Criteria'!D98 -> zzz
A37: 35 | B37: ='Proxy Group Criteria'!C71 -> zzz | C37: ='Proxy Group Criteria'!D71 -> zzz
A38: 36 | B38: ='Proxy Group Criteria'!C85 -> zzz | C38: ='Proxy Group Criteria'!D85 -> zzz
A39: 37 | B39: ='Proxy Group Criteria'!C89 -> zzz | C39: ='Proxy Group Criteria'!D89 -> zzz
A40: 38 | B40: ='Proxy Group Criteria'!C92 -> zzz | C40: ='Proxy Group Criteria'!D92 -> zzz

Sheet Proxy Group Risk Measures
A1: RISK MEASURES
A3: ELECTRIC UTILITY GROUP
E4: (a) | H4: (b) | K4: (c) | P4: (d) | R4: (c)
E5: S&P | H5: Moody's | K5: Value Line | AA5: Value Line
E6: Corporate | H6: Long-term | K6: Safety | M6: Financial | R6: Market | W6: Credit Rating | AA6: Safety | AC6: Financial
B7: Company | C7: SYM | E7: Rating | H7: Rating | K7: Rank | M7: Strength | P7: Beta | R7: Cap | W7: S&P | Y7: Moody's | AA7: Rank | AC7: Strength | AE7: Beta
A8: =A7+1 -> 1 | B8: =VLOOKUP('Proxy Group Ticker'!$B3,vldatabase,2,FALSE) -> Algonquin Pwr & Util | C8: ='Proxy Group Ticker'!B3 -> AQN | E8: =VLOOKUP('Proxy Group Ticker'!$B3,vldatabase,26,FALSE) -> BBB | F8: =VLOOKUP(E8,'Ordinal Ratings'!A$6:C$28,2,FALSE) -> 9 | H8: =VLOOKUP('Proxy Group Ticker'!$B3,vldatabase,27,FALSE) -> NR | I8: =VLOOKUP(H8,'Ordinal Ratings'!I$6:K$25,2,FALSE) -> -- | K8: =VLOOKUP('Proxy Group Ticker'!$B3,vldatabase,22,FALSE) -> n/a | M8: =VLOOKUP('Proxy Group Ticker'!$B3,vldatabase,24,FALSE) -> n/a | N8: =VLOOKUP(M8,'Ordinal Ratings'!E$6:G$16,2,FALSE) ->  | P8: =VLOOKUP('Proxy Group Ticker'!$B3,vldatabase,23,FALSE) -> 0.9 | R8: =VLOOKUP('Proxy Group Ticker'!$B3,vldatabase,28,FALSE) -> 8126 | U8: Utility Group | W8: =E28 -> BBB+ | Y8: =H28 -> Baa2 | AA8: =K28 -> 2 | AC8: =M28 -> A | AE8: =P28 -> 0.8657894737
A9: =A8+1 -> 2 | B9: =VLOOKUP('Proxy Group Ticker'!$B4,vldatabase,2,FALSE) -> ALLETE | C9: ='Proxy Group Ticker'!B4 -> ALE | E9: =VLOOKUP('Proxy Group Ticker'!$B4,vldatabase,26,FALSE) -> BBB | F9: =VLOOKUP(E9,'Ordinal Ratings'!A$6:C$28,2,FALSE) -> 9 | H9: =VLOOKUP('Proxy Group Ticker'!$B4,vldatabase,27,FALSE) -> Baa1 | I9: =VLOOKUP(H9,'Ordinal Ratings'!I$6:K$25,2,FALSE) -> 8 | K9: =VLOOKUP('Proxy Group Ticker'!$B4,vldatabase,22,FALSE) -> 2 | M9: =VLOOKUP('Proxy Group Ticker'!$B4,vldatabase,24,FALSE) -> A | N9: =VLOOKUP(M9,'Ordinal Ratings'!E$6:G$16,2,FALSE) -> 3 | P9: =VLOOKUP('Proxy Group Ticker'!$B4,vldatabase,23,FALSE) -> 0.85 | R9: =VLOOKUP('Proxy Group Ticker'!$B4,vldatabase,28,FALSE) -> 2800 | U9: LGE/KU | W9: A- | Y9: A3 | AA9: 2 | AC9: B++ | AE9: 1.1
A10: 3 | B10: =VLOOKUP('Proxy Group Ticker'!$B5,vldatabase,2,FALSE) -> Alliant Energy | C10: ='Proxy Group Ticker'!B5 -> LNT | E10: =VLOOKUP('Proxy Group Ticker'!$B5,vldatabase,26,FALSE) -> A- | F10: =VLOOKUP(E10,'Ordinal Ratings'!A$6:C$28,2,FALSE) -> 7 | H10: =VLOOKUP('Proxy Group Ticker'!$B5,vldatabase,27,FALSE) -> Baa2 | I10: =VLOOKUP(H10,'Ordinal Ratings'!I$6:K$25,2,FALSE) -> 9 | K10: =VLOOKUP('Proxy Group Ticker'!$B5,vldatabase,22,FALSE) -> 2 | M10: =VLOOKUP('Proxy Group Ticker'!$B5,vldatabase,24,FALSE) -> A | N10: =VLOOKUP(M10,'Ordinal Ratings'!E$6:G$16,2,FALSE) -> 3 | P10: =VLOOKUP('Proxy Group Ticker'!$B5,vldatabase,23,FALSE) -> 0.85 | R10: =VLOOKUP('Proxy Group Ticker'!$B5,vldatabase,28,FALSE) -> 13500
A11: 4 | B11: =VLOOKUP('Proxy Group Ticker'!$B6,vldatabase,2,FALSE) -> Ameren Corp. | C11: ='Proxy Group Ticker'!B6 -> AEE | E11: =VLOOKUP('Proxy Group Ticker'!$B6,vldatabase,26,FALSE) -> BBB+ | F11: =VLOOKUP(E11,'Ordinal Ratings'!A$6:C$28,2,FALSE) -> 8 | H11: =VLOOKUP('Proxy Group Ticker'!$B6,vldatabase,27,FALSE) -> Baa1 | I11: =VLOOKUP(H11,'Ordinal Ratings'!I$6:K$25,2,FALSE) -> 8 | K11: =VLOOKUP('Proxy Group Ticker'!$B6,vldatabase,22,FALSE) -> 2 | M11: =VLOOKUP('Proxy Group Ticker'!$B6,vldatabase,24,FALSE) -> A | N11: =VLOOKUP(M11,'Ordinal Ratings'!E$6:G$16,2,FALSE) -> 3 | P11: =VLOOKUP('Proxy Group Ticker'!$B6,vldatabase,23,FALSE) -> 0.8 | R11: =VLOOKUP('Proxy Group Ticker'!$B6,vldatabase,28,FALSE) -> 20000
A12: 5 | B12: =VLOOKUP('Proxy Group Ticker'!$B7,vldatabase,2,FALSE) -> Avangrid, Inc. | C12: ='Proxy Group Ticker'!B7 -> AGR | E12: =VLOOKUP('Proxy Group Ticker'!$B7,vldatabase,26,FALSE) -> BBB+ | F12: =VLOOKUP(E12,'Ordinal Ratings'!A$6:C$28,2,FALSE) -> 8 | H12: =VLOOKUP('Proxy Group Ticker'!$B7,vldatabase,27,FALSE) -> Baa1 | I12: =VLOOKUP(H12,'Ordinal Ratings'!I$6:K$25,2,FALSE) -> 8 | K12: =VLOOKUP('Proxy Group Ticker'!$B7,vldatabase,22,FALSE) -> 2 | M12: =VLOOKUP('Proxy Group Ticker'!$B7,vldatabase,24,FALSE) -> B++ | N12: =VLOOKUP(M12,'Ordinal Ratings'!E$6:G$16,2,FALSE) -> 4 | P12: =VLOOKUP('Proxy Group Ticker'!$B7,vldatabase,23,FALSE) -> 0.8 | R12: =VLOOKUP('Proxy Group Ticker'!$B7,vldatabase,28,FALSE) -> 15000
A13: 6 | B13: =VLOOKUP('Proxy Group Ticker'!$B8,vldatabase,2,FALSE) -> Avista Corp. | C13: ='Proxy Group Ticker'!B8 -> AVA | E13: =VLOOKUP('Proxy Group Ticker'!$B8,vldatabase,26,FALSE) -> BBB | F13: =VLOOKUP(E13,'Ordinal Ratings'!A$6:C$28,2,FALSE) -> 9 | H13: =VLOOKUP('Proxy Group Ticker'!$B8,vldatabase,27,FALSE) -> Baa2 | I13: =VLOOKUP(H13,'Ordinal Ratings'!I$6:K$25,2,FALSE) -> 9 | K13: =VLOOKUP('Proxy Group Ticker'!$B8,vldatabase,22,FALSE) -> 2 | M13: =VLOOKUP('Proxy Group Ticker'!$B8,vldatabase,24,FALSE) -> B++ | N13: =VLOOKUP(M13,'Ordinal Ratings'!E$6:G$16,2,FALSE) -> 4 | P13: =VLOOKUP('Proxy Group Ticker'!$B8,vldatabase,23,FALSE) -> 0.9 | R13: =VLOOKUP('Proxy Group Ticker'!$B8,vldatabase,28,FALSE) -> 2400
A14: 7 | B14: =VLOOKUP('Proxy Group Ticker'!$B9,vldatabase,2,FALSE) -> Black Hills Corp. | C14: ='Proxy Group Ticker'!B9 -> BKH | E14: =VLOOKUP('Proxy Group Ticker'!$B9,vldatabase,26,FALSE) -> BBB+ | F14: =VLOOKUP(E14,'Ordinal Ratings'!A$6:C$28,2,FALSE) -> 8 | H14: =VLOOKUP('Proxy Group Ticker'!$B9,vldatabase,27,FALSE) -> Baa2 | I14: =VLOOKUP(H14,'Ordinal Ratings'!I$6:K$25,2,FALSE) -> 9 | K14: =VLOOKUP('Proxy Group Ticker'!$B9,vldatabase,22,FALSE) -> 2 | M14: =VLOOKUP('Proxy Group Ticker'!$B9,vldatabase,24,FALSE) -> A | N14: =VLOOKUP(M14,'Ordinal Ratings'!E$6:G$16,2,FALSE) -> 3 | P14: =VLOOKUP('Proxy Group Ticker'!$B9,vldatabase,23,FALSE) -> 0.95 | R14: =VLOOKUP('Proxy Group Ticker'!$B9,vldatabase,28,FALSE) -> 3800
A15: 8 | B15: =VLOOKUP('Proxy Group Ticker'!$B10,vldatabase,2,FALSE) -> CMS Energy Corp. | C15: ='Proxy Group Ticker'!B10 -> CMS | E15: =VLOOKUP('Proxy Group Ticker'!$B10,vldatabase,26,FALSE) -> BBB+ | F15: =VLOOKUP(E15,'Ordinal Ratings'!A$6:C$28,2,FALSE) -> 8 | H15: =VLOOKUP('Proxy Group Ticker'!$B10,vldatabase,27,FALSE) -> Baa1 | I15: =VLOOKUP(H15,'Ordinal Ratings'!I$6:K$25,2,FALSE) -> 8 | K15: =VLOOKUP('Proxy Group Ticker'!$B10,vldatabase,22,FALSE) -> 2 | M15: =VLOOKUP('Proxy Group Ticker'!$B10,vldatabase,24,FALSE) -> B++ | N15: =VLOOKUP(M15,'Ordinal Ratings'!E$6:G$16,2,FALSE) -> 4 | P15: =VLOOKUP('Proxy Group Ticker'!$B10,vldatabase,23,FALSE) -> 0.8 | R15: =VLOOKUP('Proxy Group Ticker'!$B10,vldatabase,28,FALSE) -> 17000
A16: 9 | B16: =VLOOKUP('Proxy Group Ticker'!$B11,vldatabase,2,FALSE) -> Consolidated Edison | C16: ='Proxy Group Ticker'!B11 -> ED | E16: =VLOOKUP('Proxy Group Ticker'!$B11,vldatabase,26,FALSE) -> A- | F16: =VLOOKUP(E16,'Ordinal Ratings'!A$6:C$28,2,FALSE) -> 7 | H16: =VLOOKUP('Proxy Group Ticker'!$B11,vldatabase,27,FALSE) -> Baa2 | I16: =VLOOKUP(H16,'Ordinal Ratings'!I$6:K$25,2,FALSE) -> 9 | K16: =VLOOKUP('Proxy Group Ticker'!$B11,vldatabase,22,FALSE) -> 1 | M16: =VLOOKUP('Proxy Group Ticker'!$B11,vldatabase,24,FALSE) -> A+ | N16: =VLOOKUP(M16,'Ordinal Ratings'!E$6:G$16,2,FALSE) -> 2 | P16: =VLOOKUP('Proxy Group Ticker'!$B11,vldatabase,23,FALSE) -> 0.75 | R16: =VLOOKUP('Proxy Group Ticker'!$B11,vldatabase,28,FALSE) -> 25000
A17: 10 | B17: =VLOOKUP('Proxy Group Ticker'!$B12,vldatabase,2,FALSE) -> DTE Energy Co. | C17: ='Proxy Group Ticker'!B12 -> DTE | E17: =VLOOKUP('Proxy Group Ticker'!$B12,vldatabase,26,FALSE) -> BBB+ | F17: =VLOOKUP(E17,'Ordinal Ratings'!A$6:C$28,2,FALSE) -> 8 | H17: =VLOOKUP('Proxy Group Ticker'!$B12,vldatabase,27,FALSE) -> Baa2 | I17: =VLOOKUP(H17,'Ordinal Ratings'!I$6:K$25,2,FALSE) -> 9 | K17: =VLOOKUP('Proxy Group Ticker'!$B12,vldatabase,22,FALSE) -> 2 | M17: =VLOOKUP('Proxy Group Ticker'!$B12,vldatabase,24,FALSE) -> A | N17: =VLOOKUP(M17,'Ordinal Ratings'!E$6:G$16,2,FALSE) -> 3 | P17: =VLOOKUP('Proxy Group Ticker'!$B12,vldatabase,23,FALSE) -> 0.9 | R17: =VLOOKUP('Proxy Group Ticker'!$B12,vldatabase,28,FALSE) -> 23000
A18: 11 | B18: =VLOOKUP('Proxy Group Ticker'!$B13,vldatabase,2,FALSE) -> Duke Energy Corp. | C18: ='Proxy Group Ticker'!B13 -> DUK | E18: =VLOOKUP('Proxy Group Ticker'!$B13,vldatabase,26,FALSE) -> A- | F18: =VLOOKUP(E18,'Ordinal Ratings'!A$6:C$28,2,FALSE) -> 7 | H18: =VLOOKUP('Proxy Group Ticker'!$B13,vldatabase,27,FALSE) -> Baa1 | I18: =VLOOKUP(H18,'Ordinal Ratings'!I$6:K$25,2,FALSE) -> 8 | K18: =VLOOKUP('Proxy Group Ticker'!$B13,vldatabase,22,FALSE) -> 2 | M18: =VLOOKUP('Proxy Group Ticker'!$B13,vldatabase,24,FALSE) -> A | N18: =VLOOKUP(M18,'Ordinal Ratings'!E$6:G$16,2,FALSE) -> 3 | P18: =VLOOKUP('Proxy Group Ticker'!$B13,vldatabase,23,FALSE) -> 0.85 | R18: =VLOOKUP('Proxy Group Ticker'!$B13,vldatabase,28,FALSE) -> 62000
A19: 12 | B19: =VLOOKUP('Proxy Group Ticker'!$B14,vldatabase,2,FALSE) -> Entergy Corp. | C19: ='Proxy Group Ticker'!B14 -> ETR | E19: =VLOOKUP('Proxy Group Ticker'!$B14,vldatabase,26,FALSE) -> BBB+ | F19: =VLOOKUP(E19,'Ordinal Ratings'!A$6:C$28,2,FALSE) -> 8 | H19: =VLOOKUP('Proxy Group Ticker'!$B14,vldatabase,27,FALSE) -> Baa2 | I19: =VLOOKUP(H19,'Ordinal Ratings'!I$6:K$25,2,FALSE) -> 9 | K19: =VLOOKUP('Proxy Group Ticker'!$B14,vldatabase,22,FALSE) -> 2 | M19: =VLOOKUP('Proxy Group Ticker'!$B14,vldatabase,24,FALSE) -> B++ | N19: =VLOOKUP(M19,'Ordinal Ratings'!E$6:G$16,2,FALSE) -> 4 | P19: =VLOOKUP('Proxy Group Ticker'!$B14,vldatabase,23,FALSE) -> 0.95 | R19: =VLOOKUP('Proxy Group Ticker'!$B14,vldatabase,28,FALSE) -> 20000
A20: 13 | B20: =VLOOKUP('Proxy Group Ticker'!$B15,vldatabase,2,FALSE) -> Eversource Energy | C20: ='Proxy Group Ticker'!B15 -> ES | E20: =VLOOKUP('Proxy Group Ticker'!$B15,vldatabase,26,FALSE) -> A- | F20: =VLOOKUP(E20,'Ordinal Ratings'!A$6:C$28,2,FALSE) -> 7 | H20: =VLOOKUP('Proxy Group Ticker'!$B15,vldatabase,27,FALSE) -> Baa1 | I20: =VLOOKUP(H20,'Ordinal Ratings'!I$6:K$25,2,FALSE) -> 8 | K20: =VLOOKUP('Proxy Group Ticker'!$B15,vldatabase,22,FALSE) -> 1 | M20: =VLOOKUP('Proxy Group Ticker'!$B15,vldatabase,24,FALSE) -> A | N20: =VLOOKUP(M20,'Ordinal Ratings'!E$6:G$16,2,FALSE) -> 3 | P20: =VLOOKUP('Proxy Group Ticker'!$B15,vldatabase,23,FALSE) -> 0.9 | R20: =VLOOKUP('Proxy Group Ticker'!$B15,vldatabase,28,FALSE) -> 30000
A21: 14 | B21: =VLOOKUP('Proxy Group Ticker'!$B16,vldatabase,2,FALSE) -> NorthWestern Corp. | C21: ='Proxy Group Ticker'!B16 -> NWE | E21: =VLOOKUP('Proxy Group Ticker'!$B16,vldatabase,26,FALSE) -> BBB | F21: =VLOOKUP(E21,'Ordinal Ratings'!A$6:C$28,2,FALSE) -> 9 | H21: =VLOOKUP('Proxy Group Ticker'!$B16,vldatabase,27,FALSE) -> Baa2 | I21: =VLOOKUP(H21,'Ordinal Ratings'!I$6:K$25,2,FALSE) -> 9 | K21: =VLOOKUP('Proxy Group Ticker'!$B16,vldatabase,22,FALSE) -> 2 | M21: =VLOOKUP('Proxy Group Ticker'!$B16,vldatabase,24,FALSE) -> B++ | N21: =VLOOKUP(M21,'Ordinal Ratings'!E$6:G$16,2,FALSE) -> 4 | P21: =VLOOKUP('Proxy Group Ticker'!$B16,vldatabase,23,FALSE) -> 0.9 | R21: =VLOOKUP('Proxy Group Ticker'!$B16,vldatabase,28,FALSE) -> 2700
A22: 15 | B22: =VLOOKUP('Proxy Group Ticker'!$B17,vldatabase,2,FALSE) -> Pub Sv Enterprise Grp. | C22: ='Proxy Group Ticker'!B17 -> PEG | E22: =VLOOKUP('Proxy Group Ticker'!$B17,vldatabase,26,FALSE) -> BBB+ | F22: =VLOOKUP(E22,'Ordinal Ratings'!A$6:C$28,2,FALSE) -> 8 | H22: =VLOOKUP('Proxy Group Ticker'!$B17,vldatabase,27,FALSE) -> Baa1 | I22: =VLOOKUP(H22,'Ordinal Ratings'!I$6:K$25,2,FALSE) -> 8 | K22: =VLOOKUP('Proxy Group Ticker'!$B17,vldatabase,22,FALSE) -> 1 | M22: =VLOOKUP('Proxy Group Ticker'!$B17,vldatabase,24,FALSE) -> A++ | N22: =VLOOKUP(M22,'Ordinal Ratings'!E$6:G$16,2,FALSE) -> 1 | P22: =VLOOKUP('Proxy Group Ticker'!$B17,vldatabase,23,FALSE) -> 0.9 | R22: =VLOOKUP('Proxy Group Ticker'!$B17,vldatabase,28,FALSE) -> 28000
A23: 16 | B23: =VLOOKUP('Proxy Group Ticker'!$B18,vldatabase,2,FALSE) -> Sempra Energy | C23: ='Proxy Group Ticker'!B18 -> SRE | E23: =VLOOKUP('Proxy Group Ticker'!$B18,vldatabase,26,FALSE) -> BBB+ | F23: =VLOOKUP(E23,'Ordinal Ratings'!A$6:C$28,2,FALSE) -> 8 | H23: =VLOOKUP('Proxy Group Ticker'!$B18,vldatabase,27,FALSE) -> Baa2 | I23: =VLOOKUP(H23,'Ordinal Ratings'!I$6:K$25,2,FALSE) -> 9 | K23: =VLOOKUP('Proxy Group Ticker'!$B18,vldatabase,22,FALSE) -> 2 | M23: =VLOOKUP('Proxy Group Ticker'!$B18,vldatabase,24,FALSE) -> A | N23: =VLOOKUP(M23,'Ordinal Ratings'!E$6:G$16,2,FALSE) -> 3 | P23: =VLOOKUP('Proxy Group Ticker'!$B18,vldatabase,23,FALSE) -> 0.95 | R23: =VLOOKUP('Proxy Group Ticker'!$B18,vldatabase,28,FALSE) -> 35000
A24: 17 | B24: =VLOOKUP('Proxy Group Ticker'!$B19,vldatabase,2,FALSE) -> Southern Company | C24: ='Proxy Group Ticker'!B19 -> SO | E24: =VLOOKUP('Proxy Group Ticker'!$B19,vldatabase,26,FALSE) -> A- | F24: =VLOOKUP(E24,'Ordinal Ratings'!A$6:C$28,2,FALSE) -> 7 | H24: =VLOOKUP('Proxy Group Ticker'!$B19,vldatabase,27,FALSE) -> Baa2 | I24: =VLOOKUP(H24,'Ordinal Ratings'!I$6:K$25,2,FALSE) -> 9 | K24: =VLOOKUP('Proxy Group Ticker'!$B19,vldatabase,22,FALSE) -> 2 | M24: =VLOOKUP('Proxy Group Ticker'!$B19,vldatabase,24,FALSE) -> A | N24: =VLOOKUP(M24,'Ordinal Ratings'!E$6:G$16,2,FALSE) -> 3 | P24: =VLOOKUP('Proxy Group Ticker'!$B19,vldatabase,23,FALSE) -> 0.9 | R24: =VLOOKUP('Proxy Group Ticker'!$B19,vldatabase,28,FALSE) -> 57000
A25: 18 | B25: =VLOOKUP('Proxy Group Ticker'!$B20,vldatabase,2,FALSE) -> WEC Energy Group | C25: ='Proxy Group Ticker'!B20 -> WEC | E25: =VLOOKUP('Proxy Group Ticker'!$B20,vldatabase,26,FALSE) -> A- | F25: =VLOOKUP(E25,'Ordinal Ratings'!A$6:C$28,2,FALSE) -> 7 | H25: =VLOOKUP('Proxy Group Ticker'!$B20,vldatabase,27,FALSE) -> Baa1 | I25: =VLOOKUP(H25,'Ordinal Ratings'!I$6:K$25,2,FALSE) -> 8 | K25: =VLOOKUP('Proxy Group Ticker'!$B20,vldatabase,22,FALSE) -> 1 | M25: =VLOOKUP('Proxy Group Ticker'!$B20,vldatabase,24,FALSE) -> A+ | N25: =VLOOKUP(M25,'Ordinal Ratings'!E$6:G$16,2,FALSE) -> 2 | P25: =VLOOKUP('Proxy Group Ticker'!$B20,vldatabase,23,FALSE) -> 0.8 | R25: =VLOOKUP('Proxy Group Ticker'!$B20,vldatabase,28,FALSE) -> 30000
A26: 19 | B26: =VLOOKUP('Proxy Group Ticker'!$B21,vldatabase,2,FALSE) -> Xcel Energy Inc. | C26: ='Proxy Group Ticker'!B21 -> XEL | E26: =VLOOKUP('Proxy Group Ticker'!$B21,vldatabase,26,FALSE) -> A- | F26: =VLOOKUP(E26,'Ordinal Ratings'!A$6:C$28,2,FALSE) -> 7 | H26: =VLOOKUP('Proxy Group Ticker'!$B21,vldatabase,27,FALSE) -> Baa1 | I26: =VLOOKUP(H26,'Ordinal Ratings'!I$6:K$25,2,FALSE) -> 8 | K26: =VLOOKUP('Proxy Group Ticker'!$B21,vldatabase,22,FALSE) -> 1 | M26: =VLOOKUP('Proxy Group Ticker'!$B21,vldatabase,24,FALSE) -> A+ | N26: =VLOOKUP(M26,'Ordinal Ratings'!E$6:G$16,2,FALSE) -> 2 | P26: =VLOOKUP('Proxy Group Ticker'!$B21,vldatabase,23,FALSE) -> 0.8 | R26: =VLOOKUP('Proxy Group Ticker'!$B21,vldatabase,28,FALSE) -> 34000
E28: =VLOOKUP(F28,'Ordinal Ratings'!$B$6:$C$26,2,FALSE) -> BBB+ | F28: =ROUND(AVERAGE(F8:F27),0) -> 8 | H28: =VLOOKUP(I28,'Ordinal Ratings'!$J$6:$K$24,2,FALSE) -> Baa2 | I28: =ROUND(AVERAGE(I8:I27),0) -> 9 | K28: =ROUND(AVERAGE(K8:K27),0) -> 2 | M28: =VLOOKUP(N28,'Ordinal Ratings'!$F$6:$G$15,2,FALSE) -> A | N28: =ROUND(AVERAGE(N8:N27),0) -> 3 | P28: =AVERAGE(P8:P27) -> 0.8657894737 | R28: =AVERAGE(R8:R27) -> 22596.10526
A31: (a) | B31: ='Electric Utility Data'!B51 -> Issuer credit rating from www.standardandpoors.com (retrieved Oct. 3, 2020).
A32: (b) | B32: ='Electric Utility Data'!B52 -> Long-term rating from www.moodys.com (retrieved Oct. 3, 2020).
A33: (c) | B33: ='Electric Utility Data'!B50 -> The Value Line Investment Survey (Jul. 24, Aug. 14 and Sep. 11, 2020).
A34: (d) | B34: ='Electric Utility Data'!B49 -> The Value Line Investment Survey, Summary & Index (Oct. 9, 2020).
A37: RISK MEASURES
A39: NON-UTILITY GROUP
E40: (a) | H40: (b) | K40: (c) | P40: (d) | R40: (c)
E41: S&P | H41: Moody's | K41: Value Line | AA41: Value Line
E42: Corporate | H42: Issuer | K42: Safety | M42: Financial | R42: Market | W42: Credit Rating | AA42: Safety | AC42: Financial
B43: Company | C43: SYM | E43: Rating | H43: Rating | K43: Rank | M43: Strength | P43: Beta | R43: Cap | W43: S&P | Y43: Moody's | AA43: Rank | AC43: Strength | AE43: Beta
A44: 1 | B44: Air Products & Chem. | C44: APD | E44: A | F44: =VLOOKUP(E44,'Ordinal Ratings'!A$6:C$28,2,FALSE) -> 6 | H44: A2 | I44: =VLOOKUP(H44,'Ordinal Ratings'!I$6:K$25,2,FALSE) -> 6 | K44: 1 | M44: A++ | N44: =VLOOKUP(M44,'Ordinal Ratings'!E$6:G$15,2,FALSE) -> 1 | P44: 0.9 | R44: 64200 | U44: Non-Utility Group | W44: =E90 -> A | Y44: =H90 -> A2 | AA44: =K90 -> 1 | AC44: =M90 -> A+ | AE44: =P90 -> 0.8277777778
A45: =A44+1 -> 2 | B45: Amdocs Ltd. | C45: DOX | E45: BBB | F45: =VLOOKUP(E45,'Ordinal Ratings'!A$6:C$28,2,FALSE) -> 9 | H45: Baa2 | I45: =VLOOKUP(H45,'Ordinal Ratings'!I$6:K$25,2,FALSE) -> 9 | K45: 1 | M45: A | N45: =VLOOKUP(M45,'Ordinal Ratings'!E$6:G$15,2,FALSE) -> 3 | P45: 0.9 | R45: 8200 | U45: Utility Group | W45: =E28 -> BBB+ | Y45: =H28 -> Baa2 | AA45: =K28 -> 2 | AC45: =M28 -> A | AE45: =P28 -> 0.8657894737
A46: =A45+1 -> 3 | B46: Amgen | C46: AMGN | E46: A- | F46: =VLOOKUP(E46,'Ordinal Ratings'!A$6:C$28,2,FALSE) -> 7 | H46: Baa1 | I46: =VLOOKUP(H46,'Ordinal Ratings'!I$6:K$25,2,FALSE) -> 8 | K46: 1 | M46: A++ | N46: =VLOOKUP(M46,'Ordinal Ratings'!E$6:G$15,2,FALSE) -> 1 | P46: 0.85 | R46: 138000 | U46: LGE/KU | W46: A- | Y46: A3 | AA46: =AA9 -> 2 | AC46: =AC9 -> B++ | AE46: =AE9 -> 1.1
A47: 4 | B47: Amphenol Corp. | C47: APH | E47: BBB+ | F47: =VLOOKUP(E47,'Ordinal Ratings'!A$6:C$28,2,FALSE) -> 8 | H47: Baa1 | I47: =VLOOKUP(H47,'Ordinal Ratings'!I$6:K$25,2,FALSE) -> 8 | K47: 1 | M47: A | N47: =VLOOKUP(M47,'Ordinal Ratings'!E$6:G$15,2,FALSE) -> 3 | P47: 1 | R47: 31900
A48: 5 | B48: Apple Inc. | C48: AAPL | E48: AA+ | F48: =VLOOKUP(E48,'Ordinal Ratings'!A$6:C$28,2,FALSE) -> 2 | H48: Aa1 | I48: =VLOOKUP(H48,'Ordinal Ratings'!I$6:K$25,2,FALSE) -> 2 | K48: 1 | M48: A++ | N48: =VLOOKUP(M48,'Ordinal Ratings'!E$6:G$15,2,FALSE) -> 1 | P48: 0.9 | R48: 2000000
A49: 6 | B49: AT&T Inc. | C49: T | E49: BBB | F49: =VLOOKUP(E49,'Ordinal Ratings'!A$6:C$28,2,FALSE) -> 9 | H49: Baa2 | I49: =VLOOKUP(H49,'Ordinal Ratings'!I$6:K$25,2,FALSE) -> 9 | K49: 1 | M49: A++ | N49: =VLOOKUP(M49,'Ordinal Ratings'!E$6:G$15,2,FALSE) -> 1 | P49: 0.85 | R49: 212000
A50: 7 | B50: Baxter Int'l Inc. | C50: BAX | E50: A- | F50: =VLOOKUP(E50,'Ordinal Ratings'!A$6:C$28,2,FALSE) -> 7 | H50: Baa1 | I50: =VLOOKUP(H50,'Ordinal Ratings'!I$6:K$25,2,FALSE) -> 8 | K50: 1 | M50: A+ | N50: =VLOOKUP(M50,'Ordinal Ratings'!E$6:G$15,2,FALSE) -> 2 | P50: 0.8 | R50: 42100
A51: 8 | B51: Bristol-Myers Squibb | C51: BMY | E51: A+ | F51: =VLOOKUP(E51,'Ordinal Ratings'!A$6:C$28,2,FALSE) -> 5 | H51: A2 | I51: =VLOOKUP(H51,'Ordinal Ratings'!I$6:K$25,2,FALSE) -> 6 | K51: 1 | M51: A++ | N51: =VLOOKUP(M51,'Ordinal Ratings'!E$6:G$15,2,FALSE) -> 1 | P51: 0.85 | R51: 130200
A52: 9 | B52: Brown & Brown | C52: BRO | E52: BBB- | F52: =VLOOKUP(E52,'Ordinal Ratings'!A$6:C$28,2,FALSE) -> 10 | H52: Baa3 | I52: =VLOOKUP(H52,'Ordinal Ratings'!I$6:K$25,2,FALSE) -> 10 | K52: 1 | M52: A | N52: =VLOOKUP(M52,'Ordinal Ratings'!E$6:G$15,2,FALSE) -> 3 | P52: 0.95 | R52: 12900
A53: 10 | B53: Brown-Forman 'B' | C53: BF/B | E53: A- | F53: =VLOOKUP(E53,'Ordinal Ratings'!A$6:C$28,2,FALSE) -> 7 | H53: A1 | I53: =VLOOKUP(H53,'Ordinal Ratings'!I$6:K$25,2,FALSE) -> 5 | K53: 1 | M53: A | N53: =VLOOKUP(M53,'Ordinal Ratings'!E$6:G$15,2,FALSE) -> 3 | P53: 0.85 | R53: 31000
A54: 11 | B54: Church & Dwight | C54: CHD | E54: BBB+ | F54: =VLOOKUP(E54,'Ordinal Ratings'!A$6:C$28,2,FALSE) -> 8 | H54: A3 | I54: =VLOOKUP(H54,'Ordinal Ratings'!I$6:K$25,2,FALSE) -> 7 | K54: 1 | M54: A+ | N54: =VLOOKUP(M54,'Ordinal Ratings'!E$6:G$15,2,FALSE) -> 2 | P54: 0.65 | R54: 23100
A55: 12 | B55: Cisco Systems | C55: CSCO | E55: AA- | F55: =VLOOKUP(E55,'Ordinal Ratings'!A$6:C$28,2,FALSE) -> 4 | H55: A1 | I55: =VLOOKUP(H55,'Ordinal Ratings'!I$6:K$25,2,FALSE) -> 5 | K55: 1 | M55: A++ | N55: =VLOOKUP(M55,'Ordinal Ratings'!E$6:G$15,2,FALSE) -> 1 | P55: 0.95 | R55: 178000
A56: 13 | B56: Coca-Cola | C56: KO | E56: A+ | F56: =VLOOKUP(E56,'Ordinal Ratings'!A$6:C$28,2,FALSE) -> 5 | H56: A1 | I56: =VLOOKUP(H56,'Ordinal Ratings'!I$6:K$25,2,FALSE) -> 5 | K56: 1 | M56: A++ | N56: =VLOOKUP(M56,'Ordinal Ratings'!E$6:G$15,2,FALSE) -> 1 | P56: 0.9 | R56: 194000
A57: 14 | B57: Colgate-Palmolive | C57: CL | E57: AA- | F57: =VLOOKUP(E57,'Ordinal Ratings'!A$6:C$28,2,FALSE) -> 4 | H57: Aa3 | I57: =VLOOKUP(H57,'Ordinal Ratings'!I$6:K$25,2,FALSE) -> 4 | K57: 1 | M57: A+ | N57: =VLOOKUP(M57,'Ordinal Ratings'!E$6:G$15,2,FALSE) -> 2 | P57: 0.7 | R57: 66200
A58: 15 | B58: Comcast Corp. | C58: CMCSA | E58: A- | F58: =VLOOKUP(E58,'Ordinal Ratings'!A$6:C$28,2,FALSE) -> 7 | H58: A3 | I58: =VLOOKUP(H58,'Ordinal Ratings'!I$6:K$25,2,FALSE) -> 7 | K58: 1 | M58: A+ | N58: =VLOOKUP(M58,'Ordinal Ratings'!E$6:G$15,2,FALSE) -> 2 | P58: 0.8 | R58: 205000
A59: 16 | B59: Commerce Bancshs. | C59: CBSH | E59: A- | F59: =VLOOKUP(E59,'Ordinal Ratings'!A$6:C$28,2,FALSE) -> 7 | H59: NR | I59: =VLOOKUP(H59,'Ordinal Ratings'!I$6:K$25,2,FALSE) -> -- | K59: 1 | M59: A | N59: =VLOOKUP(M59,'Ordinal Ratings'!E$6:G$15,2,FALSE) -> 3 | P59: 0.9 | R59: 6700
A60: 17 | B60: Costco Wholesale | C60: COST | E60: A+ | F60: =VLOOKUP(E60,'Ordinal Ratings'!A$6:C$28,2,FALSE) -> 5 | H60: Aa3 | I60: =VLOOKUP(H60,'Ordinal Ratings'!I$6:K$25,2,FALSE) -> 4 | K60: 1 | M60: A++ | N60: =VLOOKUP(M60,'Ordinal Ratings'!E$6:G$15,2,FALSE) -> 1 | P60: 0.65 | R60: 142500
A61: 18 | B61: CVS Health | C61: CVS | E61: BBB | F61: =VLOOKUP(E61,'Ordinal Ratings'!A$6:C$28,2,FALSE) -> 9 | H61: Baa2 | I61: =VLOOKUP(H61,'Ordinal Ratings'!I$6:K$25,2,FALSE) -> 9 | K61: 1 | M61: A+ | N61: =VLOOKUP(M61,'Ordinal Ratings'!E$6:G$15,2,FALSE) -> 2 | P61: 0.9 | R61: 81300
A62: 19 | B62: Danaher Corp. | C62: DHR | E62: BBB+ | F62: =VLOOKUP(E62,'Ordinal Ratings'!A$6:C$28,2,FALSE) -> 8 | H62: Baa1 | I62: =VLOOKUP(H62,'Ordinal Ratings'!I$6:K$25,2,FALSE) -> 8 | K62: 1 | M62: A+ | N62: =VLOOKUP(M62,'Ordinal Ratings'!E$6:G$15,2,FALSE) -> 2 | P62: 0.85 | R62: 149000
A63: 20 | B63: Gen'l Mills | C63: GIS | E63: BBB | F63: =VLOOKUP(E63,'Ordinal Ratings'!A$6:C$28,2,FALSE) -> 9 | H63: Baa2 | I63: =VLOOKUP(H63,'Ordinal Ratings'!I$6:K$25,2,FALSE) -> 9 | K63: 1 | M63: A+ | N63: =VLOOKUP(M63,'Ordinal Ratings'!E$6:G$15,2,FALSE) -> 2 | P63: 0.65 | R63: 37900
A64: 21 | B64: Hormel Foods | C64: HRL | E64: A | F64: =VLOOKUP(E64,'Ordinal Ratings'!A$6:C$28,2,FALSE) -> 6 | H64: A1 | I64: =VLOOKUP(H64,'Ordinal Ratings'!I$6:K$25,2,FALSE) -> 5 | K64: 1 | M64: A+ | N64: =VLOOKUP(M64,'Ordinal Ratings'!E$6:G$15,2,FALSE) -> 2 | P64: 0.55 | R64: 25900
A65: 22 | B65: Intel Corp. | C65: INTC | E65: A+ | F65: =VLOOKUP(E65,'Ordinal Ratings'!A$6:C$28,2,FALSE) -> 5 | H65: A1 | I65: =VLOOKUP(H65,'Ordinal Ratings'!I$6:K$25,2,FALSE) -> 5 | K65: 1 | M65: A++ | N65: =VLOOKUP(M65,'Ordinal Ratings'!E$6:G$15,2,FALSE) -> 1 | P65: 0.85 | R65: 210000
A66: 23 | B66: Int'l Flavors & Frag. | C66: IFF | E66: BBB | F66: =VLOOKUP(E66,'Ordinal Ratings'!A$6:C$28,2,FALSE) -> 9 | H66: Baa3 | I66: =VLOOKUP(H66,'Ordinal Ratings'!I$6:K$25,2,FALSE) -> 10 | K66: 1 | M66: A+ | N66: =VLOOKUP(M66,'Ordinal Ratings'!E$6:G$15,2,FALSE) -> 2 | P66: 0.9 | R66: 13200
A67: 24 | B67: Johnson & Johnson | C67: JNJ | E67: AAA | F67: =VLOOKUP(E67,'Ordinal Ratings'!A$6:C$28,2,FALSE) -> 1 | H67: Aaa | I67: =VLOOKUP(H67,'Ordinal Ratings'!I$6:K$25,2,FALSE) -> 1 | K67: 1 | M67: A++ | N67: =VLOOKUP(M67,'Ordinal Ratings'!E$6:G$15,2,FALSE) -> 1 | P67: 0.85 | R67: 388000
A68: 25 | B68: Kellogg | C68: K | E68: BBB | F68: =VLOOKUP(E68,'Ordinal Ratings'!A$6:C$28,2,FALSE) -> 9 | H68: Baa2 | I68: =VLOOKUP(H68,'Ordinal Ratings'!I$6:K$25,2,FALSE) -> 9 | K68: 1 | M68: A+ | N68: =VLOOKUP(M68,'Ordinal Ratings'!E$6:G$15,2,FALSE) -> 2 | P68: 0.65 | R68: 22700
A69: 26 | B69: Kimberly-Clark | C69: KMB | E69: A | F69: =VLOOKUP(E69,'Ordinal Ratings'!A$6:C$28,2,FALSE) -> 6 | H69: A2 | I69: =VLOOKUP(H69,'Ordinal Ratings'!I$6:K$25,2,FALSE) -> 6 | K69: 1 | M69: A+ | N69: =VLOOKUP(M69,'Ordinal Ratings'!E$6:G$15,2,FALSE) -> 2 | P69: 0.75 | R69: 51900
A70: 27 | B70: Lilly (Eli) | C70: LLY | E70: A+ | F70: =VLOOKUP(E70,'Ordinal Ratings'!A$6:C$28,2,FALSE) -> 5 | H70: A2 | I70: =VLOOKUP(H70,'Ordinal Ratings'!I$6:K$25,2,FALSE) -> 6 | K70: 1 | M70: A++ | N70: =VLOOKUP(M70,'Ordinal Ratings'!E$6:G$15,2,FALSE) -> 1 | P70: 0.75 | R70: 145000
A71: 28 | B71: Lockheed Martin | C71: LMT | E71: A- | F71: =VLOOKUP(E71,'Ordinal Ratings'!A$6:C$28,2,FALSE) -> 7 | H71: A3 | I71: =VLOOKUP(H71,'Ordinal Ratings'!I$6:K$25,2,FALSE) -> 7 | K71: 1 | M71: A++ | N71: =VLOOKUP(M71,'Ordinal Ratings'!E$6:G$15,2,FALSE) -> 1 | P71: 0.95 | R71: 110000
A72: 29 | B72: Marsh & McLennan | C72: MMC | E72: A- | F72: =VLOOKUP(E72,'Ordinal Ratings'!A$6:C$28,2,FALSE) -> 7 | H72: Baa1 | I72: =VLOOKUP(H72,'Ordinal Ratings'!I$6:K$25,2,FALSE) -> 8 | K72: 1 | M72: A | N72: =VLOOKUP(M72,'Ordinal Ratings'!E$6:G$15,2,FALSE) -> 3 | P72: 0.95 | R72: 58000
A73: 30 | B73: McCormick & Co. | C73: MKC | E73: BBB | F73: =VLOOKUP(E73,'Ordinal Ratings'!A$6:C$28,2,FALSE) -> 9 | H73: Baa2 | I73: =VLOOKUP(H73,'Ordinal Ratings'!I$6:K$25,2,FALSE) -> 9 | K73: 1 | M73: A+ | N73: =VLOOKUP(M73,'Ordinal Ratings'!E$6:G$15,2,FALSE) -> 2 | P73: 0.85 | R73: 24200
A74: 31 | B74: McDonald's Corp. | C74: MCD | E74: BBB+ | F74: =VLOOKUP(E74,'Ordinal Ratings'!A$6:C$28,2,FALSE) -> 8 | H74: Baa1 | I74: =VLOOKUP(H74,'Ordinal Ratings'!I$6:K$25,2,FALSE) -> 8 | K74: 1 | M74: A++ | N74: =VLOOKUP(M74,'Ordinal Ratings'!E$6:G$15,2,FALSE) -> 1 | P74: 0.95 | R74: 152000
A75: 32 | B75: Merck & Co. | C75: MRK | E75: AA- | F75: =VLOOKUP(E75,'Ordinal Ratings'!A$6:C$28,2,FALSE) -> 4 | H75: A1 | I75: =VLOOKUP(H75,'Ordinal Ratings'!I$6:K$25,2,FALSE) -> 5 | K75: 1 | M75: A++ | N75: =VLOOKUP(M75,'Ordinal Ratings'!E$6:G$15,2,FALSE) -> 1 | P75: 0.9 | R75: 210000
A76: 33 | B76: Microsoft Corp. | C76: MSFT | E76: AAA | F76: =VLOOKUP(E76,'Ordinal Ratings'!A$6:C$28,2,FALSE) -> 1 | H76: Aaa | I76: =VLOOKUP(H76,'Ordinal Ratings'!I$6:K$25,2,FALSE) -> 1 | K76: 1 | M76: A++ | N76: =VLOOKUP(M76,'Ordinal Ratings'!E$6:G$15,2,FALSE) -> 1 | P76: 0.9 | R76: 1543000
A77: 34 | B77: Northrop Grumman | C77: NOC | E77: BBB | F77: =VLOOKUP(E77,'Ordinal Ratings'!A$6:C$28,2,FALSE) -> 9 | H77: Baa1 | I77: =VLOOKUP(H77,'Ordinal Ratings'!I$6:K$25,2,FALSE) -> 8 | K77: 1 | M77: A++ | N77: =VLOOKUP(M77,'Ordinal Ratings'!E$6:G$15,2,FALSE) -> 1 | P77: 0.85 | R77: 57400
A78: 35 | B78: Oracle Corp. | C78: ORCL | E78: A | F78: =VLOOKUP(E78,'Ordinal Ratings'!A$6:C$28,2,FALSE) -> 6 | H78: A3 | I78: =VLOOKUP(H78,'Ordinal Ratings'!I$6:K$25,2,FALSE) -> 7 | K78: 1 | M78: A++ | N78: =VLOOKUP(M78,'Ordinal Ratings'!E$6:G$15,2,FALSE) -> 1 | P78: 0.85 | R78: 170000
A79: 36 | B79: PepsiCo, Inc. | C79: PEP | E79: A+ | F79: =VLOOKUP(E79,'Ordinal Ratings'!A$6:C$28,2,FALSE) -> 5 | H79: A1 | I79: =VLOOKUP(H79,'Ordinal Ratings'!I$6:K$25,2,FALSE) -> 5 | K79: 1 | M79: A++ | N79: =VLOOKUP(M79,'Ordinal Ratings'!E$6:G$15,2,FALSE) -> 1 | P79: 0.8 | R79: 185000
A80: 37 | B80: Pfizer, Inc. | C80: PFE | E80: AA- | F80: =VLOOKUP(E80,'Ordinal Ratings'!A$6:C$28,2,FALSE) -> 4 | H80: A1 | I80: =VLOOKUP(H80,'Ordinal Ratings'!I$6:K$25,2,FALSE) -> 5 | K80: 1 | M80: A++ | N80: =VLOOKUP(M80,'Ordinal Ratings'!E$6:G$15,2,FALSE) -> 1 | P80: 0.85 | R80: 200000
A81: 38 | B81: Procter & Gamble | C81: PG | E81: AA- | F81: =VLOOKUP(E81,'Ordinal Ratings'!A$6:C$28,2,FALSE) -> 4 | H81: Aa3 | I81: =VLOOKUP(H81,'Ordinal Ratings'!I$6:K$25,2,FALSE) -> 4 | K81: 1 | M81: A++ | N81: =VLOOKUP(M81,'Ordinal Ratings'!E$6:G$15,2,FALSE) -> 1 | P81: 0.75 | R81: 343000
A82: 39 | B82: Public Storage | C82: PSA | E82: A | F82: =VLOOKUP(E82,'Ordinal Ratings'!A$6:C$28,2,FALSE) -> 6 | H82: A2 | I82: =VLOOKUP(H82,'Ordinal Ratings'!I$6:K$25,2,FALSE) -> 6 | K82: 1 | M82: A+ | N82: =VLOOKUP(M82,'Ordinal Ratings'!E$6:G$15,2,FALSE) -> 2 | P82: 0.85 | R82: 37800
A83: 40 | B83: Texas Instruments | C83: TXN | E83: A+ | F83: =VLOOKUP(E83,'Ordinal Ratings'!A$6:C$28,2,FALSE) -> 5 | H83: A1 | I83: =VLOOKUP(H83,'Ordinal Ratings'!I$6:K$25,2,FALSE) -> 5 | K83: 1 | M83: A++ | N83: =VLOOKUP(M83,'Ordinal Ratings'!E$6:G$15,2,FALSE) -> 1 | P83: 0.9 | R83: 127000
A84: 41 | B84: Travelers Cos. | C84: TRV | E84: A | F84: =VLOOKUP(E84,'Ordinal Ratings'!A$6:C$28,2,FALSE) -> 6 | H84: A2 | I84: =VLOOKUP(H84,'Ordinal Ratings'!I$6:K$25,2,FALSE) -> 6 | K84: 1 | M84: A++ | N84: =VLOOKUP(M84,'Ordinal Ratings'!E$6:G$15,2,FALSE) -> 1 | P84: 1 | R84: 29100
A85: 42 | B85: United Parcel Serv. | C85: UPS | E85: A- | F85: =VLOOKUP(E85,'Ordinal Ratings'!A$6:C$28,2,FALSE) -> 7 | H85: A2 | I85: =VLOOKUP(H85,'Ordinal Ratings'!I$6:K$25,2,FALSE) -> 6 | K85: 1 | M85: A+ | N85: =VLOOKUP(M85,'Ordinal Ratings'!E$6:G$15,2,FALSE) -> 2 | P85: 0.8 | R85: 138000
A86: 43 | B86: Verizon Communic. | C86: VZ | E86: BBB+ | F86: =VLOOKUP(E86,'Ordinal Ratings'!A$6:C$28,2,FALSE) -> 8 | H86: Baa1 | I86: =VLOOKUP(H86,'Ordinal Ratings'!I$6:K$25,2,FALSE) -> 8 | K86: 1 | M86: A++ | N86: =VLOOKUP(M86,'Ordinal Ratings'!E$6:G$15,2,FALSE) -> 1 | P86: 0.65 | R86: 245000
A87: 44 | B87: Walmart Inc. | C87: WMT | E87: AA | F87: =VLOOKUP(E87,'Ordinal Ratings'!A$6:C$28,2,FALSE) -> 3 | H87: Aa2 | I87: =VLOOKUP(H87,'Ordinal Ratings'!I$6:K$25,2,FALSE) -> 3 | K87: 1 | M87: A++ | N87: =VLOOKUP(M87,'Ordinal Ratings'!E$6:G$15,2,FALSE) -> 1 | P87: 0.55 | R87: 367000
A88: 45 | B88: Waste Management | C88: WM | E88: A- | F88: =VLOOKUP(E88,'Ordinal Ratings'!A$6:C$28,2,FALSE) -> 7 | H88: Baa1 | I88: =VLOOKUP(H88,'Ordinal Ratings'!I$6:K$25,2,FALSE) -> 8 | K88: 1 | M88: A | N88: =VLOOKUP(M88,'Ordinal Ratings'!E$6:G$15,2,FALSE) -> 3 | P88: 0.8 | R88: 47200
A89: =A88+1 -> 46
B90: Average | E90: =VLOOKUP(F90,'Ordinal Ratings'!$B$6:$C$26,2,FALSE) -> A | F90: =ROUND(AVERAGE(F44:F88),0) -> 6 | H90: =VLOOKUP(I90,'Ordinal Ratings'!$J$6:$K$26,2,FALSE) -> A2 | I90: =ROUND(AVERAGE(I44:I88),0) -> 6 | K90: =AVERAGE(K44:K88) -> 1 | M90: =VLOOKUP(N90,'Ordinal Ratings'!$F$6:$G$26,2,FALSE) -> A+ | N90: =ROUND(AVERAGE(N44:N88),0) -> 2 | P90: =AVERAGE(P44:P88) -> 0.8277777778 | R90: =AVERAGE(R44:R88) -> 192324.4444
A93: (a) | B93: www.standardandpoors.com (retrieved Oct. 3, 2020).
A94: (b) | B94: www.moodys.com (retrieved Oct. 3, 2020).
A95: (c) | B95: The Value Line Investment Survey (various editions as of Oct. 9, 2020).
A96: (d) | B96: ='Electric Utility Data'!B49 -> The Value Line Investment Survey, Summary & Index (Oct. 9, 2020).
P98: =MIN(P44:P88) -> 0.55
P99: =MAX(P44:P88) -> 1

Sheet Results
B3: SUMMARY OF RESULTS
E5: Average | F5: Median | G5: Midpoint
C6: DCF
C7: Value Line | E7: ='2'!E8 -> 0.08797420294 | F7: =MEDIAN('4 (3)'!N8:N26) -> 0.08595998068 | G7: ='4 (3)'!D29 -> 0.1022668973
C8: IBES | E8: ='2'!E9 -> 0.09161214014 | F8: =MEDIAN('4 (3)'!O8:O26) -> 0.09208062396 | G8: ='4 (3)'!F29 -> 0.09258741979
C9: Zacks | E9: ='2'!E10 -> 0.09090257852 | F9: =MEDIAN('4 (3)'!P8:P26) -> 0.09271578687 | G9: ='4 (3)'!H29 -> 0.0969617215
C10: Internal br + sv | E10: ='2'!E11 -> 0.0827280522 | F10: =MEDIAN('4 (3)'!Q8:Q26) -> 0.07874743322 | G10: ='4 (3)'!J29 -> 0.0891196524
C11: Average | E11: =AVERAGE(E7:E10) -> 0.08830424345 | F11: =AVERAGE(F7:F10) -> 0.08737595618 | G11: =AVERAGE(G7:G10) -> 0.09523392274
C12: CAPM | E12: ='2'!E13 -> 0.1069192105 | F12: =MEDIAN('6'!Q9:Q27) -> 0.107815 | G12: ='2'!G13 -> 0.1070875
C14: Empirical CAPM | E14: ='2'!E15 -> 0.1103315132 | F14: =MEDIAN('7'!V10:V28) -> 0.10925875 | G14: ='2'!G15 -> 0.110265625
C16: Utility Risk Premium
C17: Current Bond Yields | E17: ='2'!E18:G18 -> 0.0927289 | F17: =E17 -> 0.0927289 | G17: =E17 -> 0.0927289
C18: Projected Bond Yield | E18: ='2'!E19:G19 -> 0.10224738 | F18: =E18 -> 0.10224738 | G18: =E18 -> 0.10224738
C19: Average | E19: =AVERAGE(E17:E18) -> 0.09748814 | F19: =AVERAGE(F17:F18) -> 0.09748814 | G19: =AVERAGE(G17:G18) -> 0.09748814
C20: Expected Earnings | E20: ='2'!E21 -> 0.103661445 | F20: =MEDIAN('9'!N8:N26) -> 0.1065707916 | G20: ='2'!G21 -> 0.1085757189
C21: Indicated ROE | E21: =AVERAGE(E11,E12,E14,E19,E20) -> 0.1013409104 | F21: =AVERAGE(F11,F12,F14,F19,F20) -> 0.1017017276 | G21: =AVERAGE(G11,G12,G14,G19,G20) -> 0.1037301813

Sheet Fig. 1
A1: Date | B1: Total Assets
A2: 2007-08-01 | B2: 870261 | C2: =B2/1000 -> 870.261
A3: 2007-08-08 | B3: 865453 | C3: =B3/1000 -> 865.453
A4: 2007-08-15 | B4: 864931 | C4: 864.931
A5: 2007-08-22 | B5: 862775 | C5: 862.775
A6: 2007-08-29 | B6: 872873 | C6: 872.873
A7: 2007-09-05 | B7: 871156 | C7: 871.156
A8: 2007-09-12 | B8: 886314 | C8: 886.314
A9: 2007-09-19 | B9: 867732 | C9: 867.732
A10: 2007-09-26 | B10: 889900 | C10: 889.9
A11: 2007-10-03 | B11: 869051 | C11: 869.051
A12: 2007-10-10 | B12: 886363 | C12: 886.363
A13: 2007-10-17 | B13: 869509 | C13: 869.509
A14: 2007-10-24 | B14: 881395 | C14: 881.395
A15: 2007-10-31 | B15: 883385 | C15: 883.385
A16: 2007-11-07 | B16: 885724 | C16: 885.724
A17: 2007-11-14 | B17: 889537 | C17: 889.537
A18: 2007-11-21 | B18: 891028 | C18: 891.028
A19: 2007-11-28 | B19: 879417 | C19: 879.417
A20: 2007-12-05 | B20: 882764 | C20: 882.764
A21: 2007-12-12 | B21: 881750 | C21: 881.75
A22: 2007-12-19 | B22: 887983 | C22: 887.983
A23: 2007-12-26 | B23: 890662 | C23: 890.662
A24: 2008-01-02 | B24: 922187 | C24: 922.187
A25: 2008-01-09 | B25: 880754 | C25: 880.754 | I25: https://fred.stlouisfed.org/series/WALCL
A26: 2008-01-16 | B26: 893581 | C26: 893.581
A27: 2008-01-23 | B27: 877253 | C27: 877.253
A28: 2008-01-30 | B28: 900264 | C28: 900.264
A29: 2008-02-06 | B29: 871022 | C29: 871.022
A30: 2008-02-13 | B30: 883005 | C30: 883.005
A31: 2008-02-20 | B31: 878949 | C31: 878.949
A32: 2008-02-27 | B32: 893825 | C32: 893.825
A33: 2008-03-05 | B33: 881208 | C33: 881.208
A34: 2008-03-12 | B34: 896565 | C34: 896.565
A35: 2008-03-19 | B35: 888646 | C35: 888.646
A36: 2008-03-26 | B36: 893965 | C36: 893.965
A37: 2008-04-02 | B37: 883708 | C37: 883.708
A38: 2008-04-09 | B38: 893029 | C38: 893.029
A39: 2008-04-16 | B39: 881904 | C39: 881.904
A40: 2008-04-23 | B40: 885781 | C40: 885.781
A41: 2008-04-30 | B41: 888131 | C41: 888.131
A42: 2008-05-07 | B42: 889228 | C42: 889.228
A43: 2008-05-14 | B43: 880175 | C43: 880.175
A44: 2008-05-21 | B44: 898487 | C44: 898.487
A45: 2008-05-28 | B45: 904054 | C45: 904.054
A46: 2008-06-04 | B46: 895939 | C46: 895.939
A47: 2008-06-11 | B47: 890610 | C47: 890.61
A48: 2008-06-18 | B48: 902304 | C48: 902.304
A49: 2008-06-25 | B49: 892713 | C49: 892.713
A50: 2008-07-02 | B50: 902962 | C50: 902.962
A51: 2008-07-09 | B51: 898034 | C51: 898.034
A52: 2008-07-16 | B52: 910681 | C52: 910.681
A53: 2008-07-23 | B53: 899665 | C53: 899.665
A54: 2008-07-30 | B54: 918625 | C54: 918.625
A55: 2008-08-06 | B55: 901710 | C55: 901.71
A56: 2008-08-13 | B56: 914632 | C56: 914.632
A57: 2008-08-20 | B57: 898611 | C57: 898.611
A58: 2008-08-27 | B58: 909982 | C58: 909.982
A59: 2008-09-03 | B59: 905253 | C59: 905.253
A60: 2008-09-10 | B60: 925725 | C60: 925.725
A61: 2008-09-17 | B61: 995093 | C61: 995.093
A62: 2008-09-24 | B62: 1211825 | C62: 1211.825
A63: 2008-10-01 | B63: 1503989 | C63: 1503.989
A64: 2008-10-08 | B64: 1591587 | C64: 1591.587
A65: 2008-10-15 | B65: 1770809 | C65: 1770.809
A66: 2008-10-22 | B66: 1802602 | C66: 1802.602
A67: 2008-10-29 | B67: 1969086 | C67: =B67/1000 -> 1969.086
A68: 2008-11-05 | B68: 2074205 | C68: 2074.205
A69: 2008-11-12 | B69: 2212852 | C69: 2212.852
A70: 2008-11-19 | B70: 2187137 | C70: 2187.137
A71: 2008-11-26 | B71: 2106117 | C71: 2106.117
A72: 2008-12-03 | B72: 2136924 | C72: 2136.924
A73: 2008-12-10 | B73: 2250012 | C73: 2250.012
A74: 2008-12-17 | B74: 2254983 | C74: 2254.983
A75: 2008-12-24 | B75: 2232311 | C75: 2232.311
A76: 2008-12-31 | B76: 2239457 | C76: 2239.457
A77: 2009-01-07 | B77: 2121439 | C77: 2121.439
A78: 2009-01-14 | B78: 2049714 | C78: 2049.714
A79: 2009-01-21 | B79: 2037112 | C79: 2037.112
A80: 2009-01-28 | B80: 1927082 | C80: 1927.082
A81: 2009-02-04 | B81: 1851437 | C81: 1851.437
A82: 2009-02-11 | B82: 1843400 | C82: 1843.4
A83: 2009-02-18 | B83: 1915562 | C83: 1915.562
A84: 2009-02-25 | B84: 1916115 | C84: 1916.115
A85: 2009-03-04 | B85: 1901317 | C85: 1901.317
A86: 2009-03-11 | B86: 1899514 | C86: 1899.514
A87: 2009-03-18 | B87: 2066942 | C87: 2066.942
A88: 2009-03-25 | B88: 2071556 | C88: 2071.556
A89: 2009-04-01 | B89: 2078936 | C89: 2078.936
A90: 2009-04-08 | B90: 2088573 | C90: 2088.573
A91: 2009-04-15 | B91: 2186498 | C91: 2186.498
A92: 2009-04-22 | B92: 2196812 | C92: 2196.812
A93: 2009-04-29 | B93: 2066712 | C93: 2066.712
A94: 2009-05-06 | B94: 2079758 | C94: 2079.758
A95: 2009-05-13 | B95: 2196351 | C95: 2196.351
A96: 2009-05-20 | B96: 2181632 | C96: 2181.632
A97: 2009-05-27 | B97: 2080115 | C97: 2080.115
A98: 2009-06-03 | B98: 2077695 | C98: 2077.695
A99: 2009-06-10 | B99: 2052297 | C99: 2052.297
A100: 2009-06-17 | B100: 2072527 | C100: 2072.527
A101: 2009-06-24 | B101: 2025571 | C101: 2025.571
A102: 2009-07-01 | B102: 2005627 | C102: 2005.627
A103: 2009-07-08 | B103: 1992740 | C103: 1992.74
A104: 2009-07-15 | B104: 2072451 | C104: 2072.451
A105: 2009-07-22 | B105: 2039001 | C105: 2039.001
A106: 2009-07-29 | B106: 2000547 | C106: 2000.547
A107: 2009-08-05 | B107: 1989203 | C107: 1989.203
A108: 2009-08-12 | B108: 2014899 | C108: 2014.899
A109: 2009-08-19 | B109: 2060641 | C109: 2060.641
A110: 2009-08-26 | B110: 2074902 | C110: 2074.902
A111: 2009-09-02 | B111: 2083720 | C111: 2083.72
A112: 2009-09-09 | B112: 2087946 | C112: 2087.946
A113: 2009-09-16 | B113: 2139783 | C113: 2139.783
A114: 2009-09-23 | B114: 2158631 | C114: 2158.631
A115: 2009-09-30 | B115: 2141020 | C115: 2141.02
A116: 2009-10-07 | B116: 2138086 | C116: 2138.086
A117: 2009-10-14 | B117: 2192787 | C117: 2192.787
A118: 2009-10-21 | B118: 2201119 | C118: 2201.119
A119: 2009-10-28 | B119: 2161537 | C119: 2161.537
A120: 2009-11-04 | B120: 2165067 | C120: 2165.067
A121: 2009-11-11 | B121: 2135035 | C121: 2135.035
A122: 2009-11-18 | B122: 2208721 | C122: 2208.721
A123: 2009-11-25 | B123: 2206359 | C123: 2206.359
A124: 2009-12-02 | B124: 2204074 | C124: 2204.074
A125: 2009-12-09 | B125: 2186383 | C125: 2186.383
A126: 2009-12-16 | B126: 2235763 | C126: 2235.763
A127: 2009-12-23 | B127: 2235803 | C127: 2235.803
A128: 2009-12-30 | B128: 2234067 | C128: 2234.067
A129: 2010-01-06 | B129: 2235304 | C129: 2235.304
A130: 2010-01-13 | B130: 2291700 | C130: 2291.7
A131: 2010-01-20 | B131: 2251806 | C131: =B131/1000 -> 2251.806
A132: 2010-01-27 | B132: 2246886 | C132: 2246.886
A133: 2010-02-03 | B133: 2249319 | C133: 2249.319
A134: 2010-02-10 | B134: 2256679 | C134: 2256.679
A135: 2010-02-17 | B135: 2277574 | C135: 2277.574
A136: 2010-02-24 | B136: 2286127 | C136: 2286.127
A137: 2010-03-03 | B137: 2280147 | C137: 2280.147
A138: 2010-03-10 | B138: 2282474 | C138: 2282.474
A139: 2010-03-17 | B139: 2307997 | C139: 2307.997
A140: 2010-03-24 | B140: 2313149 | C140: 2313.149
A141: 2010-03-31 | B141: 2307150 | C141: 2307.15
A142: 2010-04-07 | B142: 2307575 | C142: 2307.575
A143: 2010-04-14 | B143: 2339345 | C143: 2339.345
A144: 2010-04-21 | B144: 2337556 | C144: 2337.556
A145: 2010-04-28 | B145: 2330472 | C145: 2330.472
A146: 2010-05-05 | B146: 2326164 | C146: 2326.164
A147: 2010-05-12 | B147: 2336103 | C147: 2336.103
A148: 2010-05-19 | B148: 2350890 | C148: 2350.89
A149: 2010-05-26 | B149: 2334041 | C149: 2334.041
A150: 2010-06-02 | B150: 2336216 | C150: 2336.216
A151: 2010-06-09 | B151: 2331529 | C151: 2331.529
A152: 2010-06-16 | B152: 2344316 | C152: 2344.316
A153: 2010-06-23 | B153: 2344497 | C153: 2344.497
A154: 2010-06-30 | B154: 2330851 | C154: 2330.851
A155: 2010-07-07 | B155: 2332017 | C155: 2332.017
A156: 2010-07-14 | B156: 2340717 | C156: 2340.717
A157: 2010-07-21 | B157: 2332322 | C157: 2332.322
A158: 2010-07-28 | B158: 2325298 | C158: 2325.298
A159: 2010-08-04 | B159: 2326479 | C159: 2326.479
A160: 2010-08-11 | B160: 2327533 | C160: 2327.533
A161: 2010-08-18 | B161: 2313662 | C161: 2313.662
A162: 2010-08-25 | B162: 2301015 | C162: 2301.015
A163: 2010-09-01 | B163: 2301996 | C163: 2301.996
A164: 2010-09-08 | B164: 2305802 | C164: 2305.802
A165: 2010-09-15 | B165: 2296079 | C165: 2296.079
A166: 2010-09-22 | B166: 2307171 | C166: 2307.171
A167: 2010-09-29 | B167: 2298691 | C167: 2298.691
A168: 2010-10-06 | B168: 2308092 | C168: 2308.092
A169: 2010-10-13 | B169: 2309885 | C169: 2309.885
A170: 2010-10-20 | B170: 2305227 | C170: 2305.227
A171: 2010-10-27 | B171: 2295392 | C171: 2295.392
A172: 2010-11-03 | B172: 2300353 | C172: 2300.353
A173: 2010-11-10 | B173: 2312768 | C173: 2312.768
A174: 2010-11-17 | B174: 2314757 | C174: 2314.757
A175: 2010-11-24 | B175: 2346001 | C175: 2346.001
A176: 2010-12-01 | B176: 2346920 | C176: 2346.92
A177: 2010-12-08 | B177: 2382294 | C177: 2382.294
A178: 2010-12-15 | B178: 2385754 | C178: 2385.754
A179: 2010-12-22 | B179: 2427921 | C179: 2427.921
A180: 2010-12-29 | B180: 2420570 | C180: 2420.57
A181: 2011-01-05 | B181: 2436064 | C181: 2436.064
A182: 2011-01-12 | B182: 2468131 | C182: 2468.131
A183: 2011-01-19 | B183: 2425164 | C183: 2425.164
A184: 2011-01-26 | B184: 2443527 | C184: 2443.527
A185: 2011-02-02 | B185: 2469419 | C185: 2469.419
A186: 2011-02-09 | B186: 2500481 | C186: 2500.481
A187: 2011-02-16 | B187: 2508868 | C187: 2508.868
A188: 2011-02-23 | B188: 2533221 | C188: 2533.221
A189: 2011-03-02 | B189: 2545119 | C189: 2545.119
A190: 2011-03-09 | B190: 2577076 | C190: 2577.076
A191: 2011-03-16 | B191: 2583046 | C191: 2583.046
A192: 2011-03-23 | B192: 2601341 | C192: 2601.341
A193: 2011-03-30 | B193: 2622523 | C193: 2622.523
A194: 2011-04-06 | B194: 2648676 | C194: 2648.676
A195: 2011-04-13 | B195: 2665408 | C195: =B195/1000 -> 2665.408
A196: 2011-04-20 | B196: 2685782 | C196: 2685.782
A197: 2011-04-27 | B197: 2690985 | C197: 2690.985
A198: 2011-05-04 | B198: 2718757 | C198: 2718.757
A199: 2011-05-11 | B199: 2744498 | C199: 2744.498
A200: 2011-05-18 | B200: 2758009 | C200: 2758.009
... 489 more rows

Sheet Fig. 2
C2: Return
C9: Rf
D10: Low beta assets | G10: High beta assets
C12: 0
F13: 1 | I13: Beta

Sheet Table 4
F5: Average
D6: ='Bond Yields'!B14 -> Sep. 2020 | F6: ='Bond Yields'!M50 -> 2021-25 | H6: Change (bp)
B7: 10-Yr. Treasury | D7: ='Bond Yields'!M14 -> 0.0068 | F7: ='Bond Yields'!M55 -> 0.0190925 | H7: =(F7-D7)*10000 -> 122.925
B8: 30-Yr. Treasury | D8: ='Bond Yields'!K14 -> 0.0142 | F8: ='Bond Yields'!M60 -> 0.02244333333 | H8: =(F8-D8)*10000 -> 82.43333333
B9: Aaa Corporate | D9: ='Bond Yields'!O14 -> 0.0231 | F9: ='Bond Yields'!M65 -> 0.03033 | H9: =(F9-D9)*10000 -> 72.3
B10: Aa Utility | D10: ='Bond Yields'!G14 -> 0.0262 | F10: ='Bond Yields'!M69 -> 0.04122 | H10: =(F10-D10)*10000 -> 150.2
B12: Source:
B13: ='Bond Yields'!B72&"." -> Value Line Investment Survey, Forecast for the U.S. Economy (Aug. 28, 2020).
B14: ='Bond Yields'!B73&"." -> IHS Markit, Long-Term Macro Forecast - Baseline (May 28, 2020).
B15: ='Bond Yields'!B74&"." -> Energy Information Administration, Annual Energy Outlook 2020 (Jan. 29, 2020).
B16: ='Bond Yields'!B75&"." -> Wolters Kluwer, Blue Chip Financial Forecasts (Jun. 1, 2020).

Sheet Tables 5 & 6
D3: Common | F3: Retained | H3: Total | I3: Market | J3: M/B | K3: Allowed | N3: Payout
B4: Year | D4: Stock | F4: Earnings | H4: Equity | I4: Price | J4: Ratio | K4: ROE | L4: EPS | M4: DPS | N4: Ratio
B5: 1 | D5: 9.52 | F5: 0 | H5: =D5+F5 -> 9.52 | I5: 10 | J5: =I5/H5 -> 1.050420168 | K5: 0.105 | L5: =H5*K5 -> 0.9996 | M5: 0.5 | N5: =M5/L5 -> 0.50020008
B6: 2 | D6: =D5 -> 9.52 | F6: =L5-M5 -> 0.4996 | H6: =D6+F6 -> 10.0196 | I6: =H6*J6 -> 10.52478992 | J6: =J5 -> 1.050420168 | K6: =K5 -> 0.105 | L6: =H6*K6 -> 1.052058 | M6: =L6*N5 -> 0.5262394958 | N6: =M6/L6 -> 0.50020008
B7: 3 | D7: =D6 -> 9.52 | F7: =L6-M6 -> 0.5258185042 | H7: =H6+F7 -> 10.5454185 | I7: =H7*J7 -> 11.07712028 | J7: =J6 -> 1.050420168 | K7: =K6 -> 0.105 | L7: =H7*K7 -> 1.107268943 | M7: =L7*N6 -> 0.5538560139 | N7: 0.50020008
B8: Growth | H8: =(H7/H5)^(1/2)-1 -> 0.0524789916 | I8: =(I7/I5)^(1/2)-1 -> 0.0524789916 | L8: =(L7/L5)^(1/2)-1 -> 0.0524789916 | M8: =(M7/M5)^(1/2)-1 -> 0.0524789916
D12: Common | F12: Retained | H12: Total | I12: Market | J12: M/B | K12: Allowed | N12: Payout
B13: Year | D13: Stock | F13: Earnings | H13: Equity | I13: Price | J13: Ratio | K13: ROE | L13: EPS | M13: DPS | N13: Ratio
B14: 1 | D14: 9.52 | F14: 0 | H14: =D14+F14 -> 9.52 | I14: 10 | J14: =I14/H14 -> 1.050420168 | K14: 0.1075 | L14: =H14*K14 -> 1.0234 | M14: 0.5 | N14: =M14/L14 -> 0.48856752
B15: 2 | D15: =D14 -> 9.52 | F15: =L14-M14 -> 0.5234 | H15: =D15+F15 -> 10.0434 | I15: =H15*J15 -> 10.54978992 | J15: =J14 -> 1.050420168 | K15: =K14 -> 0.1075 | L15: =H15*K15 -> 1.0796655 | M15: =L15*N14 -> 0.5274894958 | N15: =M15/L15 -> 0.48856752
B16: 3 | D16: =D15 -> 9.52 | F16: =L15-M15 -> 0.5521760042 | H16: =H15+F16 -> 10.595576 | I16: =H16*J16 -> 11.12980673 | J16: =J15 -> 1.050420168 | K16: =K15 -> 0.1075 | L16: =H16*K16 -> 1.13902442 | M16: =L16*N15 -> 0.5564903364 | N16: 0.48856752
B17: Growth | H17: =(H16/H14)^(1/2)-1 -> 0.0549789916 | I17: =(I16/I14)^(1/2)-1 -> 0.0549789916 | L17: =(L16/L14)^(1/2)-1 -> 0.0549789916 | M17: =(M16/M14)^(1/2)-1 -> 0.0549789916

Sheet Exhibit List
A1: Tab | B1: Designation | C1: Title I | D1: Title II
A2: 2 | B2: Exhibit No. 2 | C2: ROE ANALYSES | D2: SUMMARY OF RESULTS
A3: 3 (1) | B3: Exhibit No. 3 | C3: REGULATORY MECHANISMS | D3: UTILITY GROUP
A4: 3 (2-5) | B4: Exhibit No. 3 | C4: REGULATORY MECHANISMS | D4: UTILITY GROUP OPERATING COS.
A5: 4 (1) | B5: Exhibit No. 4 | C5: DCF MODEL - UTILITY GROUP | D5: DIVIDEND YIELD
A6: 4 (2) | B6: Exhibit No. 4 | C6: DCF MODEL - UTILITY GROUP | D6: GROWTH RATES
A7: 4 (3) | B7: Exhibit No. 4 | C7: DCF MODEL - UTILITY GROUP | D7: COST OF EQUITY ESTIMATES
A8: 4 (4) | B8: Exhibit No. 4 | C8: DCF MODEL - UTILITY GROUP | D8: LOW-END THRESHOLD ADJUSTMENT
A9: 5 | B9: Exhibit No. 5 | C9: BR+SV GROWTH RATE | D9: UTILITY GROUP
A10: 6 | B10: Exhibit No. 6 | C10: CAPM | D10: UTILITY GROUP
A11: 7 | B11: Exhibit No. 7 | C11: EMPIRICAL CAPM | D11: UTILITY GROUP
A12: 8 (1) | B12: Exhibit No. 8 | C12: UTILITY RISK PREMIUM | D12: CURRENT BOND YIELD
A13: 8 (2) | B13: Exhibit No. 8 | C13: UTILITY RISK PREMIUM | D13: PROJECTED BOND YIELD
A14: 8 (3) | B14: Exhibit No. 8 | C14: UTILITY RISK PREMIUM | D14: AUTHORIZED RETURNS
A15: 8 (4) | B15: Exhibit No. 8 | C15: UTILITY RISK PREMIUM | D15: REGRESSION RESULTS
A16: 9 | B16: Exhibit No. 9 | C16: EXPECTED EARNINGS APPROACH | D16: UTILITY GROUP
A17: 10 | B17: Exhibit No. 10 | C17: FLOTATION COST STUDY | D17: VALUE LINE ELECTRIC INDUSTRY
A18: 11 (1) | B18: Exhibit No. 11 | C18: DCF MODEL - NON-UTILITY GROUP | D18: DIVIDEND YIELD
A19: 11 (2) | B19: Exhibit No. 11 | C19: DCF MODEL - NON-UTILITY GROUP | D19: GROWTH RATES
A20: 11 (3) | B20: Exhibit No. 11 | C20: DCF MODEL - NON-UTILITY GROUP | D20: DCF COST OF EQUITY ESTIMATES
A21: 12 (1) | B21: Exhibit No. 12 | C21: CAPITAL STRUCTURE | D21: UTILITY GROUP
A22: 12 (2-3) | B22: Exhibit No. 12 | C22: CAPITAL STRUCTURE | D22: UTILITY GROUP OPERATING SUBSIDIARIES

Sheet 2
A1: ='Exhibit List'!C2 -> ROE ANALYSES | I1: ='Exhibit List'!B2 -> Exhibit No. 2
I2: Page 1 of 1
A3: ='Exhibit List'!D2 -> SUMMARY OF RESULTS
B6: Method | E6: Average | G6: Midpoint
B7: DCF
C8: Value Line | E8: ='4 (3)'!D28 -> 0.08797420294 | G8: ='4 (3)'!D29 -> 0.1022668973
C9: IBES | E9: ='4 (3)'!F28 -> 0.09161214014 | G9: ='4 (3)'!F29 -> 0.09258741979
C10: Zacks | E10: ='4 (3)'!H28 -> 0.09090257852 | G10: ='4 (3)'!H29 -> 0.0969617215
C11: Internal br + sv | E11: ='4 (3)'!J28 -> 0.0827280522 | G11: ='4 (3)'!J29 -> 0.0891196524
B13: CAPM | E13: ='6'!M29 -> 0.1069192105 | G13: ='6'!M30 -> 0.1070875
B15: Empirical CAPM | E15: ='7'!R30 -> 0.1103315132 | G15: ='7'!R31 -> 0.110265625
B17: Utility Risk Premium
C18: Current Bond Yields | E18: ='8 (1)'!G22 -> 0.0927289
C19: Projected Bond Yield | E19: ='8 (2)'!G22 -> 0.10224738
B21: Expected Earnings | E21: ='9'!H28 -> 0.103661445 | G21: ='9'!H29 -> 0.1085757189
B23: ROE Recommendation
B25: Proxy Group
C26: Recommended Cost of Equity Range | E26: 0.093 | F26: -- | G26: 0.105
C28: Flotation Cost Adjustment
D29: Dividend Yield | F29: ='4 ( 1)'!H27 -> 0.03743620281
D30: Flotation Cost Percentage | F30: =ROUND('10'!L60,3) -> 0.029
D31: Adjustment | F31: =ROUND(F29*F30,4) -> 0.0011
C33: Recommended ROE Range | E33: =ROUND(E26+F31,3) -> 0.094 | F33: -- | G33: =ROUND(G26+F31,3) -> 0.106
C34: Midpoint | F34: =AVERAGE(E33,G33) -> 0.1
C36: Recommended ROE | F36: =AVERAGE(E33,G33) -> 0.1

Sheet 3 (1)
A2: ='Exhibit List'!C3 -> REGULATORY MECHANISMS | M2: ='Exhibit List'!B3 -> Exhibit No. 3
M3: Page 1 of 4
A4: ='Exhibit List'!D3 -> UTILITY GROUP
C6: Type of Adjustment Clause
C8: Elec. Fuel/ Purch. Pwr | I8: New Capital
A9: Holding Company | D9: Conserv. Program Expense | E9: Decoupling Full Partial | G9: Renew- ables Expense | H9: Environ- mental Compliance | I9: Gener- ation Capacity | J9: Generic Infra- structure | K9: Trans- mission Expense | L9: Other* | M9: Future Test Year
A10: 1 | B10: Algonquin Pwr & Util | C10: D | D10: ✓ | E10: -- | F10: ✓ | G10: -- | H10: ✓ | I10: -- | J10: ✓ | K10: ✓ | L10: ✓ | M10: P
A11: =A10+1 -> 2 | B11: ALLETE | C11: ✓ | D11: ✓ | E11: -- | F11: -- | G11: ✓ | H11: ✓ | I11: -- | J11: -- | K11: ✓ | L11: ✓ | M11: C
A12: 3 | B12: Alliant Energy | C12: ✓ | D12: ✓ | E12: -- | F12: -- | G12: ✓ | H12: ✓ | I12: -- | J12: -- | K12: ✓ | L12: ✓ | M12: C
A13: 4 | B13: Ameren Corp. | C13: D | D13: ✓ | E13: -- | F13: ✓ | G13: ✓ | H13: ✓ | I13: -- | J13: ✓ | K13: ✓ | L13: ✓ | M13: O,P
A14: 5 | B14: Avangrid, Inc. | C14: D | D14: ✓ | E14: ✓ | F14: -- | G14: ✓ | H14: -- | I14: -- | J14: -- | K14: ✓ | L14: ✓ | M14: C
A15: 6 | B15: Avista Corp. | C15: ✓ | D15: ✓ | E15: ✓ | F15: ✓ | G15: ✓ | H15: -- | I15: -- | J15: -- | K15: -- | L15: -- | M15: P
A16: 7 | B16: Black Hills Corp. | C16: ✓ | D16: ✓ | E16: -- | F16: ✓ | G16: ✓ | H16: ✓ | I16: ✓ | J16: ✓ | K16: ✓ | L16: ✓ | M16: O
A17: 8 | B17: CMS Energy Corp. | C17: ✓ | D17: ✓ | E17: -- | F17: -- | G17: ✓ | H17: -- | I17: -- | J17: -- | K17: ✓ | L17: -- | M17: C
A18: 9 | B18: Consolidated Edison | C18: D | D18: ✓ | E18: ✓ | F18: -- | G18: ✓ | H18: -- | I18: -- | J18: ✓ | K18: -- | L18: ✓ | M18: C,P
A19: 10 | B19: DTE Energy Co. | C19: ✓ | D19: ✓ | E19: -- | F19: -- | G19: ✓ | H19: -- | I19: -- | J19: -- | K19: ✓ | L19: -- | M19: C
A20: 11 | B20: Duke Energy Corp. | C20: ✓ | D20: ✓ | E20: -- | F20: ✓ | G20: ✓ | H20: ✓ | I20: ✓ | J20: ✓ | K20: ✓ | L20: ✓ | M20: C,O,P
A21: 12 | B21: Entergy Corp. | C21: ✓ | D21: ✓ | E21: -- | F21: ✓ | G21: ✓ | H21: ✓ | I21: ✓ | J21: ✓ | K21: ✓ | L21: ✓ | M21: O,P
A22: 13 | B22: Eversource Energy | C22: D | D22: ✓ | E22: ✓ | F22: ✓ | G22: ✓ | H22: ✓ | I22: -- | J22: ✓ | K22: ✓ | L22: ✓ | M22: C
A23: 14 | B23: NorthWestern Corp. | C23: ✓ | D23: ✓ | E23: -- | F23: -- | G23: ✓ | H23: -- | I23: -- | J23: -- | K23: -- | L23: ✓ | M23: --
A24: 15 | B24: Pub Sv Enterprise Grp. | C24: D | D24: ✓ | E24: -- | F24: -- | G24: ✓ | H24: -- | I24: -- | J24: ✓ | K24: -- | L24: ✓ | M24: P
A25: 16 | B25: Sempra Energy | C25: D | D25: ✓ | E25: ✓ | F25: -- | G25: -- | H25: -- | I25: -- | J25: ✓ | K25: ✓ | L25: ✓ | M25: C
A26: 17 | B26: Southern Company | C26: ✓ | D26: ✓ | E26: -- | F26: ✓ | G26: ✓ | H26: ✓ | I26: ✓ | J26: ✓ | K26: ✓ | L26: ✓ | M26: C,O
A27: 18 | B27: WEC Energy Group | C27: ✓ | D27: ✓ | E27: -- | F27: ✓ | G27: ✓ | H27: ✓ | I27: ✓ | J27: ✓ | K27: ✓ | L27: ✓ | M27: C
A28: 19 | B28: Xcel Energy Inc. | C28: ✓ | D28: ✓ | E28: -- | F28: ✓ | G28: ✓ | H28: ✓ | I28: ✓ | J28: ✓ | K28: ✓ | L28: ✓ | M28: C,O
A30: Sources:
A31: =M2 & ", pages 2-5, contain operating company data that are aggregated into the parent company data on this page." -> Exhibit No. 3, pages 2-5, contain operating company data that are aggregated into the parent company data on this page.
A33: Notes:
A34: D - Delivery-only utility.
A35: C - Fully-forecasted test years commonly used in the state listed for this operating company.
A36: O - Fully-forecasted test years occasionally used in the state listed for this operating company.
A37: P - Partially-forecasted test years commonly or occasionally used in the state listed for this operating company.
A38: * Recover mechanisms for other expenses, such as taxes, franchise fees, bad debts, storm costs, pensions, societal benefits, vegetation management, and decommissioning.

Sheet 3 (2-4)
A4: ='Exhibit List'!C4 -> REGULATORY MECHANISMS
A6: ='Exhibit List'!D4 -> UTILITY GROUP OPERATING COS.
D8: Type of Adjustment Clause (a)
D10: Elec. Fuel/ Purch. Pwr | J10: New Capital
B11: HOLDING COMPANY/ Operating Company | E11: Conserv. Program Expense | F11: Decoupling Full Partial | H11: Renew- ables Expense | I11: Environ- mental Compliance | J11: Gener- ation Capacity | K11: Generic Infra- structure | L11: Trans- mission Expense | M11: Other* | N11: Future Test Year (b)
A12: 1 | B12: ALGONQUIN PWR. & UTIL.
B13: Empire District Electric | C13: KS | D13: ✓ | E13: ✓ | F13: -- | G13: -- | H13: -- | I13: ✓ | J13: -- | K13: -- | L13: ✓ | M13: ✓ | N13: --
B14: Empire District Electric | C14: MO | D14: ✓ | E14: -- | F14: -- | G14: -- | H14: -- | I14: ✓ | J14: -- | K14: -- | L14: ✓ | M14: ✓ | N14: P
B15: Liberty Util. (Granite State Electric) | C15: NH | D15: D | E15: -- | F15: -- | G15: ✓ | H15: -- | I15: -- | J15: -- | K15: ✓ | L15: -- | M15: -- | N15: --
A16: =MAX($A$12:A15)+1 -> 2 | B16: ALLETE
B17: Minnesota Power | C17: MN | D17: ✓ | E17: ✓ | F17: -- | G17: -- | H17: ✓ | I17: ✓ | J17: -- | K17: -- | L17: ✓ | M17: ✓ | N17: C
A18: =MAX($A$12:A17)+1 -> 3 | B18: ALLIANT ENERGY CORP.
B19: Interstate Power & Light | C19: IA | D19: ✓ | E19: ✓ | F19: -- | G19: -- | H19: ✓ | I19: ✓ | J19: -- | K19: -- | L19: ✓ | M19: ✓ | N19: --
B20: Wisconsin Power & Light | C20: WI | D20: ✓ | E20: -- | F20: -- | G20: -- | H20: -- | I20: -- | J20: -- | K20: -- | L20: -- | M20: ✓ | N20: C
A21: =MAX($A$12:A20)+1 -> 4 | B21: AMEREN CORP.
B22: Ameren Illinois | C22: IL | D22: D | E22: ✓ | F22: -- | G22: -- | H22: ✓ | I22: ✓ | J22: -- | K22: -- | L22: ✓ | M22: ✓ | N22: O
B23: Union Electric | C23: MO | D23: ✓ | E23: ✓ | F23: -- | G23: ✓ | H23: ✓ | I23: ✓ | J23: -- | K23: ✓ | L23: ✓ | M23: ✓ | N23: P
A24: =MAX($A$12:A23)+1 -> 5 | B24: AVANGRID
B25: United Illuminating | C25: CT | D25: D | E25: ✓ | F25: ✓ | G25: -- | H25: -- | I25: -- | J25: -- | K25: -- | L25: ✓ | M25: -- | N25: C
B26: Central Maine Power | C26: ME | D26: D | E26: -- | F26: ✓ | G26: -- | H26: -- | I26: -- | J26: -- | K26: -- | L26: -- | M26: ✓ | N26: C
B27: New York State Electric & Gas | C27: NY | D27: D | E27: -- | F27: ✓ | G27: -- | H27: ✓ | I27: -- | J27: -- | K27: -- | L27: -- | M27: ✓ | N27: C
B28: Rochester Gas & Electric | C28: NY | D28: D | E28: -- | F28: ✓ | G28: -- | H28: ✓ | I28: -- | J28: -- | K28: -- | L28: -- | M28: ✓ | N28: C
A29: =MAX($A$12:A28)+1 -> 6 | B29: AVISTA CORP.
B30: Alaska Electric Light & Power | C30: AK | D30: ✓ | E30: -- | F30: -- | G30: -- | H30: -- | I30: -- | J30: -- | K30: -- | L30: -- | M30: -- | N30: --
B31: Avista Corp. | C31: ID | D31: ✓ | E31: ✓ | F31: ✓ | G31: -- | H31: -- | I31: -- | J31: -- | K31: -- | L31: -- | M31: -- | N31: P
B32: Avista Corp. | C32: WA | D32: ✓ | E32: ✓ | F32: -- | G32: ✓ | H32: ✓ | I32: -- | J32: -- | K32: -- | L32: -- | M32: -- | N32: --
A33: =MAX($A$12:A32)+1 -> 7 | B33: BLACK HILLS CORP.
B34: Black Hills Colorado Electric | C34: CO | D34: ✓ | E34: ✓ | F34: -- | G34: -- | H34: ✓ | I34: -- | J34: ✓ | K34: ✓ | L34: -- | M34: ✓ | N34: --
B35: Black Hills Power | C35: SD | D35: ✓ | E35: ✓ | F35: -- | G35: ✓ | H35: ✓ | I35: ✓ | J35: -- | K35: -- | L35: ✓ | M35: ✓ | N35: --
B36: Cheyenne Light Fuel & Power | C36: WY | D36: ✓ | E36: ✓ | F36: -- | G36: ✓ | H36: ✓ | I36: -- | J36: -- | K36: -- | L36: -- | M36: ✓ | N36: O
A37: =MAX($A$12:A36)+1 -> 8 | B37: CMS ENERGY
B38: Consumers Energy | C38: MI | D38: ✓ | E38: ✓ | F38: -- | G38: -- | H38: ✓ | I38: -- | J38: -- | K38: -- | L38: ✓ | M38: -- | N38: C
A39: =MAX($A$12:A38)+1 -> 9 | B39: CONSOLIDATED EDISON
B40: Rockland Electric | C40: NJ | D40: D | E40: ✓ | F40: -- | G40: -- | H40: ✓ | I40: -- | J40: -- | K40: ✓ | L40: -- | M40: ✓ | N40: P
B41: Consolidated Edison of New York | C41: NY | D41: D | E41: -- | F41: ✓ | G41: -- | H41: ✓ | I41: -- | J41: -- | K41: -- | L41: -- | M41: ✓ | N41: C
B42: Orange & Rockland Utilities | C42: NY | D42: D | E42: -- | F42: ✓ | G42: -- | H42: ✓ | I42: -- | J42: -- | K42: -- | L42: -- | M42: -- | N42: C
A43: =MAX($A$12:A42)+1 -> 10 | B43: DTE ENERGY CO.
B44: DTE Electric | C44: MI | D44: ✓ | E44: ✓ | F44: -- | G44: -- | H44: ✓ | I44: -- | J44: -- | K44: -- | L44: ✓ | M44: -- | N44: C
A45: =MAX($A$12:A44)+1 -> 11 | B45: DUKE ENERGY
B46: Duke Energy Florida | C46: FL | D46: ✓ | E46: ✓ | F46: -- | G46: -- | H46: -- | I46: ✓ | J46: ✓ | K46: -- | L46: -- | M46: ✓ | N46: C
B47: Duke Energy Indiana | C47: IN | D47: ✓ | E47: ✓ | F47: -- | G47: ✓ | H47: ✓ | I47: ✓ | J47: ✓ | K47: ✓ | L47: ✓ | M47: ✓ | N47: --
B48: Duke Energy Kentucky | C48: KY | D48: ✓ | E48: ✓ | F48: -- | G48: ✓ | H48: ✓ | I48: ✓ | J48: -- | K48: -- | L48: -- | M48: ✓ | N48: O
B49: Duke Energy Carolinas | C49: NC | D49: ✓ | E49: ✓ | F49: -- | G49: -- | H49: ✓ | I49: ✓ | J49: -- | K49: -- | L49: -- | M49: -- | N49: --
B50: Duke Energy Progress | C50: NC | D50: ✓ | E50: ✓ | F50: -- | G50: -- | H50: ✓ | I50: ✓ | J50: -- | K50: -- | L50: -- | M50: -- | N50: --
B51: Duke Energy Ohio | C51: OH | D51: D | E51: ✓ | F51: -- | G51: ✓ | H51: ✓ | I51: -- | J51: -- | K51: ✓ | L51: ✓ | M51: ✓ | N51: P
B52: Duke Energy Progress | C52: SC | D52: ✓ | E52: ✓ | F52: -- | G52: -- | H52: -- | I52: ✓ | J52: -- | K52: -- | L52: -- | M52: -- | N52: --
B53: Duke Energy Carolinas | C53: SC | D53: ✓ | E53: ✓ | F53: -- | G53: -- | H53: -- | I53: ✓ | J53: -- | K53: -- | L53: -- | M53: -- | N53: --
A54: =MAX($A$12:A53)+1 -> 12 | B54: ENTERGY CORP.
B55: Entergy Arkansas | C55: AR | D55: ✓ | E55: ✓ | F55: -- | G55: ✓ | H55: ✓ | I55: -- | J55: ✓ | K55: ✓ | L55: ✓ | M55: ✓ | N55: P
B56: Entergy New Orleans | C56: LA | D56: ✓ | E56: ✓ | F56: -- | G56: ✓ | H56: -- | I56: ✓ | J56: ✓ | K56: -- | L56: ✓ | M56: ✓ | N56: O
B57: Entergy Louisiana | C57: LA | D57: ✓ | E57: ✓ | F57: -- | G57: ✓ | H57: -- | I57: ✓ | J57: ✓ | K57: ✓ | L57: ✓ | M57: ✓ | N57: O
B58: Entergy Mississippi | C58: MS | D58: ✓ | E58: ✓ | F58: -- | G58: ✓ | H58: -- | I58: ✓ | J58: -- | K58: -- | L58: ✓ | M58: ✓ | N58: O
B59: Entergy Texas | C59: TX | D59: ✓ | E59: ✓ | F59: -- | G59: -- | H59: -- | I59: -- | J59: -- | K59: ✓ | L59: -- | M59: ✓ | N59: --
A60: =MAX($A$12:A59)+1 -> 13 | B60: EVERSOURCE ENERGY
B61: Connecticut Light and Power | C61: CT | D61: D | E61: ✓ | F61: ✓ | G61: -- | H61: -- | I61: -- | J61: -- | K61: ✓ | L61: ✓ | M61: -- | N61: C
B62: NSTAR Electric | C62: MA | D62: D | E62: ✓ | F62: ✓ | G62: -- | H62: ✓ | I62: -- | J62: -- | K62: ✓ | L62: ✓ | M62: ✓ | N62: --
B63: Public Service Co. of New Hampshire | C63: NH | D63: ✓ | E63: -- | F63: -- | G63: ✓ | H63: -- | I63: -- | J63: -- | K63: ✓ | L63: ✓ | M63: -- | N63: --
A64: =MAX($A$12:A63)+1 -> 14 | B64: NORTHWESTERN CORP.
B65: NorthWestern Corp. | C65: MT | D65: ✓ | E65: ✓ | F65: -- | G65: -- | H65: ✓ | I65: -- | J65: -- | K65: -- | L65: -- | M65: ✓ | N65: --
B66: NorthWestern Corp. | C66: SD | D66: ✓ | E66: ✓ | F66: -- | G66: -- | H66: -- | I66: -- | J66: -- | K66: -- | L66: -- | M66: -- | N66: --
A67: =MAX($A$12:A66)+1 -> 15 | B67: PUB SV ENTERPRISE GRP
B68: Public Service Electric & Gas | C68: NJ | D68: D | E68: ✓ | F68: -- | G68: -- | H68: ✓ | I68: -- | J68: -- | K68: ✓ | L68: -- | M68: ✓ | N68: P
A69: =MAX($A$12:A68)+1 -> 16 | B69: SEMPRA ENERGY
B70: San Diego Gas & Electric | C70: CA | D70: ✓ | E70: -- | F70: ✓ | G70: -- | H70: -- | I70: -- | J70: -- | K70: -- | L70: -- | M70: ✓ | N70: C
B71: Oncor Electric Delivery | C71: TX | D71: D | E71: ✓ | F71: -- | G71: -- | H71: -- | I71: -- | J71: -- | K71: ✓ | L71: ✓ | M71: -- | N71: --
A72: =MAX($A$12:A71)+1 -> 17 | B72: SOUTHERN CO.
B73: Alabama Power | C73: AL | D73: ✓ | E73: -- | F73: -- | G73: -- | H73: ✓ | I73: ✓ | J73: ✓ | K73: -- | L73: -- | M73: ✓ | N73: C
B74: Georgia Power | C74: GA | D74: ✓ | E74: -- | F74: -- | G74: -- | H74: -- | I74: -- | J74: ✓ | K74: -- | L74: -- | M74: -- | N74: C
B75: Mississippi Power | C75: MS | D75: ✓ | E75: ✓ | F75: -- | G75: ✓ | H75: -- | I75: ✓ | J75: -- | K75: -- | L75: -- | M75: ✓ | N75: O
A76: =MAX($A$12:A75)+1 -> 18 | B76: WEC ENERGY GROUP
B77: Wisconsin Electric Power | C77: MI | D77: ✓ | E77: ✓ | F77: -- | G77: -- | H77: ✓ | I77: -- | J77: -- | K77: -- | L77: -- | M77: -- | N77: C
B78: Wisconsin Electric Power | C78: WI | D78: ✓ | E78: -- | F78: -- | G78: -- | H78: ✓ | I78: -- | J78: -- | K78: -- | L78: -- | M78: ✓ | N78: C
B79: Wisconsin Public Service | C79: WI | D79: ✓ | E79: -- | F79: -- | G79: -- | H79: -- | I79: -- | J79: -- | K79: -- | L79: -- | M79: ✓ | N79: C
A80: =MAX($A$12:A79)+1 -> 19 | B80: XCEL ENERGY, INC.
B81: Public Service Co. of Colorado | C81: CO | D81: ✓ | E81: ✓ | F81: -- | G81: -- | H81: ✓ | I81: ✓ | J81: ✓ | K81: ✓ | L81: -- | M81: ✓ | N81: --
B82: Northern States Power-Minnesota | C82: MN | D82: ✓ | E82: ✓ | F82: -- | G82: ✓ | H82: ✓ | I82: ✓ | J82: -- | K82: -- | L82: ✓ | M82: -- | N82: C
B83: Southwestern Public Service | C83: NM | D83: ✓ | E83: ✓ | F83: -- | G83: -- | H83: ✓ | I83: -- | J83: -- | K83: -- | L83: -- | M83: ✓ | N83: O
B84: Northern States Power-Minnesota | C84: ND | D84: ✓ | E84: -- | F84: -- | G84: -- | H84: -- | I84: -- | J84: -- | K84: ✓ | L84: -- | M84: ✓ | N84: O
B85: Northern States Power-Minnesota | C85: SD | D85: ✓ | E85: ✓ | F85: -- | G85: ✓ | H85: -- | I85: ✓ | J85: ✓ | K85: ✓ | L85: -- | M85: ✓ | N85: --
B86: Southwestern Public Service | C86: TX | D86: ✓ | E86: ✓ | F86: -- | G86: -- | H86: -- | I86: -- | J86: -- | K86: ✓ | L86: ✓ | M86: ✓ | N86: --
B87: Northern States Power-Wisconsin | C87: WI | D87: ✓ | E87: -- | F87: -- | G87: -- | H87: -- | I87: -- | J87: -- | K87: -- | L87: -- | M87: ✓ | N87: C
A89: Sources:
A90: (a) | B90: S&P Global, Market Intelligence, RRA Regulatory Focus, "Adjustment Clauses-A State-by-State Overview," Nov. 12, 2019.
A91: (b) | B91: Edison Electric Institute, "Alternative Regulation for Emerging Utility Challenges: 2015 Update," Nov. 11, 2015.
A93: Notes:
A94: D - Delivery-only utility.
A95: C - Fully-forecasted test years commonly used in the state listed for this operating company.
A96: O - Fully-forecasted test years occasionally used in the state listed for this operating company.
A97: P - Partially-forecasted test years commonly or occasionally used in the state listed for this operating company.
A98: * Recover mechanisms for other expenses, such as taxes, franchise fees, bad debts, storm costs, pensions, societal benefits, vegetation management, and decommissioning.
A106: 1 | B106: ALGONQUIN PWR. & UTIL. | D106: D | E106: ✓ | G106: ✓ | I106: ✓ | K106: ✓ | L106: ✓ | M106: ✓ | N106: P
A107: 2 | B107: ALLETE | D107: ✓ | E107: ✓ | F107: -- | G107: -- | H107: ✓ | I107: ✓ | J107: -- | K107: -- | L107: ✓ | M107: ✓ | N107: C
A108: 3 | B108: ALLIANT ENERGY CORP. | D108: ✓ | E108: ✓ | H108: ✓ | I108: ✓ | L108: ✓ | M108: ✓ | N108: C
A109: 4 | B109: AMEREN CORP. | D109: D | E109: ✓ | G109: ✓ | H109: ✓ | I109: ✓ | K109: ✓ | L109: ✓ | M109: ✓ | N109: O,P
A110: 5 | B110: AVANGRID | D110: D | E110: ✓ | F110: ✓ | H110: ✓ | I110: -- | J110: -- | K110: -- | L110: ✓ | M110: ✓ | N110: C
A111: 6 | B111: AVISTA CORP. | D111: ✓ | E111: ✓ | F111: ✓ | G111: ✓ | H111: ✓ | I111: -- | J111: -- | K111: -- | L111: -- | M111: -- | N111: P
A112: 7 | B112: BLACK HILLS CORP. | D112: ✓ | E112: ✓ | F112: -- | G112: ✓ | H112: ✓ | I112: ✓ | J112: ✓ | K112: ✓ | L112: ✓ | M112: ✓ | N112: O
A113: 8 | B113: CENTERPOINT ENERGY | D113: D | E113: ✓ | F113: -- | G113: ✓ | H113: ✓ | I113: ✓ | J113: -- | K113: ✓ | L113: ✓ | M113: ✓ | N113: --
A114: 9 | B114: CMS ENERGY | D114: ✓ | E114: ✓ | F114: -- | G114: -- | H114: ✓ | I114: -- | J114: -- | K114: -- | L114: ✓ | M114: -- | N114: C
A115: 10 | B115: CONSOLIDATED EDISON | D115: D | E115: ✓ | F115: ✓ | H115: ✓ | K115: ✓ | M115: ✓ | N115: C,P
A116: 11 | B116: DOMINION ENERGY | D116: ✓ | E116: ✓ | H116: ✓ | I116: ✓ | J116: ✓ | K116: ✓ | L116: ✓ | M116: ✓ | N116: --
A117: 12 | B117: DTE ENERGY CO. | D117: ✓ | E117: ✓ | F117: -- | G117: -- | H117: ✓ | I117: -- | J117: -- | K117: -- | L117: ✓ | M117: -- | N117: C
A118: 13 | B118: DUKE ENERGY | D118: ✓ | E118: ✓ | G118: ✓ | H118: ✓ | I118: ✓ | J118: ✓ | K118: ✓ | L118: ✓ | M118: ✓ | N118: C,O,P
A119: 14 | B119: ENTERGY CORP. | D119: ✓ | E119: ✓ | G119: ✓ | H119: ✓ | I119: ✓ | J119: ✓ | K119: ✓ | L119: ✓ | M119: ✓ | N119: O,P
A120: 15 | B120: EVERSOURCE ENERGY | D120: D | E120: ✓ | F120: ✓ | G120: ✓ | H120: ✓ | I120: ✓ | K120: ✓ | L120: ✓ | M120: ✓ | N120: C
A121: 16 | B121: EXELON CORP. | D121: D | E121: ✓ | F121: ✓ | G121: ✓ | H121: ✓ | I121: ✓ | K121: ✓ | L121: ✓ | M121: ✓ | N121: O.P
A122: 17 | B122: NORTHWESTERN CORP. | D122: ✓ | E122: ✓ | H122: ✓ | M122: ✓
A123: 18 | B123: PPL CORP. | D123: D | E123: ✓ | G123: ✓ | H123: ✓ | I123: ✓ | K123: ✓ | L123: ✓ | M123: ✓ | N123: O
A124: 19 | B124: PUB SV ENTERPRISE GRP | D124: D | E124: ✓ | F124: -- | G124: -- | H124: ✓ | I124: -- | J124: -- | K124: ✓ | L124: -- | M124: ✓ | N124: P
A125: 20 | B125: SEMPRA ENERGY | D125: D | E125: ✓ | F125: ✓ | K125: ✓ | L125: ✓ | M125: ✓ | N125: C
A126: 21 | B126: SOUTHERN CO. | D126: ✓ | E126: ✓ | G126: ✓ | H126: ✓ | I126: ✓ | J126: ✓ | K126: ✓ | L126: ✓ | M126: ✓ | N126: C,O
A127: 22 | B127: WEC ENERGY GROUP | D127: ✓ | E127: ✓ | G127: ✓ | H127: ✓ | I127: ✓ | J127: ✓ | K127: ✓ | L127: ✓ | M127: ✓ | N127: C
A128: 23 | B128: XCEL ENERGY, INC. | D128: ✓ | E128: ✓ | G128: ✓ | H128: ✓ | I128: ✓ | J128: ✓ | K128: ✓ | L128: ✓ | M128: ✓ | N128: C,O

Sheet 4 ( 1)
A1: ='Exhibit List'!C5 -> DCF MODEL - UTILITY GROUP | I1: ='Exhibit List'!B5 -> Exhibit No. 4
I2: Page 1 of 4
A3: ='Exhibit List'!D5 -> DIVIDEND YIELD
D5: (a) | F5: (b)
B6: Company | D6: Price | F6: Dividends | H6: Yield
A7: =A6+1 -> 1 | B7: =VLOOKUP('Proxy Group Ticker'!B3,vldatabase,2,FALSE) -> Algonquin Pwr & Util | D7: =HLOOKUP('Proxy Group Ticker'!B3,StockPrice,33,FALSE) -> 14.322 | F7: =VLOOKUP('Proxy Group Ticker'!B3,vldatabase,4,FALSE) -> 0.62 | H7: =F7/D7 -> 0.04329004329
A8: 2 | B8: =VLOOKUP('Proxy Group Ticker'!B4,vldatabase,2,FALSE) -> ALLETE | D8: =HLOOKUP('Proxy Group Ticker'!B4,StockPrice,33,FALSE) -> 52.67933333 | F8: =VLOOKUP('Proxy Group Ticker'!B4,vldatabase,4,FALSE) -> 2.55 | H8: =F8/D8 -> 0.04840607955
A9: 3 | B9: =VLOOKUP('Proxy Group Ticker'!B5,vldatabase,2,FALSE) -> Alliant Energy | D9: =HLOOKUP('Proxy Group Ticker'!B5,StockPrice,33,FALSE) -> 52.59466667 | F9: =VLOOKUP('Proxy Group Ticker'!B5,vldatabase,4,FALSE) -> 1.52 | H9: 0.02890026872
A10: 4 | B10: =VLOOKUP('Proxy Group Ticker'!B6,vldatabase,2,FALSE) -> Ameren Corp. | D10: =HLOOKUP('Proxy Group Ticker'!B6,StockPrice,33,FALSE) -> 78.572 | F10: =VLOOKUP('Proxy Group Ticker'!B6,vldatabase,4,FALSE) -> 2.08 | H10: 0.02647253475
A11: 5 | B11: =VLOOKUP('Proxy Group Ticker'!B7,vldatabase,2,FALSE) -> Avangrid, Inc. | D11: =HLOOKUP('Proxy Group Ticker'!B7,StockPrice,33,FALSE) -> 50.02766667 | F11: =VLOOKUP('Proxy Group Ticker'!B7,vldatabase,4,FALSE) -> 1.76 | H11: 0.03518053344
A12: 6 | B12: =VLOOKUP('Proxy Group Ticker'!B8,vldatabase,2,FALSE) -> Avista Corp. | D12: =HLOOKUP('Proxy Group Ticker'!B8,StockPrice,33,FALSE) -> 35.06266667 | F12: =VLOOKUP('Proxy Group Ticker'!B8,vldatabase,4,FALSE) -> 1.64 | H12: 0.0467733962
A13: 7 | B13: =VLOOKUP('Proxy Group Ticker'!B9,vldatabase,2,FALSE) -> Black Hills Corp. | D13: =HLOOKUP('Proxy Group Ticker'!B9,StockPrice,33,FALSE) -> 54.909 | F13: =VLOOKUP('Proxy Group Ticker'!B9,vldatabase,4,FALSE) -> 2.23 | H13: 0.04061265002
A14: 8 | B14: =VLOOKUP('Proxy Group Ticker'!B10,vldatabase,2,FALSE) -> CMS Energy Corp. | D14: =HLOOKUP('Proxy Group Ticker'!B10,StockPrice,33,FALSE) -> 61.36733333 | F14: =VLOOKUP('Proxy Group Ticker'!B10,vldatabase,4,FALSE) -> 1.71 | H14: 0.02786498789
A15: 9 | B15: =VLOOKUP('Proxy Group Ticker'!B11,vldatabase,2,FALSE) -> Consolidated Edison | D15: =HLOOKUP('Proxy Group Ticker'!B11,StockPrice,33,FALSE) -> 75.35966667 | F15: =VLOOKUP('Proxy Group Ticker'!B11,vldatabase,4,FALSE) -> 3.11 | H15: 0.04126876004
A16: 10 | B16: =VLOOKUP('Proxy Group Ticker'!B12,vldatabase,2,FALSE) -> DTE Energy Co. | D16: =HLOOKUP('Proxy Group Ticker'!B12,StockPrice,33,FALSE) -> 116.5026667 | F16: =VLOOKUP('Proxy Group Ticker'!B12,vldatabase,4,FALSE) -> 4.34 | H16: 0.03725236618
A17: 11 | B17: =VLOOKUP('Proxy Group Ticker'!B13,vldatabase,2,FALSE) -> Duke Energy Corp. | D17: =HLOOKUP('Proxy Group Ticker'!B13,StockPrice,33,FALSE) -> 84.62733333 | F17: =VLOOKUP('Proxy Group Ticker'!B13,vldatabase,4,FALSE) -> 3.88 | H17: 0.04584807115
A18: 12 | B18: =VLOOKUP('Proxy Group Ticker'!B14,vldatabase,2,FALSE) -> Entergy Corp. | D18: =HLOOKUP('Proxy Group Ticker'!B14,StockPrice,33,FALSE) -> 98.91766667 | F18: =VLOOKUP('Proxy Group Ticker'!B14,vldatabase,4,FALSE) -> 3.8 | H18: 0.03841578687
A19: 13 | B19: =VLOOKUP('Proxy Group Ticker'!B15,vldatabase,2,FALSE) -> Eversource Energy | D19: =HLOOKUP('Proxy Group Ticker'!B15,StockPrice,33,FALSE) -> 84.53566667 | F19: =VLOOKUP('Proxy Group Ticker'!B15,vldatabase,4,FALSE) -> 2.34 | H19: 0.02768062396
A20: 14 | B20: =VLOOKUP('Proxy Group Ticker'!B16,vldatabase,2,FALSE) -> NorthWestern Corp. | D20: =HLOOKUP('Proxy Group Ticker'!B16,StockPrice,33,FALSE) -> 50.373 | F20: =VLOOKUP('Proxy Group Ticker'!B16,vldatabase,4,FALSE) -> 2.45 | H20: 0.04863716674
A21: 15 | B21: =VLOOKUP('Proxy Group Ticker'!B17,vldatabase,2,FALSE) -> Pub Sv Enterprise Grp. | D21: =HLOOKUP('Proxy Group Ticker'!B17,StockPrice,33,FALSE) -> 53.57133333 | F21: =VLOOKUP('Proxy Group Ticker'!B17,vldatabase,4,FALSE) -> 2 | H21: 0.0373333997
A22: 16 | B22: =VLOOKUP('Proxy Group Ticker'!B18,vldatabase,2,FALSE) -> Sempra Energy | D22: =HLOOKUP('Proxy Group Ticker'!B18,StockPrice,33,FALSE) -> 120.1616667 | F22: =VLOOKUP('Proxy Group Ticker'!B18,vldatabase,4,FALSE) -> 4.34 | H22: 0.03611800768
A23: 17 | B23: =VLOOKUP('Proxy Group Ticker'!B19,vldatabase,2,FALSE) -> Southern Company | D23: =HLOOKUP('Proxy Group Ticker'!B19,StockPrice,33,FALSE) -> 53.91066667 | F23: =VLOOKUP('Proxy Group Ticker'!B19,vldatabase,4,FALSE) -> 2.6 | H23: 0.04822793263
A24: 18 | B24: =VLOOKUP('Proxy Group Ticker'!B20,vldatabase,2,FALSE) -> WEC Energy Group | D24: =HLOOKUP('Proxy Group Ticker'!B20,StockPrice,33,FALSE) -> 96.52433333 | F24: =VLOOKUP('Proxy Group Ticker'!B20,vldatabase,4,FALSE) -> 2.66 | H24: 0.02755781789
A25: 19 | B25: =VLOOKUP('Proxy Group Ticker'!B21,vldatabase,2,FALSE) -> Xcel Energy Inc. | D25: =HLOOKUP('Proxy Group Ticker'!B21,StockPrice,33,FALSE) -> 69.55516667 | F25: =VLOOKUP('Proxy Group Ticker'!B21,vldatabase,4,FALSE) -> 1.77 | H25: 0.02544742662
B27: Average | H27: =AVERAGE(H7:H25) -> 0.03743620281
A31: (a) | B31: ='Stock Price (Electric)'!B37 -> Average of closing prices for 30 trading days ended Oct. 9, 2020.
A32: (b) | B32: ='Electric Utility Data'!B49 -> The Value Line Investment Survey, Summary & Index (Oct. 9, 2020).
F35: Min | H35: =MIN(H7:H25) -> 0.02544742662
F36: Max | H36: =MAX(H7:H25) -> 0.04863716674

Sheet 4 (2)
A1: ='Exhibit List'!C6 -> DCF MODEL - UTILITY GROUP | K1: ='Exhibit List'!B6 -> Exhibit No. 4
K2: Page 2 of 4
A3: ='Exhibit List'!D6 -> GROWTH RATES
D5: (a) | F5: (b) | H5: (c) | J5: (d)
D6: Earnings Growth | J6: br+sv
B7: Company | D7: V Line | F7: IBES | H7: Zacks | J7: Growth
A8: =A7+1 -> 1 | B8: ='4 ( 1)'!B7 -> Algonquin Pwr & Util | D8: =VLOOKUP('Proxy Group Ticker'!B3,vldatabase,19,FALSE) -> n/a | F8: =VLOOKUP('Proxy Group Ticker'!B3,vldatabase,30,FALSE) -> 0.057 | H8: =VLOOKUP('Proxy Group Ticker'!B3,vldatabase,31,FALSE) -> 0.0787 | J8: ='5'!Q8 -> n/a
A9: 2 | B9: ='4 ( 1)'!B8 -> ALLETE | D9: =VLOOKUP('Proxy Group Ticker'!B4,vldatabase,19,FALSE) -> 0.045 | F9: =VLOOKUP('Proxy Group Ticker'!B4,vldatabase,30,FALSE) -> 0.07 | H9: =VLOOKUP('Proxy Group Ticker'!B4,vldatabase,31,FALSE) -> n/a | J9: ='5'!Q9 -> 0.03151042729
A10: 3 | B10: ='4 ( 1)'!B9 -> Alliant Energy | D10: =VLOOKUP('Proxy Group Ticker'!B5,vldatabase,19,FALSE) -> 0.055 | F10: =VLOOKUP('Proxy Group Ticker'!B5,vldatabase,30,FALSE) -> 0.053 | H10: =VLOOKUP('Proxy Group Ticker'!B5,vldatabase,31,FALSE) -> 0.0554 | J10: ='5'!Q10 -> 0.0466952071
A11: 4 | B11: ='4 ( 1)'!B10 -> Ameren Corp. | D11: =VLOOKUP('Proxy Group Ticker'!B6,vldatabase,19,FALSE) -> 0.06 | F11: =VLOOKUP('Proxy Group Ticker'!B6,vldatabase,30,FALSE) -> 0.06 | H11: =VLOOKUP('Proxy Group Ticker'!B6,vldatabase,31,FALSE) -> 0.0689 | J11: ='5'!Q11 -> 0.05962118209
A12: 5 | B12: ='4 ( 1)'!B11 -> Avangrid, Inc. | D12: =VLOOKUP('Proxy Group Ticker'!B7,vldatabase,19,FALSE) -> 0.04 | F12: =VLOOKUP('Proxy Group Ticker'!B7,vldatabase,30,FALSE) -> 0.046 | H12: =VLOOKUP('Proxy Group Ticker'!B7,vldatabase,31,FALSE) -> 0.0531 | J12: ='5'!Q12 -> 0.01359269496
A13: 6 | B13: ='4 ( 1)'!B12 -> Avista Corp. | D13: =VLOOKUP('Proxy Group Ticker'!B8,vldatabase,19,FALSE) -> 0.01 | F13: =VLOOKUP('Proxy Group Ticker'!B8,vldatabase,30,FALSE) -> 0.058 | H13: =VLOOKUP('Proxy Group Ticker'!B8,vldatabase,31,FALSE) -> 0.0514 | J13: ='5'!Q13 -> 0.03019194781
A14: 7 | B14: ='4 ( 1)'!B13 -> Black Hills Corp. | D14: =VLOOKUP('Proxy Group Ticker'!B9,vldatabase,19,FALSE) -> 0.035 | F14: =VLOOKUP('Proxy Group Ticker'!B9,vldatabase,30,FALSE) -> 0.0469 | H14: =VLOOKUP('Proxy Group Ticker'!B9,vldatabase,31,FALSE) -> 0.0576 | J14: ='5'!Q14 -> 0.0381347832
A15: 8 | B15: ='4 ( 1)'!B14 -> CMS Energy Corp. | D15: =VLOOKUP('Proxy Group Ticker'!B10,vldatabase,19,FALSE) -> 0.075 | F15: =VLOOKUP('Proxy Group Ticker'!B10,vldatabase,30,FALSE) -> 0.0708 | H15: =VLOOKUP('Proxy Group Ticker'!B10,vldatabase,31,FALSE) -> 0.0701 | J15: ='5'!Q15 -> 0.07243823919
A16: 9 | B16: ='4 ( 1)'!B15 -> Consolidated Edison | D16: =VLOOKUP('Proxy Group Ticker'!B11,vldatabase,19,FALSE) -> 0.03 | F16: =VLOOKUP('Proxy Group Ticker'!B11,vldatabase,30,FALSE) -> 0.0255 | H16: =VLOOKUP('Proxy Group Ticker'!B11,vldatabase,31,FALSE) -> 0.02 | J16: ='5'!Q16 -> 0.03344926198
A17: 10 | B17: ='4 ( 1)'!B16 -> DTE Energy Co. | D17: =VLOOKUP('Proxy Group Ticker'!B12,vldatabase,19,FALSE) -> 0.06 | F17: =VLOOKUP('Proxy Group Ticker'!B12,vldatabase,30,FALSE) -> 0.0595 | H17: =VLOOKUP('Proxy Group Ticker'!B12,vldatabase,31,FALSE) -> 0.0567 | J17: ='5'!Q17 -> 0.05293953456
A18: 11 | B18: ='4 ( 1)'!B17 -> Duke Energy Corp. | D18: =VLOOKUP('Proxy Group Ticker'!B13,vldatabase,19,FALSE) -> 0.05 | F18: =VLOOKUP('Proxy Group Ticker'!B13,vldatabase,30,FALSE) -> 0.016 | H18: =VLOOKUP('Proxy Group Ticker'!B13,vldatabase,31,FALSE) -> 0.031 | J18: ='5'!Q18 -> 0.03127977182
A19: 12 | B19: ='4 ( 1)'!B18 -> Entergy Corp. | D19: =VLOOKUP('Proxy Group Ticker'!B14,vldatabase,19,FALSE) -> 0.03 | F19: =VLOOKUP('Proxy Group Ticker'!B14,vldatabase,30,FALSE) -> 0.054 | H19: =VLOOKUP('Proxy Group Ticker'!B14,vldatabase,31,FALSE) -> 0.0543 | J19: ='5'!Q19 -> 0.04905237842
A20: 13 | B20: ='4 ( 1)'!B19 -> Eversource Energy | D20: =VLOOKUP('Proxy Group Ticker'!B15,vldatabase,19,FALSE) -> 0.055 | F20: =VLOOKUP('Proxy Group Ticker'!B15,vldatabase,30,FALSE) -> 0.0644 | H20: =VLOOKUP('Proxy Group Ticker'!B15,vldatabase,31,FALSE) -> 0.0659 | J20: ='5'!Q20 -> 0.04726046846
A21: 14 | B21: ='4 ( 1)'!B20 -> NorthWestern Corp. | D21: =VLOOKUP('Proxy Group Ticker'!B16,vldatabase,19,FALSE) -> 0.015 | F21: =VLOOKUP('Proxy Group Ticker'!B16,vldatabase,30,FALSE) -> 0.038 | H21: =VLOOKUP('Proxy Group Ticker'!B16,vldatabase,31,FALSE) -> 0.0339 | J21: ='5'!Q21 -> 0.02745193936
A22: 15 | B22: ='4 ( 1)'!B21 -> Pub Sv Enterprise Grp. | D22: =VLOOKUP('Proxy Group Ticker'!B17,vldatabase,19,FALSE) -> 0.05 | F22: =VLOOKUP('Proxy Group Ticker'!B17,vldatabase,30,FALSE) -> 0.0147 | H22: =VLOOKUP('Proxy Group Ticker'!B17,vldatabase,31,FALSE) -> 0.0346 | J22: ='5'!Q22 -> 0.05213361229
A23: 16 | B23: ='4 ( 1)'!B22 -> Sempra Energy | D23: =VLOOKUP('Proxy Group Ticker'!B18,vldatabase,19,FALSE) -> 0.1 | F23: =VLOOKUP('Proxy Group Ticker'!B18,vldatabase,30,FALSE) -> 0.0627 | H23: =VLOOKUP('Proxy Group Ticker'!B18,vldatabase,31,FALSE) -> 0.0736 | J23: ='5'!Q23 -> 0.07301339347
A24: 17 | B24: ='4 ( 1)'!B23 -> Southern Company | D24: =VLOOKUP('Proxy Group Ticker'!B19,vldatabase,19,FALSE) -> 0.03 | F24: =VLOOKUP('Proxy Group Ticker'!B19,vldatabase,30,FALSE) -> 0.0455 | H24: =VLOOKUP('Proxy Group Ticker'!B19,vldatabase,31,FALSE) -> 0.04 | J24: ='5'!Q24 -> 0.03637733376
A25: 18 | B25: ='4 ( 1)'!B24 -> WEC Energy Group | D25: =VLOOKUP('Proxy Group Ticker'!B20,vldatabase,19,FALSE) -> 0.06 | F25: =VLOOKUP('Proxy Group Ticker'!B20,vldatabase,30,FALSE) -> 0.0595 | H25: =VLOOKUP('Proxy Group Ticker'!B20,vldatabase,31,FALSE) -> 0.0594 | J25: ='5'!Q25 -> 0.04155008575
A26: 19 | B26: ='4 ( 1)'!B25 -> Xcel Energy Inc. | D26: =VLOOKUP('Proxy Group Ticker'!B21,vldatabase,19,FALSE) -> 0.06 | F26: =VLOOKUP('Proxy Group Ticker'!B21,vldatabase,30,FALSE) -> 0.0585 | H26: =VLOOKUP('Proxy Group Ticker'!B21,vldatabase,31,FALSE) -> 0.0581 | J26: ='5'!Q26 -> 0.05046004427
A30: (a) | B30: ='Electric Utility Data'!B50 -> The Value Line Investment Survey (Jul. 24, Aug. 14 and Sep. 11, 2020).
A31: (b) | B31: ='Electric Utility Data'!B53 -> www.finance.yahoo.com (retreived Oct. 3, 2020).
A32: (c) | B32: ='Electric Utility Data'!B54 -> www.zacks.com (retrieved Oct. 3, 2020).
A33: (d) | B33: ="See "&'5'!Q1& "." -> See Exhibit No. 5.

Sheet 4 (3)
A1: ='Exhibit List'!C7 -> DCF MODEL - UTILITY GROUP | K1: ='Exhibit List'!B7 -> Exhibit No. 4
K2: Page 3 of 4
A3: ='Exhibit List'!D7 -> COST OF EQUITY ESTIMATES
D5: (a) | F5: (a) | H5: (a) | J5: (a)
D6: Earnings Growth | J6: br+sv
B7: Company | D7: V Line | F7: IBES | H7: Zacks | J7: Growth
A8: =A7+1 -> 1 | B8: ='4 ( 1)'!B7 -> Algonquin Pwr & Util | D8: =IF('4 (2)'!D8="n/a","n/a",'4 ( 1)'!$H7+'4 (2)'!D8) -> n/a | F8: =IF('4 (2)'!F8="n/a","n/a",'4 ( 1)'!$H7+'4 (2)'!F8) -> 0.1002900433 | H8: =IF('4 (2)'!H8="n/a","n/a",'4 ( 1)'!$H7+'4 (2)'!H8) -> 0.1219900433 | J8: =IF('4 (2)'!J8="n/a","n/a",'4 ( 1)'!$H7+'4 (2)'!J8) -> n/a | N8: =IF(D8="n/a","n/a",IF(D8<$D$36,"LOW",IF(D8>$D$37,"HIGH",D8))) -> n/a | O8: =IF(F8="n/a","n/a",IF(F8<$D$36,"LOW",IF(F8>$D$37,"HIGH",F8))) -> 0.1002900433 | P8: =IF(H8="n/a","n/a",IF(H8<$D$36,"LOW",IF(H8>$D$37,"HIGH",H8))) -> 0.1219900433 | Q8: =IF(J8="n/a","n/a",IF(J8<$D$36,"LOW",IF(J8>$D$37,"HIGH",J8))) -> n/a
A9: =A8+1 -> 2 | B9: ='4 ( 1)'!B8 -> ALLETE | D9: =IF('4 (2)'!D9="n/a","n/a",'4 ( 1)'!$H8+'4 (2)'!D9) -> 0.09340607955 | F9: =IF('4 (2)'!F9="n/a","n/a",'4 ( 1)'!$H8+'4 (2)'!F9) -> 0.1184060796 | H9: =IF('4 (2)'!H9="n/a","n/a",'4 ( 1)'!$H8+'4 (2)'!H9) -> n/a | J9: =IF('4 (2)'!J9="n/a","n/a",'4 ( 1)'!$H8+'4 (2)'!J9) -> 0.07991650684 | N9: =IF(D9="n/a","n/a",IF(D9<$D$36,"LOW",IF(D9>$D$37,"HIGH",D9))) -> 0.09340607955 | O9: =IF(F9="n/a","n/a",IF(F9<$D$36,"LOW",IF(F9>$D$37,"HIGH",F9))) -> 0.1184060796 | P9: =IF(H9="n/a","n/a",IF(H9<$D$36,"LOW",IF(H9>$D$37,"HIGH",H9))) -> n/a | Q9: =IF(J9="n/a","n/a",IF(J9<$D$36,"LOW",IF(J9>$D$37,"HIGH",J9))) -> 0.07991650684
A10: 3 | B10: ='4 ( 1)'!B9 -> Alliant Energy | D10: =IF('4 (2)'!D10="n/a","n/a",'4 ( 1)'!$H9+'4 (2)'!D10) -> 0.08390026872 | F10: =IF('4 (2)'!F10="n/a","n/a",'4 ( 1)'!$H9+'4 (2)'!F10) -> 0.08190026872 | H10: =IF('4 (2)'!H10="n/a","n/a",'4 ( 1)'!$H9+'4 (2)'!H10) -> 0.08430026872 | J10: =IF('4 (2)'!J10="n/a","n/a",'4 ( 1)'!$H9+'4 (2)'!J10) -> 0.07559547582 | N10: 0.08390026872 | O10: 0.08190026872 | P10: 0.08430026872 | Q10: 0.07559547582
A11: 4 | B11: ='4 ( 1)'!B10 -> Ameren Corp. | D11: =IF('4 (2)'!D11="n/a","n/a",'4 ( 1)'!$H10+'4 (2)'!D11) -> 0.08647253475 | F11: =IF('4 (2)'!F11="n/a","n/a",'4 ( 1)'!$H10+'4 (2)'!F11) -> 0.08647253475 | H11: =IF('4 (2)'!H11="n/a","n/a",'4 ( 1)'!$H10+'4 (2)'!H11) -> 0.09537253475 | J11: =IF('4 (2)'!J11="n/a","n/a",'4 ( 1)'!$H10+'4 (2)'!J11) -> 0.08609371683 | N11: 0.08647253475 | O11: 0.08647253475 | P11: 0.09537253475 | Q11: 0.08609371683
A12: 5 | B12: ='4 ( 1)'!B11 -> Avangrid, Inc. | D12: =IF('4 (2)'!D12="n/a","n/a",'4 ( 1)'!$H11+'4 (2)'!D12) -> 0.07518053344 | F12: =IF('4 (2)'!F12="n/a","n/a",'4 ( 1)'!$H11+'4 (2)'!F12) -> 0.08118053344 | H12: =IF('4 (2)'!H12="n/a","n/a",'4 ( 1)'!$H11+'4 (2)'!H12) -> 0.08828053344 | J12: =IF('4 (2)'!J12="n/a","n/a",'4 ( 1)'!$H11+'4 (2)'!J12) -> 0.0487732284 | N12: 0.07518053344 | O12: 0.08118053344 | P12: 0.08828053344 | Q12: LOW
A13: 6 | B13: ='4 ( 1)'!B12 -> Avista Corp. | D13: =IF('4 (2)'!D13="n/a","n/a",'4 ( 1)'!$H12+'4 (2)'!D13) -> 0.0567733962 | F13: =IF('4 (2)'!F13="n/a","n/a",'4 ( 1)'!$H12+'4 (2)'!F13) -> 0.1047733962 | H13: =IF('4 (2)'!H13="n/a","n/a",'4 ( 1)'!$H12+'4 (2)'!H13) -> 0.0981733962 | J13: =IF('4 (2)'!J13="n/a","n/a",'4 ( 1)'!$H12+'4 (2)'!J13) -> 0.07696534402 | N13: LOW | O13: 0.1047733962 | P13: 0.0981733962 | Q13: 0.07696534402
A14: 7 | B14: ='4 ( 1)'!B13 -> Black Hills Corp. | D14: =IF('4 (2)'!D14="n/a","n/a",'4 ( 1)'!$H13+'4 (2)'!D14) -> 0.07561265002 | F14: =IF('4 (2)'!F14="n/a","n/a",'4 ( 1)'!$H13+'4 (2)'!F14) -> 0.08751265002 | H14: =IF('4 (2)'!H14="n/a","n/a",'4 ( 1)'!$H13+'4 (2)'!H14) -> 0.09821265002 | J14: =IF('4 (2)'!J14="n/a","n/a",'4 ( 1)'!$H13+'4 (2)'!J14) -> 0.07874743322 | N14: 0.07561265002 | O14: 0.08751265002 | P14: 0.09821265002 | Q14: 0.07874743322
A15: 8 | B15: ='4 ( 1)'!B14 -> CMS Energy Corp. | D15: =IF('4 (2)'!D15="n/a","n/a",'4 ( 1)'!$H14+'4 (2)'!D15) -> 0.1028649879 | F15: =IF('4 (2)'!F15="n/a","n/a",'4 ( 1)'!$H14+'4 (2)'!F15) -> 0.09866498789 | H15: =IF('4 (2)'!H15="n/a","n/a",'4 ( 1)'!$H14+'4 (2)'!H15) -> 0.09796498789 | J15: =IF('4 (2)'!J15="n/a","n/a",'4 ( 1)'!$H14+'4 (2)'!J15) -> 0.1003032271 | N15: 0.1028649879 | O15: 0.09866498789 | P15: 0.09796498789 | Q15: 0.1003032271
A16: 9 | B16: ='4 ( 1)'!B15 -> Consolidated Edison | D16: =IF('4 (2)'!D16="n/a","n/a",'4 ( 1)'!$H15+'4 (2)'!D16) -> 0.07126876004 | F16: =IF('4 (2)'!F16="n/a","n/a",'4 ( 1)'!$H15+'4 (2)'!F16) -> 0.06676876004 | H16: =IF('4 (2)'!H16="n/a","n/a",'4 ( 1)'!$H15+'4 (2)'!H16) -> 0.06126876004 | J16: =IF('4 (2)'!J16="n/a","n/a",'4 ( 1)'!$H15+'4 (2)'!J16) -> 0.07471802201 | N16: 0.07126876004 | O16: 0.06676876004 | P16: LOW | Q16: 0.07471802201
A17: 10 | B17: ='4 ( 1)'!B16 -> DTE Energy Co. | D17: =IF('4 (2)'!D17="n/a","n/a",'4 ( 1)'!$H16+'4 (2)'!D17) -> 0.09725236618 | F17: =IF('4 (2)'!F17="n/a","n/a",'4 ( 1)'!$H16+'4 (2)'!F17) -> 0.09675236618 | H17: =IF('4 (2)'!H17="n/a","n/a",'4 ( 1)'!$H16+'4 (2)'!H17) -> 0.09395236618 | J17: =IF('4 (2)'!J17="n/a","n/a",'4 ( 1)'!$H16+'4 (2)'!J17) -> 0.09019190074 | N17: 0.09725236618 | O17: 0.09675236618 | P17: 0.09395236618 | Q17: 0.09019190074
A18: 11 | B18: ='4 ( 1)'!B17 -> Duke Energy Corp. | D18: =IF('4 (2)'!D18="n/a","n/a",'4 ( 1)'!$H17+'4 (2)'!D18) -> 0.09584807115 | F18: =IF('4 (2)'!F18="n/a","n/a",'4 ( 1)'!$H17+'4 (2)'!F18) -> 0.06184807115 | H18: =IF('4 (2)'!H18="n/a","n/a",'4 ( 1)'!$H17+'4 (2)'!H18) -> 0.07684807115 | J18: =IF('4 (2)'!J18="n/a","n/a",'4 ( 1)'!$H17+'4 (2)'!J18) -> 0.07712784297 | N18: 0.09584807115 | O18: LOW | P18: 0.07684807115 | Q18: 0.07712784297
A19: 12 | B19: ='4 ( 1)'!B18 -> Entergy Corp. | D19: =IF('4 (2)'!D19="n/a","n/a",'4 ( 1)'!$H18+'4 (2)'!D19) -> 0.06841578687 | F19: =IF('4 (2)'!F19="n/a","n/a",'4 ( 1)'!$H18+'4 (2)'!F19) -> 0.09241578687 | H19: =IF('4 (2)'!H19="n/a","n/a",'4 ( 1)'!$H18+'4 (2)'!H19) -> 0.09271578687 | J19: =IF('4 (2)'!J19="n/a","n/a",'4 ( 1)'!$H18+'4 (2)'!J19) -> 0.08746816529 | N19: 0.06841578687 | O19: 0.09241578687 | P19: 0.09271578687 | Q19: 0.08746816529
A20: 13 | B20: ='4 ( 1)'!B19 -> Eversource Energy | D20: =IF('4 (2)'!D20="n/a","n/a",'4 ( 1)'!$H19+'4 (2)'!D20) -> 0.08268062396 | F20: =IF('4 (2)'!F20="n/a","n/a",'4 ( 1)'!$H19+'4 (2)'!F20) -> 0.09208062396 | H20: =IF('4 (2)'!H20="n/a","n/a",'4 ( 1)'!$H19+'4 (2)'!H20) -> 0.09358062396 | J20: =IF('4 (2)'!J20="n/a","n/a",'4 ( 1)'!$H19+'4 (2)'!J20) -> 0.07494109242 | N20: 0.08268062396 | O20: 0.09208062396 | P20: 0.09358062396 | Q20: 0.07494109242
A21: 14 | B21: ='4 ( 1)'!B20 -> NorthWestern Corp. | D21: =IF('4 (2)'!D21="n/a","n/a",'4 ( 1)'!$H20+'4 (2)'!D21) -> 0.06363716674 | F21: =IF('4 (2)'!F21="n/a","n/a",'4 ( 1)'!$H20+'4 (2)'!F21) -> 0.08663716674 | H21: =IF('4 (2)'!H21="n/a","n/a",'4 ( 1)'!$H20+'4 (2)'!H21) -> 0.08253716674 | J21: =IF('4 (2)'!J21="n/a","n/a",'4 ( 1)'!$H20+'4 (2)'!J21) -> 0.0760891061 | N21: LOW | O21: 0.08663716674 | P21: 0.08253716674 | Q21: 0.0760891061
A22: 15 | B22: ='4 ( 1)'!B21 -> Pub Sv Enterprise Grp. | D22: =IF('4 (2)'!D22="n/a","n/a",'4 ( 1)'!$H21+'4 (2)'!D22) -> 0.0873333997 | F22: =IF('4 (2)'!F22="n/a","n/a",'4 ( 1)'!$H21+'4 (2)'!F22) -> 0.0520333997 | H22: =IF('4 (2)'!H22="n/a","n/a",'4 ( 1)'!$H21+'4 (2)'!H22) -> 0.0719333997 | J22: =IF('4 (2)'!J22="n/a","n/a",'4 ( 1)'!$H21+'4 (2)'!J22) -> 0.089467012 | N22: 0.0873333997 | O22: LOW | P22: 0.0719333997 | Q22: 0.089467012
A23: 16 | B23: ='4 ( 1)'!B22 -> Sempra Energy | D23: =IF('4 (2)'!D23="n/a","n/a",'4 ( 1)'!$H22+'4 (2)'!D23) -> 0.1361180077 | F23: =IF('4 (2)'!F23="n/a","n/a",'4 ( 1)'!$H22+'4 (2)'!F23) -> 0.09881800768 | H23: =IF('4 (2)'!H23="n/a","n/a",'4 ( 1)'!$H22+'4 (2)'!H23) -> 0.1097180077 | J23: =IF('4 (2)'!J23="n/a","n/a",'4 ( 1)'!$H22+'4 (2)'!J23) -> 0.1091314012 | N23: 0.1361180077 | O23: 0.09881800768 | P23: 0.1097180077 | Q23: 0.1091314012
A24: 17 | B24: ='4 ( 1)'!B23 -> Southern Company | D24: =IF('4 (2)'!D24="n/a","n/a",'4 ( 1)'!$H23+'4 (2)'!D24) -> 0.07822793263 | F24: =IF('4 (2)'!F24="n/a","n/a",'4 ( 1)'!$H23+'4 (2)'!F24) -> 0.09372793263 | H24: =IF('4 (2)'!H24="n/a","n/a",'4 ( 1)'!$H23+'4 (2)'!H24) -> 0.08822793263 | J24: =IF('4 (2)'!J24="n/a","n/a",'4 ( 1)'!$H23+'4 (2)'!J24) -> 0.08460526639 | N24: 0.07822793263 | O24: 0.09372793263 | P24: 0.08822793263 | Q24: 0.08460526639
A25: 18 | B25: ='4 ( 1)'!B24 -> WEC Energy Group | D25: =IF('4 (2)'!D25="n/a","n/a",'4 ( 1)'!$H24+'4 (2)'!D25) -> 0.08755781789 | F25: =IF('4 (2)'!F25="n/a","n/a",'4 ( 1)'!$H24+'4 (2)'!F25) -> 0.08705781789 | H25: =IF('4 (2)'!H25="n/a","n/a",'4 ( 1)'!$H24+'4 (2)'!H25) -> 0.08695781789 | J25: =IF('4 (2)'!J25="n/a","n/a",'4 ( 1)'!$H24+'4 (2)'!J25) -> 0.06910790364 | N25: 0.08755781789 | O25: 0.08705781789 | P25: 0.08695781789 | Q25: 0.06910790364
A26: 19 | B26: ='4 ( 1)'!B25 -> Xcel Energy Inc. | D26: =IF('4 (2)'!D26="n/a","n/a",'4 ( 1)'!$H25+'4 (2)'!D26) -> 0.08544742662 | F26: =IF('4 (2)'!F26="n/a","n/a",'4 ( 1)'!$H25+'4 (2)'!F26) -> 0.08394742662 | H26: =IF('4 (2)'!H26="n/a","n/a",'4 ( 1)'!$H25+'4 (2)'!H26) -> 0.08354742662 | J26: =IF('4 (2)'!J26="n/a","n/a",'4 ( 1)'!$H25+'4 (2)'!J26) -> 0.07590747089 | N26: 0.08544742662 | O26: 0.08394742662 | P26: 0.08354742662 | Q26: 0.07590747089
B28: Average (b) | D28: =AVERAGE(N8:N26) -> 0.08797420294 | F28: =AVERAGE(O8:O26) -> 0.09161214014 | H28: =AVERAGE(P8:P28) -> 0.09090257852 | J28: =AVERAGE(Q8:Q26) -> 0.0827280522 | M28: Min | N28: =MIN(N8:N26) -> 0.06841578687 | O28: =MIN(O8:O26) -> 0.06676876004 | P28: =MIN(P8:P26) -> 0.0719333997 | Q28: =MIN(Q8:Q26) -> 0.06910790364
B29: Midpoint (b) (c) | D29: =AVERAGE(N28:N29) -> 0.1022668973 | F29: =AVERAGE(O28:O29) -> 0.09258741979 | H29: =AVERAGE(P28:P29) -> 0.0969617215 | J29: =AVERAGE(Q28:Q29) -> 0.0891196524 | M29: Max | N29: =MAX(N8:N26) -> 0.1361180077 | O29: =MAX(O8:O26) -> 0.1184060796 | P29: =MAX(P8:P26) -> 0.1219900433 | Q29: =MAX(Q8:Q26) -> 0.1091314012
A32: (a) | B32: ="Sum of dividend yield (" & K1 & ", p. 1) and respective growth rate (" & K1 & ", p. 2)." -> Sum of dividend yield (Exhibit No. 4, p. 1) and respective growth rate (Exhibit No. 4, p. 2).
A33: (b) | B33: Excludes highlighted figures.
A34: (c) | B34: Average of low and high values.
B36: Threshold Min | D36: 0.064
B37: Threshold Max | D37: 0.141
D39: 0.08737726605 | F39: 0.09161214014 | H39: 0.09007249776 | J39: 0.08409884045
D40: 0.1022668973 | F40: 0.09258741979 | H40: 0.0969617215 | J40: 0.0891196524

Sheet 4 (4)
A1: ='Exhibit List'!C8 -> DCF MODEL - UTILITY GROUP | J1: ='Exhibit List'!B8 -> Exhibit No. 4
J2: Page 4 of 4
A3: ='Exhibit List'!D8 -> LOW-END THRESHOLD ADJUSTMENT
B6: Atlantic Path 15 / Startrans / So. Cal Edison | G6: Pioneer Transmission
D7: Baa Yield | H7: Baa Yield
C8: 2007-06-19 | D8: 0.0654 | G8: 2008-04-14 | H8: 0.0681
C9: 2007-07-19 | D9: 0.0649 | G9: 2008-05-14 | H9: 0.0679
C10: 2007-08-18 | D10: 0.0651 | G10: 2008-06-13 | H10: 0.0693
C11: 2007-09-17 | D11: 0.0645 | G11: 2008-07-13 | H11: 0.0697
C12: 2007-10-17 | D12: 0.0636 | G12: 2008-08-12 | H12: 0.0698
C13: 2007-11-16 | D13: 0.0627 | G13: 2008-09-11 | H13: 0.0715
G15: Current | I15: Projected
B16: Historical Baa Bond Yield | G16: =I16 -> 0.066875 | H16: (a) | I16: =AVERAGE(D8:D13,H8:H13) -> 0.066875 | J16: (a)
B17: Current Baa Bond Yield | G17: ='Bond Yields'!C16 -> 0.0337 | H17: (b) | I17: ='Bond Yields'!E39 -> 0.0479 | J17: (c)
C18: Change in Bond Yield | G18: =G17-G16 -> -0.033175 | I18: =I17-I16 -> -0.018975
B20: Risk Premium/Interest Rate Relationship | G20: ='8 (4)'!B46 -> -0.4210266906 | H20: (d) | I20: =G20 -> -0.4210266906 | J20: (d)
C21: Adjustment to Low-end Threshold | G21: =G20*G18 -> 0.01396756046 | I21: =I20*I18 -> 0.007988981454
B24: Current Baa Bond Yield | G24: =G17 -> 0.0337 | I24: =I17 -> 0.0479
B25: Original Threshold | G25: 0.01 | I25: 0.01
B26: Adjustment | G26: =G21 -> 0.01396756046 | I26: =I21 -> 0.007988981454
B27: Adjusted Low-end Threshold | G27: =SUM(G24:G26) -> 0.05766756046 | I27: =SUM(I24:I26) -> 0.06588898145
B29: Low-end Test -- FERC Opinion No. 569-A
B30: =B17 -> Current Baa Bond Yield | G30: =G17 -> 0.0337
B32: CAPM Market Risk Premium (e) | G32: ='7'!H10 -> 0.1017
B33: Risk Premium Factor (f) | G33: 0.2
C34: =C21 -> Adjustment to Low-end Threshold | G34: =G32*G33 -> 0.02034
B36: =B27 -> Adjusted Low-end Threshold | G36: =G30+G34 -> 0.05404
A40: (a) | B40: Average Baa utility bond yield for 6-mo. periods ending Nov. 2007 and Sep. 2008.
A41: (b) | B41: ="Average Baa utility bond yield for 6-months ended "&'Bond Yields'!B14&"." -> Average Baa utility bond yield for 6-months ended Sep. 2020.
A42: (c) | B42: ="Average Baa utility bond yield for 2021-25 based on data from "&'Bond Yields'!B73& "; "&'Bond Yields'!B74&", Moody's Investors Service at www.credittrends.com." -> Average Baa utility bond yield for 2021-25 based on data from IHS Markit, Long-Term Macro Forecast - Baseline (May 28, 2020); Energy Information Administration, Annual Energy Outlook 2020 (Jan. 29, 2020), Moody's Investors Service at www.credittrends.com.
A45: (d) | B45: ='8 (4)'!I1&", page 4." -> Exhibit No. 8, page 4.
A46: (e) | B46: ='6'!N1&", page 1." -> Exhibit No. 6, page 1.
A47: (f) | B47: Assoc. of Bus. Advocating Tariff Equity, Opinion No. 569-A, 171 FERC ¶ 61,154 (2020).

Sheet 5
A1: ='Exhibit List'!$C$9 -> BR+SV GROWTH RATE | Q1: ='Exhibit List'!$B$9 -> Exhibit No. 5 | R1: =A1 -> BR+SV GROWTH RATE | AH1: =Q1 -> Exhibit No. 5
Q2: Page 1 of 2 | AH2: Page 2 of 2
A3: ='Exhibit List'!$D$9 -> UTILITY GROUP | R3: =A3 -> UTILITY GROUP
C5: (a) | D5: (a) | E5: (a) | I5: (b) | J5: (c) | M5: (d) | N5: (e) | T5: (a) | U5: (a) | V5: (f) | X5: (a) | Y5: (a) | Z5: (f) | AA5: (g) | AB5: (a) | AC5: (a) | AE5: (h) | AF5: (a) | AG5: (a) | AH5: (g)
C6: 2024 | I6: Adjustment | M6: "sv" Factor | T6: 2019 | X6: 2024 | AA6: Chg | AB6: 2024 | AF6: Common Shares
B7: Company | C7: EPS | D7: DPS | E7: BVPS | G7: b | H7: r | I7: Factor | J7: Adjusted r | K7: br | M7: s | N7: v | O7: sv | Q7: br + sv | S7: Company | T7: Eq Ratio | U7: Tot Cap | V7: Com Eq | X7: Eq Ratio | Y7: Tot Cap | Z7: Com Eq | AA7: Equity | AB7: High | AC7: Low | AD7: Avg. | AE7: M/B | AF7: 2019 | AG7: 2024 | AH7: Growth
A8: =A7+1 -> 1 | B8: ='Proxy Group Ticker'!C3 -> Algonquin Pwr & Util | C8: =VLOOKUP('Proxy Group Ticker'!$B3,vldatabase,7,FALSE) -> n/a | D8: =VLOOKUP('Proxy Group Ticker'!$B3,vldatabase,8,FALSE) -> n/a | E8: =VLOOKUP('Proxy Group Ticker'!$B3,vldatabase,9,FALSE) -> n/a | G8: =IF(E8="n/a", "n/a",+(C8-D8)/C8) -> n/a | H8: =IF(E8="n/a","n/a",C8/E8) -> n/a | I8: =IF(AA8="n/a","n/a",2*(1+AA8)/(2+AA8)) -> n/a | J8: =IF(H8="n/a","n/a",H8*I8) -> n/a | K8: =IF(G8="n/a","n/a",G8*J8) -> n/a | M8: =IF(AE8="n/a","n/a",AE8*AH8) -> n/a | N8: =IF(AE8="n/a","n/a",1-1/AE8) -> n/a | O8: =IF(M8="n/a","n/a",M8*N8) -> n/a | Q8: =IF(K8="n/a","n/a",K8+O8) -> n/a | R8: =A8 -> 1 | S8: =B8 -> Algonquin Pwr & Util | T8: =VLOOKUP('Proxy Group Ticker'!$B3,vldatabase,14,FALSE) -> n/a | U8: =VLOOKUP('Proxy Group Ticker'!$B3,vldatabase,16,FALSE) -> n/a | V8: =IF(U8="n/a","n/a",T8*U8) -> n/a | X8: =VLOOKUP('Proxy Group Ticker'!$B3,vldatabase,15,FALSE) -> n/a | Y8: =VLOOKUP('Proxy Group Ticker'!$B3,vldatabase,17,FALSE) -> n/a | Z8: =IF(Y8="n/a","n/a",X8*Y8) -> n/a | AA8: =IF(V8="n/a","n/a",(+Z8/V8)^(1/5)-1) -> n/a | AB8: =VLOOKUP('Proxy Group Ticker'!$B3,vldatabase,5,FALSE) -> n/a | AC8: =VLOOKUP('Proxy Group Ticker'!$B3,vldatabase,6,FALSE) -> n/a | AD8: =IF(AB8="n/a","n/a",AVERAGE(AB8:AC8)) -> n/a | AE8: =IF(AD8="n/a","n/a",AD8/E8) -> n/a | AF8: =VLOOKUP('Proxy Group Ticker'!$B3,vldatabase,10,FALSE) -> n/a | AG8: =VLOOKUP('Proxy Group Ticker'!$B3,vldatabase,11,FALSE) -> n/a | AH8: =IF(AF8="n/a","n/a",(+AG8/AF8)^(1/5)-1) -> n/a
A9: =A8+1 -> 2 | B9: ='Proxy Group Ticker'!C4 -> ALLETE | C9: =VLOOKUP('Proxy Group Ticker'!$B4,vldatabase,7,FALSE) -> 4.25 | D9: =VLOOKUP('Proxy Group Ticker'!$B4,vldatabase,8,FALSE) -> 2.9 | E9: =VLOOKUP('Proxy Group Ticker'!$B4,vldatabase,9,FALSE) -> 51.75 | G9: =IF(E9="n/a", "n/a",+(C9-D9)/C9) -> 0.3176470588 | H9: =IF(E9="n/a","n/a",C9/E9) -> 0.08212560386 | I9: =IF(AA9="n/a","n/a",2*(1+AA9)/(2+AA9)) -> 1.023347544 | J9: =IF(H9="n/a","n/a",H9*I9) -> 0.08404303505 | K9: =IF(G9="n/a","n/a",G9*J9) -> 0.0266960229 | M9: =IF(AE9="n/a","n/a",AE9*AH9) -> 0.01448995495 | N9: =IF(AE9="n/a","n/a",1-1/AE9) -> 0.3322580645 | O9: =IF(M9="n/a","n/a",M9*N9) -> 0.004814404387 | Q9: =IF(K9="n/a","n/a",K9+O9) -> 0.03151042729 | R9: =A9 -> 2 | S9: =B9 -> ALLETE | T9: =VLOOKUP('Proxy Group Ticker'!$B4,vldatabase,14,FALSE) -> 0.614 | U9: =VLOOKUP('Proxy Group Ticker'!$B4,vldatabase,16,FALSE) -> 3632.8 | V9: =IF(U9="n/a","n/a",T9*U9) -> 2230.5392 | X9: =VLOOKUP('Proxy Group Ticker'!$B4,vldatabase,15,FALSE) -> 0.59 | Y9: =VLOOKUP('Proxy Group Ticker'!$B4,vldatabase,17,FALSE) -> 4775 | Z9: =IF(Y9="n/a","n/a",X9*Y9) -> 2817.25 | AA9: =IF(V9="n/a","n/a",(+Z9/V9)^(1/5)-1) -> 0.047811367 | AB9: =VLOOKUP('Proxy Group Ticker'!$B4,vldatabase,5,FALSE) -> 90 | AC9: =VLOOKUP('Proxy Group Ticker'!$B4,vldatabase,6,FALSE) -> 65 | AD9: =IF(AB9="n/a","n/a",AVERAGE(AB9:AC9)) -> 77.5 | AE9: =IF(AD9="n/a","n/a",AD9/E9) -> 1.497584541 | AF9: =VLOOKUP('Proxy Group Ticker'!$B4,vldatabase,10,FALSE) -> 51.7 | AG9: =VLOOKUP('Proxy Group Ticker'!$B4,vldatabase,11,FALSE) -> 54.25 | AH9: =IF(AF9="n/a","n/a",(+AG9/AF9)^(1/5)-1) -> 0.009675550565
A10: 3 | B10: ='Proxy Group Ticker'!C5 -> Alliant Energy | C10: =VLOOKUP('Proxy Group Ticker'!$B5,vldatabase,7,FALSE) -> 3 | D10: =VLOOKUP('Proxy Group Ticker'!$B5,vldatabase,8,FALSE) -> 2 | E10: =VLOOKUP('Proxy Group Ticker'!$B5,vldatabase,9,FALSE) -> 28.25 | G10: 0.3333333333 | H10: 0.1061946903 | I10: 1.01495992 | J10: 0.1077833544 | K10: 0.03592778479 | M10: 0.02656896413 | N10: 0.4052631579 | O10: 0.0107674223 | Q10: 0.0466952071 | R10: 3 | S10: Alliant Energy | T10: =VLOOKUP('Proxy Group Ticker'!$B5,vldatabase,14,FALSE) -> 0.485 | U10: =VLOOKUP('Proxy Group Ticker'!$B5,vldatabase,16,FALSE) -> 10226 | V10: 4959.61 | X10: =VLOOKUP('Proxy Group Ticker'!$B5,vldatabase,15,FALSE) -> 0.48 | Y10: =VLOOKUP('Proxy Group Ticker'!$B5,vldatabase,17,FALSE) -> 12000 | Z10: 5760 | AA10: 0.03037423708 | AB10: =VLOOKUP('Proxy Group Ticker'!$B5,vldatabase,5,FALSE) -> 55 | AC10: =VLOOKUP('Proxy Group Ticker'!$B5,vldatabase,6,FALSE) -> 40 | AD10: 47.5 | AE10: 1.681415929 | AF10: =VLOOKUP('Proxy Group Ticker'!$B5,vldatabase,10,FALSE) -> 245.02 | AG10: =VLOOKUP('Proxy Group Ticker'!$B5,vldatabase,11,FALSE) -> 265 | AH10: 0.01580154182
A11: 4 | B11: ='Proxy Group Ticker'!C6 -> Ameren Corp. | C11: =VLOOKUP('Proxy Group Ticker'!$B6,vldatabase,7,FALSE) -> 4.5 | D11: =VLOOKUP('Proxy Group Ticker'!$B6,vldatabase,8,FALSE) -> 2.45 | E11: =VLOOKUP('Proxy Group Ticker'!$B6,vldatabase,9,FALSE) -> 44.5 | G11: 0.4555555556 | H11: 0.1011235955 | I11: 1.039799637 | J11: 0.1051482779 | K11: 0.04790088217 | M11: 0.03034720515 | N11: 0.3862068966 | O11: 0.01172029992 | Q11: 0.05962118209 | R11: 4 | S11: Ameren Corp. | T11: =VLOOKUP('Proxy Group Ticker'!$B6,vldatabase,14,FALSE) -> 0.471 | U11: =VLOOKUP('Proxy Group Ticker'!$B6,vldatabase,16,FALSE) -> 17116 | V11: 8061.636 | X11: =VLOOKUP('Proxy Group Ticker'!$B6,vldatabase,15,FALSE) -> 0.49 | Y11: =VLOOKUP('Proxy Group Ticker'!$B6,vldatabase,17,FALSE) -> 24500 | Z11: 12005 | AA11: 0.08289860909 | AB11: =VLOOKUP('Proxy Group Ticker'!$B6,vldatabase,5,FALSE) -> 85 | AC11: =VLOOKUP('Proxy Group Ticker'!$B6,vldatabase,6,FALSE) -> 60 | AD11: 72.5 | AE11: 1.629213483 | AF11: =VLOOKUP('Proxy Group Ticker'!$B6,vldatabase,10,FALSE) -> 246.2 | AG11: =VLOOKUP('Proxy Group Ticker'!$B6,vldatabase,11,FALSE) -> 270 | AH11: 0.01862690523
A12: 5 | B12: ='Proxy Group Ticker'!C7 -> Avangrid, Inc. | C12: =VLOOKUP('Proxy Group Ticker'!$B7,vldatabase,7,FALSE) -> 2.5 | D12: =VLOOKUP('Proxy Group Ticker'!$B7,vldatabase,8,FALSE) -> 1.8 | E12: =VLOOKUP('Proxy Group Ticker'!$B7,vldatabase,9,FALSE) -> 51.75 | G12: 0.28 | H12: 0.04830917874 | I12: 1.004802993 | J12: 0.04854120738 | K12: 0.01359153807 | M12: -5.315469853e-06 | N12: -0.2176470588 | O12: 1.15689638e-06 | Q12: 0.01359269496 | R12: 5 | S12: Avangrid, Inc. | T12: =VLOOKUP('Proxy Group Ticker'!$B7,vldatabase,14,FALSE) -> 0.694 | U12: =VLOOKUP('Proxy Group Ticker'!$B7,vldatabase,16,FALSE) -> 21953 | V12: 15235.382 | X12: =VLOOKUP('Proxy Group Ticker'!$B7,vldatabase,15,FALSE) -> 0.575 | Y12: =VLOOKUP('Proxy Group Ticker'!$B7,vldatabase,17,FALSE) -> 27800 | Z12: 15985 | AA12: 0.009652345588 | AB12: =VLOOKUP('Proxy Group Ticker'!$B7,vldatabase,5,FALSE) -> 50 | AC12: =VLOOKUP('Proxy Group Ticker'!$B7,vldatabase,6,FALSE) -> 35 | AD12: 42.5 | AE12: 0.8212560386 | AF12: =VLOOKUP('Proxy Group Ticker'!$B7,vldatabase,10,FALSE) -> 309.01 | AG12: =VLOOKUP('Proxy Group Ticker'!$B7,vldatabase,11,FALSE) -> 309 | AH12: -6.472366233e-06
A13: 6 | B13: ='Proxy Group Ticker'!C8 -> Avista Corp. | C13: =VLOOKUP('Proxy Group Ticker'!$B8,vldatabase,7,FALSE) -> 2.5 | D13: =VLOOKUP('Proxy Group Ticker'!$B8,vldatabase,8,FALSE) -> 1.9 | E13: =VLOOKUP('Proxy Group Ticker'!$B8,vldatabase,9,FALSE) -> 31.75 | G13: 0.24 | H13: 0.07874015748 | I13: 1.018192814 | J13: 0.0801726625 | K13: 0.019241439 | M13: 0.02770610663 | N13: 0.3952380952 | O13: 0.01095050881 | Q13: 0.03019194781 | R13: 6 | S13: Avista Corp. | T13: =VLOOKUP('Proxy Group Ticker'!$B8,vldatabase,14,FALSE) -> 0.506 | U13: =VLOOKUP('Proxy Group Ticker'!$B8,vldatabase,16,FALSE) -> 3834.6 | V13: 1940.3076 | X13: =VLOOKUP('Proxy Group Ticker'!$B8,vldatabase,15,FALSE) -> 0.49 | Y13: =VLOOKUP('Proxy Group Ticker'!$B8,vldatabase,17,FALSE) -> 4750 | Z13: 2327.5 | AA13: 0.03705985047 | AB13: =VLOOKUP('Proxy Group Ticker'!$B8,vldatabase,5,FALSE) -> 60 | AC13: =VLOOKUP('Proxy Group Ticker'!$B8,vldatabase,6,FALSE) -> 45 | AD13: 52.5 | AE13: 1.653543307 | AF13: =VLOOKUP('Proxy Group Ticker'!$B8,vldatabase,10,FALSE) -> 67.18 | AG13: =VLOOKUP('Proxy Group Ticker'!$B8,vldatabase,11,FALSE) -> 73 | AH13: 0.01675559782
A14: 7 | B14: ='Proxy Group Ticker'!C9 -> Black Hills Corp. | C14: =VLOOKUP('Proxy Group Ticker'!$B9,vldatabase,7,FALSE) -> 4.25 | D14: =VLOOKUP('Proxy Group Ticker'!$B9,vldatabase,8,FALSE) -> 2.75 | E14: =VLOOKUP('Proxy Group Ticker'!$B9,vldatabase,9,FALSE) -> 46.75 | G14: 0.3529411765 | H14: 0.09090909091 | I14: 1.023168899 | J14: 0.0930153545 | K14: 0.03282894865 | M14: 0.01337242855 | N14: 0.3967741935 | O14: 0.005305834553 | Q14: 0.0381347832 | R14: 7 | S14: Black Hills Corp. | T14: =VLOOKUP('Proxy Group Ticker'!$B9,vldatabase,14,FALSE) -> 0.429 | U14: =VLOOKUP('Proxy Group Ticker'!$B9,vldatabase,16,FALSE) -> 5502.2 | V14: 2360.4438 | X14: =VLOOKUP('Proxy Group Ticker'!$B9,vldatabase,15,FALSE) -> 0.48 | Y14: =VLOOKUP('Proxy Group Ticker'!$B9,vldatabase,17,FALSE) -> 6200 | Z14: 2976 | AA14: 0.04743685875 | AB14: =VLOOKUP('Proxy Group Ticker'!$B9,vldatabase,5,FALSE) -> 90 | AC14: =VLOOKUP('Proxy Group Ticker'!$B9,vldatabase,6,FALSE) -> 65 | AD14: 77.5 | AE14: 1.657754011 | AF14: =VLOOKUP('Proxy Group Ticker'!$B9,vldatabase,10,FALSE) -> 61.48 | AG14: =VLOOKUP('Proxy Group Ticker'!$B9,vldatabase,11,FALSE) -> 64 | AH14: 0.008066593995
A15: 8 | B15: ='Proxy Group Ticker'!C10 -> CMS Energy Corp. | C15: =VLOOKUP('Proxy Group Ticker'!$B10,vldatabase,7,FALSE) -> 3.5 | D15: =VLOOKUP('Proxy Group Ticker'!$B10,vldatabase,8,FALSE) -> 2.15 | E15: =VLOOKUP('Proxy Group Ticker'!$B10,vldatabase,9,FALSE) -> 25.5 | G15: 0.3857142857 | H15: 0.137254902 | I15: 1.042866494 | J15: 0.1431385384 | K15: 0.05521057909 | M15: 0.0283493141 | N15: 0.6076923077 | O15: 0.0172276601 | Q15: 0.07243823919 | R15: 8 | S15: CMS Energy Corp. | T15: =VLOOKUP('Proxy Group Ticker'!$B10,vldatabase,14,FALSE) -> 0.294 | U15: =VLOOKUP('Proxy Group Ticker'!$B10,vldatabase,16,FALSE) -> 17082 | V15: 5022.108 | X15: =VLOOKUP('Proxy Group Ticker'!$B10,vldatabase,15,FALSE) -> 0.32 | Y15: =VLOOKUP('Proxy Group Ticker'!$B10,vldatabase,17,FALSE) -> 24100 | Z15: 7712 | AA15: 0.08957265342 | AB15: =VLOOKUP('Proxy Group Ticker'!$B10,vldatabase,5,FALSE) -> 75 | AC15: =VLOOKUP('Proxy Group Ticker'!$B10,vldatabase,6,FALSE) -> 55 | AD15: 65 | AE15: 2.549019608 | AF15: =VLOOKUP('Proxy Group Ticker'!$B10,vldatabase,10,FALSE) -> 283.86 | AG15: =VLOOKUP('Proxy Group Ticker'!$B10,vldatabase,11,FALSE) -> 300 | AH15: 0.01112165399
A16: 9 | B16: ='Proxy Group Ticker'!C11 -> Consolidated Edison | C16: =VLOOKUP('Proxy Group Ticker'!$B11,vldatabase,7,FALSE) -> 5 | D16: =VLOOKUP('Proxy Group Ticker'!$B11,vldatabase,8,FALSE) -> 3.5 | E16: =VLOOKUP('Proxy Group Ticker'!$B11,vldatabase,9,FALSE) -> 62.5 | G16: 0.3 | H16: 0.08 | I16: 1.023311518 | J16: 0.08186492147 | K16: 0.02455947644 | M16: 0.02741017207 | N16: 0.3243243243 | O16: 0.008889785537 | Q16: 0.03344926198 | R16: 9 | S16: Consolidated Edison | T16: =VLOOKUP('Proxy Group Ticker'!$B11,vldatabase,14,FALSE) -> 0.493 | U16: =VLOOKUP('Proxy Group Ticker'!$B11,vldatabase,16,FALSE) -> 36549 | V16: 18018.657 | X16: =VLOOKUP('Proxy Group Ticker'!$B11,vldatabase,15,FALSE) -> 0.5 | Y16: =VLOOKUP('Proxy Group Ticker'!$B11,vldatabase,17,FALSE) -> 45500 | Z16: 22750 | AA16: 0.04773583141 | AB16: =VLOOKUP('Proxy Group Ticker'!$B11,vldatabase,5,FALSE) -> 100 | AC16: =VLOOKUP('Proxy Group Ticker'!$B11,vldatabase,6,FALSE) -> 85 | AD16: 92.5 | AE16: 1.48 | AF16: =VLOOKUP('Proxy Group Ticker'!$B11,vldatabase,10,FALSE) -> 333 | AG16: =VLOOKUP('Proxy Group Ticker'!$B11,vldatabase,11,FALSE) -> 365 | AH16: 0.01852038654
A17: 10 | B17: ='Proxy Group Ticker'!C12 -> DTE Energy Co. | C17: =VLOOKUP('Proxy Group Ticker'!$B12,vldatabase,7,FALSE) -> 8.5 | D17: =VLOOKUP('Proxy Group Ticker'!$B12,vldatabase,8,FALSE) -> 5.2 | E17: =VLOOKUP('Proxy Group Ticker'!$B12,vldatabase,9,FALSE) -> 79.25 | G17: 0.3882352941 | H17: 0.1072555205 | I17: 1.032628276 | J17: 0.1107550833 | K17: 0.04299903232 | M17: 0.02290815331 | N17: 0.4339285714 | O17: 0.009940502238 | Q17: 0.05293953456 | R17: 10 | S17: DTE Energy Co. | T17: =VLOOKUP('Proxy Group Ticker'!$B12,vldatabase,14,FALSE) -> 0.423 | U17: =VLOOKUP('Proxy Group Ticker'!$B12,vldatabase,16,FALSE) -> 27607 | V17: 11677.761 | X17: =VLOOKUP('Proxy Group Ticker'!$B12,vldatabase,15,FALSE) -> 0.415 | Y17: =VLOOKUP('Proxy Group Ticker'!$B12,vldatabase,17,FALSE) -> 39000 | Z17: 16185 | AA17: 0.06745757689 | AB17: =VLOOKUP('Proxy Group Ticker'!$B12,vldatabase,5,FALSE) -> 160 | AC17: =VLOOKUP('Proxy Group Ticker'!$B12,vldatabase,6,FALSE) -> 120 | AD17: 140 | AE17: 1.766561514 | AF17: =VLOOKUP('Proxy Group Ticker'!$B12,vldatabase,10,FALSE) -> 192.21 | AG17: =VLOOKUP('Proxy Group Ticker'!$B12,vldatabase,11,FALSE) -> 205 | AH17: 0.01296765107
A18: 11 | B18: ='Proxy Group Ticker'!C13 -> Duke Energy Corp. | C18: =VLOOKUP('Proxy Group Ticker'!$B13,vldatabase,7,FALSE) -> 6 | D18: =VLOOKUP('Proxy Group Ticker'!$B13,vldatabase,8,FALSE) -> 4.15 | E18: =VLOOKUP('Proxy Group Ticker'!$B13,vldatabase,9,FALSE) -> 71 | G18: 0.3083333333 | H18: 0.08450704225 | I18: 1.021414165 | J18: 0.08631668997 | K18: 0.02661431274 | M18: 0.0184674422 | N18: 0.2526315789 | O18: 0.004665459083 | Q18: 0.03127977182 | R18: 11 | S18: Duke Energy Corp. | T18: =VLOOKUP('Proxy Group Ticker'!$B13,vldatabase,14,FALSE) -> 0.441 | U18: =VLOOKUP('Proxy Group Ticker'!$B13,vldatabase,16,FALSE) -> 101807 | V18: 44896.887 | X18: =VLOOKUP('Proxy Group Ticker'!$B13,vldatabase,15,FALSE) -> 0.45 | Y18: =VLOOKUP('Proxy Group Ticker'!$B13,vldatabase,17,FALSE) -> 123600 | Z18: 55620 | AA18: 0.04376553162 | AB18: =VLOOKUP('Proxy Group Ticker'!$B13,vldatabase,5,FALSE) -> 110 | AC18: =VLOOKUP('Proxy Group Ticker'!$B13,vldatabase,6,FALSE) -> 80 | AD18: 95 | AE18: 1.338028169 | AF18: =VLOOKUP('Proxy Group Ticker'!$B13,vldatabase,10,FALSE) -> 733 | AG18: =VLOOKUP('Proxy Group Ticker'!$B13,vldatabase,11,FALSE) -> 785 | AH18: 0.01380198312
A19: 12 | B19: ='Proxy Group Ticker'!C14 -> Entergy Corp. | C19: =VLOOKUP('Proxy Group Ticker'!$B14,vldatabase,7,FALSE) -> 7 | D19: =VLOOKUP('Proxy Group Ticker'!$B14,vldatabase,8,FALSE) -> 4.55 | E19: =VLOOKUP('Proxy Group Ticker'!$B14,vldatabase,9,FALSE) -> 64 | G19: 0.35 | H19: 0.109375 | I19: 1.026682457 | J19: 0.1122933937 | K19: 0.0393026878 | M19: 0.02041601882 | N19: 0.4775510204 | O19: 0.009749690621 | Q19: 0.04905237842 | R19: 12 | S19: Entergy Corp. | T19: =VLOOKUP('Proxy Group Ticker'!$B14,vldatabase,14,FALSE) -> 0.371 | U19: =VLOOKUP('Proxy Group Ticker'!$B14,vldatabase,16,FALSE) -> 27557 | V19: 10223.647 | X19: =VLOOKUP('Proxy Group Ticker'!$B14,vldatabase,15,FALSE) -> 0.395 | Y19: =VLOOKUP('Proxy Group Ticker'!$B14,vldatabase,17,FALSE) -> 33800 | Z19: 13351 | AA19: 0.05482785563 | AB19: =VLOOKUP('Proxy Group Ticker'!$B14,vldatabase,5,FALSE) -> 140 | AC19: =VLOOKUP('Proxy Group Ticker'!$B14,vldatabase,6,FALSE) -> 105 | AD19: 122.5 | AE19: 1.9140625 | AF19: =VLOOKUP('Proxy Group Ticker'!$B14,vldatabase,10,FALSE) -> 199.15 | AG19: =VLOOKUP('Proxy Group Ticker'!$B14,vldatabase,11,FALSE) -> 210 | AH19: 0.0106663282
A20: 13 | B20: ='Proxy Group Ticker'!C15 -> Eversource Energy | C20: =VLOOKUP('Proxy Group Ticker'!$B15,vldatabase,7,FALSE) -> 4.5 | D20: =VLOOKUP('Proxy Group Ticker'!$B15,vldatabase,8,FALSE) -> 2.85 | E20: =VLOOKUP('Proxy Group Ticker'!$B15,vldatabase,9,FALSE) -> 49 | G20: 0.3666666667 | H20: 0.09183673469 | I20: 1.034113185 | J20: 0.09496957819 | K20: 0.03482217867 | M20: 0.03063160919 | N20: 0.4060606061 | O20: 0.01243828979 | Q20: 0.04726046846 | R20: 13 | S20: Eversource Energy | T20: =VLOOKUP('Proxy Group Ticker'!$B15,vldatabase,14,FALSE) -> 0.466 | U20: =VLOOKUP('Proxy Group Ticker'!$B15,vldatabase,16,FALSE) -> 27097 | V20: 12627.202 | X20: =VLOOKUP('Proxy Group Ticker'!$B15,vldatabase,15,FALSE) -> 0.465 | Y20: =VLOOKUP('Proxy Group Ticker'!$B15,vldatabase,17,FALSE) -> 38200 | Z20: 17763 | AA20: 0.07063598808 | AB20: =VLOOKUP('Proxy Group Ticker'!$B15,vldatabase,5,FALSE) -> 90 | AC20: =VLOOKUP('Proxy Group Ticker'!$B15,vldatabase,6,FALSE) -> 75 | AD20: 82.5 | AE20: 1.683673469 | AF20: =VLOOKUP('Proxy Group Ticker'!$B15,vldatabase,10,FALSE) -> 329.88 | AG20: =VLOOKUP('Proxy Group Ticker'!$B15,vldatabase,11,FALSE) -> 361 | AH20: 0.0181933194
A21: 14 | B21: ='Proxy Group Ticker'!C16 -> NorthWestern Corp. | C21: =VLOOKUP('Proxy Group Ticker'!$B16,vldatabase,7,FALSE) -> 3.75 | D21: =VLOOKUP('Proxy Group Ticker'!$B16,vldatabase,8,FALSE) -> 2.8 | E21: =VLOOKUP('Proxy Group Ticker'!$B16,vldatabase,9,FALSE) -> 45.75 | G21: 0.2533333333 | H21: 0.08196721311 | I21: 1.016884787 | J21: 0.08335121204 | K21: 0.02111564038 | M21: 0.01624692045 | N21: 0.39 | O21: 0.006336298977 | Q21: 0.02745193936 | R21: 14 | S21: NorthWestern Corp. | T21: =VLOOKUP('Proxy Group Ticker'!$B16,vldatabase,14,FALSE) -> 0.475 | U21: =VLOOKUP('Proxy Group Ticker'!$B16,vldatabase,16,FALSE) -> 4289.8 | V21: 2037.655 | X21: =VLOOKUP('Proxy Group Ticker'!$B16,vldatabase,15,FALSE) -> 0.5 | Y21: =VLOOKUP('Proxy Group Ticker'!$B16,vldatabase,17,FALSE) -> 4825 | Z21: 2412.5 | AA21: 0.03434955871 | AB21: =VLOOKUP('Proxy Group Ticker'!$B16,vldatabase,5,FALSE) -> 85 | AC21: =VLOOKUP('Proxy Group Ticker'!$B16,vldatabase,6,FALSE) -> 65 | AD21: 75 | AE21: 1.639344262 | AF21: =VLOOKUP('Proxy Group Ticker'!$B16,vldatabase,10,FALSE) -> 50.45 | AG21: =VLOOKUP('Proxy Group Ticker'!$B16,vldatabase,11,FALSE) -> 53 | AH21: 0.009910621477
A22: 15 | B22: ='Proxy Group Ticker'!C17 -> Pub Sv Enterprise Grp. | C22: =VLOOKUP('Proxy Group Ticker'!$B17,vldatabase,7,FALSE) -> 4.25 | D22: =VLOOKUP('Proxy Group Ticker'!$B17,vldatabase,8,FALSE) -> 2.3 | E22: =VLOOKUP('Proxy Group Ticker'!$B17,vldatabase,9,FALSE) -> 38.5 | G22: 0.4588235294 | H22: 0.1103896104 | I22: 1.024932867 | J22: 0.1131419399 | K22: 0.05191218417 | M22: 0.0006179389565 | N22: 0.3583333333 | O22: 0.0002214281261 | Q22: 0.05213361229 | R22: 15 | S22: Pub Sv Enterprise Grp. | T22: =VLOOKUP('Proxy Group Ticker'!$B17,vldatabase,14,FALSE) -> 0.523 | U22: =VLOOKUP('Proxy Group Ticker'!$B17,vldatabase,16,FALSE) -> 28832 | V22: 15079.136 | X22: =VLOOKUP('Proxy Group Ticker'!$B17,vldatabase,15,FALSE) -> 0.5 | Y22: =VLOOKUP('Proxy Group Ticker'!$B17,vldatabase,17,FALSE) -> 38700 | Z22: 19350 | AA22: 0.05114082105 | AB22: =VLOOKUP('Proxy Group Ticker'!$B17,vldatabase,5,FALSE) -> 65 | AC22: =VLOOKUP('Proxy Group Ticker'!$B17,vldatabase,6,FALSE) -> 55 | AD22: 60 | AE22: 1.558441558 | AF22: =VLOOKUP('Proxy Group Ticker'!$B17,vldatabase,10,FALSE) -> 504 | AG22: =VLOOKUP('Proxy Group Ticker'!$B17,vldatabase,11,FALSE) -> 505 | AH22: 0.0003965108304
A23: 16 | B23: ='Proxy Group Ticker'!C18 -> Sempra Energy | C23: =VLOOKUP('Proxy Group Ticker'!$B18,vldatabase,7,FALSE) -> 9.5 | D23: =VLOOKUP('Proxy Group Ticker'!$B18,vldatabase,8,FALSE) -> 5.6 | E23: =VLOOKUP('Proxy Group Ticker'!$B18,vldatabase,9,FALSE) -> 88.75 | G23: 0.4105263158 | H23: 0.1070422535 | I23: 1.053258159 | J23: 0.1127431269 | K23: 0.04628402052 | M23: 0.05784061031 | N23: 0.4621212121 | O23: 0.02672937295 | Q23: 0.07301339347 | R23: 16 | S23: Sempra Energy | T23: =VLOOKUP('Proxy Group Ticker'!$B18,vldatabase,14,FALSE) -> 0.434 | U23: =VLOOKUP('Proxy Group Ticker'!$B18,vldatabase,16,FALSE) -> 40734 | V23: 17678.556 | X23: =VLOOKUP('Proxy Group Ticker'!$B18,vldatabase,15,FALSE) -> 0.515 | Y23: =VLOOKUP('Proxy Group Ticker'!$B18,vldatabase,17,FALSE) -> 58500 | Z23: 30127.5 | AA23: 0.1125083039 | AB23: =VLOOKUP('Proxy Group Ticker'!$B18,vldatabase,5,FALSE) -> 190 | AC23: =VLOOKUP('Proxy Group Ticker'!$B18,vldatabase,6,FALSE) -> 140 | AD23: 165 | AE23: 1.85915493 | AF23: =VLOOKUP('Proxy Group Ticker'!$B18,vldatabase,10,FALSE) -> 291.71 | AG23: =VLOOKUP('Proxy Group Ticker'!$B18,vldatabase,11,FALSE) -> 340 | AH23: 0.03111123736
A24: 17 | B24: ='Proxy Group Ticker'!C19 -> Southern Company | C24: =VLOOKUP('Proxy Group Ticker'!$B19,vldatabase,7,FALSE) -> 3.75 | D24: =VLOOKUP('Proxy Group Ticker'!$B19,vldatabase,8,FALSE) -> 2.86 | E24: =VLOOKUP('Proxy Group Ticker'!$B19,vldatabase,9,FALSE) -> 30.5 | G24: 0.2373333333 | H24: 0.1229508197 | I24: 1.018811625 | J24: 0.1252637244 | K24: 0.02972925725 | M24: 0.01352151156 | N24: 0.4916666667 | O24: 0.006648076517 | Q24: 0.03637733376 | R24: 17 | S24: Southern Company | T24: =VLOOKUP('Proxy Group Ticker'!$B19,vldatabase,14,FALSE) -> 0.395 | U24: =VLOOKUP('Proxy Group Ticker'!$B19,vldatabase,16,FALSE) -> 69594 | V24: 27489.63 | X24: =VLOOKUP('Proxy Group Ticker'!$B19,vldatabase,15,FALSE) -> 0.395 | Y24: =VLOOKUP('Proxy Group Ticker'!$B19,vldatabase,17,FALSE) -> 84000 | Z24: 33180 | AA24: 0.0383445732 | AB24: =VLOOKUP('Proxy Group Ticker'!$B19,vldatabase,5,FALSE) -> 70 | AC24: =VLOOKUP('Proxy Group Ticker'!$B19,vldatabase,6,FALSE) -> 50 | AD24: 60 | AE24: 1.967213115 | AF24: =VLOOKUP('Proxy Group Ticker'!$B19,vldatabase,10,FALSE) -> 1053.3 | AG24: =VLOOKUP('Proxy Group Ticker'!$B19,vldatabase,11,FALSE) -> 1090 | AH24: 0.006873435043
A25: 18 | B25: ='Proxy Group Ticker'!C20 -> WEC Energy Group | C25: =VLOOKUP('Proxy Group Ticker'!$B20,vldatabase,7,FALSE) -> 4.75 | D25: =VLOOKUP('Proxy Group Ticker'!$B20,vldatabase,8,FALSE) -> 3.2 | E25: =VLOOKUP('Proxy Group Ticker'!$B20,vldatabase,9,FALSE) -> 38 | G25: 0.3263157895 | H25: 0.125 | I25: 1.017015228 | J25: 0.1271269035 | K25: 0.04148351588 | M25: 0.0001109497941 | N25: 0.6 | O25: 6.656987644e-05 | Q25: 0.04155008575 | R25: 18 | S25: WEC Energy Group | T25: =VLOOKUP('Proxy Group Ticker'!$B20,vldatabase,14,FALSE) -> 0.474 | U25: =VLOOKUP('Proxy Group Ticker'!$B20,vldatabase,16,FALSE) -> 21355 | V25: 10122.27 | X25: =VLOOKUP('Proxy Group Ticker'!$B20,vldatabase,15,FALSE) -> 0.48 | Y25: =VLOOKUP('Proxy Group Ticker'!$B20,vldatabase,17,FALSE) -> 25000 | Z25: 12000 | AA25: 0.03461951478 | AB25: =VLOOKUP('Proxy Group Ticker'!$B20,vldatabase,5,FALSE) -> 105 | AC25: =VLOOKUP('Proxy Group Ticker'!$B20,vldatabase,6,FALSE) -> 85 | AD25: 95 | AE25: 2.5 | AF25: =VLOOKUP('Proxy Group Ticker'!$B20,vldatabase,10,FALSE) -> 315.43 | AG25: =VLOOKUP('Proxy Group Ticker'!$B20,vldatabase,11,FALSE) -> 315.5 | AH25: 4.437991763e-05
A26: 19 | B26: ='Proxy Group Ticker'!C21 -> Xcel Energy Inc. | C26: =VLOOKUP('Proxy Group Ticker'!$B21,vldatabase,7,FALSE) -> 3.5 | D26: =VLOOKUP('Proxy Group Ticker'!$B21,vldatabase,8,FALSE) -> 2.15 | E26: =VLOOKUP('Proxy Group Ticker'!$B21,vldatabase,9,FALSE) -> 32.35 | G26: 0.3857142857 | H26: 0.1081916538 | I26: 1.029157989 | J26: 0.1113463048 | K26: 0.04294786042 | M26: 0.0163013031 | N26: 0.4608333333 | O26: 0.007512183847 | Q26: 0.05046004427 | R26: 19 | S26: Xcel Energy Inc. | T26: =VLOOKUP('Proxy Group Ticker'!$B21,vldatabase,14,FALSE) -> 0.432 | U26: =VLOOKUP('Proxy Group Ticker'!$B21,vldatabase,16,FALSE) -> 30646 | V26: 13239.072 | X26: =VLOOKUP('Proxy Group Ticker'!$B21,vldatabase,15,FALSE) -> 0.425 | Y26: =VLOOKUP('Proxy Group Ticker'!$B21,vldatabase,17,FALSE) -> 41700 | Z26: 17722.5 | AA26: 0.06006742253 | AB26: =VLOOKUP('Proxy Group Ticker'!$B21,vldatabase,5,FALSE) -> 65 | AC26: =VLOOKUP('Proxy Group Ticker'!$B21,vldatabase,6,FALSE) -> 55 | AD26: 60 | AE26: 1.854714065 | AF26: =VLOOKUP('Proxy Group Ticker'!$B21,vldatabase,10,FALSE) -> 524.54 | AG26: =VLOOKUP('Proxy Group Ticker'!$B21,vldatabase,11,FALSE) -> 548 | AH26: 0.008789119257
R29: (a) | S29: ='Proxy Group Risk Measures'!B33 -> The Value Line Investment Survey (Jul. 24, Aug. 14 and Sep. 11, 2020).
R30: (b) | S30: Computed using the formula 2*(1+5-Yr. Change in Equity)/(2+5 Yr. Change in Equity).
R31: (c) | S31: Product of average year-end "r" for 2024 and Adjustment Factor.
R32: (d) | S32: Product of change in common shares outstanding and M/B Ratio.
R33: (e) | S33: Computed as 1 - B/M Ratio.
R34: (f) | S34: Product of total capital and equity ratio.
R35: (g) | S35: Five-year rate of change in common equity.
R36: (h) | S36: Average of High and Low expected market prices divided by 2024 BVPS.

Sheet 6
A1: ='Exhibit List'!C10 -> CAPM | N1: ='Exhibit List'!B10 -> Exhibit No. 6
N2: Page 1 of 1
A3: ='Exhibit List'!D10 -> UTILITY GROUP
D5: (a) | E5: (b) | G5: (c) | I5: (d) | K5: (d) | L5: (e)
D6: Market Return (Rm)
D7: Div | E7: Proj. | F7: Cost of | G7: Risk-Free | H7: Risk | J7: Unadjusted | K7: Market | L7: Size | M7: CAPM
B8: Company | D8: Yield | E8: Growth | F8: Equity | G8: Rate | H8: Premium | I8: Beta | J8: Ke | K8: Cap | L8: Adjustment | M8: Result
A9: =A8+1 -> 1 | B9: =VLOOKUP('Proxy Group Ticker'!$B3,vldatabase,2,FALSE) -> Algonquin Pwr & Util | D9: ='2020 10 Market DCF'!$J$385 -> 0.0233 | E9: ='2020 10 Market DCF'!$P$386 -> 0.0924 | F9: =D9+E9 -> 0.1157 | G9: =ROUND('Bond Yields'!$K$16,3) -> 0.014 | H9: =F9-G9 -> 0.1017 | I9: =VLOOKUP('Proxy Group Ticker'!$B3,vldatabase,23,FALSE) -> 0.9 | J9: =IF(I9="n/a","n/a",I9*H9+G9) -> 0.10553 | K9: =VLOOKUP('Proxy Group Ticker'!$B3,vldatabase,28,FALSE) -> 8126 | L9: =IF(K9>'Size Premium'!$A$5,'Size Premium'!$B$5,IF(K9>'Size Premium'!$A$6,'Size Premium'!$B$6,IF(K9>'Size Premium'!$A$7,'Size Premium'!$B$7,IF(K9>'Size Premium'!$A$8,'Size Premium'!$B$8,IF(K9>'Size Premium'!$A$9,'Size Premium'!$B$9,IF(K9>'Size Premium'!$A$10,'Size Premium'!$B$10,IF(K9>'Size Premium'!$A$11,'Size Premium'!$B$11,IF(K9>'Size Premium'!$A$12,'Size Premium'!$B$12,"ERROR")))))))) -> 0.0073 | M9: =IF(J9="n/a","n/a",(J9+L9)) -> 0.11283 | Q9: =IF(M9="n/a","n/a",IF(M9<$D$42,"LOW",IF(M9>$D$43,"HIGH",M9))) -> 0.11283
A10: =A9+1 -> 2 | B10: =VLOOKUP('Proxy Group Ticker'!$B4,vldatabase,2,FALSE) -> ALLETE | D10: ='2020 10 Market DCF'!$J$385 -> 0.0233 | E10: ='2020 10 Market DCF'!$P$386 -> 0.0924 | F10: =D10+E10 -> 0.1157 | G10: =ROUND('Bond Yields'!$K$16,3) -> 0.014 | H10: =F10-G10 -> 0.1017 | I10: =VLOOKUP('Proxy Group Ticker'!$B4,vldatabase,23,FALSE) -> 0.85 | J10: =IF(I10="n/a","n/a",I10*H10+G10) -> 0.100445 | K10: =VLOOKUP('Proxy Group Ticker'!$B4,vldatabase,28,FALSE) -> 2800 | L10: =IF(K10>'Size Premium'!$A$5,'Size Premium'!$B$5,IF(K10>'Size Premium'!$A$6,'Size Premium'!$B$6,IF(K10>'Size Premium'!$A$7,'Size Premium'!$B$7,IF(K10>'Size Premium'!$A$8,'Size Premium'!$B$8,IF(K10>'Size Premium'!$A$9,'Size Premium'!$B$9,IF(K10>'Size Premium'!$A$10,'Size Premium'!$B$10,IF(K10>'Size Premium'!$A$11,'Size Premium'!$B$11,IF(K10>'Size Premium'!$A$12,'Size Premium'!$B$12,"ERROR")))))))) -> 0.011 | M10: =IF(J10="n/a","n/a",(J10+L10)) -> 0.111445 | Q10: =IF(M10="n/a","n/a",IF(M10<$D$42,"LOW",IF(M10>$D$43,"HIGH",M10))) -> 0.111445
A11: 3 | B11: =VLOOKUP('Proxy Group Ticker'!$B5,vldatabase,2,FALSE) -> Alliant Energy | D11: ='2020 10 Market DCF'!$J$385 -> 0.0233 | E11: ='2020 10 Market DCF'!$P$386 -> 0.0924 | F11: 0.1157 | G11: =ROUND('Bond Yields'!$K$16,3) -> 0.014 | H11: 0.1017 | I11: =VLOOKUP('Proxy Group Ticker'!$B5,vldatabase,23,FALSE) -> 0.85 | J11: 0.100445 | K11: =VLOOKUP('Proxy Group Ticker'!$B5,vldatabase,28,FALSE) -> 13500 | L11: =IF(K11>'Size Premium'!$A$5,'Size Premium'!$B$5,IF(K11>'Size Premium'!$A$6,'Size Premium'!$B$6,IF(K11>'Size Premium'!$A$7,'Size Premium'!$B$7,IF(K11>'Size Premium'!$A$8,'Size Premium'!$B$8,IF(K11>'Size Premium'!$A$9,'Size Premium'!$B$9,IF(K11>'Size Premium'!$A$10,'Size Premium'!$B$10,IF(K11>'Size Premium'!$A$11,'Size Premium'!$B$11,IF(K11>'Size Premium'!$A$12,'Size Premium'!$B$12,"ERROR")))))))) -> 0.005 | M11: 0.105445 | Q11: 0.105445
A12: 4 | B12: =VLOOKUP('Proxy Group Ticker'!$B6,vldatabase,2,FALSE) -> Ameren Corp. | D12: ='2020 10 Market DCF'!$J$385 -> 0.0233 | E12: ='2020 10 Market DCF'!$P$386 -> 0.0924 | F12: 0.1157 | G12: =ROUND('Bond Yields'!$K$16,3) -> 0.014 | H12: 0.1017 | I12: =VLOOKUP('Proxy Group Ticker'!$B6,vldatabase,23,FALSE) -> 0.8 | J12: 0.09536 | K12: =VLOOKUP('Proxy Group Ticker'!$B6,vldatabase,28,FALSE) -> 20000 | L12: =IF(K12>'Size Premium'!$A$5,'Size Premium'!$B$5,IF(K12>'Size Premium'!$A$6,'Size Premium'!$B$6,IF(K12>'Size Premium'!$A$7,'Size Premium'!$B$7,IF(K12>'Size Premium'!$A$8,'Size Premium'!$B$8,IF(K12>'Size Premium'!$A$9,'Size Premium'!$B$9,IF(K12>'Size Premium'!$A$10,'Size Premium'!$B$10,IF(K12>'Size Premium'!$A$11,'Size Premium'!$B$11,IF(K12>'Size Premium'!$A$12,'Size Premium'!$B$12,"ERROR")))))))) -> 0.005 | M12: 0.10036 | Q12: 0.10036
A13: 5 | B13: =VLOOKUP('Proxy Group Ticker'!$B7,vldatabase,2,FALSE) -> Avangrid, Inc. | D13: ='2020 10 Market DCF'!$J$385 -> 0.0233 | E13: ='2020 10 Market DCF'!$P$386 -> 0.0924 | F13: 0.1157 | G13: =ROUND('Bond Yields'!$K$16,3) -> 0.014 | H13: 0.1017 | I13: =VLOOKUP('Proxy Group Ticker'!$B7,vldatabase,23,FALSE) -> 0.8 | J13: 0.09536 | K13: =VLOOKUP('Proxy Group Ticker'!$B7,vldatabase,28,FALSE) -> 15000 | L13: =IF(K13>'Size Premium'!$A$5,'Size Premium'!$B$5,IF(K13>'Size Premium'!$A$6,'Size Premium'!$B$6,IF(K13>'Size Premium'!$A$7,'Size Premium'!$B$7,IF(K13>'Size Premium'!$A$8,'Size Premium'!$B$8,IF(K13>'Size Premium'!$A$9,'Size Premium'!$B$9,IF(K13>'Size Premium'!$A$10,'Size Premium'!$B$10,IF(K13>'Size Premium'!$A$11,'Size Premium'!$B$11,IF(K13>'Size Premium'!$A$12,'Size Premium'!$B$12,"ERROR")))))))) -> 0.005 | M13: 0.10036 | Q13: 0.10036
A14: 6 | B14: =VLOOKUP('Proxy Group Ticker'!$B8,vldatabase,2,FALSE) -> Avista Corp. | D14: ='2020 10 Market DCF'!$J$385 -> 0.0233 | E14: ='2020 10 Market DCF'!$P$386 -> 0.0924 | F14: 0.1157 | G14: =ROUND('Bond Yields'!$K$16,3) -> 0.014 | H14: 0.1017 | I14: =VLOOKUP('Proxy Group Ticker'!$B8,vldatabase,23,FALSE) -> 0.9 | J14: 0.10553 | K14: =VLOOKUP('Proxy Group Ticker'!$B8,vldatabase,28,FALSE) -> 2400 | L14: =IF(K14>'Size Premium'!$A$5,'Size Premium'!$B$5,IF(K14>'Size Premium'!$A$6,'Size Premium'!$B$6,IF(K14>'Size Premium'!$A$7,'Size Premium'!$B$7,IF(K14>'Size Premium'!$A$8,'Size Premium'!$B$8,IF(K14>'Size Premium'!$A$9,'Size Premium'!$B$9,IF(K14>'Size Premium'!$A$10,'Size Premium'!$B$10,IF(K14>'Size Premium'!$A$11,'Size Premium'!$B$11,IF(K14>'Size Premium'!$A$12,'Size Premium'!$B$12,"ERROR")))))))) -> 0.0134 | M14: 0.11893 | Q14: 0.11893
A15: 7 | B15: =VLOOKUP('Proxy Group Ticker'!$B9,vldatabase,2,FALSE) -> Black Hills Corp. | D15: ='2020 10 Market DCF'!$J$385 -> 0.0233 | E15: ='2020 10 Market DCF'!$P$386 -> 0.0924 | F15: 0.1157 | G15: =ROUND('Bond Yields'!$K$16,3) -> 0.014 | H15: 0.1017 | I15: =VLOOKUP('Proxy Group Ticker'!$B9,vldatabase,23,FALSE) -> 0.95 | J15: 0.110615 | K15: =VLOOKUP('Proxy Group Ticker'!$B9,vldatabase,28,FALSE) -> 3800 | L15: =IF(K15>'Size Premium'!$A$5,'Size Premium'!$B$5,IF(K15>'Size Premium'!$A$6,'Size Premium'!$B$6,IF(K15>'Size Premium'!$A$7,'Size Premium'!$B$7,IF(K15>'Size Premium'!$A$8,'Size Premium'!$B$8,IF(K15>'Size Premium'!$A$9,'Size Premium'!$B$9,IF(K15>'Size Premium'!$A$10,'Size Premium'!$B$10,IF(K15>'Size Premium'!$A$11,'Size Premium'!$B$11,IF(K15>'Size Premium'!$A$12,'Size Premium'!$B$12,"ERROR")))))))) -> 0.011 | M15: 0.121615 | Q15: 0.121615
A16: 8 | B16: =VLOOKUP('Proxy Group Ticker'!$B10,vldatabase,2,FALSE) -> CMS Energy Corp. | D16: ='2020 10 Market DCF'!$J$385 -> 0.0233 | E16: ='2020 10 Market DCF'!$P$386 -> 0.0924 | F16: 0.1157 | G16: =ROUND('Bond Yields'!$K$16,3) -> 0.014 | H16: 0.1017 | I16: =VLOOKUP('Proxy Group Ticker'!$B10,vldatabase,23,FALSE) -> 0.8 | J16: 0.09536 | K16: =VLOOKUP('Proxy Group Ticker'!$B10,vldatabase,28,FALSE) -> 17000 | L16: =IF(K16>'Size Premium'!$A$5,'Size Premium'!$B$5,IF(K16>'Size Premium'!$A$6,'Size Premium'!$B$6,IF(K16>'Size Premium'!$A$7,'Size Premium'!$B$7,IF(K16>'Size Premium'!$A$8,'Size Premium'!$B$8,IF(K16>'Size Premium'!$A$9,'Size Premium'!$B$9,IF(K16>'Size Premium'!$A$10,'Size Premium'!$B$10,IF(K16>'Size Premium'!$A$11,'Size Premium'!$B$11,IF(K16>'Size Premium'!$A$12,'Size Premium'!$B$12,"ERROR")))))))) -> 0.005 | M16: 0.10036 | Q16: 0.10036
A17: 9 | B17: =VLOOKUP('Proxy Group Ticker'!$B11,vldatabase,2,FALSE) -> Consolidated Edison | D17: ='2020 10 Market DCF'!$J$385 -> 0.0233 | E17: ='2020 10 Market DCF'!$P$386 -> 0.0924 | F17: 0.1157 | G17: =ROUND('Bond Yields'!$K$16,3) -> 0.014 | H17: 0.1017 | I17: =VLOOKUP('Proxy Group Ticker'!$B11,vldatabase,23,FALSE) -> 0.75 | J17: 0.090275 | K17: =VLOOKUP('Proxy Group Ticker'!$B11,vldatabase,28,FALSE) -> 25000 | L17: =IF(K17>'Size Premium'!$A$5,'Size Premium'!$B$5,IF(K17>'Size Premium'!$A$6,'Size Premium'!$B$6,IF(K17>'Size Premium'!$A$7,'Size Premium'!$B$7,IF(K17>'Size Premium'!$A$8,'Size Premium'!$B$8,IF(K17>'Size Premium'!$A$9,'Size Premium'!$B$9,IF(K17>'Size Premium'!$A$10,'Size Premium'!$B$10,IF(K17>'Size Premium'!$A$11,'Size Premium'!$B$11,IF(K17>'Size Premium'!$A$12,'Size Premium'!$B$12,"ERROR")))))))) -> 0.005 | M17: 0.095275 | Q17: 0.095275
A18: 10 | B18: =VLOOKUP('Proxy Group Ticker'!$B12,vldatabase,2,FALSE) -> DTE Energy Co. | D18: ='2020 10 Market DCF'!$J$385 -> 0.0233 | E18: ='2020 10 Market DCF'!$P$386 -> 0.0924 | F18: 0.1157 | G18: =ROUND('Bond Yields'!$K$16,3) -> 0.014 | H18: 0.1017 | I18: =VLOOKUP('Proxy Group Ticker'!$B12,vldatabase,23,FALSE) -> 0.9 | J18: 0.10553 | K18: =VLOOKUP('Proxy Group Ticker'!$B12,vldatabase,28,FALSE) -> 23000 | L18: =IF(K18>'Size Premium'!$A$5,'Size Premium'!$B$5,IF(K18>'Size Premium'!$A$6,'Size Premium'!$B$6,IF(K18>'Size Premium'!$A$7,'Size Premium'!$B$7,IF(K18>'Size Premium'!$A$8,'Size Premium'!$B$8,IF(K18>'Size Premium'!$A$9,'Size Premium'!$B$9,IF(K18>'Size Premium'!$A$10,'Size Premium'!$B$10,IF(K18>'Size Premium'!$A$11,'Size Premium'!$B$11,IF(K18>'Size Premium'!$A$12,'Size Premium'!$B$12,"ERROR")))))))) -> 0.005 | M18: 0.11053 | Q18: 0.11053
A19: 11 | B19: =VLOOKUP('Proxy Group Ticker'!$B13,vldatabase,2,FALSE) -> Duke Energy Corp. | D19: ='2020 10 Market DCF'!$J$385 -> 0.0233 | E19: ='2020 10 Market DCF'!$P$386 -> 0.0924 | F19: 0.1157 | G19: =ROUND('Bond Yields'!$K$16,3) -> 0.014 | H19: 0.1017 | I19: =VLOOKUP('Proxy Group Ticker'!$B13,vldatabase,23,FALSE) -> 0.85 | J19: 0.100445 | K19: =VLOOKUP('Proxy Group Ticker'!$B13,vldatabase,28,FALSE) -> 62000 | L19: =IF(K19>'Size Premium'!$A$5,'Size Premium'!$B$5,IF(K19>'Size Premium'!$A$6,'Size Premium'!$B$6,IF(K19>'Size Premium'!$A$7,'Size Premium'!$B$7,IF(K19>'Size Premium'!$A$8,'Size Premium'!$B$8,IF(K19>'Size Premium'!$A$9,'Size Premium'!$B$9,IF(K19>'Size Premium'!$A$10,'Size Premium'!$B$10,IF(K19>'Size Premium'!$A$11,'Size Premium'!$B$11,IF(K19>'Size Premium'!$A$12,'Size Premium'!$B$12,"ERROR")))))))) -> -0.0028 | M19: 0.097645 | Q19: 0.097645
A20: 12 | B20: =VLOOKUP('Proxy Group Ticker'!$B14,vldatabase,2,FALSE) -> Entergy Corp. | D20: ='2020 10 Market DCF'!$J$385 -> 0.0233 | E20: ='2020 10 Market DCF'!$P$386 -> 0.0924 | F20: 0.1157 | G20: =ROUND('Bond Yields'!$K$16,3) -> 0.014 | H20: 0.1017 | I20: =VLOOKUP('Proxy Group Ticker'!$B14,vldatabase,23,FALSE) -> 0.95 | J20: 0.110615 | K20: =VLOOKUP('Proxy Group Ticker'!$B14,vldatabase,28,FALSE) -> 20000 | L20: =IF(K20>'Size Premium'!$A$5,'Size Premium'!$B$5,IF(K20>'Size Premium'!$A$6,'Size Premium'!$B$6,IF(K20>'Size Premium'!$A$7,'Size Premium'!$B$7,IF(K20>'Size Premium'!$A$8,'Size Premium'!$B$8,IF(K20>'Size Premium'!$A$9,'Size Premium'!$B$9,IF(K20>'Size Premium'!$A$10,'Size Premium'!$B$10,IF(K20>'Size Premium'!$A$11,'Size Premium'!$B$11,IF(K20>'Size Premium'!$A$12,'Size Premium'!$B$12,"ERROR")))))))) -> 0.005 | M20: 0.115615 | Q20: 0.115615
A21: 13 | B21: =VLOOKUP('Proxy Group Ticker'!$B15,vldatabase,2,FALSE) -> Eversource Energy | D21: ='2020 10 Market DCF'!$J$385 -> 0.0233 | E21: ='2020 10 Market DCF'!$P$386 -> 0.0924 | F21: 0.1157 | G21: =ROUND('Bond Yields'!$K$16,3) -> 0.014 | H21: 0.1017 | I21: =VLOOKUP('Proxy Group Ticker'!$B15,vldatabase,23,FALSE) -> 0.9 | J21: 0.10553 | K21: =VLOOKUP('Proxy Group Ticker'!$B15,vldatabase,28,FALSE) -> 30000 | L21: =IF(K21>'Size Premium'!$A$5,'Size Premium'!$B$5,IF(K21>'Size Premium'!$A$6,'Size Premium'!$B$6,IF(K21>'Size Premium'!$A$7,'Size Premium'!$B$7,IF(K21>'Size Premium'!$A$8,'Size Premium'!$B$8,IF(K21>'Size Premium'!$A$9,'Size Premium'!$B$9,IF(K21>'Size Premium'!$A$10,'Size Premium'!$B$10,IF(K21>'Size Premium'!$A$11,'Size Premium'!$B$11,IF(K21>'Size Premium'!$A$12,'Size Premium'!$B$12,"ERROR")))))))) -> 0.005 | M21: 0.11053 | Q21: 0.11053
A22: 14 | B22: =VLOOKUP('Proxy Group Ticker'!$B16,vldatabase,2,FALSE) -> NorthWestern Corp. | D22: ='2020 10 Market DCF'!$J$385 -> 0.0233 | E22: ='2020 10 Market DCF'!$P$386 -> 0.0924 | F22: 0.1157 | G22: =ROUND('Bond Yields'!$K$16,3) -> 0.014 | H22: 0.1017 | I22: =VLOOKUP('Proxy Group Ticker'!$B16,vldatabase,23,FALSE) -> 0.9 | J22: 0.10553 | K22: =VLOOKUP('Proxy Group Ticker'!$B16,vldatabase,28,FALSE) -> 2700 | L22: =IF(K22>'Size Premium'!$A$5,'Size Premium'!$B$5,IF(K22>'Size Premium'!$A$6,'Size Premium'!$B$6,IF(K22>'Size Premium'!$A$7,'Size Premium'!$B$7,IF(K22>'Size Premium'!$A$8,'Size Premium'!$B$8,IF(K22>'Size Premium'!$A$9,'Size Premium'!$B$9,IF(K22>'Size Premium'!$A$10,'Size Premium'!$B$10,IF(K22>'Size Premium'!$A$11,'Size Premium'!$B$11,IF(K22>'Size Premium'!$A$12,'Size Premium'!$B$12,"ERROR")))))))) -> 0.011 | M22: 0.11653 | Q22: 0.11653
A23: 15 | B23: =VLOOKUP('Proxy Group Ticker'!$B17,vldatabase,2,FALSE) -> Pub Sv Enterprise Grp. | D23: ='2020 10 Market DCF'!$J$385 -> 0.0233 | E23: ='2020 10 Market DCF'!$P$386 -> 0.0924 | F23: 0.1157 | G23: =ROUND('Bond Yields'!$K$16,3) -> 0.014 | H23: 0.1017 | I23: =VLOOKUP('Proxy Group Ticker'!$B17,vldatabase,23,FALSE) -> 0.9 | J23: 0.10553 | K23: =VLOOKUP('Proxy Group Ticker'!$B17,vldatabase,28,FALSE) -> 28000 | L23: =IF(K23>'Size Premium'!$A$5,'Size Premium'!$B$5,IF(K23>'Size Premium'!$A$6,'Size Premium'!$B$6,IF(K23>'Size Premium'!$A$7,'Size Premium'!$B$7,IF(K23>'Size Premium'!$A$8,'Size Premium'!$B$8,IF(K23>'Size Premium'!$A$9,'Size Premium'!$B$9,IF(K23>'Size Premium'!$A$10,'Size Premium'!$B$10,IF(K23>'Size Premium'!$A$11,'Size Premium'!$B$11,IF(K23>'Size Premium'!$A$12,'Size Premium'!$B$12,"ERROR")))))))) -> 0.005 | M23: 0.11053 | Q23: 0.11053
A24: 16 | B24: =VLOOKUP('Proxy Group Ticker'!$B18,vldatabase,2,FALSE) -> Sempra Energy | D24: ='2020 10 Market DCF'!$J$385 -> 0.0233 | E24: ='2020 10 Market DCF'!$P$386 -> 0.0924 | F24: 0.1157 | G24: =ROUND('Bond Yields'!$K$16,3) -> 0.014 | H24: 0.1017 | I24: =VLOOKUP('Proxy Group Ticker'!$B18,vldatabase,23,FALSE) -> 0.95 | J24: 0.110615 | K24: =VLOOKUP('Proxy Group Ticker'!$B18,vldatabase,28,FALSE) -> 35000 | L24: =IF(K24>'Size Premium'!$A$5,'Size Premium'!$B$5,IF(K24>'Size Premium'!$A$6,'Size Premium'!$B$6,IF(K24>'Size Premium'!$A$7,'Size Premium'!$B$7,IF(K24>'Size Premium'!$A$8,'Size Premium'!$B$8,IF(K24>'Size Premium'!$A$9,'Size Premium'!$B$9,IF(K24>'Size Premium'!$A$10,'Size Premium'!$B$10,IF(K24>'Size Premium'!$A$11,'Size Premium'!$B$11,IF(K24>'Size Premium'!$A$12,'Size Premium'!$B$12,"ERROR")))))))) -> -0.0028 | M24: 0.107815 | Q24: 0.107815
A25: 17 | B25: =VLOOKUP('Proxy Group Ticker'!$B19,vldatabase,2,FALSE) -> Southern Company | D25: ='2020 10 Market DCF'!$J$385 -> 0.0233 | E25: ='2020 10 Market DCF'!$P$386 -> 0.0924 | F25: 0.1157 | G25: =ROUND('Bond Yields'!$K$16,3) -> 0.014 | H25: 0.1017 | I25: =VLOOKUP('Proxy Group Ticker'!$B19,vldatabase,23,FALSE) -> 0.9 | J25: 0.10553 | K25: =VLOOKUP('Proxy Group Ticker'!$B19,vldatabase,28,FALSE) -> 57000 | L25: =IF(K25>'Size Premium'!$A$5,'Size Premium'!$B$5,IF(K25>'Size Premium'!$A$6,'Size Premium'!$B$6,IF(K25>'Size Premium'!$A$7,'Size Premium'!$B$7,IF(K25>'Size Premium'!$A$8,'Size Premium'!$B$8,IF(K25>'Size Premium'!$A$9,'Size Premium'!$B$9,IF(K25>'Size Premium'!$A$10,'Size Premium'!$B$10,IF(K25>'Size Premium'!$A$11,'Size Premium'!$B$11,IF(K25>'Size Premium'!$A$12,'Size Premium'!$B$12,"ERROR")))))))) -> -0.0028 | M25: 0.10273 | Q25: 0.10273
A26: 18 | B26: =VLOOKUP('Proxy Group Ticker'!$B20,vldatabase,2,FALSE) -> WEC Energy Group | D26: ='2020 10 Market DCF'!$J$385 -> 0.0233 | E26: ='2020 10 Market DCF'!$P$386 -> 0.0924 | F26: 0.1157 | G26: =ROUND('Bond Yields'!$K$16,3) -> 0.014 | H26: 0.1017 | I26: =VLOOKUP('Proxy Group Ticker'!$B20,vldatabase,23,FALSE) -> 0.8 | J26: 0.09536 | K26: =VLOOKUP('Proxy Group Ticker'!$B20,vldatabase,28,FALSE) -> 30000 | L26: =IF(K26>'Size Premium'!$A$5,'Size Premium'!$B$5,IF(K26>'Size Premium'!$A$6,'Size Premium'!$B$6,IF(K26>'Size Premium'!$A$7,'Size Premium'!$B$7,IF(K26>'Size Premium'!$A$8,'Size Premium'!$B$8,IF(K26>'Size Premium'!$A$9,'Size Premium'!$B$9,IF(K26>'Size Premium'!$A$10,'Size Premium'!$B$10,IF(K26>'Size Premium'!$A$11,'Size Premium'!$B$11,IF(K26>'Size Premium'!$A$12,'Size Premium'!$B$12,"ERROR")))))))) -> 0.005 | M26: 0.10036 | Q26: 0.10036
A27: 19 | B27: =VLOOKUP('Proxy Group Ticker'!$B21,vldatabase,2,FALSE) -> Xcel Energy Inc. | D27: ='2020 10 Market DCF'!$J$385 -> 0.0233 | E27: ='2020 10 Market DCF'!$P$386 -> 0.0924 | F27: 0.1157 | G27: =ROUND('Bond Yields'!$K$16,3) -> 0.014 | H27: 0.1017 | I27: =VLOOKUP('Proxy Group Ticker'!$B21,vldatabase,23,FALSE) -> 0.8 | J27: 0.09536 | K27: =VLOOKUP('Proxy Group Ticker'!$B21,vldatabase,28,FALSE) -> 34000 | L27: =IF(K27>'Size Premium'!$A$5,'Size Premium'!$B$5,IF(K27>'Size Premium'!$A$6,'Size Premium'!$B$6,IF(K27>'Size Premium'!$A$7,'Size Premium'!$B$7,IF(K27>'Size Premium'!$A$8,'Size Premium'!$B$8,IF(K27>'Size Premium'!$A$9,'Size Premium'!$B$9,IF(K27>'Size Premium'!$A$10,'Size Premium'!$B$10,IF(K27>'Size Premium'!$A$11,'Size Premium'!$B$11,IF(K27>'Size Premium'!$A$12,'Size Premium'!$B$12,"ERROR")))))))) -> -0.0028 | M27: 0.09256 | Q27: 0.09256
B29: Average (f) | M29: =AVERAGE(Q9:Q27) -> 0.1069192105 | P29: Min | Q29: =MIN(Q9:Q27) -> 0.09256
B30: Midpoint (f) (g) | M30: =AVERAGE(Q29:Q30) -> 0.1070875 | P30: Max | Q30: =MAX(Q9:Q27) -> 0.121615
A32: (a) | B32: ="Weighted average for dividend-paying stocks in the S&P 500 based on data from "&'2020 10 Market DCF'!B394&"." -> Weighted average for dividend-paying stocks in the S&P 500 based on data from www.valueline.com (retrieved Oct. 1, 2020).
A33: (b) | B33: ="Average of weighted average earnings growth rates from IBES, Value Line, and Zacks for dividend-paying stocks in the S&P 500 based on data from "&'2020 10 Market DCF'!B395&", "&'2020 10 Market DCF'!B394&", and "&'2020 10 Market DCF'!B396&"." -> Average of weighted average earnings growth rates from IBES, Value Line, and Zacks for dividend-paying stocks in the S&P 500 based on data from http://finance.yahoo.com (retrieved Oct. 2, 2020), www.valueline.com (retrieved Oct. 1, 2020), and www.zacks.com (retrieved Oct. 1, 2020).
A35: (c) | B35: ="Average yield on 30-year Treasury bonds for the six-months ending "&'Bond Yields'!B14&" based on data from "&'Bond Yields'!B21&"." -> Average yield on 30-year Treasury bonds for the six-months ending Sep. 2020 based on data from http://www.fred.stlouisfed.org.
A36: (d) | B36: ='Electric Utility Data'!B49 -> The Value Line Investment Survey, Summary & Index (Oct. 9, 2020).
A37: (e) | B37: ='Size Premium'!A18 -> Duff & Phelps, 2020 CRSP Deciles Size Study -- Supplementary Data Exhibits, Cost of Capital Navigator.
A38: (f) | B38: Excludes highlighted figures.
A39: (g) | B39: Average of low and high values.
A42: Threshold Min | D42: ='4 (3)'!D36 -> 0.064
A43: Threshold Max | D43: ='4 (3)'!D37 -> 0.141

Sheet 7
A1: ='Exhibit List'!C11 -> EMPIRICAL CAPM | S1: ='Exhibit List'!B11 -> Exhibit No. 7
S2: Page 1 of 1
A3: ='Exhibit List'!D11 -> UTILITY GROUP
D6: (a) | E6: (b) | G6: (c) | I6: (d) | K6: (e) | L6: (d) | P6: (e) | Q6: (f)
D7: Market Return (Rm)
D8: Div | E8: Proj. | F8: Cost of | G8: Risk-Free | H8: Risk | I8: Unadjusted RP | K8: Beta Adjusted RP | O8: Unadjusted | P8: Market | Q8: Size | R8: ECAPM
B9: Company | D9: Yield | E9: Growth | F9: Equity | G9: Rate | H9: Premium | I9: Weight | J9: RP1 | K9: Beta | L9: Weight | M9: RP2 | N9: Total RP | O9: Ke | P9: Cap | Q9: Adjustment | R9: Result
A10: =A9+1 -> 1 | B10: ='6'!B9 -> Algonquin Pwr & Util | D10: ='2020 10 Market DCF'!$J$385 -> 0.0233 | E10: ='2020 10 Market DCF'!$P$386 -> 0.0924 | F10: =D10+E10 -> 0.1157 | G10: =ROUND('Bond Yields'!$K$16,3) -> 0.014 | H10: =F10-G10 -> 0.1017 | I10: 0.25 | J10: =I10*H10 -> 0.025425 | K10: ='6'!I9 -> 0.9 | L10: 0.75 | M10: =IF(K10="n/a","n/a",H10*K10*L10) -> 0.0686475 | N10: =IF(K10="n/a","n/a",J10+M10) -> 0.0940725 | O10: =IF(K10="n/a","n/a",N10+G10) -> 0.1080725 | P10: ='6'!K9 -> 8126 | Q10: =IF(P10>'Size Premium'!$A$5,'Size Premium'!$B$5,IF(P10>'Size Premium'!$A$6,'Size Premium'!$B$6,IF(P10>'Size Premium'!$A$7,'Size Premium'!$B$7,IF(P10>'Size Premium'!$A$8,'Size Premium'!$B$8,IF(P10>'Size Premium'!$A$9,'Size Premium'!$B$9,IF(P10>'Size Premium'!$A$10,'Size Premium'!$B$10,IF(P10>'Size Premium'!$A$11,'Size Premium'!$B$11,IF(P10>'Size Premium'!$A$12,'Size Premium'!$B$12,"ERROR")))))))) -> 0.0073 | R10: =IF(K10="n/a","n/a",O10+Q10) -> 0.1153725 | V10: =IF(R10="n/a","n/a",IF(R10<$E$43,"LOW",IF(R10>$E$44,"HIGH",R10))) -> 0.1153725
A11: =A10+1 -> 2 | B11: ='6'!B10 -> ALLETE | D11: ='2020 10 Market DCF'!$J$385 -> 0.0233 | E11: ='2020 10 Market DCF'!$P$386 -> 0.0924 | F11: =D11+E11 -> 0.1157 | G11: =ROUND('Bond Yields'!$K$16,3) -> 0.014 | H11: =F11-G11 -> 0.1017 | I11: 0.25 | J11: =I11*H11 -> 0.025425 | K11: ='6'!I10 -> 0.85 | L11: 0.75 | M11: =IF(K11="n/a","n/a",H11*K11*L11) -> 0.06483375 | N11: =IF(K11="n/a","n/a",J11+M11) -> 0.09025875 | O11: =IF(K11="n/a","n/a",N11+G11) -> 0.10425875 | P11: ='6'!K10 -> 2800 | Q11: =IF(P11>'Size Premium'!$A$5,'Size Premium'!$B$5,IF(P11>'Size Premium'!$A$6,'Size Premium'!$B$6,IF(P11>'Size Premium'!$A$7,'Size Premium'!$B$7,IF(P11>'Size Premium'!$A$8,'Size Premium'!$B$8,IF(P11>'Size Premium'!$A$9,'Size Premium'!$B$9,IF(P11>'Size Premium'!$A$10,'Size Premium'!$B$10,IF(P11>'Size Premium'!$A$11,'Size Premium'!$B$11,IF(P11>'Size Premium'!$A$12,'Size Premium'!$B$12,"ERROR")))))))) -> 0.011 | R11: =IF(K11="n/a","n/a",O11+Q11) -> 0.11525875 | V11: =IF(R11="n/a","n/a",IF(R11<$E$43,"LOW",IF(R11>$E$44,"HIGH",R11))) -> 0.11525875
A12: 3 | B12: ='6'!B11 -> Alliant Energy | D12: ='2020 10 Market DCF'!$J$385 -> 0.0233 | E12: ='2020 10 Market DCF'!$P$386 -> 0.0924 | F12: 0.1157 | G12: =ROUND('Bond Yields'!$K$16,3) -> 0.014 | H12: 0.1017 | I12: 0.25 | J12: 0.025425 | K12: ='6'!I11 -> 0.85 | L12: 0.75 | M12: 0.06483375 | N12: 0.09025875 | O12: 0.10425875 | P12: ='6'!K11 -> 13500 | Q12: =IF(P12>'Size Premium'!$A$5,'Size Premium'!$B$5,IF(P12>'Size Premium'!$A$6,'Size Premium'!$B$6,IF(P12>'Size Premium'!$A$7,'Size Premium'!$B$7,IF(P12>'Size Premium'!$A$8,'Size Premium'!$B$8,IF(P12>'Size Premium'!$A$9,'Size Premium'!$B$9,IF(P12>'Size Premium'!$A$10,'Size Premium'!$B$10,IF(P12>'Size Premium'!$A$11,'Size Premium'!$B$11,IF(P12>'Size Premium'!$A$12,'Size Premium'!$B$12,"ERROR")))))))) -> 0.005 | R12: 0.10925875 | V12: 0.10925875
A13: 4 | B13: ='6'!B12 -> Ameren Corp. | D13: ='2020 10 Market DCF'!$J$385 -> 0.0233 | E13: ='2020 10 Market DCF'!$P$386 -> 0.0924 | F13: 0.1157 | G13: =ROUND('Bond Yields'!$K$16,3) -> 0.014 | H13: 0.1017 | I13: 0.25 | J13: 0.025425 | K13: ='6'!I12 -> 0.8 | L13: 0.75 | M13: 0.06102 | N13: 0.086445 | O13: 0.100445 | P13: ='6'!K12 -> 20000 | Q13: =IF(P13>'Size Premium'!$A$5,'Size Premium'!$B$5,IF(P13>'Size Premium'!$A$6,'Size Premium'!$B$6,IF(P13>'Size Premium'!$A$7,'Size Premium'!$B$7,IF(P13>'Size Premium'!$A$8,'Size Premium'!$B$8,IF(P13>'Size Premium'!$A$9,'Size Premium'!$B$9,IF(P13>'Size Premium'!$A$10,'Size Premium'!$B$10,IF(P13>'Size Premium'!$A$11,'Size Premium'!$B$11,IF(P13>'Size Premium'!$A$12,'Size Premium'!$B$12,"ERROR")))))))) -> 0.005 | R13: 0.105445 | V13: 0.105445
A14: 5 | B14: ='6'!B13 -> Avangrid, Inc. | D14: ='2020 10 Market DCF'!$J$385 -> 0.0233 | E14: ='2020 10 Market DCF'!$P$386 -> 0.0924 | F14: 0.1157 | G14: =ROUND('Bond Yields'!$K$16,3) -> 0.014 | H14: 0.1017 | I14: 0.25 | J14: 0.025425 | K14: ='6'!I13 -> 0.8 | L14: 0.75 | M14: 0.06102 | N14: 0.086445 | O14: 0.100445 | P14: ='6'!K13 -> 15000 | Q14: =IF(P14>'Size Premium'!$A$5,'Size Premium'!$B$5,IF(P14>'Size Premium'!$A$6,'Size Premium'!$B$6,IF(P14>'Size Premium'!$A$7,'Size Premium'!$B$7,IF(P14>'Size Premium'!$A$8,'Size Premium'!$B$8,IF(P14>'Size Premium'!$A$9,'Size Premium'!$B$9,IF(P14>'Size Premium'!$A$10,'Size Premium'!$B$10,IF(P14>'Size Premium'!$A$11,'Size Premium'!$B$11,IF(P14>'Size Premium'!$A$12,'Size Premium'!$B$12,"ERROR")))))))) -> 0.005 | R14: 0.105445 | V14: 0.105445
A15: 6 | B15: ='6'!B14 -> Avista Corp. | D15: ='2020 10 Market DCF'!$J$385 -> 0.0233 | E15: ='2020 10 Market DCF'!$P$386 -> 0.0924 | F15: 0.1157 | G15: =ROUND('Bond Yields'!$K$16,3) -> 0.014 | H15: 0.1017 | I15: 0.25 | J15: 0.025425 | K15: ='6'!I14 -> 0.9 | L15: 0.75 | M15: 0.0686475 | N15: 0.0940725 | O15: 0.1080725 | P15: ='6'!K14 -> 2400 | Q15: =IF(P15>'Size Premium'!$A$5,'Size Premium'!$B$5,IF(P15>'Size Premium'!$A$6,'Size Premium'!$B$6,IF(P15>'Size Premium'!$A$7,'Size Premium'!$B$7,IF(P15>'Size Premium'!$A$8,'Size Premium'!$B$8,IF(P15>'Size Premium'!$A$9,'Size Premium'!$B$9,IF(P15>'Size Premium'!$A$10,'Size Premium'!$B$10,IF(P15>'Size Premium'!$A$11,'Size Premium'!$B$11,IF(P15>'Size Premium'!$A$12,'Size Premium'!$B$12,"ERROR")))))))) -> 0.0134 | R15: 0.1214725 | V15: 0.1214725
A16: 7 | B16: ='6'!B15 -> Black Hills Corp. | D16: ='2020 10 Market DCF'!$J$385 -> 0.0233 | E16: ='2020 10 Market DCF'!$P$386 -> 0.0924 | F16: 0.1157 | G16: =ROUND('Bond Yields'!$K$16,3) -> 0.014 | H16: 0.1017 | I16: 0.25 | J16: 0.025425 | K16: ='6'!I15 -> 0.95 | L16: 0.75 | M16: 0.07246125 | N16: 0.09788625 | O16: 0.11188625 | P16: ='6'!K15 -> 3800 | Q16: =IF(P16>'Size Premium'!$A$5,'Size Premium'!$B$5,IF(P16>'Size Premium'!$A$6,'Size Premium'!$B$6,IF(P16>'Size Premium'!$A$7,'Size Premium'!$B$7,IF(P16>'Size Premium'!$A$8,'Size Premium'!$B$8,IF(P16>'Size Premium'!$A$9,'Size Premium'!$B$9,IF(P16>'Size Premium'!$A$10,'Size Premium'!$B$10,IF(P16>'Size Premium'!$A$11,'Size Premium'!$B$11,IF(P16>'Size Premium'!$A$12,'Size Premium'!$B$12,"ERROR")))))))) -> 0.011 | R16: 0.12288625 | V16: 0.12288625
A17: 8 | B17: ='6'!B16 -> CMS Energy Corp. | D17: ='2020 10 Market DCF'!$J$385 -> 0.0233 | E17: ='2020 10 Market DCF'!$P$386 -> 0.0924 | F17: 0.1157 | G17: =ROUND('Bond Yields'!$K$16,3) -> 0.014 | H17: 0.1017 | I17: 0.25 | J17: 0.025425 | K17: ='6'!I16 -> 0.8 | L17: 0.75 | M17: 0.06102 | N17: 0.086445 | O17: 0.100445 | P17: ='6'!K16 -> 17000 | Q17: =IF(P17>'Size Premium'!$A$5,'Size Premium'!$B$5,IF(P17>'Size Premium'!$A$6,'Size Premium'!$B$6,IF(P17>'Size Premium'!$A$7,'Size Premium'!$B$7,IF(P17>'Size Premium'!$A$8,'Size Premium'!$B$8,IF(P17>'Size Premium'!$A$9,'Size Premium'!$B$9,IF(P17>'Size Premium'!$A$10,'Size Premium'!$B$10,IF(P17>'Size Premium'!$A$11,'Size Premium'!$B$11,IF(P17>'Size Premium'!$A$12,'Size Premium'!$B$12,"ERROR")))))))) -> 0.005 | R17: 0.105445 | V17: 0.105445
A18: 9 | B18: ='6'!B17 -> Consolidated Edison | D18: ='2020 10 Market DCF'!$J$385 -> 0.0233 | E18: ='2020 10 Market DCF'!$P$386 -> 0.0924 | F18: 0.1157 | G18: =ROUND('Bond Yields'!$K$16,3) -> 0.014 | H18: 0.1017 | I18: 0.25 | J18: 0.025425 | K18: ='6'!I17 -> 0.75 | L18: 0.75 | M18: 0.05720625 | N18: 0.08263125 | O18: 0.09663125 | P18: ='6'!K17 -> 25000 | Q18: =IF(P18>'Size Premium'!$A$5,'Size Premium'!$B$5,IF(P18>'Size Premium'!$A$6,'Size Premium'!$B$6,IF(P18>'Size Premium'!$A$7,'Size Premium'!$B$7,IF(P18>'Size Premium'!$A$8,'Size Premium'!$B$8,IF(P18>'Size Premium'!$A$9,'Size Premium'!$B$9,IF(P18>'Size Premium'!$A$10,'Size Premium'!$B$10,IF(P18>'Size Premium'!$A$11,'Size Premium'!$B$11,IF(P18>'Size Premium'!$A$12,'Size Premium'!$B$12,"ERROR")))))))) -> 0.005 | R18: 0.10163125 | V18: 0.10163125
A19: 10 | B19: ='6'!B18 -> DTE Energy Co. | D19: ='2020 10 Market DCF'!$J$385 -> 0.0233 | E19: ='2020 10 Market DCF'!$P$386 -> 0.0924 | F19: 0.1157 | G19: =ROUND('Bond Yields'!$K$16,3) -> 0.014 | H19: 0.1017 | I19: 0.25 | J19: 0.025425 | K19: ='6'!I18 -> 0.9 | L19: 0.75 | M19: 0.0686475 | N19: 0.0940725 | O19: 0.1080725 | P19: ='6'!K18 -> 23000 | Q19: =IF(P19>'Size Premium'!$A$5,'Size Premium'!$B$5,IF(P19>'Size Premium'!$A$6,'Size Premium'!$B$6,IF(P19>'Size Premium'!$A$7,'Size Premium'!$B$7,IF(P19>'Size Premium'!$A$8,'Size Premium'!$B$8,IF(P19>'Size Premium'!$A$9,'Size Premium'!$B$9,IF(P19>'Size Premium'!$A$10,'Size Premium'!$B$10,IF(P19>'Size Premium'!$A$11,'Size Premium'!$B$11,IF(P19>'Size Premium'!$A$12,'Size Premium'!$B$12,"ERROR")))))))) -> 0.005 | R19: 0.1130725 | V19: 0.1130725
A20: 11 | B20: ='6'!B19 -> Duke Energy Corp. | D20: ='2020 10 Market DCF'!$J$385 -> 0.0233 | E20: ='2020 10 Market DCF'!$P$386 -> 0.0924 | F20: 0.1157 | G20: =ROUND('Bond Yields'!$K$16,3) -> 0.014 | H20: 0.1017 | I20: 0.25 | J20: 0.025425 | K20: ='6'!I19 -> 0.85 | L20: 0.75 | M20: 0.06483375 | N20: 0.09025875 | O20: 0.10425875 | P20: ='6'!K19 -> 62000 | Q20: =IF(P20>'Size Premium'!$A$5,'Size Premium'!$B$5,IF(P20>'Size Premium'!$A$6,'Size Premium'!$B$6,IF(P20>'Size Premium'!$A$7,'Size Premium'!$B$7,IF(P20>'Size Premium'!$A$8,'Size Premium'!$B$8,IF(P20>'Size Premium'!$A$9,'Size Premium'!$B$9,IF(P20>'Size Premium'!$A$10,'Size Premium'!$B$10,IF(P20>'Size Premium'!$A$11,'Size Premium'!$B$11,IF(P20>'Size Premium'!$A$12,'Size Premium'!$B$12,"ERROR")))))))) -> -0.0028 | R20: 0.10145875 | V20: 0.10145875
A21: 12 | B21: ='6'!B20 -> Entergy Corp. | D21: ='2020 10 Market DCF'!$J$385 -> 0.0233 | E21: ='2020 10 Market DCF'!$P$386 -> 0.0924 | F21: 0.1157 | G21: =ROUND('Bond Yields'!$K$16,3) -> 0.014 | H21: 0.1017 | I21: 0.25 | J21: 0.025425 | K21: ='6'!I20 -> 0.95 | L21: 0.75 | M21: 0.07246125 | N21: 0.09788625 | O21: 0.11188625 | P21: ='6'!K20 -> 20000 | Q21: =IF(P21>'Size Premium'!$A$5,'Size Premium'!$B$5,IF(P21>'Size Premium'!$A$6,'Size Premium'!$B$6,IF(P21>'Size Premium'!$A$7,'Size Premium'!$B$7,IF(P21>'Size Premium'!$A$8,'Size Premium'!$B$8,IF(P21>'Size Premium'!$A$9,'Size Premium'!$B$9,IF(P21>'Size Premium'!$A$10,'Size Premium'!$B$10,IF(P21>'Size Premium'!$A$11,'Size Premium'!$B$11,IF(P21>'Size Premium'!$A$12,'Size Premium'!$B$12,"ERROR")))))))) -> 0.005 | R21: 0.11688625 | V21: 0.11688625
A22: 13 | B22: ='6'!B21 -> Eversource Energy | D22: ='2020 10 Market DCF'!$J$385 -> 0.0233 | E22: ='2020 10 Market DCF'!$P$386 -> 0.0924 | F22: 0.1157 | G22: =ROUND('Bond Yields'!$K$16,3) -> 0.014 | H22: 0.1017 | I22: 0.25 | J22: 0.025425 | K22: ='6'!I21 -> 0.9 | L22: 0.75 | M22: 0.0686475 | N22: 0.0940725 | O22: 0.1080725 | P22: ='6'!K21 -> 30000 | Q22: =IF(P22>'Size Premium'!$A$5,'Size Premium'!$B$5,IF(P22>'Size Premium'!$A$6,'Size Premium'!$B$6,IF(P22>'Size Premium'!$A$7,'Size Premium'!$B$7,IF(P22>'Size Premium'!$A$8,'Size Premium'!$B$8,IF(P22>'Size Premium'!$A$9,'Size Premium'!$B$9,IF(P22>'Size Premium'!$A$10,'Size Premium'!$B$10,IF(P22>'Size Premium'!$A$11,'Size Premium'!$B$11,IF(P22>'Size Premium'!$A$12,'Size Premium'!$B$12,"ERROR")))))))) -> 0.005 | R22: 0.1130725 | V22: 0.1130725
A23: 14 | B23: ='6'!B22 -> NorthWestern Corp. | D23: ='2020 10 Market DCF'!$J$385 -> 0.0233 | E23: ='2020 10 Market DCF'!$P$386 -> 0.0924 | F23: 0.1157 | G23: =ROUND('Bond Yields'!$K$16,3) -> 0.014 | H23: 0.1017 | I23: 0.25 | J23: 0.025425 | K23: ='6'!I22 -> 0.9 | L23: 0.75 | M23: 0.0686475 | N23: 0.0940725 | O23: 0.1080725 | P23: ='6'!K22 -> 2700 | Q23: =IF(P23>'Size Premium'!$A$5,'Size Premium'!$B$5,IF(P23>'Size Premium'!$A$6,'Size Premium'!$B$6,IF(P23>'Size Premium'!$A$7,'Size Premium'!$B$7,IF(P23>'Size Premium'!$A$8,'Size Premium'!$B$8,IF(P23>'Size Premium'!$A$9,'Size Premium'!$B$9,IF(P23>'Size Premium'!$A$10,'Size Premium'!$B$10,IF(P23>'Size Premium'!$A$11,'Size Premium'!$B$11,IF(P23>'Size Premium'!$A$12,'Size Premium'!$B$12,"ERROR")))))))) -> 0.011 | R23: 0.1190725 | V23: 0.1190725
A24: 15 | B24: ='6'!B23 -> Pub Sv Enterprise Grp. | D24: ='2020 10 Market DCF'!$J$385 -> 0.0233 | E24: ='2020 10 Market DCF'!$P$386 -> 0.0924 | F24: 0.1157 | G24: =ROUND('Bond Yields'!$K$16,3) -> 0.014 | H24: 0.1017 | I24: 0.25 | J24: 0.025425 | K24: ='6'!I23 -> 0.9 | L24: 0.75 | M24: 0.0686475 | N24: 0.0940725 | O24: 0.1080725 | P24: ='6'!K23 -> 28000 | Q24: =IF(P24>'Size Premium'!$A$5,'Size Premium'!$B$5,IF(P24>'Size Premium'!$A$6,'Size Premium'!$B$6,IF(P24>'Size Premium'!$A$7,'Size Premium'!$B$7,IF(P24>'Size Premium'!$A$8,'Size Premium'!$B$8,IF(P24>'Size Premium'!$A$9,'Size Premium'!$B$9,IF(P24>'Size Premium'!$A$10,'Size Premium'!$B$10,IF(P24>'Size Premium'!$A$11,'Size Premium'!$B$11,IF(P24>'Size Premium'!$A$12,'Size Premium'!$B$12,"ERROR")))))))) -> 0.005 | R24: 0.1130725 | V24: 0.1130725
A25: 16 | B25: ='6'!B24 -> Sempra Energy | D25: ='2020 10 Market DCF'!$J$385 -> 0.0233 | E25: ='2020 10 Market DCF'!$P$386 -> 0.0924 | F25: 0.1157 | G25: =ROUND('Bond Yields'!$K$16,3) -> 0.014 | H25: 0.1017 | I25: 0.25 | J25: 0.025425 | K25: ='6'!I24 -> 0.95 | L25: 0.75 | M25: 0.07246125 | N25: 0.09788625 | O25: 0.11188625 | P25: ='6'!K24 -> 35000 | Q25: =IF(P25>'Size Premium'!$A$5,'Size Premium'!$B$5,IF(P25>'Size Premium'!$A$6,'Size Premium'!$B$6,IF(P25>'Size Premium'!$A$7,'Size Premium'!$B$7,IF(P25>'Size Premium'!$A$8,'Size Premium'!$B$8,IF(P25>'Size Premium'!$A$9,'Size Premium'!$B$9,IF(P25>'Size Premium'!$A$10,'Size Premium'!$B$10,IF(P25>'Size Premium'!$A$11,'Size Premium'!$B$11,IF(P25>'Size Premium'!$A$12,'Size Premium'!$B$12,"ERROR")))))))) -> -0.0028 | R25: 0.10908625 | V25: 0.10908625
A26: 17 | B26: ='6'!B25 -> Southern Company | D26: ='2020 10 Market DCF'!$J$385 -> 0.0233 | E26: ='2020 10 Market DCF'!$P$386 -> 0.0924 | F26: 0.1157 | G26: =ROUND('Bond Yields'!$K$16,3) -> 0.014 | H26: 0.1017 | I26: 0.25 | J26: 0.025425 | K26: ='6'!I25 -> 0.9 | L26: 0.75 | M26: 0.0686475 | N26: 0.0940725 | O26: 0.1080725 | P26: ='6'!K25 -> 57000 | Q26: =IF(P26>'Size Premium'!$A$5,'Size Premium'!$B$5,IF(P26>'Size Premium'!$A$6,'Size Premium'!$B$6,IF(P26>'Size Premium'!$A$7,'Size Premium'!$B$7,IF(P26>'Size Premium'!$A$8,'Size Premium'!$B$8,IF(P26>'Size Premium'!$A$9,'Size Premium'!$B$9,IF(P26>'Size Premium'!$A$10,'Size Premium'!$B$10,IF(P26>'Size Premium'!$A$11,'Size Premium'!$B$11,IF(P26>'Size Premium'!$A$12,'Size Premium'!$B$12,"ERROR")))))))) -> -0.0028 | R26: 0.1052725 | V26: 0.1052725
A27: 18 | B27: ='6'!B26 -> WEC Energy Group | D27: ='2020 10 Market DCF'!$J$385 -> 0.0233 | E27: ='2020 10 Market DCF'!$P$386 -> 0.0924 | F27: 0.1157 | G27: =ROUND('Bond Yields'!$K$16,3) -> 0.014 | H27: 0.1017 | I27: 0.25 | J27: 0.025425 | K27: ='6'!I26 -> 0.8 | L27: 0.75 | M27: 0.06102 | N27: 0.086445 | O27: 0.100445 | P27: ='6'!K26 -> 30000 | Q27: =IF(P27>'Size Premium'!$A$5,'Size Premium'!$B$5,IF(P27>'Size Premium'!$A$6,'Size Premium'!$B$6,IF(P27>'Size Premium'!$A$7,'Size Premium'!$B$7,IF(P27>'Size Premium'!$A$8,'Size Premium'!$B$8,IF(P27>'Size Premium'!$A$9,'Size Premium'!$B$9,IF(P27>'Size Premium'!$A$10,'Size Premium'!$B$10,IF(P27>'Size Premium'!$A$11,'Size Premium'!$B$11,IF(P27>'Size Premium'!$A$12,'Size Premium'!$B$12,"ERROR")))))))) -> 0.005 | R27: 0.105445 | V27: 0.105445
A28: 19 | B28: ='6'!B27 -> Xcel Energy Inc. | D28: ='2020 10 Market DCF'!$J$385 -> 0.0233 | E28: ='2020 10 Market DCF'!$P$386 -> 0.0924 | F28: 0.1157 | G28: =ROUND('Bond Yields'!$K$16,3) -> 0.014 | H28: 0.1017 | I28: 0.25 | J28: 0.025425 | K28: ='6'!I27 -> 0.8 | L28: 0.75 | M28: 0.06102 | N28: 0.086445 | O28: 0.100445 | P28: ='6'!K27 -> 34000 | Q28: =IF(P28>'Size Premium'!$A$5,'Size Premium'!$B$5,IF(P28>'Size Premium'!$A$6,'Size Premium'!$B$6,IF(P28>'Size Premium'!$A$7,'Size Premium'!$B$7,IF(P28>'Size Premium'!$A$8,'Size Premium'!$B$8,IF(P28>'Size Premium'!$A$9,'Size Premium'!$B$9,IF(P28>'Size Premium'!$A$10,'Size Premium'!$B$10,IF(P28>'Size Premium'!$A$11,'Size Premium'!$B$11,IF(P28>'Size Premium'!$A$12,'Size Premium'!$B$12,"ERROR")))))))) -> -0.0028 | R28: 0.097645 | V28: 0.097645
B30: Average (f) | R30: =AVERAGE(V10:V28) -> 0.1103315132 | U30: Min | V30: =MIN(V10:V28) -> 0.097645
B31: Midpoint (f) (g) | R31: =AVERAGE(V30:V31) -> 0.110265625 | U31: Max | V31: =MAX(V10:V28) -> 0.12288625
A33: (a) | B33: ='6'!B32 -> Weighted average for dividend-paying stocks in the S&P 500 based on data from www.valueline.com (retrieved Oct. 1, 2020).
A34: (b) | B34: ='6'!B33 -> Average of weighted average earnings growth rates from IBES, Value Line, and Zacks for dividend-paying stocks in the S&P 500 based on data from http://finance.yahoo.com (retrieved Oct. 2, 2020), www.valueline.com (retrieved Oct. 1, 2020), and www.zacks.com (retrieved Oct. 1, 2020).
A36: (c) | B36: ='6'!B35 -> Average yield on 30-year Treasury bonds for the six-months ending Sep. 2020 based on data from http://www.fred.stlouisfed.org.
A37: (d) | B37: Roger A. Morin, "New Regulatory Finance," Public Utilities Reports, Inc. (2006) at 190.
A38: (e) | B38: ='6'!B36 -> The Value Line Investment Survey, Summary & Index (Oct. 9, 2020).
A39: (f) | B39: ='6'!B37 -> Duff & Phelps, 2020 CRSP Deciles Size Study -- Supplementary Data Exhibits, Cost of Capital Navigator.
A40: (f) | B40: Excludes highlighted figures.
A41: (g) | B41: Average of low and high values.
A43: Threshold Min | E43: ='4 (3)'!D36 -> 0.064
A44: Threshold Max | E44: ='4 (3)'!D37 -> 0.141

Sheet 8 (1)
A1: ='Exhibit List'!C12 -> UTILITY RISK PREMIUM | H1: ='Exhibit List'!B12 -> Exhibit No. 8
H2: Page 1 of 4
A3: ='Exhibit List'!D12 -> CURRENT BOND YIELD
B6: Current Equity Risk Premium
B7: (a) | C7: Avg. Yield over Study Period | G7: =ROUND(+'8 (3)'!G54,4) -> 0.081
B8: (b) | C8: Average Utility Bond Yield | G8: ='Bond Yields'!I16 -> 0.0301
D9: Change in Bond Yield | G9: =-G7+G8 -> -0.0509
B11: (c) | C11: Risk Premium/Interest Rate Relationship | G11: =ROUND('8 (4)'!B46,4) -> -0.421
D12: Adjustment to Average Risk Premium | G12: =G9*G11 -> 0.0214289
B14: (a) | C14: Average Risk Premium over Study Period | G14: =ROUND('8 (3)'!J54,4) -> 0.0376
D15: Adjusted Risk Premium | G15: =G12+G14 -> 0.0590289
B18: Implied Cost of Equity
B19: (b) | C19: Baa Utility Bond Yield | G19: ='Bond Yields'!C16 -> 0.0337
C20: Adjusted Equity Risk Premium | G20: =G15 -> 0.0590289
C22: Risk Premium Cost of Equity | G22: =G19+G20 -> 0.0927289
B26: (a) | C26: =H1 & ", page 3." -> Exhibit No. 8, page 3.
B27: (b) | C27: ="Average bond yield on all utility bonds and 'Baa' subset for the six-months ending "&'Bond Yields'!B14&" based on data from Moody's Investors Service at www.credittrends.com." -> Average bond yield on all utility bonds and 'Baa' subset for the six-months ending Sep. 2020 based on data from Moody's Investors Service at www.credittrends.com.
B29: (c) | C29: =H1 & ", page 4." -> Exhibit No. 8, page 4.

Sheet 8 (2)
A1: ='Exhibit List'!C13 -> UTILITY RISK PREMIUM | H1: ='Exhibit List'!B13 -> Exhibit No. 8
H2: Page 2 of 4
A3: ='Exhibit List'!D13 -> PROJECTED BOND YIELD
B6: Current Equity Risk Premium
B7: (a) | C7: Avg. Yield over Study Period | G7: =ROUND('8 (3)'!G54,4) -> 0.081
B8: (b) | C8: ="Average Utility Bond Yield "&'Bond Yields'!M50 -> Average Utility Bond Yield 2021-25 | G8: ='Bond Yields'!M31 -> 0.04122
D9: Change in Bond Yield | G9: =-G7+G8 -> -0.03978
B11: (c) | C11: Risk Premium/Interest Rate Relationship | G11: =ROUND('8 (4)'!B46,4) -> -0.421
D12: Adjustment to Average Risk Premium | G12: =G9*G11 -> 0.01674738
B14: (a) | C14: Average Risk Premium over Study Period | G14: =ROUND('8 (3)'!J54,4) -> 0.0376
D15: Adjusted Risk Premium | G15: =G12+G14 -> 0.05434738
B18: Implied Cost of Equity
B19: (b) | C19: ="Baa Utility Bond Yield "&'Bond Yields'!M50 -> Baa Utility Bond Yield 2021-25 | G19: ='Bond Yields'!E39 -> 0.0479
C20: Adjusted Equity Risk Premium | G20: =G15 -> 0.05434738
C22: Risk Premium Cost of Equity | G22: =G19+G20 -> 0.10224738
B26: (a) | C26: =H1 & ", page 3." -> Exhibit No. 8, page 3.
B27: (b) | C27: ="Yields on all utility bonds and 'A' subset based on data from " &'Bond Yields'!B73&"; " & 'Bond Yields'!B74 & "; & Moody's Investors Service at www.credittrends.com." -> Yields on all utility bonds and 'A' subset based on data from IHS Markit, Long-Term Macro Forecast - Baseline (May 28, 2020); Energy Information Administration, Annual Energy Outlook 2020 (Jan. 29, 2020); & Moody's Investors Service at www.credittrends.com.
B30: (c) | C30: =H1 & ", page 4." -> Exhibit No. 8, page 4.

Sheet 8 (3)
A1: ='Exhibit List'!C14 -> UTILITY RISK PREMIUM | K1: ='Exhibit List'!B14 -> Exhibit No. 8
K2: Page 3 of 4
A3: ='Exhibit List'!D14 -> AUTHORIZED RETURNS
D5: (a) | G5: (b)
D6: Allowed | G6: Average Utility | J6: Risk
B7: Year | D7: ROE | G7: Bond Yield | J7: Premium
B8: 1974 | D8: 0.131 | G8: 0.0927 | J8: =D8-G8 -> 0.0383 | M8: 0.0927
B9: =B8+1 -> 1975 | D9: 0.132 | G9: 0.0988 | J9: =D9-G9 -> 0.0332 | M9: 0.0988
B10: 1976 | D10: 0.131 | G10: 0.0917 | J10: 0.0393 | M10: 0.0917
B11: 1977 | D11: 0.133 | G11: 0.0858 | J11: 0.0472 | M11: 0.0858
B12: 1978 | D12: 0.132 | G12: 0.0922 | J12: 0.0398 | M12: 0.0922
B13: 1979 | D13: 0.135 | G13: 0.1039 | J13: 0.0311 | M13: 0.1039
B14: 1980 | D14: 0.1423 | G14: 0.1315 | J14: 0.0108 | M14: 0.1315
B15: 1981 | D15: 0.1522 | G15: 0.1562 | J15: -0.004 | M15: 0.1562
B16: 1982 | D16: 0.1578 | G16: 0.1533 | J16: 0.0045 | M16: 0.1533
B17: 1983 | D17: 0.1536 | G17: 0.1331 | J17: 0.0205 | M17: 0.1331
B18: 1984 | D18: 0.1532 | G18: 0.1403 | J18: 0.0129 | M18: 0.1403
B19: 1985 | D19: 0.152 | G19: 0.1229 | J19: 0.0291 | M19: 0.1229
B20: 1986 | D20: 0.1393 | G20: 0.0946 | J20: 0.0447 | M20: 0.0946
B21: 1987 | D21: 0.1299 | G21: 0.0998 | J21: 0.0301 | M21: 0.0998
B22: 1988 | D22: 0.1279 | G22: 0.1045 | J22: 0.0234 | M22: 0.1045
B23: 1989 | D23: 0.1297 | G23: 0.0966 | J23: 0.0331 | M23: 0.0966
B24: 1990 | D24: 0.127 | G24: 0.0976 | J24: 0.0294 | M24: 0.0976
B25: 1991 | D25: 0.1255 | G25: 0.0921 | J25: 0.0334 | M25: 0.0921
B26: 1992 | D26: 0.1209 | G26: 0.0857 | J26: 0.0352 | M26: 0.0857
B27: 1993 | D27: 0.1141 | G27: 0.0756 | J27: 0.0385 | M27: 0.0756
B28: 1994 | D28: 0.1134 | G28: 0.083 | J28: 0.0304 | M28: 0.083
B29: 1995 | D29: 0.1155 | G29: 0.0791 | J29: 0.0364 | M29: 0.0791
B30: 1996 | D30: 0.1139 | G30: 0.0774 | J30: 0.0365 | M30: 0.0774
B31: 1997 | D31: 0.114 | G31: 0.0763 | J31: 0.0377 | M31: 0.0763
B32: 1998 | D32: 0.1166 | G32: 0.07 | J32: 0.0466 | M32: 0.07
B33: 1999 | D33: 0.1077 | G33: 0.0755 | J33: 0.0322 | M33: 0.0755
B34: 2000 | D34: 0.1143 | G34: 0.0809 | J34: 0.0334 | M34: 0.0809
B35: 2001 | D35: 0.1109 | G35: 0.0772 | J35: 0.0337 | M35: 0.0772
B36: 2002 | D36: 0.1116 | G36: 0.0753 | J36: 0.0363 | M36: 0.0753
B37: 2003 | D37: 0.1097 | G37: 0.0661 | J37: 0.0436 | M37: 0.0661
B38: 2004 | D38: 0.1075 | G38: 0.062 | J38: 0.0455 | M38: 0.062
B39: 2005 | D39: 0.1054 | G39: 0.0567 | J39: 0.0487 | M39: 0.0567
B40: 2006 | D40: 0.1034 | G40: 0.0608 | J40: 0.0426 | M40: 0.0608
B41: 2007 | D41: 0.1032 | G41: 0.0611 | J41: 0.0421 | M41: 0.0611
B42: 2008 | D42: 0.1037 | G42: 0.0665 | J42: 0.0372 | M42: 0.0665
B43: 2009 | D43: 0.1052 | G43: 0.0628 | J43: 0.0424 | M43: 0.0628
B44: 2010 | D44: 0.1029 | G44: 0.0556 | J44: 0.0473 | M44: 0.0556
B45: 2011 | D45: 0.1019 | G45: 0.0513 | J45: 0.0506 | M45: 0.0513
B46: 2012 | D46: 0.1002 | G46: 0.0426 | J46: 0.0576 | M46: 0.0426
B47: 2013 | D47: 0.0982 | G47: 0.0455 | J47: 0.0527 | M47: 0.0455
B48: 2014 | D48: 0.0976 | G48: 0.0441 | J48: 0.0535 | M48: 0.0441
B49: 2015 | D49: 0.096 | G49: 0.0437 | J49: 0.0523 | M49: 0.0437
B50: 2016 | D50: 0.096 | G50: 0.0411 | J50: 0.0549 | M50: 0.0411
B51: 2017 | D51: 0.0968 | G51: 0.0407 | J51: 0.0561 | M51: 0.0407
B52: 2018 | D52: 0.0956 | G52: 0.0434 | J52: 0.0522 | M52: 0.0434
B53: 2019 | D53: 0.0964 | G53: 0.0386 | J53: 0.0578 | M53: 0.0386
B54: Average | D54: =AVERAGE(D8:D53) -> 0.1186304348 | G54: =AVERAGE(G8:G53) -> 0.08100434783 | J54: =AVERAGE(J8:J53) -> 0.03762608696 | M54: =AVERAGE(M8:M53) -> 0.08100434783
A57: (a) | B57: Major Rate Case Decisions, Regulatory Focus, Regulatory Research Associates ("RRA"); UtilityScope Regulatory Service, Argus. Data for "general" rate cases (excluding limited-issue rider cases) beginning in 2006 (the first year such data presented by RRA).
A60: (b) | B60: Moody's Investors Service.

Sheet 8 (4)
A1: ='Exhibit List'!C15 -> UTILITY RISK PREMIUM | I1: ='Exhibit List'!B15 -> Exhibit No. 8
I2: Page 4 of 4
A3: ='Exhibit List'!D15 -> REGRESSION RESULTS
A29: SUMMARY OUTPUT
A31: Regression Statistics
A32: Multiple R | B32: 0.9366297666
A33: R Square | B33: 0.8772753196
A34: Adjusted R Square | B34: 0.8744861223
A35: Standard Error | B35: 0.004786234034
A36: Observations | B36: 46
A38: ANOVA
B39: df | C39: SS | D39: MS | E39: F | F39: Significance F
A40: Regression | B40: 1 | C40: 0.007205175101 | D40: 0.007205175101 | E40: 314.5260916 | F40: 1.151778767e-21
A41: Residual | B41: 44 | C41: 0.001007953594 | D41: 2.290803623e-05
A42: Total | B42: 45 | C42: 0.008213128696
B44: Coefficients | C44: Standard Error | D44: t Stat | E44: P-value | F44: Lower 95% | G44: Upper 95% | H44: Lower 95.0% | I44: Upper 95.0%
A45: Intercept | B45: 0.07173107944 | C45: 0.002048439843 | D45: 35.01742055 | E45: 9.029994426e-34 | F45: 0.06760272021 | G45: 0.07585943868 | H45: 0.06760272021 | I45: 0.07585943868
A46: X Variable 1 | B46: -0.4210266906 | C46: 0.02374003141 | D46: -17.73488347 | E46: 1.151778767e-21 | F46: -0.4688715801 | G46: -0.373181801 | H46: -0.4688715801 | I46: -0.373181801

Sheet 9
A1: ='Exhibit List'!C16 -> EXPECTED EARNINGS APPROACH | J1: ='Exhibit List'!B16 -> Exhibit No. 9
J2: Page 1 of 1
A3: ='Exhibit List'!D16 -> UTILITY GROUP
D5: (a) | F5: (b) | H5: (c)
D6: Expected Return | F6: Adjustment | H6: Adjusted Return
B7: Company | D7: on Common Equity | F7: Factor | H7: on Common Equity
A8: =A7+1 -> 1 | B8: =VLOOKUP('Proxy Group Ticker'!$B3,vldatabase,2,FALSE) -> Algonquin Pwr & Util | D8: =VLOOKUP('Proxy Group Ticker'!$B3,vldatabase,18,FALSE) -> n/a | F8: ='5'!I8 -> n/a | H8: =IF(F8="n/a","n/a",D8*F8) -> n/a | M8: =IF(D8="n/a","n/a",IF(D8<$C$38,"LOW",IF(D8>$C$39,"HIGH",D8))) -> n/a | N8: =IF(H8="n/a","n/a",IF(H8<$C$38,"LOW",IF(H8>$C$39,"HIGH",H8))) -> n/a
A9: =A8+1 -> 2 | B9: =VLOOKUP('Proxy Group Ticker'!$B4,vldatabase,2,FALSE) -> ALLETE | D9: =VLOOKUP('Proxy Group Ticker'!$B4,vldatabase,18,FALSE) -> 0.08 | F9: ='5'!I9 -> 1.023347544 | H9: =IF(F9="n/a","n/a",D9*F9) -> 0.08186780356 | M9: =IF(D9="n/a","n/a",IF(D9<$C$38,"LOW",IF(D9>$C$39,"HIGH",D9))) -> 0.08 | N9: =IF(H9="n/a","n/a",IF(H9<$C$38,"LOW",IF(H9>$C$39,"HIGH",H9))) -> 0.08186780356
A10: 3 | B10: =VLOOKUP('Proxy Group Ticker'!$B5,vldatabase,2,FALSE) -> Alliant Energy | D10: =VLOOKUP('Proxy Group Ticker'!$B5,vldatabase,18,FALSE) -> 0.105 | F10: ='5'!I10 -> 1.01495992 | H10: 0.1065707916 | M10: 0.105 | N10: 0.1065707916
A11: 4 | B11: =VLOOKUP('Proxy Group Ticker'!$B6,vldatabase,2,FALSE) -> Ameren Corp. | D11: =VLOOKUP('Proxy Group Ticker'!$B6,vldatabase,18,FALSE) -> 0.1 | F11: ='5'!I11 -> 1.039799637 | H11: 0.1039799637 | M11: 0.1 | N11: 0.1039799637
A12: 5 | B12: =VLOOKUP('Proxy Group Ticker'!$B7,vldatabase,2,FALSE) -> Avangrid, Inc. | D12: =VLOOKUP('Proxy Group Ticker'!$B7,vldatabase,18,FALSE) -> 0.05 | F12: ='5'!I12 -> 1.004802993 | H12: 0.05024014964 | M12: LOW | N12: LOW
A13: 6 | B13: =VLOOKUP('Proxy Group Ticker'!$B8,vldatabase,2,FALSE) -> Avista Corp. | D13: =VLOOKUP('Proxy Group Ticker'!$B8,vldatabase,18,FALSE) -> 0.075 | F13: ='5'!I13 -> 1.018192814 | H13: 0.07636446103 | M13: 0.075 | N13: 0.07636446103
A14: 7 | B14: =VLOOKUP('Proxy Group Ticker'!$B9,vldatabase,2,FALSE) -> Black Hills Corp. | D14: =VLOOKUP('Proxy Group Ticker'!$B9,vldatabase,18,FALSE) -> 0.09 | F14: ='5'!I14 -> 1.023168899 | H14: 0.09208520095 | M14: 0.09 | N14: 0.09208520095
A15: 8 | B15: =VLOOKUP('Proxy Group Ticker'!$B10,vldatabase,2,FALSE) -> CMS Energy Corp. | D15: =VLOOKUP('Proxy Group Ticker'!$B10,vldatabase,18,FALSE) -> 0.135 | F15: ='5'!I15 -> 1.042866494 | H15: 0.1407869767 | M15: 0.135 | N15: 0.1407869767
A16: 9 | B16: =VLOOKUP('Proxy Group Ticker'!$B11,vldatabase,2,FALSE) -> Consolidated Edison | D16: =VLOOKUP('Proxy Group Ticker'!$B11,vldatabase,18,FALSE) -> 0.08 | F16: ='5'!I16 -> 1.023311518 | H16: 0.08186492147 | M16: 0.08 | N16: 0.08186492147
A17: 10 | B17: =VLOOKUP('Proxy Group Ticker'!$B12,vldatabase,2,FALSE) -> DTE Energy Co. | D17: =VLOOKUP('Proxy Group Ticker'!$B12,vldatabase,18,FALSE) -> 0.11 | F17: ='5'!I17 -> 1.032628276 | H17: 0.1135891104 | M17: 0.11 | N17: 0.1135891104
A18: 11 | B18: =VLOOKUP('Proxy Group Ticker'!$B13,vldatabase,2,FALSE) -> Duke Energy Corp. | D18: =VLOOKUP('Proxy Group Ticker'!$B13,vldatabase,18,FALSE) -> 0.085 | F18: ='5'!I18 -> 1.021414165 | H18: 0.086820204 | M18: 0.085 | N18: 0.086820204
A19: 12 | B19: =VLOOKUP('Proxy Group Ticker'!$B14,vldatabase,2,FALSE) -> Entergy Corp. | D19: =VLOOKUP('Proxy Group Ticker'!$B14,vldatabase,18,FALSE) -> 0.11 | F19: ='5'!I19 -> 1.026682457 | H19: 0.1129350703 | M19: 0.11 | N19: 0.1129350703
A20: 13 | B20: =VLOOKUP('Proxy Group Ticker'!$B15,vldatabase,2,FALSE) -> Eversource Energy | D20: =VLOOKUP('Proxy Group Ticker'!$B15,vldatabase,18,FALSE) -> 0.09 | F20: ='5'!I20 -> 1.034113185 | H20: 0.09307018663 | M20: 0.09 | N20: 0.09307018663
A21: 14 | B21: =VLOOKUP('Proxy Group Ticker'!$B16,vldatabase,2,FALSE) -> NorthWestern Corp. | D21: =VLOOKUP('Proxy Group Ticker'!$B16,vldatabase,18,FALSE) -> 0.085 | F21: ='5'!I21 -> 1.016884787 | H21: 0.08643520688 | M21: 0.085 | N21: 0.08643520688
A22: 15 | B22: =VLOOKUP('Proxy Group Ticker'!$B17,vldatabase,2,FALSE) -> Pub Sv Enterprise Grp. | D22: =VLOOKUP('Proxy Group Ticker'!$B17,vldatabase,18,FALSE) -> 0.11 | F22: ='5'!I22 -> 1.024932867 | H22: 0.1127426154 | M22: 0.11 | N22: 0.1127426154
A23: 16 | B23: =VLOOKUP('Proxy Group Ticker'!$B18,vldatabase,2,FALSE) -> Sempra Energy | D23: =VLOOKUP('Proxy Group Ticker'!$B18,vldatabase,18,FALSE) -> 0.105 | F23: ='5'!I23 -> 1.053258159 | H23: 0.1105921067 | M23: 0.105 | N23: 0.1105921067
A24: 17 | B24: =VLOOKUP('Proxy Group Ticker'!$B19,vldatabase,2,FALSE) -> Southern Company | D24: =VLOOKUP('Proxy Group Ticker'!$B19,vldatabase,18,FALSE) -> 0.125 | F24: ='5'!I24 -> 1.018811625 | H24: 0.1273514531 | M24: 0.125 | N24: 0.1273514531
A25: 18 | B25: =VLOOKUP('Proxy Group Ticker'!$B20,vldatabase,2,FALSE) -> WEC Energy Group | D25: =VLOOKUP('Proxy Group Ticker'!$B20,vldatabase,18,FALSE) -> 0.125 | F25: ='5'!I25 -> 1.017015228 | H25: 0.1271269035 | M25: 0.125 | N25: 0.1271269035
A26: 19 | B26: =VLOOKUP('Proxy Group Ticker'!$B21,vldatabase,2,FALSE) -> Xcel Energy Inc. | D26: =VLOOKUP('Proxy Group Ticker'!$B21,vldatabase,18,FALSE) -> 0.105 | F26: ='5'!I26 -> 1.029157989 | H26: 0.1080615888 | M26: 0.105 | N26: 0.1080615888
B28: Average (d) | D28: =AVERAGE(M8:M26) -> 0.1008823529 | H28: =AVERAGE(N8:N26) -> 0.103661445 | L28: Min | M28: =MIN(M8:M26) -> 0.075 | N28: =MIN(N8:N26) -> 0.07636446103
B29: Midpoint (d, e) | D29: =AVERAGE(M28:M29) -> 0.105 | H29: =AVERAGE(N28:N29) -> 0.1085757189 | L29: Max | M29: =MAX(M8:M26) -> 0.135 | N29: =MAX(N8:N26) -> 0.1407869767
A32: (a) | B32: ='Electric Utility Data'!$B$50 -> The Value Line Investment Survey (Jul. 24, Aug. 14 and Sep. 11, 2020).
A33: (b) | B33: ="Adjustment to convert year-end return to an average rate of return from "&'5'!Q1 &"." -> Adjustment to convert year-end return to an average rate of return from Exhibit No. 5.
A34: (c) | B34: (a) x (b).
A35: (d) | B35: Excludes highlighted figures.
A36: (e) | B36: Average of low and high values.
A38: Threshold Min | C38: ='4 (3)'!D36 -> 0.064
A39: Threshold Max | C39: ='4 (3)'!D37 -> 0.141

Sheet 10
A1: ='Exhibit List'!C17 -> FLOTATION COST STUDY | L1: ='Exhibit List'!B17 -> Exhibit No. 10
L2: Page 1 of 1
A3: ='Exhibit List'!D17 -> VALUE LINE ELECTRIC INDUSTRY
D5: -1 | E5: =D5-1 -> -2 | F5: -3 | G5: -4 | H5: -5 | I5: -6 | J5: -7 | K5: -8 | L5: -9
G6: Underwriting | J6: Total | K6: Gross Proceeds | L6: Flotation
E7: Shares | F7: Offering | G7: Discount | H7: Underwriting | I7: Offering | J7: Flotation | K7: Before Flot. | L7: Cost | N7: Latest | O7: Net
A8: No. | B8: Sym | C8: Company | D8: Date | E8: Issued | F8: Price | G8: (per share) | H8: Discount | I8: Expense | J8: Costs | K8: Costs | L8: (%) | N8: Price | O8: Proceeds
A9: 1 | B9: ALE | C9: ALLETE | D9: 2014-02-27 | E9: 3220000 | F9: 49.75 | G9: 1.74125 | H9: =E9*G9 -> 5606825 | I9: 450000 | J9: =I9+H9 -> 6056825 | K9: =F9*E9 -> 160195000 | L9: =J9/K9 -> 0.03780907644
A10: =A9+1 -> 2 | B10: LNT | C10: Alliant Energy | D10: 2019-11-14 | E10: 3717502 | F10: 52.63 | G10: 0.395 | H10: =E10*G10 -> 1468413.29 | I10: 500000 | J10: =I10+H10 -> 1968413.29 | K10: =F10*E10 -> 195652130.3 | L10: =J10/K10 -> 0.01006078128
A11: 3 | B11: AEE | C11: Ameren Corp. | D11: 2019-08-05 | E11: 7549205 | F11: 74.3 | G11: 0.12 | H11: =E11*G11 -> 905904.6 | I11: 750000 | J11: =I11+H11 -> 1655904.6 | K11: =F11*E11 -> 560905931.5 | L11: =J11/K11 -> 0.002952196629
A12: 4 | B12: AEP | C12: American Elec Pwr | D12: 2009-04-02 | E12: =60000000+9000000 -> 69000000 | F12: 24.5 | G12: 0.735 | H12: =E12*G12 -> 50715000 | I12: 400000 | J12: =I12+H12 -> 51115000 | K12: =F12*E12 -> 1690500000 | L12: =J12/K12 -> 0.03023661639
A13: 5 | B13: AGR | C13: Avangrid, Inc. | D13: N/A
A14: 6 | B14: AVA | C14: Avista Corp. | D14: 2006-12-13 | E14: =2750000+412500 -> 3162500 | F14: 25.05 | G14: 0.48 | H14: =E14*G14 -> 1518000 | I14: 300000 | J14: =I14+H14 -> 1818000 | K14: =F14*E14 -> 79220625 | L14: =J14/K14 -> 0.02294856926
A15: 7 | B15: BKH | C15: Black Hills Corp. | D15: 2015-11-19 | E15: =5500000+825000 -> 6325000 | F15: 40.25 | G15: 1.40875 | H15: 8910343.75 | I15: 1200000 | J15: 10110343.75 | K15: 254581250 | L15: 0.03971362286
A16: 8 | B16: CNP | C16: CenterPoint Energy | D16: 2018-09-27 | E16: 60550459 | F16: 27.25 | G16: 0.75 | H16: 45412844.25 | I16: 1000000 | J16: 46412844.25 | K16: 1650000008 | L16: 0.02812899638
A17: 9 | B17: CMS | C17: CMS Energy Corp. | D17: 2005-03-31 | E17: =20000000+3000000 -> 23000000 | F17: 12.25 | G17: 0.4288 | H17: 9862400 | I17: 325000 | J17: 10187400 | K17: 281750000 | L17: 0.03615758651
A18: 10 | B18: ED | C18: Consolidated Edison (a) | D18: 2019-05-07 | E18: 5800000 | F18: 84.83 | G18: =N18-F18 -> 0.59 | H18: 3422000 | I18: 400000 | J18: 3822000 | K18: 492014000 | L18: 0.00776807164 | N18: 85.42 | O18: =K18-H18-I18 -> 488192000
A19: 11 | B19: D | C19: Dominion Energy (a) | D19: 2018-03-29 | E19: 20000000 | F19: 67.3258 | G19: =N19-F19 -> 1.8942 | H19: 37884000 | I19: 450000 | J19: 38334000 | K19: 1346516000 | L19: 0.02846902673 | N19: 69.22 | O19: =K19-H19-I19 -> 1308182000
A20: 12 | B20: DTE | C20: DTE Energy Co. | D20: 2019-10-29 | E20: 2400000 | F20: 126 | G20: 3.15 | H20: 7560000 | I20: 300000 | J20: 7860000 | K20: 302400000 | L20: 0.02599206349
A21: 13 | B21: DUK | C21: Duke Energy Corp. (a) | D21: 2019-11-18 | E21: 25000000 | F21: 85.99 | G21: =N21-F21 -> 2.66 | H21: 66500000 | I21: 592000 | J21: 67092000 | K21: 2149750000 | L21: 0.03120921037 | N21: 88.65 | O21: =K21-H21-I21 -> 2082658000
A22: 14 | B22: EIX | C22: Edison International | D22: 2019-07-30 | E22: 28000000 | F22: 68.5 | G22: 1.626875 | H22: 45552500 | I22: 725000 | J22: 46277500 | K22: 1918000000 | L22: 0.02412799791
A23: 15 | B23: EE | C23: El Paso Electric Co. | D23: N/A
A24: 16 | B24: ETR | C24: Entergy Corp. | D24: 2018-06-08 | E24: 13289037 | F24: 75.25 | G24: 0.8 | H24: =E24*G24 -> 10631229.6 | I24: 650000 | J24: =I24+H24 -> 11281229.6 | K24: =F24*E24 -> 1000000034 | L24: =J24/K24 -> 0.01128122921
A25: 17 | B25: EVRG | C25: Evergy Inc. | D25: N/A
A26: 18 | B26: ES | C26: Eversource Energy | D26: 2019-05-30 | E26: 15600000 | F26: 71.48 | G26: =N26-F26 -> 1.69 | H26: =E26*G26 -> 26364000 | I26: 615000 | J26: =I26+H26 -> 26979000 | K26: =F26*E26 -> 1115088000 | L26: =J26/K26 -> 0.02419450303 | N26: 73.17 | O26: =K26-H26-I26 -> 1088109000
A27: 19 | B27: EXC | C27: Exelon Corp. | D27: 2014-06-13 | E27: =50000000+7500000 -> 57500000 | F27: 35 | G27: 1.05 | H27: =E27*G27 -> 60375000 | I27: 600000 | J27: =I27+H27 -> 60975000 | K27: =F27*E27 -> 2012500000 | L27: =J27/K27 -> 0.03029813665
A28: 20 | B28: FE | C28: FirstEnergy Corp. | D28: 2003-09-15 | E28: =28000000+4200000 -> 32200000 | F28: 30 | G28: 0.975 | H28: =E28*G28 -> 31395000 | I28: 423000 | J28: =I28+H28 -> 31818000 | K28: =F28*E28 -> 966000000 | L28: =J28/K28 -> 0.0329378882
A29: 21 | B29: FTS | C29: Fortis Inc. | D29: N/A
A30: 22 | B30: HE | C30: Hawaiian Elec. | D30: 2013-03-20 | E30: =6100000+900000 -> 7000000 | F30: 26.75 | G30: 1.00312 | H30: =E30*G30 -> 7021840 | I30: 450000 | J30: =I30+H30 -> 7471840 | K30: =F30*E30 -> 187250000 | L30: =J30/K30 -> 0.03990301736
A31: 23 | B31: IDA | C31: IDACORP, Inc. | D31: 2004-12-10 | E31: =3500000+525000 -> 4025000 | F31: 30 | G31: 1.2 | H31: 4830000 | I31: 300000 | J31: 5130000 | K31: 120750000 | L31: 0.04248447205
A32: 24 | B32: MGEE | C32: MGE Energy | D32: 2004-09-10 | E32: =1100000+165000 -> 1265000 | F32: 31.85 | G32: 1.035 | H32: 1309275 | I32: 125000 | J32: 1434275 | K32: 40290250 | L32: 0.03559856293
A33: 25 | B33: NEE | C33: NextEra Energy, Inc. (a) | D33: 2016-11-03 | E33: =12000000+1800000 -> 13800000 | F33: 124 | G33: =N33-F33 -> 1.89 | H33: 26082000 | I33: 750000 | J33: 26832000 | K33: 1711200000 | L33: 0.0156802244 | N33: 125.89 | O33: =K33-H33-I33 -> 1684368000
A34: 26 | B34: NWE | C34: NorthWestern Corp. (a) | D34: 2015-09-30 | E34: 1100000 | F34: 51.81 | G34: =N34-F34 -> 1.33 | H34: 1463000 | I34: 1000000 | J34: 2463000 | K34: 56991000 | L34: 0.04321735011 | N34: 53.14 | O34: =K34-H34-I34 -> 54528000
A35: 27 | B35: OGE | C35: OGE Energy Corp. | D35: 2003-08-22 | E35: =4650000+674074 -> 5324074 | F35: 21.6 | G35: 0.79 | H35: 4206018.46 | I35: 325000 | J35: 4531018.46 | K35: 114999998.4 | L35: 0.03940016107
A36: 28 | B36: OTTR | C36: Otter Tail Corp. | D36: N/A
A37: 29 | B37: PNW | C37: Pinnacle West Capital | D37: 2010-04-09 | E37: =6000000+900000 -> 6900000 | F37: 38 | G37: 1.33 | H37: =E37*G37 -> 9177000 | I37: 190000 | J37: =I37+H37 -> 9367000 | K37: =F37*E37 -> 262200000 | L37: =J37/K37 -> 0.03572463768
A38: 30 | B38: PNM | C38: PNM Resources | D38: 2020-01-07 | E38: 5375000 | F38: 47.21 | G38: =N38-F38 -> 1.99 | H38: 10696250 | I38: 750000 | J38: 11446250 | K38: 253753750 | L38: 0.04510770777 | N38: 49.2 | O38: =K38-H38-I38 -> 242307500
A39: =A38+1 -> 31 | B39: POR | C39: Portland General Elec. | D39: 2013-06-13 | E39: =11100000+1665000 -> 12765000 | F39: 29.5 | G39: 0.95875 | H39: 12238443.75 | I39: 600000 | J39: 12838443.75 | K39: 376567500 | L39: 0.03409333984
A40: 32 | B40: PPL | C40: PPL Corp. | D40: 2018-05-10 | E40: 55000000 | F40: 27 | G40: 0.2943 | H40: 16186500 | I40: 1000000 | J40: 17186500 | K40: 1485000000 | L40: 0.01157340067
A41: 33 | B41: PEG | C41: Pub Sv Enterprise Grp. | D41: 2003-10-02 | E41: =8250000+1237500 -> 9487500 | F41: 41.75 | G41: 1.2525 | H41: 11883093.75 | I41: 350000 | J41: 12233093.75 | K41: 396103125 | L41: 0.03088360828
A42: =A41+1 -> 34 | B42: SRE | C42: Sempra Energy | D42: 2018-01-05 | E42: =23364486+3504672 -> 26869158 | F42: 107 | G42: 1.926 | H42: 51749998.31 | I42: 1500000 | J42: 53249998.31 | K42: 2874999906 | L42: 0.01852173915
A43: 35 | B43: SO | C43: Southern Company (a) | D43: 2016-08-18 | E43: 32500000 | F43: 49.3 | G43: =N43-F43 -> 1.66 | H43: 53950000 | I43: 557000 | J43: 54507000 | K43: 1602250000 | L43: 0.03401903573 | N43: 50.96 | O43: =K43-H43-I43 -> 1547743000
A44: 36 | B44: WEC | C44: WEC Energy Group | D44: N/A
A45: 37 | B45: XEL | C45: Xcel Energy Inc. (a) | D45: 2019-10-30 | E45: 10300000 | F45: 62.69 | G45: =N45-F45 -> 0.63 | H45: =E45*G45 -> 6489000 | I45: 650000 | J45: =I45+H45 -> 7139000 | K45: =F45*E45 -> 645707000 | L45: =J45/K45 -> 0.0110560982 | N45: 63.32 | O45: =K45-H45-I45 -> 638568000
C46: Average | L46: =AVERAGE(L9:L45) -> 0.02779190091
A49: 1 | B49: ATO | C49: Atmos Energy Corp. | D49: 2018-11-30 | E49: 7008087 | F49: 92.75 | G49: 0.9769 | H49: =E49*G49 -> 6846200.19 | I49: 1000000 | J49: =I49+H49 -> 7846200.19 | K49: =F49*E49 -> 650000069.2 | L49: =J49/K49 -> 0.01207107593
A50: =A49+1 -> 2 | B50: CPK | C50: Chesapeake Utilities | D50: 2016-09-23 | E50: 960488 | F50: 62.26 | G50: 2.33 | H50: =E50*G50 -> 2237937.04 | I50: =K50-O50-H50 -> 162045.84 | J50: =I50+H50 -> 2399982.88 | K50: =F50*E50 -> 59799982.88 | L50: =J50/K50 -> 0.04013350447 | O50: 57400000
A51: =A50+1 -> 3 | B51: NJR | C51: New Jersey Resources | D51: 2019-12-04 | E51: 5700000 | F51: 41.25 | G51: 1.2375 | H51: =E51*G51 -> 7053750 | I51: 500000 | J51: =H51+I51 -> 7553750 | K51: =F51*E51 -> 235125000 | L51: =J51/K51 -> 0.03212652844
A52: 4 | B52: NI | C52: NiSource Inc. | D52: 2017-05-03 | E52: N/A | F52: N/A | G52: N/A | H52: =0.02*K52 -> 10000000 | I52: 57950 | J52: =H52+I52 -> 10057950 | K52: 500000000 | L52: =J52/K52 -> 0.0201159
A53: 5 | B53: NWN | C53: Northwest Nat. Holding Co. | D53: 2019-06-04 | E53: 1250000 | F53: 67 | G53: 2.1775 | H53: =E53*G53 -> 2721875 | I53: 400000 | J53: =H53+I53 -> 3121875 | K53: =F53*E53 -> 83750000 | L53: =J53/K53 -> 0.0372761194
A54: 6 | B54: OGS | C54: ONE Gas, Inc. | D54: N/A
A55: 7 | B55: SJI | C55: South Jersey Industries | D55: 2018-04-20 | E55: 11016949 | F55: 29.5 | G55: 1.0325 | H55: =E55*G55 -> 11374999.84 | I55: 700000 | J55: =H55+I55 -> 12074999.84 | K55: =F55*E55 -> 324999995.5 | L55: =J55/K55 -> 0.03715384618
A56: 8 | B56: SWX | C56: Southwest Gas | D56: 2018-11-28 | E56: 3100000 | F56: 75.5 | G56: 2.5481 | H56: =E56*G56 -> 7899110 | I56: 600000 | J56: =H56+I56 -> 8499110 | K56: =F56*E56 -> 234050000 | L56: =J56/K56 -> 0.03631322367
A57: 9 | B57: SR | C57: Spire Inc. | D57: 2018-05-09 | E57: 2000000 | F57: 63.05 | G57: 2.10938 | H57: =E57*G57 -> 4218760 | I57: 325000 | J57: =H57+I57 -> 4543760 | K57: =F57*E57 -> 126100000 | L57: =J57/K57 -> 0.03603298969
C58: Average | L58: =AVERAGE(L49:L57) -> 0.03140289847
C60: Average - Electric & Gas | L60: =AVERAGE(L9:L45,L49:L57) -> 0.02853261836
B62: Column Notes:
B63: (1-4) | C63: SEC Form 424B for each company.
B64: (5) | C64: Column (2) * Column (4)
B65: (6) | C65: SEC Form 424B for each company.
B66: (7) | C66: Column (5) + Column (6)
B67: (8) | C67: Column (2) * Column (3)
B68: (9) | C68: Column (7) / Column (8)
B69: Note (a): | C69: Underwriting discount computed as the difference between the current market price and the price offered to the issuing company by the underwriters.

Sheet 11 (1)
A1: ='Exhibit List'!C18 -> DCF MODEL - NON-UTILITY GROUP | J1: ='Exhibit List'!B18 -> Exhibit No. 11
J2: Page 1 of 3
A3: ='Exhibit List'!D18 -> DIVIDEND YIELD
E4: (a) | G4: (b)
B5: Company | C5: Industry Group | E5: Price | G5: Dividends | I5: Yield
A6: 1 | B6: Air Products & Chem. | C6: Chemical (Diversified) | E6: ='Stock Price (Non-Utility)'!C$34 -> 297.454 | G6: 5.36 | I6: =G6/E6 -> 0.01801959295 | L6: APD
A7: =A6+1 -> 2 | B7: Amdocs Ltd. | C7: IT Services | E7: ='Stock Price (Non-Utility)'!D$34 -> 58.51616667 | G7: 1.31 | I7: 0.02238697568 | L7: DOX
A8: =A7+1 -> 3 | B8: Amgen | C8: Biotechnology | E8: ='Stock Price (Non-Utility)'!E$34 -> 247.7286667 | G8: 6.85 | I8: 0.02765122056 | L8: AMGN
A9: 4 | B9: Amphenol Corp. | C9: Electronics | E9: ='Stock Price (Non-Utility)'!F$34 -> 108.3673333 | G9: 1 | I9: 0.009227873098 | L9: APH
A10: 5 | B10: Apple Inc. | C10: Computers/Peripherals | E10: ='Stock Price (Non-Utility)'!G$34 -> 115.9320833 | G10: 0.85 | I10: 0.007331878938 | L10: AAPL
A11: 6 | B11: AT&T Inc. | C11: Telecom. Services | E11: ='Stock Price (Non-Utility)'!H$34 -> 28.896 | G11: 2.11 | I11: 0.07302048726 | L11: T
A12: 7 | B12: Baxter Int'l Inc. | C12: Med Supp Invasive | E12: ='Stock Price (Non-Utility)'!I$34 -> 81.49933333 | G12: 0.98 | I12: 0.01202463824 | L12: BAX
A13: 8 | B13: Bristol-Myers Squibb | C13: Drug | E13: ='Stock Price (Non-Utility)'!J$34 -> 59.72933333 | G13: 1.8 | I13: =G13/E13 -> 0.0301359466 | L13: BMY
A14: 9 | B14: Brown & Brown | C14: Financial Svcs. (Div.) | E14: ='Stock Price (Non-Utility)'!K$34 -> 45.28033333 | G14: 0.34 | I14: 0.007508778646 | L14: BRO
A15: 10 | B15: Brown-Forman 'B' | C15: Beverage | E15: ='Stock Price (Non-Utility)'!L$34 -> 76.92766667 | G15: 0.72 | I15: =G15/E15 -> 0.009359441553 | L15: BF/B
A16: 11 | B16: Church & Dwight | C16: Household Products | E16: ='Stock Price (Non-Utility)'!M$34 -> 92.69866667 | G16: 0.96 | I16: 0.01035613601 | L16: CHD
A17: 12 | B17: Cisco Systems | C17: Telecom. Equipment | E17: ='Stock Price (Non-Utility)'!N$34 -> 39.852 | G17: 1.46 | I17: 0.03663555154 | L17: CSCO
A18: 13 | B18: Coca-Cola | C18: Beverage | E18: ='Stock Price (Non-Utility)'!O$34 -> 49.848 | G18: 1.68 | I18: 0.03370245546 | L18: KO
A19: 14 | B19: Colgate-Palmolive | C19: Household Products | E19: ='Stock Price (Non-Utility)'!P$34 -> 77.20433333 | G19: 1.76 | I19: 0.02279664786 | L19: CL
A20: 15 | B20: Comcast Corp. | C20: Cable TV | E20: ='Stock Price (Non-Utility)'!Q$34 -> 45.30866667 | G20: 0.92 | I20: 0.02030516605 | L20: CMCSA
A21: 16 | B21: Commerce Bancshs. | C21: Bank (Midwest) | E21: ='Stock Price (Non-Utility)'!R$34 -> 57.05866667 | G21: 1.08 | I21: 0.01892788709 | L21: CBSH
A22: 17 | B22: Costco Wholesale | C22: Retail Store | E22: ='Stock Price (Non-Utility)'!S$34 -> 349.115 | G22: 2.8 | I22: 0.00802027985 | L22: COST
A23: 18 | B23: CVS Health | C23: Pharmacy Services | E23: ='Stock Price (Non-Utility)'!T$34 -> 58.88533333 | G23: 2 | I23: 0.03396431483 | L23: CVS
A24: 19 | B24: Danaher Corp. | C24: Diversified Co. | E24: ='Stock Price (Non-Utility)'!U$34 -> 208.9603333 | G24: 0.72 | I24: 0.003445630032 | L24: DHR
A25: 20 | B25: Gen'l Mills | C25: Automotive | E25: ='Stock Price (Non-Utility)'!V$34 -> 60.54266667 | G25: 2.04 | I25: 0.03369524523 | L25: GIS
A26: 21 | B26: Hormel Foods | C26: Food Processing | E26: ='Stock Price (Non-Utility)'!W$34 -> 49.543 | G26: 1 | I26: 0.0201844862 | L26: HRL
A27: 22 | B27: Intel Corp. | C27: Hotel/Gaming | E27: ='Stock Price (Non-Utility)'!X$34 -> 50.627 | G27: 1.32 | I27: 0.02607304403 | L27: INTC
A28: 23 | B28: Int'l Flavors & Frag. | C28: Wireless Networking | E28: ='Stock Price (Non-Utility)'!Y$34 -> 121.0746667 | G28: 3.12 | I28: 0.0257692223 | L28: IFF
A29: 24 | B29: Johnson & Johnson | C29: Med Supp Non-Invasive | E29: ='Stock Price (Non-Utility)'!Z$34 -> 148.2366667 | G29: 4.04 | I29: 0.0272537159 | L29: JNJ
A30: 25 | B30: Kellogg | C30: Food Processing | E30: ='Stock Price (Non-Utility)'!AA$34 -> 65.50933333 | G30: 2.3 | I30: 0.03510950094 | L30: K
A31: 26 | B31: Kimberly-Clark | C31: Household Products | E31: ='Stock Price (Non-Utility)'!AB$34 -> 149.4083333 | G31: 4.28 | I31: 0.02864632718 | L31: KMB
A32: 27 | B32: Lilly (Eli) | C32: Drug | E32: ='Stock Price (Non-Utility)'!AC$34 -> 149.2226667 | G32: 2.96 | I32: 0.01983612856 | L32: LLY
A33: 28 | B33: Lockheed Martin | C33: Aerospace/Defense | E33: ='Stock Price (Non-Utility)'!AD$34 -> 386.9213333 | G33: 10.4 | I33: 0.02687884876 | L33: LMT
A34: 29 | B34: Marsh & McLennan | C34: Financial Svcs. (Div.) | E34: ='Stock Price (Non-Utility)'!AE$34 -> 115.592 | G34: 1.86 | I34: 0.01609107897 | L34: MMC
A35: 30 | B35: McCormick & Co. | C35: Food Processing | E35: ='Stock Price (Non-Utility)'!AF$34 -> 196.549 | G35: 2.5 | I35: 0.01271947453 | L35: MKC
A36: 31 | B36: McDonald's Corp. | C36: Restaurant | E36: ='Stock Price (Non-Utility)'!AG$34 -> 218.935 | G36: 5 | I36: 0.02283782858 | L36: MCD
A37: 32 | B37: Merck & Co. | C37: Drug | E37: ='Stock Price (Non-Utility)'!AH$34 -> 83.37466667 | G37: 2.44 | I37: 0.02926548432 | L37: MRK
A38: 33 | B38: Microsoft Corp. | C38: Computer Software | E38: ='Stock Price (Non-Utility)'!AI$34 -> 210.3516667 | G38: 2.04 | I38: 0.009698045337 | L38: MSFT
A39: 34 | B39: Northrop Grumman | C39: Aerospace/Defense | E39: ='Stock Price (Non-Utility)'!AJ$34 -> 330.3676667 | G39: 5.8 | I39: 0.01755619749 | L39: NOC
A40: 35 | B40: Oracle Corp. | C40: Drug | E40: ='Stock Price (Non-Utility)'!AK$34 -> 59.01466667 | G40: 0.96 | I40: 0.01626714263 | L40: ORCL
A41: 36 | B41: PepsiCo, Inc. | C41: Beverage | E41: ='Stock Price (Non-Utility)'!AL$34 -> 136.494 | G41: 4.09 | I41: 0.02996468709 | L41: PEP
A42: 37 | B42: Pfizer, Inc. | C42: Drug | E42: ='Stock Price (Non-Utility)'!AM$34 -> 36.52433333 | G42: 1.52 | I42: 0.04161609156 | L42: PFE
A43: 38 | B43: Procter & Gamble | C43: Household Products | E43: ='Stock Price (Non-Utility)'!AN$34 -> 138.4066667 | G43: 3.16 | I43: 0.02283127017 | L43: PG
A44: 39 | B44: Public Storage | C44: R.E.I.T. | E44: ='Stock Price (Non-Utility)'!AO$34 -> 220.7053333 | G44: 8 | I44: 0.03624742492 | L44: PSA
A45: 40 | B45: Texas Instruments | C45: Environmental | E45: ='Stock Price (Non-Utility)'!AP$34 -> 141.3083333 | G45: 4.08 | I45: 0.02887303179 | L45: TXN
A46: 41 | B46: Travelers Cos. | C46: Insurance (Prop/Cas.) | E46: ='Stock Price (Non-Utility)'!AQ$34 -> 112.1876667 | G46: 3.4 | I46: 0.03030636166 | L46: TRV
A47: 42 | B47: United Parcel Serv. | C47: Air Transport | E47: ='Stock Price (Non-Utility)'!AR$34 -> 163.9746667 | G47: 4.04 | I47: 0.0246379522 | L47: UPS
A48: 43 | B48: Verizon Communic. | C48: Telecom. Services | E48: ='Stock Price (Non-Utility)'!AS$34 -> 59.727 | G48: 2.51 | I48: 0.04202454501 | L48: VZ
A49: 44 | B49: Walmart Inc. | C49: Retail Store | E49: ='Stock Price (Non-Utility)'!AT$34 -> 139.5746667 | G49: 2.18 | I49: 0.01561888022 | L49: WMT
A50: 45 | B50: Waste Management | C50: Environmental | E50: ='Stock Price (Non-Utility)'!AU$34 -> 113.7313333 | G50: 2.18 | I50: 0.01916798068 | L50: WM
B52: Average | I52: =AVERAGE(I6:I50) -> 0.02364424219
A54: (a) | B54: ='Stock Price (Non-Utility)'!B37 -> Average of closing prices for 30 trading days ended Oct. 9, 2020.
A55: (b) | B55: The Value Line Investment Survey, Summary & Index (Oct. 9, 2020).

Sheet 11 (2)
A1: ='Exhibit List'!C19 -> DCF MODEL - NON-UTILITY GROUP | I1: ='Exhibit List'!B19 -> Exhibit No. 11
I2: Page 2 of 3
A3: ='Exhibit List'!D19 -> GROWTH RATES
D5: (a) | F5: (b) | H5: (c)
D6: Earnings Growth
B7: Company | D7: V Line | F7: IBES | H7: Zacks
A8: =A7+1 -> 1 | B8: ='11 (1)'!B6 -> Air Products & Chem. | D8: 0.12 | F8: 0.1033 | H8: 0.0877
A9: 2 | B9: ='11 (1)'!B7 -> Amdocs Ltd. | D9: 0.095 | F9: 0.044 | H9: 0.085
A10: 3 | B10: ='11 (1)'!B8 -> Amgen | D10: 0.065 | F10: 0.0687 | H10: 0.0723
A11: 4 | B11: ='11 (1)'!B9 -> Amphenol Corp. | D11: 0.105 | F11: 0.03 | H11: 0.0751
A12: 5 | B12: ='11 (1)'!B10 -> Apple Inc. | D12: 0.155 | F12: 0.1246 | H12: 0.11
A13: 6 | B13: ='11 (1)'!B11 -> AT&T Inc. | D13: 0.055 | F13: 0.0029 | H13: 0.0553
A14: 7 | B14: ='11 (1)'!B12 -> Baxter Int'l Inc. | D14: 0.09 | F14: 0.1 | H14: 0.0975
A15: 8 | B15: ='11 (1)'!B13 -> Bristol-Myers Squibb | D15: 0.125 | F15: 0.222 | H15: 0.0863
A16: 9 | B16: ='11 (1)'!B14 -> Brown & Brown | D16: 0.105 | F16: 0.0864 | H16: n/a
A17: 10 | B17: ='11 (1)'!B15 -> Brown-Forman 'B' | D17: 0.11 | F17: 0.0685 | H17: n/a
A18: 11 | B18: ='11 (1)'!B16 -> Church & Dwight | D18: 0.08 | F18: 0.0948 | H18: 0.0886
A19: 12 | B19: ='11 (1)'!B17 -> Cisco Systems | D19: 0.07 | F19: 0.0618 | H19: 0.0667
A20: 13 | B20: ='11 (1)'!B18 -> Coca-Cola | D20: 0.065 | F20: 0.0293 | H20: 0.0481
A21: 14 | B21: ='11 (1)'!B19 -> Colgate-Palmolive | D21: 0.05 | F21: 0.0591 | H21: 0.0589
A22: 15 | B22: ='11 (1)'!B20 -> Comcast Corp. | D22: 0.085 | F22: 0.0524 | H22: 0.0976
A23: 16 | B23: ='11 (1)'!B21 -> Commerce Bancshs. | D23: 0.065 | F23: -0.087 | H23: n/a
A24: 17 | B24: ='11 (1)'!B22 -> Costco Wholesale | D24: 0.09 | F24: 0.0704 | H24: 0.0837
A25: 18 | B25: ='11 (1)'!B23 -> CVS Health | D25: 0.06 | F25: 0.0634 | H25: 0.0559
A26: 19 | B26: ='11 (1)'!B24 -> Danaher Corp. | D26: 0.16 | F26: 0.1306 | H26: 0.1171
A27: 20 | B27: ='11 (1)'!B25 -> Gen'l Mills | D27: 0.03 | F27: 0.0505 | H27: 0.075
A28: 21 | B28: ='11 (1)'!B26 -> Hormel Foods | D28: 0.085 | F28: 0.01 | H28: 0.075
A29: 22 | B29: ='11 (1)'!B27 -> Intel Corp. | D29: 0.07 | F29: 0.0862 | H29: 0.075
A30: 23 | B30: ='11 (1)'!B28 -> Int'l Flavors & Frag. | D30: 0.08 | F30: 0.0038 | H30: n/a
A31: 24 | B31: ='11 (1)'!B29 -> Johnson & Johnson | D31: 0.1 | F31: 0.0509 | H31: 0.0575
A32: 25 | B32: ='11 (1)'!B30 -> Kellogg | D32: 0.03 | F32: 0.0185 | H32: 0.06
A33: 26 | B33: ='11 (1)'!B31 -> Kimberly-Clark | D33: 0.065 | F33: 0.0636 | H33: 0.0549
A34: 27 | B34: ='11 (1)'!B32 -> Lilly (Eli) | D34: 0.1 | F34: 0.133 | H34: 0.1569
A35: 28 | B35: ='11 (1)'!B33 -> Lockheed Martin | D35: 0.085 | F35: 0.0911 | H35: 0.0693
A36: 29 | B36: ='11 (1)'!B34 -> Marsh & McLennan | D36: 0.09 | F36: 0.0487 | H36: 0.0305
A37: 30 | B37: ='11 (1)'!B35 -> McCormick & Co. | D37: 0.065 | F37: 0.048 | H37: 0.0554
A38: 31 | B38: ='11 (1)'!B36 -> McDonald's Corp. | D38: 0.08 | F38: 0.0398 | H38: 0.0704
A39: 32 | B39: ='11 (1)'!B37 -> Merck & Co. | D39: 0.09 | F39: 0.0683 | H39: 0.0674
A40: 33 | B40: ='11 (1)'!B38 -> Microsoft Corp. | D40: 0.15 | F40: 0.1525 | H40: 0.1371
A41: 34 | B41: ='11 (1)'!B39 -> Northrop Grumman | D41: 0.11 | F41: 0.0862 | H41: n/a
A42: 35 | B42: ='11 (1)'!B40 -> Oracle Corp. | D42: 0.105 | F42: 0.0918 | H42: 0.11
A43: 36 | B43: ='11 (1)'!B41 -> PepsiCo, Inc. | D43: 0.06 | F43: 0.059 | H43: 0.0649
A44: 37 | B44: ='11 (1)'!B42 -> Pfizer, Inc. | D44: 0.085 | F44: 0.0537 | H44: 0.0429
A45: 38 | B45: ='11 (1)'!B43 -> Procter & Gamble | D45: 0.085 | F45: 0.0715 | H45: 0.0653
A46: 39 | B46: ='11 (1)'!B44 -> Public Storage | D46: n/a | F46: 0.17 | H46: 0.0336
A47: 40 | B47: ='11 (1)'!B45 -> Texas Instruments | D47: 0.04 | F47: 0.1 | H47: 0.0933
A48: 41 | B48: ='11 (1)'!B46 -> Travelers Cos. | D48: 0.095 | F48: 0.0305 | H48: 0.0666
A49: 42 | B49: ='11 (1)'!B47 -> United Parcel Serv. | D49: 0.06 | F49: 0.0731 | H49: 0.079
A50: 43 | B50: ='11 (1)'!B48 -> Verizon Communic. | D50: 0.04 | F50: 0.0164 | H50: 0.0341
A51: 44 | B51: ='11 (1)'!B49 -> Walmart Inc. | D51: 0.075 | F51: 0.0641 | H51: 0.0563
A52: 45 | B52: ='11 (1)'!B50 -> Waste Management | D52: 0.055 | F52: -0.0126 | H52: 0.0629
A54: (a) | B54: The Value Line Investment Survey (various editions as of Oct. 9, 2020).
A55: (b) | B55: www.finance.yahoo.com (retrieved Oct. 11, 2020).
A56: (c) | B56: www.zacks.com (retrieved Oct. 11, 2019).

Sheet 11 (3)
A1: ='Exhibit List'!C20 -> DCF MODEL - NON-UTILITY GROUP | I1: ='Exhibit List'!B20 -> Exhibit No. 11
I2: Page 3 of 3
A3: ='Exhibit List'!D20 -> DCF COST OF EQUITY ESTIMATES
D5: (a) | F5: (a) | H5: (a)
D6: Earnings Growth
B7: Company | D7: V Line | F7: IBES | H7: Zacks
A8: =A7+1 -> 1 | B8: ='11 (1)'!B6 -> Air Products & Chem. | D8: =IF('11 (2)'!D8="n/a","n/a",'11 (1)'!$I6+'11 (2)'!D8) -> 0.1380195929 | F8: =IF('11 (2)'!F8="n/a","n/a",'11 (1)'!$I6+'11 (2)'!F8) -> 0.1213195929 | H8: =IF('11 (2)'!H8="n/a","n/a",'11 (1)'!$I6+'11 (2)'!H8) -> 0.1057195929 | L8: =IF(D8="n/a","n/a",IF(D8<$C$64,"nmf",IF(D8>$C$65,"nmf",D8))) -> 0.1380195929 | M8: =IF(F8="n/a","n/a",IF(F8<$C$64,"nmf",IF(F8>$C$65,"nmf",F8))) -> 0.1213195929 | N8: =IF(H8="n/a","n/a",IF(H8<$C$64,"nmf",IF(H8>$C$65,"nmf",H8))) -> 0.1057195929
A9: 2 | B9: ='11 (1)'!B7 -> Amdocs Ltd. | D9: =IF('11 (2)'!D9="n/a","n/a",'11 (1)'!$I7+'11 (2)'!D9) -> 0.1173869757 | F9: =IF('11 (2)'!F9="n/a","n/a",'11 (1)'!$I7+'11 (2)'!F9) -> 0.06638697568 | H9: =IF('11 (2)'!H9="n/a","n/a",'11 (1)'!$I7+'11 (2)'!H9) -> 0.1073869757 | L9: =IF(D9="n/a","n/a",IF(D9<$C$64,"nmf",IF(D9>$C$65,"nmf",D9))) -> 0.1173869757 | M9: =IF(F9="n/a","n/a",IF(F9<$C$64,"nmf",IF(F9>$C$65,"nmf",F9))) -> 0.06638697568 | N9: =IF(H9="n/a","n/a",IF(H9<$C$64,"nmf",IF(H9>$C$65,"nmf",H9))) -> 0.1073869757
A10: 3 | B10: ='11 (1)'!B8 -> Amgen | D10: =IF('11 (2)'!D10="n/a","n/a",'11 (1)'!$I8+'11 (2)'!D10) -> 0.09265122056 | F10: =IF('11 (2)'!F10="n/a","n/a",'11 (1)'!$I8+'11 (2)'!F10) -> 0.09635122056 | H10: =IF('11 (2)'!H10="n/a","n/a",'11 (1)'!$I8+'11 (2)'!H10) -> 0.09995122056 | L10: 0.09265122056 | M10: 0.09635122056 | N10: 0.09995122056
A11: 4 | B11: ='11 (1)'!B9 -> Amphenol Corp. | D11: =IF('11 (2)'!D11="n/a","n/a",'11 (1)'!$I9+'11 (2)'!D11) -> 0.1142278731 | F11: =IF('11 (2)'!F11="n/a","n/a",'11 (1)'!$I9+'11 (2)'!F11) -> 0.0392278731 | H11: =IF('11 (2)'!H11="n/a","n/a",'11 (1)'!$I9+'11 (2)'!H11) -> 0.0843278731 | L11: 0.1142278731 | M11: nmf | N11: 0.0843278731
A12: 5 | B12: ='11 (1)'!B10 -> Apple Inc. | D12: =IF('11 (2)'!D12="n/a","n/a",'11 (1)'!$I10+'11 (2)'!D12) -> 0.1623318789 | F12: =IF('11 (2)'!F12="n/a","n/a",'11 (1)'!$I10+'11 (2)'!F12) -> 0.1319318789 | H12: =IF('11 (2)'!H12="n/a","n/a",'11 (1)'!$I10+'11 (2)'!H12) -> 0.1173318789 | L12: nmf | M12: 0.1319318789 | N12: 0.1173318789
A13: 6 | B13: ='11 (1)'!B11 -> AT&T Inc. | D13: =IF('11 (2)'!D13="n/a","n/a",'11 (1)'!$I11+'11 (2)'!D13) -> 0.1280204873 | F13: =IF('11 (2)'!F13="n/a","n/a",'11 (1)'!$I11+'11 (2)'!F13) -> 0.07592048726 | H13: =IF('11 (2)'!H13="n/a","n/a",'11 (1)'!$I11+'11 (2)'!H13) -> 0.1283204873 | L13: 0.1280204873 | M13: 0.07592048726 | N13: 0.1283204873
A14: 7 | B14: ='11 (1)'!B12 -> Baxter Int'l Inc. | D14: =IF('11 (2)'!D14="n/a","n/a",'11 (1)'!$I12+'11 (2)'!D14) -> 0.1020246382 | F14: =IF('11 (2)'!F14="n/a","n/a",'11 (1)'!$I12+'11 (2)'!F14) -> 0.1120246382 | H14: =IF('11 (2)'!H14="n/a","n/a",'11 (1)'!$I12+'11 (2)'!H14) -> 0.1095246382 | L14: 0.1020246382 | M14: 0.1120246382 | N14: 0.1095246382
A15: 8 | B15: ='11 (1)'!B13 -> Bristol-Myers Squibb | D15: =IF('11 (2)'!D15="n/a","n/a",'11 (1)'!$I13+'11 (2)'!D15) -> 0.1551359466 | F15: =IF('11 (2)'!F15="n/a","n/a",'11 (1)'!$I13+'11 (2)'!F15) -> 0.2521359466 | H15: =IF('11 (2)'!H15="n/a","n/a",'11 (1)'!$I13+'11 (2)'!H15) -> 0.1164359466 | L15: nmf | M15: nmf | N15: 0.1164359466
A16: 9 | B16: ='11 (1)'!B14 -> Brown & Brown | D16: =IF('11 (2)'!D16="n/a","n/a",'11 (1)'!$I14+'11 (2)'!D16) -> 0.1125087786 | F16: =IF('11 (2)'!F16="n/a","n/a",'11 (1)'!$I14+'11 (2)'!F16) -> 0.09390877865 | H16: =IF('11 (2)'!H16="n/a","n/a",'11 (1)'!$I14+'11 (2)'!H16) -> n/a | L16: 0.1125087786 | M16: 0.09390877865 | N16: n/a
A17: 10 | B17: ='11 (1)'!B15 -> Brown-Forman 'B' | D17: =IF('11 (2)'!D17="n/a","n/a",'11 (1)'!$I15+'11 (2)'!D17) -> 0.1193594416 | F17: =IF('11 (2)'!F17="n/a","n/a",'11 (1)'!$I15+'11 (2)'!F17) -> 0.07785944155 | H17: =IF('11 (2)'!H17="n/a","n/a",'11 (1)'!$I15+'11 (2)'!H17) -> n/a | L17: 0.1193594416 | M17: 0.07785944155 | N17: n/a
A18: 11 | B18: ='11 (1)'!B16 -> Church & Dwight | D18: =IF('11 (2)'!D18="n/a","n/a",'11 (1)'!$I16+'11 (2)'!D18) -> 0.09035613601 | F18: =IF('11 (2)'!F18="n/a","n/a",'11 (1)'!$I16+'11 (2)'!F18) -> 0.105156136 | H18: =IF('11 (2)'!H18="n/a","n/a",'11 (1)'!$I16+'11 (2)'!H18) -> 0.09895613601 | L18: 0.09035613601 | M18: 0.105156136 | N18: 0.09895613601
A19: 12 | B19: ='11 (1)'!B17 -> Cisco Systems | D19: =IF('11 (2)'!D19="n/a","n/a",'11 (1)'!$I17+'11 (2)'!D19) -> 0.1066355515 | F19: =IF('11 (2)'!F19="n/a","n/a",'11 (1)'!$I17+'11 (2)'!F19) -> 0.09843555154 | H19: =IF('11 (2)'!H19="n/a","n/a",'11 (1)'!$I17+'11 (2)'!H19) -> 0.1033355515 | L19: 0.1066355515 | M19: 0.09843555154 | N19: 0.1033355515
A20: 13 | B20: ='11 (1)'!B18 -> Coca-Cola | D20: =IF('11 (2)'!D20="n/a","n/a",'11 (1)'!$I18+'11 (2)'!D20) -> 0.09870245546 | F20: =IF('11 (2)'!F20="n/a","n/a",'11 (1)'!$I18+'11 (2)'!F20) -> 0.06300245546 | H20: =IF('11 (2)'!H20="n/a","n/a",'11 (1)'!$I18+'11 (2)'!H20) -> 0.08180245546 | L20: 0.09870245546 | M20: nmf | N20: 0.08180245546
A21: 14 | B21: ='11 (1)'!B19 -> Colgate-Palmolive | D21: =IF('11 (2)'!D21="n/a","n/a",'11 (1)'!$I19+'11 (2)'!D21) -> 0.07279664786 | F21: =IF('11 (2)'!F21="n/a","n/a",'11 (1)'!$I19+'11 (2)'!F21) -> 0.08189664786 | H21: =IF('11 (2)'!H21="n/a","n/a",'11 (1)'!$I19+'11 (2)'!H21) -> 0.08169664786 | L21: 0.07279664786 | M21: 0.08189664786 | N21: 0.08169664786
A22: 15 | B22: ='11 (1)'!B20 -> Comcast Corp. | D22: =IF('11 (2)'!D22="n/a","n/a",'11 (1)'!$I20+'11 (2)'!D22) -> 0.105305166 | F22: =IF('11 (2)'!F22="n/a","n/a",'11 (1)'!$I20+'11 (2)'!F22) -> 0.07270516605 | H22: =IF('11 (2)'!H22="n/a","n/a",'11 (1)'!$I20+'11 (2)'!H22) -> 0.117905166 | L22: 0.105305166 | M22: 0.07270516605 | N22: 0.117905166
A23: 16 | B23: ='11 (1)'!B21 -> Commerce Bancshs. | D23: =IF('11 (2)'!D23="n/a","n/a",'11 (1)'!$I21+'11 (2)'!D23) -> 0.08392788709 | F23: =IF('11 (2)'!F23="n/a","n/a",'11 (1)'!$I21+'11 (2)'!F23) -> -0.06807211291 | H23: =IF('11 (2)'!H23="n/a","n/a",'11 (1)'!$I21+'11 (2)'!H23) -> n/a | L23: 0.08392788709 | M23: nmf | N23: n/a
A24: 17 | B24: ='11 (1)'!B22 -> Costco Wholesale | D24: =IF('11 (2)'!D24="n/a","n/a",'11 (1)'!$I22+'11 (2)'!D24) -> 0.09802027985 | F24: =IF('11 (2)'!F24="n/a","n/a",'11 (1)'!$I22+'11 (2)'!F24) -> 0.07842027985 | H24: =IF('11 (2)'!H24="n/a","n/a",'11 (1)'!$I22+'11 (2)'!H24) -> 0.09172027985 | L24: 0.09802027985 | M24: 0.07842027985 | N24: 0.09172027985
A25: 18 | B25: ='11 (1)'!B23 -> CVS Health | D25: =IF('11 (2)'!D25="n/a","n/a",'11 (1)'!$I23+'11 (2)'!D25) -> 0.09396431483 | F25: =IF('11 (2)'!F25="n/a","n/a",'11 (1)'!$I23+'11 (2)'!F25) -> 0.09736431483 | H25: =IF('11 (2)'!H25="n/a","n/a",'11 (1)'!$I23+'11 (2)'!H25) -> 0.08986431483 | L25: 0.09396431483 | M25: 0.09736431483 | N25: 0.08986431483
A26: 19 | B26: ='11 (1)'!B24 -> Danaher Corp. | D26: =IF('11 (2)'!D26="n/a","n/a",'11 (1)'!$I24+'11 (2)'!D26) -> 0.16344563 | F26: =IF('11 (2)'!F26="n/a","n/a",'11 (1)'!$I24+'11 (2)'!F26) -> 0.13404563 | H26: =IF('11 (2)'!H26="n/a","n/a",'11 (1)'!$I24+'11 (2)'!H26) -> 0.12054563 | L26: nmf | M26: 0.13404563 | N26: 0.12054563
A27: 20 | B27: ='11 (1)'!B25 -> Gen'l Mills | D27: =IF('11 (2)'!D27="n/a","n/a",'11 (1)'!$I25+'11 (2)'!D27) -> 0.06369524523 | F27: =IF('11 (2)'!F27="n/a","n/a",'11 (1)'!$I25+'11 (2)'!F27) -> 0.08419524523 | H27: =IF('11 (2)'!H27="n/a","n/a",'11 (1)'!$I25+'11 (2)'!H27) -> 0.1086952452 | L27: nmf | M27: 0.08419524523 | N27: 0.1086952452
A28: 21 | B28: ='11 (1)'!B26 -> Hormel Foods | D28: =IF('11 (2)'!D28="n/a","n/a",'11 (1)'!$I26+'11 (2)'!D28) -> 0.1051844862 | F28: =IF('11 (2)'!F28="n/a","n/a",'11 (1)'!$I26+'11 (2)'!F28) -> 0.0301844862 | H28: =IF('11 (2)'!H28="n/a","n/a",'11 (1)'!$I26+'11 (2)'!H28) -> 0.0951844862 | L28: 0.1051844862 | M28: nmf | N28: 0.0951844862
A29: 22 | B29: ='11 (1)'!B27 -> Intel Corp. | D29: =IF('11 (2)'!D29="n/a","n/a",'11 (1)'!$I27+'11 (2)'!D29) -> 0.09607304403 | F29: =IF('11 (2)'!F29="n/a","n/a",'11 (1)'!$I27+'11 (2)'!F29) -> 0.112273044 | H29: =IF('11 (2)'!H29="n/a","n/a",'11 (1)'!$I27+'11 (2)'!H29) -> 0.101073044 | L29: 0.09607304403 | M29: 0.112273044 | N29: 0.101073044
A30: 23 | B30: ='11 (1)'!B28 -> Int'l Flavors & Frag. | D30: =IF('11 (2)'!D30="n/a","n/a",'11 (1)'!$I28+'11 (2)'!D30) -> 0.1057692223 | F30: =IF('11 (2)'!F30="n/a","n/a",'11 (1)'!$I28+'11 (2)'!F30) -> 0.0295692223 | H30: =IF('11 (2)'!H30="n/a","n/a",'11 (1)'!$I28+'11 (2)'!H30) -> n/a | L30: 0.1057692223 | M30: nmf | N30: n/a
A31: 24 | B31: ='11 (1)'!B29 -> Johnson & Johnson | D31: =IF('11 (2)'!D31="n/a","n/a",'11 (1)'!$I29+'11 (2)'!D31) -> 0.1272537159 | F31: =IF('11 (2)'!F31="n/a","n/a",'11 (1)'!$I29+'11 (2)'!F31) -> 0.0781537159 | H31: =IF('11 (2)'!H31="n/a","n/a",'11 (1)'!$I29+'11 (2)'!H31) -> 0.0847537159 | L31: 0.1272537159 | M31: 0.0781537159 | N31: 0.0847537159
A32: 25 | B32: ='11 (1)'!B30 -> Kellogg | D32: =IF('11 (2)'!D32="n/a","n/a",'11 (1)'!$I30+'11 (2)'!D32) -> 0.06510950094 | F32: =IF('11 (2)'!F32="n/a","n/a",'11 (1)'!$I30+'11 (2)'!F32) -> 0.05360950094 | H32: =IF('11 (2)'!H32="n/a","n/a",'11 (1)'!$I30+'11 (2)'!H32) -> 0.09510950094 | L32: 0.06510950094 | M32: nmf | N32: 0.09510950094
A33: 26 | B33: ='11 (1)'!B31 -> Kimberly-Clark | D33: =IF('11 (2)'!D33="n/a","n/a",'11 (1)'!$I31+'11 (2)'!D33) -> 0.09364632718 | F33: =IF('11 (2)'!F33="n/a","n/a",'11 (1)'!$I31+'11 (2)'!F33) -> 0.09224632718 | H33: =IF('11 (2)'!H33="n/a","n/a",'11 (1)'!$I31+'11 (2)'!H33) -> 0.08354632718 | L33: 0.09364632718 | M33: 0.09224632718 | N33: 0.08354632718
A34: 27 | B34: ='11 (1)'!B32 -> Lilly (Eli) | D34: =IF('11 (2)'!D34="n/a","n/a",'11 (1)'!$I32+'11 (2)'!D34) -> 0.1198361286 | F34: =IF('11 (2)'!F34="n/a","n/a",'11 (1)'!$I32+'11 (2)'!F34) -> 0.1528361286 | H34: =IF('11 (2)'!H34="n/a","n/a",'11 (1)'!$I32+'11 (2)'!H34) -> 0.1767361286 | L34: 0.1198361286 | M34: nmf | N34: nmf
A35: 28 | B35: ='11 (1)'!B33 -> Lockheed Martin | D35: =IF('11 (2)'!D35="n/a","n/a",'11 (1)'!$I33+'11 (2)'!D35) -> 0.1118788488 | F35: =IF('11 (2)'!F35="n/a","n/a",'11 (1)'!$I33+'11 (2)'!F35) -> 0.1179788488 | H35: =IF('11 (2)'!H35="n/a","n/a",'11 (1)'!$I33+'11 (2)'!H35) -> 0.09617884876 | L35: 0.1118788488 | M35: 0.1179788488 | N35: 0.09617884876
A36: 29 | B36: ='11 (1)'!B34 -> Marsh & McLennan | D36: =IF('11 (2)'!D36="n/a","n/a",'11 (1)'!$I34+'11 (2)'!D36) -> 0.106091079 | F36: =IF('11 (2)'!F36="n/a","n/a",'11 (1)'!$I34+'11 (2)'!F36) -> 0.06479107897 | H36: =IF('11 (2)'!H36="n/a","n/a",'11 (1)'!$I34+'11 (2)'!H36) -> 0.04659107897 | L36: 0.106091079 | M36: 0.06479107897 | N36: nmf
A37: 30 | B37: ='11 (1)'!B35 -> McCormick & Co. | D37: =IF('11 (2)'!D37="n/a","n/a",'11 (1)'!$I35+'11 (2)'!D37) -> 0.07771947453 | F37: =IF('11 (2)'!F37="n/a","n/a",'11 (1)'!$I35+'11 (2)'!F37) -> 0.06071947453 | H37: =IF('11 (2)'!H37="n/a","n/a",'11 (1)'!$I35+'11 (2)'!H37) -> 0.06811947453 | L37: 0.07771947453 | M37: nmf | N37: 0.06811947453
A38: 31 | B38: ='11 (1)'!B36 -> McDonald's Corp. | D38: =IF('11 (2)'!D38="n/a","n/a",'11 (1)'!$I36+'11 (2)'!D38) -> 0.1028378286 | F38: =IF('11 (2)'!F38="n/a","n/a",'11 (1)'!$I36+'11 (2)'!F38) -> 0.06263782858 | H38: =IF('11 (2)'!H38="n/a","n/a",'11 (1)'!$I36+'11 (2)'!H38) -> 0.09323782858 | L38: 0.1028378286 | M38: nmf | N38: 0.09323782858
A39: 32 | B39: ='11 (1)'!B37 -> Merck & Co. | D39: =IF('11 (2)'!D39="n/a","n/a",'11 (1)'!$I37+'11 (2)'!D39) -> 0.1192654843 | F39: =IF('11 (2)'!F39="n/a","n/a",'11 (1)'!$I37+'11 (2)'!F39) -> 0.09756548432 | H39: =IF('11 (2)'!H39="n/a","n/a",'11 (1)'!$I37+'11 (2)'!H39) -> 0.09666548432 | L39: 0.1192654843 | M39: 0.09756548432 | N39: 0.09666548432
A40: 33 | B40: ='11 (1)'!B38 -> Microsoft Corp. | D40: =IF('11 (2)'!D40="n/a","n/a",'11 (1)'!$I38+'11 (2)'!D40) -> 0.1596980453 | F40: =IF('11 (2)'!F40="n/a","n/a",'11 (1)'!$I38+'11 (2)'!F40) -> 0.1621980453 | H40: =IF('11 (2)'!H40="n/a","n/a",'11 (1)'!$I38+'11 (2)'!H40) -> 0.1467980453 | L40: =IF(D40="n/a","n/a",IF(D40<$C$64,"nmf",IF(D40>$C$65,"nmf",D40))) -> nmf | M40: =IF(F40="n/a","n/a",IF(F40<$C$64,"nmf",IF(F40>$C$65,"nmf",F40))) -> nmf | N40: =IF(H40="n/a","n/a",IF(H40<$C$64,"nmf",IF(H40>$C$65,"nmf",H40))) -> nmf
A41: 34 | B41: ='11 (1)'!B39 -> Northrop Grumman | D41: =IF('11 (2)'!D41="n/a","n/a",'11 (1)'!$I39+'11 (2)'!D41) -> 0.1275561975 | F41: =IF('11 (2)'!F41="n/a","n/a",'11 (1)'!$I39+'11 (2)'!F41) -> 0.1037561975 | H41: =IF('11 (2)'!H41="n/a","n/a",'11 (1)'!$I39+'11 (2)'!H41) -> n/a | L41: =IF(D41="n/a","n/a",IF(D41<$C$64,"nmf",IF(D41>$C$65,"nmf",D41))) -> 0.1275561975 | M41: =IF(F41="n/a","n/a",IF(F41<$C$64,"nmf",IF(F41>$C$65,"nmf",F41))) -> 0.1037561975 | N41: =IF(H41="n/a","n/a",IF(H41<$C$64,"nmf",IF(H41>$C$65,"nmf",H41))) -> n/a
A42: 35 | B42: ='11 (1)'!B40 -> Oracle Corp. | D42: =IF('11 (2)'!D42="n/a","n/a",'11 (1)'!$I40+'11 (2)'!D42) -> 0.1212671426 | F42: =IF('11 (2)'!F42="n/a","n/a",'11 (1)'!$I40+'11 (2)'!F42) -> 0.1080671426 | H42: =IF('11 (2)'!H42="n/a","n/a",'11 (1)'!$I40+'11 (2)'!H42) -> 0.1262671426 | L42: 0.1212671426 | M42: 0.1080671426 | N42: 0.1262671426
A43: 36 | B43: ='11 (1)'!B41 -> PepsiCo, Inc. | D43: =IF('11 (2)'!D43="n/a","n/a",'11 (1)'!$I41+'11 (2)'!D43) -> 0.08996468709 | F43: =IF('11 (2)'!F43="n/a","n/a",'11 (1)'!$I41+'11 (2)'!F43) -> 0.08896468709 | H43: =IF('11 (2)'!H43="n/a","n/a",'11 (1)'!$I41+'11 (2)'!H43) -> 0.09486468709 | L43: 0.08996468709 | M43: 0.08896468709 | N43: 0.09486468709
A44: 37 | B44: ='11 (1)'!B42 -> Pfizer, Inc. | D44: =IF('11 (2)'!D44="n/a","n/a",'11 (1)'!$I42+'11 (2)'!D44) -> 0.1266160916 | F44: =IF('11 (2)'!F44="n/a","n/a",'11 (1)'!$I42+'11 (2)'!F44) -> 0.09531609156 | H44: =IF('11 (2)'!H44="n/a","n/a",'11 (1)'!$I42+'11 (2)'!H44) -> 0.08451609156 | L44: 0.1266160916 | M44: 0.09531609156 | N44: 0.08451609156
A45: 38 | B45: ='11 (1)'!B43 -> Procter & Gamble | D45: =IF('11 (2)'!D45="n/a","n/a",'11 (1)'!$I43+'11 (2)'!D45) -> 0.1078312702 | F45: =IF('11 (2)'!F45="n/a","n/a",'11 (1)'!$I43+'11 (2)'!F45) -> 0.09433127017 | H45: =IF('11 (2)'!H45="n/a","n/a",'11 (1)'!$I43+'11 (2)'!H45) -> 0.08813127017 | L45: 0.1078312702 | M45: 0.09433127017 | N45: 0.08813127017
A46: 39 | B46: ='11 (1)'!B44 -> Public Storage | D46: =IF('11 (2)'!D46="n/a","n/a",'11 (1)'!$I44+'11 (2)'!D46) -> n/a | F46: =IF('11 (2)'!F46="n/a","n/a",'11 (1)'!$I44+'11 (2)'!F46) -> 0.2062474249 | H46: =IF('11 (2)'!H46="n/a","n/a",'11 (1)'!$I44+'11 (2)'!H46) -> 0.06984742492 | L46: n/a | M46: nmf | N46: 0.06984742492
A47: 40 | B47: ='11 (1)'!B45 -> Texas Instruments | D47: =IF('11 (2)'!D47="n/a","n/a",'11 (1)'!$I45+'11 (2)'!D47) -> 0.06887303179 | F47: =IF('11 (2)'!F47="n/a","n/a",'11 (1)'!$I45+'11 (2)'!F47) -> 0.1288730318 | H47: =IF('11 (2)'!H47="n/a","n/a",'11 (1)'!$I45+'11 (2)'!H47) -> 0.1221730318 | L47: 0.06887303179 | M47: 0.1288730318 | N47: 0.1221730318
A48: 41 | B48: ='11 (1)'!B46 -> Travelers Cos. | D48: =IF('11 (2)'!D48="n/a","n/a",'11 (1)'!$I46+'11 (2)'!D48) -> 0.1253063617 | F48: =IF('11 (2)'!F48="n/a","n/a",'11 (1)'!$I46+'11 (2)'!F48) -> 0.06080636166 | H48: =IF('11 (2)'!H48="n/a","n/a",'11 (1)'!$I46+'11 (2)'!H48) -> 0.09690636166 | L48: 0.1253063617 | M48: nmf | N48: 0.09690636166
A49: 42 | B49: ='11 (1)'!B47 -> United Parcel Serv. | D49: =IF('11 (2)'!D49="n/a","n/a",'11 (1)'!$I47+'11 (2)'!D49) -> 0.0846379522 | F49: =IF('11 (2)'!F49="n/a","n/a",'11 (1)'!$I47+'11 (2)'!F49) -> 0.0977379522 | H49: =IF('11 (2)'!H49="n/a","n/a",'11 (1)'!$I47+'11 (2)'!H49) -> 0.1036379522 | L49: 0.0846379522 | M49: 0.0977379522 | N49: 0.1036379522
A50: 43 | B50: ='11 (1)'!B48 -> Verizon Communic. | D50: =IF('11 (2)'!D50="n/a","n/a",'11 (1)'!$I48+'11 (2)'!D50) -> 0.08202454501 | F50: =IF('11 (2)'!F50="n/a","n/a",'11 (1)'!$I48+'11 (2)'!F50) -> 0.05842454501 | H50: =IF('11 (2)'!H50="n/a","n/a",'11 (1)'!$I48+'11 (2)'!H50) -> 0.07612454501 | L50: 0.08202454501 | M50: nmf | N50: 0.07612454501
A51: 44 | B51: ='11 (1)'!B49 -> Walmart Inc. | D51: =IF('11 (2)'!D51="n/a","n/a",'11 (1)'!$I49+'11 (2)'!D51) -> 0.09061888022 | F51: =IF('11 (2)'!F51="n/a","n/a",'11 (1)'!$I49+'11 (2)'!F51) -> 0.07971888022 | H51: =IF('11 (2)'!H51="n/a","n/a",'11 (1)'!$I49+'11 (2)'!H51) -> 0.07191888022 | L51: 0.09061888022 | M51: 0.07971888022 | N51: 0.07191888022
A52: 45 | B52: ='11 (1)'!B50 -> Waste Management | D52: =IF('11 (2)'!D52="n/a","n/a",'11 (1)'!$I50+'11 (2)'!D52) -> 0.07416798068 | F52: =IF('11 (2)'!F52="n/a","n/a",'11 (1)'!$I50+'11 (2)'!F52) -> 0.00656798068 | H52: =IF('11 (2)'!H52="n/a","n/a",'11 (1)'!$I50+'11 (2)'!H52) -> 0.08206798068 | L52: 0.07416798068 | M52: nmf | N52: 0.08206798068
A53: =#REF!+1 -> 
B54: Average (b) | D54: =AVERAGE(L8:L52) -> 0.1026522238 | F54: =AVERAGE(M8:M52) -> 0.09625652458 | H54: =AVERAGE(N8:N52) -> 0.09713092212 | J54: =AVERAGE(D54:H54) -> 0.09867989016 | K54: Average | L54: =AVERAGE(L8:L52) -> 0.1026522238 | M54: =AVERAGE(M8:M52) -> 0.09625652458 | N54: =AVERAGE(N8:N52) -> 0.09713092212
B55: Midpoint (b,c) | D55: =AVERAGE(L55:L56) -> 0.1015645469 | F55: =AVERAGE(M55:M56) -> 0.0994183545 | H55: =AVERAGE(N55:N56) -> 0.0982199809 | K55: Min | L55: =MIN(L8:L52) -> 0.06510950094 | M55: =MIN(M8:M52) -> 0.06479107897 | N55: =MIN(N8:N52) -> 0.06811947453
K56: Max | L56: =MAX(L8:L52) -> 0.1380195929 | M56: =MAX(M8:M52) -> 0.13404563 | N56: =MAX(N8:N52) -> 0.1283204873
A57: (a) | B57: Sum of dividend yield (p. 1) and respective growth rate (p. 2).
A58: (b) | B58: Excludes highlighted figures.
A59: (c) | B59: Average of low and high values.
B64: Criteria Min | C64: ='4 (3)'!D36 -> 0.064
B65: Criteria Max | C65: ='4 (3)'!D37 -> 0.141

Sheet 12 (1)
A1: ='Exhibit List'!C21 -> CAPITAL STRUCTURE | K1: ='Exhibit List'!B21 -> Exhibit No. 12
K2: Page 1 of 3
A3: ='Exhibit List'!D21 -> UTILITY GROUP
D5: At Year-end 2019 (a) | H5: Value Line Projected (b) | M5: At Year-end 2019 ($millions)
F6: Common | J6: Common | M6: Current | N6: Long-Tern | P6: Common
B7: Company | D7: Debt | E7: Preferred | F7: Equity | H7: Debt | I7: Preferred | J7: Equity | M7: Maturities | N7: Debt | O7: Preferred | P7: Equity | Q7: Total
A8: =A7+1 -> 1 | B8: ='Proxy Group Ticker'!C3 -> Algonquin Pwr & Util | D8: =SUM(M8:N8)/Q8 -> 0.4715339026 | E8: =O8/$Q8 -> 0.02210227472 | F8: =P8/$Q8 -> 0.5063638227 | H8: =VLOOKUP('Proxy Group Ticker'!$B3,vldatabase,13,FALSE) -> n/a | I8: =IF(H8="n/a","n/a",1-J8-H8) -> n/a | J8: =VLOOKUP('Proxy Group Ticker'!$B3,vldatabase,15,FALSE) -> n/a | M8: 225.013 | N8: 3706.855 | O8: 184.299 | P8: 4222.296 | Q8: =SUM(M8:P8) -> 8338.463
A9: 2 | B9: ='Proxy Group Ticker'!C4 -> ALLETE | D9: 0.4086190307 | E9: 0 | F9: 0.5913809693 | H9: =VLOOKUP('Proxy Group Ticker'!$B4,vldatabase,13,FALSE) -> 0.41 | I9: 5.551115123e-17 | J9: =VLOOKUP('Proxy Group Ticker'!$B4,vldatabase,15,FALSE) -> 0.59 | M9: 212.9 | N9: 1400.9 | O9: 0 | P9: 2335.6 | Q9: =SUM(M9:P9) -> 3949.4
A10: 3 | B10: ='Proxy Group Ticker'!C5 -> Alliant Energy | D10: 0.533854234 | E10: 0.01724836787 | F10: 0.4488973981 | H10: =VLOOKUP('Proxy Group Ticker'!$B5,vldatabase,13,FALSE) -> 0.52 | I10: 0 | J10: =VLOOKUP('Proxy Group Ticker'!$B5,vldatabase,15,FALSE) -> 0.48 | M10: 657.2 | N10: 5533 | O10: 200 | P10: 5205.1 | Q10: 11595.3
A11: 4 | B11: ='Proxy Group Ticker'!C6 -> Ameren Corp. | D11: 0.5329194669 | E11: 0 | F11: 0.4670805331 | H11: =VLOOKUP('Proxy Group Ticker'!$B6,vldatabase,13,FALSE) -> 0.5 | I11: 0.01 | J11: =VLOOKUP('Proxy Group Ticker'!$B6,vldatabase,15,FALSE) -> 0.49 | M11: 442 | N11: 8915 | O11: 0 | P11: 8201 | Q11: 17558
A12: 5 | B12: ='Proxy Group Ticker'!C7 -> Avangrid, Inc. | D12: 0.3232893366 | E12: 0 | F12: 0.6767106634 | H12: =VLOOKUP('Proxy Group Ticker'!$B7,vldatabase,13,FALSE) -> 0.425 | I12: 5.551115123e-17 | J12: =VLOOKUP('Proxy Group Ticker'!$B7,vldatabase,15,FALSE) -> 0.575 | M12: 730 | N12: 6716 | O12: 0 | P12: 15586 | Q12: 23032
A13: 6 | B13: ='Proxy Group Ticker'!C8 -> Avista Corp. | D13: 0.4943265437 | E13: 0 | F13: 0.5056734563 | H13: =VLOOKUP('Proxy Group Ticker'!$B8,vldatabase,13,FALSE) -> 0.51 | I13: 0 | J13: =VLOOKUP('Proxy Group Ticker'!$B8,vldatabase,15,FALSE) -> 0.49 | M13: 52 | N13: 1843.768 | O13: 0 | P13: 1939.284 | Q13: 3835.052
A14: 7 | B14: ='Proxy Group Ticker'!C9 -> Black Hills Corp. | D14: 0.5607648111 | E14: 0 | F14: 0.4392351889 | H14: =VLOOKUP('Proxy Group Ticker'!$B9,vldatabase,13,FALSE) -> 0.52 | I14: 0 | J14: =VLOOKUP('Proxy Group Ticker'!$B9,vldatabase,15,FALSE) -> 0.48 | M14: 5.743 | N14: 3140.096 | O14: 0 | P14: 2464.069 | Q14: 5609.908
A15: 8 | B15: ='Proxy Group Ticker'!C10 -> CMS Energy Corp. | D15: 0.6435698448 | E15: 0 | F15: 0.3564301552 | H15: =VLOOKUP('Proxy Group Ticker'!$B10,vldatabase,13,FALSE) -> 0.68 | I15: -1.110223025e-16 | J15: =VLOOKUP('Proxy Group Ticker'!$B10,vldatabase,15,FALSE) -> 0.32 | M15: 849 | N15: 14244 | O15: 0 | P15: 8359 | Q15: 23452
A16: 9 | B16: ='Proxy Group Ticker'!C11 -> Consolidated Edison | D16: 0.7224357566 | E16: 0 | F16: 0.2775642434 | H16: =VLOOKUP('Proxy Group Ticker'!$B11,vldatabase,13,FALSE) -> 0.5 | I16: 0 | J16: =VLOOKUP('Proxy Group Ticker'!$B11,vldatabase,15,FALSE) -> 0.5 | M16: 1130 | N16: 12027 | O16: 0 | P16: 5055 | Q16: 18212
A17: 10 | B17: ='Proxy Group Ticker'!C12 -> DTE Energy Co. | D17: 0.5230450951 | E17: 0 | F17: 0.4769549049 | H17: =VLOOKUP('Proxy Group Ticker'!$B12,vldatabase,13,FALSE) -> 0.585 | I17: 0 | J17: =VLOOKUP('Proxy Group Ticker'!$B12,vldatabase,15,FALSE) -> 0.415 | M17: 1446 | N17: 18527 | O17: 0 | P17: 18213 | Q17: 38186
A18: 11 | B18: ='Proxy Group Ticker'!C13 -> Duke Energy Corp. | D18: 0.5207902111 | E18: 0 | F18: 0.4792097889 | H18: =VLOOKUP('Proxy Group Ticker'!$B13,vldatabase,13,FALSE) -> 0.535 | I18: 0.015 | J18: =VLOOKUP('Proxy Group Ticker'!$B13,vldatabase,15,FALSE) -> 0.45 | M18: 3162 | N18: 33824 | O18: 0 | P18: 34033 | Q18: 71019
A19: 12 | B19: ='Proxy Group Ticker'!C14 -> Entergy Corp. | D19: 0.5840888327 | E19: 0 | F19: 0.4159111673 | H19: =VLOOKUP('Proxy Group Ticker'!$B14,vldatabase,13,FALSE) -> 0.595 | I19: 0.01 | J19: =VLOOKUP('Proxy Group Ticker'!$B14,vldatabase,15,FALSE) -> 0.395 | M19: 687 | N19: 15935 | O19: 0 | P19: 11836 | Q19: 28458
A20: 13 | B20: ='Proxy Group Ticker'!C15 -> Eversource Energy | D20: 0.5479604438 | E20: 0 | F20: 0.4520395562 | H20: =VLOOKUP('Proxy Group Ticker'!$B15,vldatabase,13,FALSE) -> 0.53 | I20: 0.005 | J20: =VLOOKUP('Proxy Group Ticker'!$B15,vldatabase,15,FALSE) -> 0.465 | M20: 3141 | N20: 54985 | O20: 0 | P20: 47951 | Q20: 106077
A21: 14 | B21: ='Proxy Group Ticker'!C16 -> NorthWestern Corp. | D21: 0.6304253284 | E21: 0.007738854829 | F21: 0.3618358168 | H21: =VLOOKUP('Proxy Group Ticker'!$B16,vldatabase,13,FALSE) -> 0.5 | I21: 0 | J21: =VLOOKUP('Proxy Group Ticker'!$B16,vldatabase,15,FALSE) -> 0.5 | M21: 795.012 | N21: 17078.643 | O21: 219.41 | P21: 10258.675 | Q21: 28351.74
A22: 15 | B22: ='Proxy Group Ticker'!C17 -> Pub Sv Enterprise Grp. | D22: 0.534514102 | E22: 0 | F22: 0.465485898 | H22: =VLOOKUP('Proxy Group Ticker'!$B17,vldatabase,13,FALSE) -> 0.5 | I22: 0 | J22: =VLOOKUP('Proxy Group Ticker'!$B17,vldatabase,15,FALSE) -> 0.5 | M22: 370.621 | N22: 14310.95 | O22: 0 | P22: 12785.564 | Q22: 27467.135
A23: 16 | B23: ='Proxy Group Ticker'!C18 -> Sempra Energy | D23: 0.5130700544 | E23: 0 | F23: 0.4869299456 | H23: =VLOOKUP('Proxy Group Ticker'!$B18,vldatabase,13,FALSE) -> 0.485 | I23: 0 | J23: =VLOOKUP('Proxy Group Ticker'!$B18,vldatabase,15,FALSE) -> 0.515 | M23: 4710 | N23: 31719 | O23: 0 | P23: 34573 | Q23: 71002
A24: 17 | B24: ='Proxy Group Ticker'!C19 -> Southern Company | D24: 0.5249402999 | E24: 0 | F24: 0.4750597001 | H24: =VLOOKUP('Proxy Group Ticker'!$B19,vldatabase,13,FALSE) -> 0.6 | I24: 0.005 | J24: =VLOOKUP('Proxy Group Ticker'!$B19,vldatabase,15,FALSE) -> 0.395 | M24: 2.476 | N24: 2250.72 | O24: 0 | P24: 2039.094 | Q24: 4292.29
A25: 18 | B25: ='Proxy Group Ticker'!C20 -> WEC Energy Group | D25: 0.6275943126 | E25: 0 | F25: 0.3724056874 | H25: =VLOOKUP('Proxy Group Ticker'!$B20,vldatabase,13,FALSE) -> 0.52 | I25: 0 | J25: =VLOOKUP('Proxy Group Ticker'!$B20,vldatabase,15,FALSE) -> 0.48 | M25: 1172 | N25: 20721 | O25: 0 | P25: 12991 | Q25: 34884
A26: 19 | B26: ='Proxy Group Ticker'!C21 -> Xcel Energy Inc. | D26: 0.5003146008 | E26: 0 | F26: 0.4996853992 | H26: =VLOOKUP('Proxy Group Ticker'!$B21,vldatabase,13,FALSE) -> 0.575 | I26: 0 | J26: =VLOOKUP('Proxy Group Ticker'!$B21,vldatabase,15,FALSE) -> 0.425 | M26: 1365 | N26: 13743 | O26: 0 | P26: 15089 | Q26: 30197
Q27: 0
B28: Average | D28: =AVERAGE(D8:D26) -> 0.5367398004 | E28: =AVERAGE(E8:E26) -> 0.002478394601 | F28: =AVERAGE(F8:F26) -> 0.460781805 | H28: =AVERAGE(H8:H26) -> 0.5272222222 | I28: =AVERAGE(I8:I26) -> 0.0025 | J28: =AVERAGE(J8:J26) -> 0.4702777778
B30: Average - Ex. High and Low | D30: =(D28*$A26-SUM(D37:D38))/($A$26-2) -> 0.5383724185 | E30: =(E28*$A26-SUM(E37:E38))/($A$26-2) -> 0.00146983663 | F30: 0.4588576111 | H30: =(H28*$A26-SUM(H37:H38))/($A$26-2) -> 0.525130719 | I30: 0.001911764706 | J30: 0.4720751634
A33: (a) | B33: Most recent SEC Form 10-K reports.
A34: (b) | B34: ='Electric Utility Data'!B50 -> The Value Line Investment Survey (Jul. 24, Aug. 14 and Sep. 11, 2020).
D37: =MIN(D8:D26) -> 0.3232893366 | E37: =MIN(E8:E26) -> 0 | F37: =MIN(F8:F26) -> 0.2775642434 | H37: =MIN(H8:H26) -> 0.41 | I37: =MIN(I8:I26) -> -1.110223025e-16 | J37: =MIN(J8:J26) -> 0.32
D38: =MAX(D8:D26) -> 0.7224357566 | E38: =MAX(E8:E26) -> 0.02210227472 | F38: =MAX(F8:F26) -> 0.6767106634 | H38: =MAX(H8:H26) -> 0.68 | I38: =MAX(I8:I26) -> 0.015 | J38: =MAX(J8:J26) -> 0.59
B40: ADJUSTED FOR ST. DEBT AT | F40: 0.008
D42: =D28*100 -> 53.67398004 | F42: =D42/D45 -> 0.532445882 | I42: =H28*100 -> 52.72222222 | J42: =I42/I45 -> 0.5230044444
D43: =E28*100 -> 0.2478394601 | F43: =D43/D45 -> 0.002458567445 | I43: =I28*100 -> 0.25 | J43: =I43/I45 -> 0.00248
D44: =F28*100 -> 46.0781805 | F44: =D44/D45 -> 0.4570955505 | I44: =J28*100 -> 47.02777778 | J44: =I44/I45 -> 0.4665155556
D45: =100/1/(1-$F$40) -> 100.8064516 | F45: =SUM(F40:F44) -> 1 | I45: =100/1/(1-$F$40) -> 100.8064516 | J45: =SUM(F40,J42:J44) -> 1
B48: Short-term Debt Ratio
B49: LGE | D49: 0.005
B50: KU | D50: 0.008

Sheet 12 (2-3)
A1: ='Exhibit List'!C22 -> CAPITAL STRUCTURE | G1: ='Exhibit List'!B22 -> Exhibit No. 12 | H1: =A1 -> CAPITAL STRUCTURE | N1: =G1 -> Exhibit No. 12
G2: Page 2 of 3 | N2: Page 3 of 3
A3: ='Exhibit List'!D22 -> UTILITY GROUP OPERATING SUBSIDIARIES | H3: =A3 -> UTILITY GROUP OPERATING SUBSIDIARIES
D6: At Year-End 2019 (a) | K6: At Year-End 2019 (a)
B7: Operating Company | D7: Debt | E7: Preferred | F7: Common Equity | I7: Operating Company | K7: Debt | L7: Preferred | M7: Common Equity
B8: ALGONQUIN PWR. & UTIL. | I8: ENTERGY CORP.
B9: Empire District Electric Co. | D9: 0.4600741701 | E9: 0 | F9: 0.5399258299 | I9: Entergy Arkansas Inc. | K9: 0.5294492292 | L9: 0 | M9: 0.4705507708
B10: Liberty Utilities (Granite State Elec.) | D10: 0.2294976482 | E10: 0 | F10: 0.7705023518 | I10: Entergy Louisiana LLC | K10: 0.5330839024 | L10: 0 | M10: 0.4669160976
B11: ALLETE | I11: Entergy Mississippi Inc. | K11: 0.5114023471 | L11: 0 | M11: 0.4885976529
B12: ALLETE, Inc. (Minnesota Power) | D12: 0.4041081197 | E12: 0 | F12: 0.5958918803 | I12: Entergy New Orleans Inc. | K12: 0.5290962829 | L12: 0 | M12: 0.4709037171
B13: ALLIANT ENERGY CORP. | I13: Entergy Texas Inc. | K13: 0.5165955067 | L13: 0.009402629459 | M13: 0.4740018639
B14: Interstate Power & Light | D14: 0.4754876041 | E14: 0.03021558822 | F14: 0.4942968077 | I14: EVERSOURCE ENERGY
B15: Wisconsin Power & Light | D15: 0.4498521984 | E15: 0 | F15: 0.5501478016 | I15: Connecticut Light & Power | K15: 0.4385521557 | L15: 0.01448487509 | M15: 0.5469629692
B16: AMEREN CORP. | I16: NSTAR Electric Co. | K16: 0.4429555055 | L16: 0.005699161163 | M16: 0.5513453334
B17: Ameren Illinois Co. | D17: 0.4638640197 | E17: 0.008044634748 | F17: 0.5280913455 | I17: Public Service Co. of New Hampshire | K17: 0.5244677852 | L17: 0 | M17: 0.4755322148
B18: Union Electric Co. | D18: 0.4906897763 | E18: 0.009368778545 | F18: 0.4999414451 | I18: NORTHWESTERN CORP.
B19: AVANGRID | I19: NorthWestern Corporation | K19: 0.5241023722 | L19: 0 | M19: 0.4758976278
B20: Central Maine Pwr | D20: 0.374950325 | E20: 0.0001800076644 | F20: 0.6248696673 | I20: PUB SV ENTERPRISE GRP
B21: NY State E&G | D21: 0.5106384947 | E21: 0 | F21: 0.4893615053 | I21: Pub Service Electric & Gas Co. | K21: 0.4522319374 | L21: 0 | M21: 0.5477680626
B22: Rochester G&E | D22: 0.4878481221 | E22: 0 | F22: 0.5121518779 | I22: SEMPRA ENERGY
B23: United Illuminating | D23: 0.4237335524 | E23: 0 | F23: 0.5762664476 | I23: San Diego Gas & Electric | K23: 0.4725895112 | L23: 0 | M23: 0.5274104888
B24: AVISTA CORP. | I24: Oncor Electric Delivery | K24: 0.4335998476 | L24: 0 | M24: 0.5664001524
B25: Avista Corp. | D25: 0.4917230911 | E25: 0 | F25: 0.5082769089 | I25: SOUTHERN CO.
B26: Alaska Electric Light & Power | D26: 0.4015982157 | E26: 0 | F26: 0.5984017843 | I26: Alabama Power Co. | K26: 0.4795970057 | L26: 0.01637867957 | M26: 0.5040243147
B27: BLACK HILLS CORP. | I27: Georgia Power Co. | K27: 0.4395669804 | L27: 0 | M27: 0.5604330196
B28: Black Hills Power | D28: 0.4318073884 | E28: 0 | F28: 0.5681926116 | I28: Mississippi Power Co. | K28: 0.4902807775 | L28: 0 | M28: 0.5097192225
B29: Cheyenne Light Fuel & Power | D29: 0.5168413879 | E29: 0 | F29: 0.4831586121 | I29: WEC ENERGY GROUP
B30: Black Hills/Colorado Electric Utility Co | D30: 0.2701529956 | E30: 0 | F30: 0.7298470044 | I30: Wisconsin Electric Power Co. | K30: 0.4351851269 | L30: 0.004788671012 | M30: 0.5600262021
B31: CMS ENERGY | I31: Wisconsin Public Service Corp. | K31: 0.4539240559 | L31: 0 | M31: 0.5460759441
B32: Consumers Energy Co. | D32: 0.4870043761 | E32: 0.002453255536 | F32: 0.5105423684 | I32: XCEL ENERGY, INC.
B33: CONSOLIDATED EDISON | I33: Northern States Power Co. (MN) | K33: 0.4779932499 | L33: 0 | M33: 0.5220067501
B34: Consolidated Edison of NY | D34: 0.5140324963 | E34: 0 | F34: 0.4859675037 | I34: Northern States Power Co. (WI) | K34: 0.4577227909 | L34: 0 | M34: 0.5422772091
B35: Orange & Rockland | D35: 0.51954372 | E35: 0 | F35: 0.48045628 | I35: Public Service Co. of Colorado | K35: 0.4368088928 | L35: 0 | M35: 0.5631911072
B36: Rockland Electric Co. | D36: 0 | E36: 0 | F36: 1 | I36: Southwestern Public Service Co. | K36: 0.4585617369 | L36: 0 | M36: 0.5414382631
B37: DTE ENERGY CO.
B38: DTE Electric Co. | D38: 0.4997566572 | E38: 0 | F38: 0.5002433428 | I38: Minimum | K38: =MIN(D8:D35,D38:D46,K8:K36) -> 0.2294976482 | L38: =MIN(E8:E35,E38:E46,L8:L36) -> 0 | M38: =MIN(F8:F35,F38:F46,M8:M36) -> 0.4426434269
B39: DUKE ENERGY | I39: Maximum | K39: =MAX(D8:D35,D38:D46,K8:K36) -> 0.5573565731 | L39: =MAX(E8:E35,E38:E46,L8:L36) -> 0.03021558822 | M39: =MAX(F8:F35,F38:F46,M8:M36) -> 0.7705023518
B40: Duke Energy Carolinas | D40: 0.4815669135 | E40: 0 | F40: 0.5184330865 | I40: Average | K40: =AVERAGE(D8:D35,D38:D46,K8:K36) -> 0.4668166414 | L40: =AVERAGE(E8:E35,E38:E46,L8:L36) -> 0.002104505854 | M40: =AVERAGE(F8:F35,F38:F46,M8:M36) -> 0.5310788528
B41: Duke Energy Florida | D41: 0.5405752961 | E41: 0 | F41: 0.4594247039
B42: Duke Energy Indiana | D42: 0.4699953661 | E42: 0 | F42: 0.5300046339
B43: Duke Energy Ohio | D43: 0.4155823548 | E43: 0 | F43: 0.5844176452 | H43: (a) Data from year-end 2019 Company 10-Ks and FERC Form 1 reports.
B44: Duke Energy Progress | D44: 0.4948645105 | E44: 0 | F44: 0.5051354895 | H44: (b) Excludes Rockland Electric Co.
B45: Progress Energy Inc. | D45: 0.5573565731 | E45: 0 | F45: 0.4426434269
B46: Duke Energy Kentucky | D46: 0.5062864129 | E46: 0 | F46: 0.4937135871
I48: ADJUSTED FOR ST. DEBT AT | M48: 0.005
M50: =K40*100/K$53 -> 0.4644825582
D51: =COUNT(D9:D46,K9:K36) -> 49 | F51: =COUNTIF(F9:F46,">=.53") -> 12 | M51: =L40*100/K$53 -> 0.002093983325
F52: =COUNTIF(M9:M36,">=.53") -> 10 | M52: =M40*100/K$53 -> 0.5284234585
F53: =F52+F51 -> 22 | K53: =100/1/(1-$M$48) -> 100.5025126 | M53: =SUM(M48:M52) -> 1
I56: Short-term Debt Ratio
I57: LGE | K57: 0.005
I58: KU | K58: 0.008

Sheet Stock Price (Electric)
C1: 1 | D1: 2 | E1: 3 | F1: 4 | G1: 5 | H1: 6 | I1: 7 | J1: 8 | K1: 9 | L1: 10 | M1: 11 | N1: 12 | O1: 13 | P1: 14 | Q1: 15 | R1: 16 | S1: 17 | T1: 18 | U1: 19 | V1: 20 | W1: 21 | X1: 22 | Y1: 23 | Z1: 24 | AA1: 25 | AB1: 26 | AC1: 27 | AD1: 28 | AE1: 29 | AF1: 30 | AG1: 31 | AH1: 32 | AI1: 33 | AJ1: 34 | AK1: 35 | AL1: 36 | AM1: 37 | AN1: 38
C2: =TRANSPOSE('Electric Utility Data'!B8:B45) -> AQN | D2: ALE | E2: LNT | F2: AEE | G2: AEP | H2: AGR | I2: AVA | J2: BKH | K2: CNP | L2: CMS | M2: ED | N2: D | O2: DTE | P2: DUK | Q2: EIX | R2: EMA | S2: ETR | T2: EVRG | U2: ES | V2: EXC | W2: FE | X2: FTS | Y2: HE | Z2: IDA | AA2: MGEE | AB2: NEE | AC2: NWE | AD2: OGE | AE2: OTTR | AF2: PNW | AG2: PNM | AH2: POR | AI2: PPL | AJ2: PEG | AK2: SRE | AL2: SO | AM2: WEC | AN2: XEL
A3: =A2+1 -> 1 | B3: 2020-10-09 | C3: 15.65 | D3: 53.84 | E3: 54.74 | F3: 82.05 | G3: 89.82 | H3: 55.23 | I3: 35.08 | J3: 57.79 | K3: 21.37 | L3: 64.34 | M3: 82.55 | N3: 81.78 | O3: 120.29 | P3: 93.3 | Q3: 56.09 | R3: 56.040001 | S3: 105.85 | T3: 52.93 | U3: 92.19 | V3: 39.2 | W3: 31.22 | X3: 54.900002 | Y3: 34.47 | Z3: 87.42 | AA3: 66.31 | AB3: 302.91 | AC3: 52.16 | AD3: 32.02 | AE3: 39.01 | AF3: 82.56 | AG3: 44.52 | AH3: 37.69 | AI3: 28.94 | AJ3: 57.56 | AK3: 126.01 | AL3: 58.74 | AM3: 99.44 | AN3: 72.71
A4: 2 | B4: 2020-10-08 | C4: 15.6 | D4: 54.51 | E4: 55.18 | F4: 81.73 | G4: 89.38 | H4: 55.63 | I4: 35.03 | J4: 58.51 | K4: 21.32 | L4: 63.87 | M4: 82.27 | N4: 82.06 | O4: 121.87 | P4: 93.15 | Q4: 56.1 | R4: 56.290001 | S4: 107.21 | T4: 53.36 | U4: 92.43 | V4: 39.32 | W4: 31.28 | X4: 55.59 | Y4: 34.68 | Z4: 87.13 | AA4: 66.51 | AB4: 301.04 | AC4: 52.1 | AD4: 32.74 | AE4: 39.51 | AF4: 83.54 | AG4: 44.64 | AH4: 37.75 | AI4: 29.11 | AJ4: 58.4 | AK4: 126.71 | AL4: 58.71 | AM4: 99.03 | AN4: 72.51
A5: 3 | B5: 2020-10-07 | C5: 15.41 | D5: 54.13 | E5: 54.08 | F5: 80.69 | G5: 88.61 | H5: 54.69 | I5: 34.94 | J5: 57.44 | K5: 20.65 | L5: 63.01 | M5: 80.83 | N5: 81.02 | O5: 114.51 | P5: 91.3 | Q5: 54.94 | R5: 55.790001 | S5: 104.7 | T5: 52.45 | U5: 91.4 | V5: 37.85 | W5: 30.56 | X5: 55.610001 | Y5: 34.59 | Z5: 86.45 | AA5: 65.15 | AB5: 297.12 | AC5: 51.72 | AD5: 32.04 | AE5: 38.67 | AF5: 82.95 | AG5: 44.03 | AH5: 36.99 | AI5: 28.76 | AJ5: 57.03 | AK5: 122.72 | AL5: 57.8 | AM5: 98.05 | AN5: 72.09
A6: 4 | B6: 2020-10-06 | C6: 15.3 | D6: 53.9 | E6: 54.39 | F6: 81.3 | G6: 88.43 | H6: 53.83 | I6: 34.62 | J6: 56.46 | K6: 20.57 | L6: 62.89 | M6: 80.76 | N6: 81.11 | O6: 115.4 | P6: 90.77 | Q6: 53.86 | R6: 55.73 | S6: 106.05 | T6: 52.41 | U6: 90.78 | V6: 37.17 | W6: 30.41 | X6: 55.209999 | Y6: 34.76 | Z6: 86.13 | AA6: 64.8 | AB6: 290.28 | AC6: 51.38 | AD6: 32.38 | AE6: 38.25 | AF6: 81.12 | AG6: 43.64 | AH6: 36.5 | AI6: 28.7 | AJ6: 55.9 | AK6: 122.23 | AL6: 57.83 | AM6: 98.51 | AN6: 72.45
A7: 5 | B7: 2020-10-05 | C7: 15.31 | D7: 53.82 | E7: 53.31 | F7: 80.72 | G7: 87.05 | H7: 53.59 | I7: 34.26 | J7: 55.85 | K7: 20.19 | L7: 61.58 | M7: 79.93 | N7: 80.09 | O7: 114.51 | P7: 91.74 | Q7: 52.61 | R7: 55.759998 | S7: 104.81 | T7: 52.53 | U7: 89.49 | V7: 36.79 | W7: 29.91 | X7: 55.200001 | Y7: 34.3 | Z7: 83.08 | AA7: 64.11 | AB7: 287.91 | AC7: 50.87 | AD7: 32.03 | AE7: 37.57 | AF7: 79.64 | AG7: 43.86 | AH7: 36.8 | AI7: 28.44 | AJ7: 56.32 | AK7: 121.77 | AL7: 57.17 | AM7: 98.14 | AN7: 71.47
A8: 6 | B8: 2020-10-02 | C8: 14.76 | D8: 53.12 | E8: 53.09 | F8: 79.81 | G8: 85.3 | H8: 52.38 | I8: 34.61 | J8: 55.34 | K8: 19.93 | L8: 61.66 | M8: 79.77 | N8: 79.8 | O8: 114.16 | P8: 91.58 | Q8: 51.5 | R8: 55.25 | S8: 103.65 | T8: 51.98 | U8: 87.05 | V8: 35.94 | W8: 29.52 | X8: 54.91 | Y8: 33.89 | Z8: 82.97 | AA8: 63.92 | AB8: 281.17 | AC8: 50.03 | AD8: 31.06 | AE8: 37.05 | AF8: 77.86 | AG8: 42.86 | AH8: 36.62 | AI8: 28.21 | AJ8: 55.95 | AK8: 120.5 | AL8: 56.26 | AM8: 97.71 | AN8: 70.48
A9: 7 | B9: 2020-10-01 | C9: 14.66 | D9: 52.1 | E9: 52.33 | F9: 79.86 | G9: 83.06 | H9: 51.21 | I9: 34.41 | J9: 53.95 | K9: 19.4 | L9: 61.68 | M9: 79.04 | N9: 78.59 | O9: 113.44 | P9: 90.05 | Q9: 50.44 | R9: 55.049999 | S9: 101.28 | T9: 50.82 | U9: 85.45 | V9: 35.83 | W9: 28.76 | X9: 54.52 | Y9: 33.23 | Z9: 81.86 | AA9: 63.31 | AB9: 282.76 | AC9: 49.01 | AD9: 30.2 | AE9: 36.55 | AF9: 75.32 | AG9: 41.9 | AH9: 35.98 | AI9: 27.55 | AJ9: 55.07 | AK9: 119.13 | AL9: 54.62 | AM9: 98.25 | AN9: 70.38
A10: 8 | B10: 2020-09-30 | C10: 14.54 | D10: 51.74 | E10: 51.65 | F10: 79.08 | G10: 81.73 | H10: 50.46 | I10: 34.12 | J10: 53.49 | K10: 19.35 | L10: 61.41 | M10: 77.8 | N10: 78.93 | O10: 115.04 | P10: 88.56 | Q10: 50.84 | R10: 54.700001 | S10: 98.53 | T10: 50.82 | U10: 83.55 | V10: 35.76 | W10: 28.71 | X10: 54.439999 | Y10: 33.24 | Z10: 79.9 | AA10: 62.66 | AB10: 277.56 | AC10: 48.64 | AD10: 29.99 | AE10: 36.17 | AF10: 74.55 | AG10: 41.33 | AH10: 35.5 | AI10: 27.21 | AJ10: 54.91 | AK10: 118.36 | AL10: 54.22 | AM10: 96.9 | AN10: 69.01
A11: 9 | B11: 2020-09-29 | C11: 14.29 | D11: 51.48 | E11: 51.08 | F11: 79.02 | G11: 80.97 | H11: 49.26 | I11: 33.72 | J11: 53.11 | K11: 19 | L11: 61.11 | M11: 76.98 | N11: 77.88 | O11: 114.4 | P11: 82.41 | Q11: 51.02 | R11: 55.169998 | S11: 95.78 | T11: 50.15 | U11: 83.01 | V11: 35.32 | W11: 28.6 | X11: 54.700001 | Y11: 33.02 | Z11: 80.1 | AA11: 62.49 | AB11: 283.12 | AC11: 48.41 | AD11: 29.67 | AE11: 36.04 | AF11: 73.45 | AG11: 41.04 | AH11: 35.19 | AI11: 26.88 | AJ11: 54.8 | AK11: 116.18 | AL11: 53.7 | AM11: 96.66 | AN11: 68.645
A12: 10 | B12: 2020-09-28 | C12: 14.36 | D12: 52 | E12: 51.49 | F12: 78.42 | G12: 80.65 | H12: 49.35 | I12: 34.12 | J12: 53.92 | K12: 19.02 | L12: 61.4 | M12: 76.32 | N12: 77.23 | O12: 114.81 | P12: 82.87 | Q12: 51.89 | R12: 55.25 | S12: 96.68 | T12: 50.34 | U12: 82.65 | V12: 35.74 | W12: 28.45 | X12: 54.509998 | Y12: 33.18 | Z12: 81.23 | AA12: 63.15 | AB12: 284.14 | AC12: 49.15 | AD12: 29.66 | AE12: 36.54 | AF12: 73.89 | AG12: 41.45 | AH12: 35.6 | AI12: 26.68 | AJ12: 54.35 | AK12: 116.71 | AL12: 53.71 | AM12: 96.48 | AN12: 68.85
A13: 11 | B13: 2020-09-25 | C13: 14.2 | D13: 51.53 | E13: 51.35 | F13: 78.21 | G13: 80.65 | H13: 49.15 | I13: 33.9 | J13: 53.31 | K13: 18.99 | L13: 61.34 | M13: 75.77 | N13: 77.05 | O13: 114.72 | P13: 82.47 | Q13: 51.65 | R13: 54.490002 | S13: 96.98 | T13: 50.29 | U13: 82.48 | V13: 35.52 | W13: 28.6 | X13: 53.790001 | Y13: 33.16 | Z13: 80.55 | AA13: 62.82 | AB13: 281.82 | AC13: 48.69 | AD13: 29.31 | AE13: 36.14 | AF13: 73.77 | AG13: 40.97 | AH13: 35.49 | AI13: 26.47 | AJ13: 54.13 | AK13: 117.61 | AL13: 53.81 | AM13: 96.31 | AN13: 68.5
A14: 12 | B14: 2020-09-24 | C14: 13.99 | D14: 50.94 | E14: 49.93 | F14: 76.7 | G14: 80.49 | H14: 48.88 | I14: 33.41 | J14: 52.82 | K14: 18.9 | L14: 59.58 | M14: 73.93 | N14: 76.31 | O14: 112.99 | P14: 81.67 | Q14: 50.84 | R14: 54.169998 | S14: 95.78 | T14: 49.18 | U14: 79.95 | V14: 34.81 | W14: 28.16 | X14: 53.23 | Y14: 32.69 | Z14: 79.51 | AA14: 61.9 | AB14: 277.54 | AC14: 48.38 | AD14: 29.09 | AE14: 36.09 | AF14: 72.76 | AG14: 40.19 | AH14: 35.04 | AI14: 26.07 | AJ14: 53.47 | AK14: 115.74 | AL14: 53.05 | AM14: 94 | AN14: 67.07
A15: 13 | B15: 2020-09-23 | C15: 13.95 | D15: 50.93 | E15: 49.83 | F15: 75.61 | G15: 79.18 | H15: 48.95 | I15: 33.36 | J15: 52.42 | K15: 18.86 | L15: 59.57 | M15: 73.32 | N15: 76.27 | O15: 111.9 | P15: 81.28 | Q15: 49.3 | R15: 53.939999 | S15: 95.17 | T15: 49.12 | U15: 78.29 | V15: 34.48 | W15: 27.58 | X15: 52.59 | Y15: 32.6 | Z15: 79.57 | AA15: 60.48 | AB15: 273.31 | AC15: 48.01 | AD15: 29.06 | AE15: 35.8 | AF15: 70.93 | AG15: 39.45 | AH15: 34.96 | AI15: 25.91 | AJ15: 51.92 | AK15: 114.5 | AL15: 52.53 | AM15: 93.06 | AN15: 66.19
A16: 14 | B16: 2020-09-22 | C16: 14.28 | D16: 52.3 | E16: 50.01 | F16: 77.06 | G16: 79.85 | H16: 49.47 | I16: 34.6 | J16: 53.34 | K16: 18.91 | L16: 60.69 | M16: 73.7 | N16: 77.5 | O16: 112.01 | P16: 82.69 | Q16: 50.42 | R16: 54.27 | S16: 97.28 | T16: 50.47 | U16: 78.98 | V16: 35.21 | W16: 28.57 | X16: 52.900002 | Y16: 32.94 | Z16: 81.33 | AA16: 61.66 | AB16: 278.06 | AC16: 49.09 | AD16: 28.96 | AE16: 36.76 | AF16: 71.83 | AG16: 40.68 | AH16: 35.18 | AI16: 26.26 | AJ16: 52.47 | AK16: 119.05 | AL16: 53.12 | AM16: 95.4 | AN16: 66.87
A17: 15 | B17: 2020-09-21 | C17: 13.99 | D17: 51.75 | E17: 49.83 | F17: 76.62 | G17: 79.36 | H17: 48.14 | I17: 34.33 | J17: 54 | K17: 18.9 | L17: 59.99 | M17: 72.84 | N17: 77.97 | O17: 111.3 | P17: 82.57 | Q17: 49.7 | R17: 53.880001 | S17: 94.83 | T17: 50.01 | U17: 78.02 | V17: 34.75 | W17: 28.63 | X17: 52.240002 | Y17: 32.44 | Z17: 80.37 | AA17: 61.07 | AB17: 276.2 | AC17: 48.92 | AD17: 28.69 | AE17: 36.28 | AF17: 70.81 | AG17: 39.91 | AH17: 34.24 | AI17: 26.23 | AJ17: 51.17 | AK17: 116.66 | AL17: 53.03 | AM17: 94.86 | AN17: 66.64
A18: 16 | B18: 2020-09-18 | C18: 14.05 | D18: 53.41 | E18: 50.98 | F18: 76.86 | G18: 78.78 | H18: 49.25 | I18: 34.68 | J18: 54.32 | K18: 18.93 | L18: 61.1 | M18: 73.88 | N18: 77.96 | O18: 112.03 | P18: 82.95 | Q18: 51.42 | R18: 54.060001 | S18: 95.43 | T18: 50.94 | U18: 78.86 | V18: 35.07 | W18: 28.96 | X18: 52.189999 | Y18: 32.68 | Z18: 81.98 | AA18: 61.1 | AB18: 276.92 | AC18: 48.69 | AD18: 28.85 | AE18: 36.34 | AF18: 70.43 | AG18: 40.04 | AH18: 34.99 | AI18: 26.8 | AJ18: 51.33 | AK18: 119.98 | AL18: 52.81 | AM18: 94.87 | AN18: 66.9
A19: 17 | B19: 2020-09-17 | C19: 14.2 | D19: 53.22 | E19: 52.18 | F19: 77.62 | G19: 80.04 | H19: 49.43 | I19: 34.57 | J19: 55.36 | K19: 19.29 | L19: 61.34 | M19: 75.93 | N19: 79.82 | O19: 116.86 | P19: 84.6 | Q19: 52.63 | R19: 54.040001 | S19: 97.63 | T19: 52.2 | U19: 81.93 | V19: 35.93 | W19: 29.8 | X19: 52.310001 | Y19: 33.25 | Z19: 83.5 | AA19: 62.48 | AB19: 279.52 | AC19: 49.97 | AD19: 29.38 | AE19: 36.91 | AF19: 72.16 | AG19: 40.09 | AH19: 35.35 | AI19: 27.5 | AJ19: 52.24 | AK19: 121.03 | AL19: 53.52 | AM19: 96.11 | AN19: 68.44
A20: 18 | B20: 2020-09-16 | C20: 14.14 | D20: 52.55 | E20: 53.06 | F20: 77.94 | G20: 80.46 | H20: 50.08 | I20: 35.25 | J20: 54.95 | K20: 19.74 | L20: 61.94 | M20: 75.68 | N20: 81.6 | O20: 119.04 | P20: 84.84 | Q20: 52.54 | R20: 53.990002 | S20: 96.84 | T20: 52.63 | U20: 83.36 | V20: 36.26 | W20: 29.76 | X20: 52.330002 | Y20: 33.35 | Z20: 82.97 | AA20: 63.59 | AB20: 280.35 | AC20: 50.38 | AD20: 29.73 | AE20: 37.04 | AF20: 72.3 | AG20: 40.85 | AH20: 34.69 | AI20: 28.01 | AJ20: 53 | AK20: 120.84 | AL20: 53.29 | AM20: 98.78 | AN20: 70.92
A21: 19 | B21: 2020-09-15 | C21: 14.23 | D21: 51.58 | E21: 52.76 | F21: 77.5 | G21: 80 | H21: 49.91 | I21: 34.58 | J21: 54.45 | K21: 19.01 | L21: 61.11 | M21: 74.47 | N21: 80.9 | O21: 118.56 | P21: 84.45 | Q21: 51.51 | R21: 54.650002 | S21: 96.54 | T21: 52.37 | U21: 83.97 | V21: 36.165 | W21: 29.35 | X21: 52.959999 | Y21: 33.1 | Z21: 82.14 | AA21: 64.57 | AB21: 295.7 | AC21: 50.05 | AD21: 29.48 | AE21: 36.74 | AF21: 72.02 | AG21: 41 | AH21: 33.69 | AI21: 27.72 | AJ21: 51.65 | AK21: 117.63 | AL21: 53.01 | AM21: 99.15 | AN21: 70.41
A22: 20 | B22: 2020-09-14 | C22: 14.05 | D22: 51.58 | E22: 52.33 | F22: 76.98 | G22: 80.34 | H22: 48.74 | I22: 34.22 | J22: 54.49 | K22: 19.54 | L22: 61.42 | M22: 74.22 | N22: 80.73 | O22: 120.38 | P22: 84.38 | Q22: 51.65 | R22: 54.049999 | S22: 96.72 | T22: 52.79 | U22: 82.91 | V22: 36.26 | W22: 29.66 | X22: 52.860001 | Y22: 33.15 | Z22: 83.51 | AA22: 64.01 | AB22: 281.92 | AC22: 50.04 | AD22: 30.23 | AE22: 37.15 | AF22: 72.09 | AG22: 40.69 | AH22: 34.23 | AI22: 27.92 | AJ22: 52.48 | AK22: 119.15 | AL22: 52.86 | AM22: 97.18 | AN22: 69.54
A23: 21 | B23: 2020-09-11 | C23: 13.92 | D23: 50.75 | E23: 51.86 | F23: 76.6 | G23: 79.15 | H23: 47.94 | I23: 34.44 | J23: 53.22 | K23: 19.45 | L23: 60.91 | M23: 72.74 | N23: 79.64 | O23: 118.44 | P23: 83.03 | Q23: 50.63 | R23: 53.799999 | S23: 95.45 | T23: 51.94 | U23: 82.16 | V23: 35.83 | W23: 29.33 | X23: 53.110001 | Y23: 32.96 | Z23: 82.91 | AA23: 62.98 | AB23: 278.15 | AC23: 50.23 | AD23: 30.16 | AE23: 36.77 | AF23: 70.9 | AG23: 40.84 | AH23: 34.05 | AI23: 27.53 | AJ23: 52.39 | AK23: 117.8 | AL23: 51.76 | AM23: 95.96 | AN23: 68.855
A24: 22 | B24: 2020-09-10 | C24: 13.79 | D24: 50.36 | E24: 52.08 | F24: 76.46 | G24: 78.52 | H24: 48.12 | I24: 35.5 | J24: 53.33 | K24: 19.45 | L24: 60.8 | M24: 72.77 | N24: 78.73 | O24: 117.92 | P24: 82 | Q24: 50.5 | R24: 54.16 | S24: 95.85 | T24: 52.06 | U24: 83.34 | V24: 35.84 | W24: 29.05 | X24: 53.119999 | Y24: 33.3 | Z24: 83.94 | AA24: 62.82 | AB24: 276.91 | AC24: 50.98 | AD24: 30.37 | AE24: 37.08 | AF24: 71.39 | AG24: 40.89 | AH24: 34.38 | AI24: 27.28 | AJ24: 52.3 | AK24: 118.12 | AL24: 51.56 | AM24: 95.97 | AN24: 69.13
A25: 23 | B25: 2020-09-09 | C25: 14.03 | D25: 52.1 | E25: 53.78 | F25: 78.38 | G25: 79.91 | H25: 49.05 | I25: 36.17 | J25: 54.85 | K25: 19.53 | L25: 61.69 | M25: 72.91 | N25: 79.64 | O25: 119.71 | P25: 82.59 | Q25: 51.54 | R25: 54.919998 | S25: 98.37 | T25: 52.7 | U25: 85.79 | V25: 36.67 | W25: 29.14 | X25: 53.959999 | Y25: 33.75 | Z25: 85.93 | AA25: 63.71 | AB25: 282.37 | AC25: 51.52 | AD25: 31.08 | AE25: 37.89 | AF25: 72.63 | AG25: 42.16 | AH25: 38.14 | AI25: 27.75 | AJ25: 53.43 | AK25: 120.95 | AL25: 52.85 | AM25: 97.77 | AN25: 70.59
A26: 24 | B26: 2020-09-08 | C26: 13.74 | D26: 53.1 | E26: 52.65 | F26: 77.4 | G26: 78.98 | H26: 48.45 | I26: 36.31 | J26: 54.6 | K26: 19.37 | L26: 60.5 | M26: 72.8 | N26: 78.2 | O26: 118.08 | P26: 80.73 | Q26: 51.37 | R26: 54.209999 | S26: 97.95 | T26: 52.11 | U26: 85.26 | V26: 36.42 | W26: 29.13 | X26: 53.240002 | Y26: 33.72 | Z26: 86.07 | AA26: 62.95 | AB26: 277.91 | AC26: 50.85 | AD26: 30.85 | AE26: 37.89 | AF26: 73.18 | AG26: 41.76 | AH26: 38.08 | AI26: 28.23 | AJ26: 52 | AK26: 119.09 | AL26: 52.85 | AM26: 95.59 | AN26: 69.11
A27: 25 | B27: 2020-09-04 | C27: 13.72 | D27: 53.78 | E27: 53.29 | F27: 78.96 | G27: 79.05 | H27: 48.67 | I27: 37.1 | J27: 55.98 | K27: 19.87 | L27: 61.66 | M27: 73.04 | N27: 78.44 | O27: 118.81 | P27: 80.97 | Q27: 52.26 | R27: 53.119999 | S27: 97.9 | T27: 51.87 | U27: 86.08 | V27: 37.09 | W27: 29.4 | X27: 52.009998 | Y27: 34.31 | Z27: 88.02 | AA27: 64.42 | AB27: 277.32 | AC27: 51.83 | AD27: 31.54 | AE27: 38.19 | AF27: 72.4 | AG27: 43.01 | AH27: 38.41 | AI27: 28.29 | AJ27: 52.52 | AK27: 120.89 | AL27: 52.29 | AM27: 96.49 | AN27: 70.02
A28: 26 | B28: 2020-09-03 | C28: 13.81 | D28: 54.13 | E28: 53.97 | F28: 79.1 | G28: 79.56 | H28: 48.4 | I28: 37.11 | J28: 56.02 | K28: 20.15 | L28: 61.91 | M28: 72.4 | N28: 78.99 | O28: 119.12 | P28: 81.14 | Q28: 52.96 | R28: 53.490002 | S28: 98 | T28: 52.44 | U28: 86.08 | V28: 37.29 | W28: 29.39 | X28: 52.509998 | Y28: 34.24 | Z28: 89.08 | AA28: 64.61 | AB28: 280.59 | AC28: 52.46 | AD28: 31.81 | AE28: 38.44 | AF28: 72.97 | AG28: 43.38 | AH28: 38.31 | AI28: 28.28 | AJ28: 52.03 | AK28: 122.72 | AL28: 52.6 | AM28: 96.36 | AN28: 70.65
A29: 27 | B29: 2020-09-02 | C29: 14.19 | D29: 54.45 | E29: 54.66 | F29: 80.23 | G29: 80.31 | H29: 48.44 | I29: 37.01 | J29: 56.15 | K29: 20.45 | L29: 61.76 | M29: 72.23 | N29: 79.6 | O29: 120.46 | P29: 81.47 | Q29: 52.57 | R29: 53.860001 | S29: 100.48 | T29: 53.27 | U29: 86.47 | V29: 38.03 | W29: 29.14 | X29: 53.110001 | Y29: 34.35 | Z29: 90.21 | AA29: 65.45 | AB29: 288.26 | AC29: 52.27 | AD29: 32.33 | AE29: 38.79 | AF29: 73.92 | AG29: 43.98 | AH29: 37.69 | AI29: 28.48 | AJ29: 52.92 | AK29: 124.55 | AL29: 53.21 | AM29: 97.41 | AN29: 71.55
A30: 28 | B30: 2020-09-01 | C30: 13.93 | D30: 53.27 | E30: 53.48 | F30: 78.48 | G30: 77.82 | H30: 47.52 | I30: 36.52 | J30: 55.13 | K30: 20 | L30: 60.22 | M30: 69.65 | N30: 77.82 | O30: 117.79 | P30: 79.21 | Q30: 51.81 | R30: 52.860001 | S30: 97.69 | T30: 52.66 | U30: 83.66 | V30: 36.33 | W30: 28.26 | X30: 51.77 | Y30: 33.98 | Z30: 88.33 | AA30: 64 | AB30: 277.13 | AC30: 51.5 | AD30: 31.39 | AE30: 38.04 | AF30: 71.54 | AG30: 43.11 | AH30: 37.17 | AI30: 27.43 | AJ30: 51 | AK30: 122.25 | AL30: 51.81 | AM30: 93.59 | AN30: 68.55
A31: 29 | B31: 2020-08-31 | C31: 13.83 | D31: 53.96 | E31: 54.15 | F31: 79.11 | G31: 78.83 | H31: 48.04 | I31: 36.86 | J31: 56.08 | K31: 20.07 | L31: 60.49 | M31: 71.34 | N31: 78.44 | O31: 118.67 | P31: 80.34 | Q31: 52.48 | R31: 53.25 | S31: 99.14 | T31: 53.22 | U31: 85.71 | V31: 36.91 | W31: 28.59 | X31: 52.169998 | Y31: 34.61 | Z31: 89.9 | AA31: 64.99 | AB31: 279.17 | AC31: 51.64 | AD31: 31.86 | AE31: 38.85 | AF31: 73.35 | AG31: 43.68 | AH31: 38.15 | AI31: 27.63 | AJ31: 52.24 | AK31: 123.65 | AL31: 52.18 | AM31: 94.08 | AN31: 69.475
A32: 30 | B32: 2020-08-28 | C32: 13.74 | D32: 54.05 | E32: 54.32 | F32: 78.66 | G32: 78.35 | H32: 48.57 | I32: 37.05 | J32: 56.59 | K32: 19.95 | L32: 60.05 | M32: 70.92 | N32: 78.02 | O32: 117.86 | P32: 79.71 | Q32: 52.17 | R32: 53.310001 | S32: 98.96 | T32: 52.98 | U32: 84.77 | V32: 37.04 | W32: 28.31 | X32: 52.139999 | Y32: 34.42 | Z32: 88.54 | AA32: 65.66 | AB32: 279.55 | AC32: 52.22 | AD32: 31.79 | AE32: 39.085 | AF32: 73.48 | AG32: 43.73 | AH32: 38.31 | AI32: 27.72 | AJ32: 52.16 | AK32: 122.32 | AL32: 52.42 | AM32: 93.62 | AN32: 68.65
Y33: 49.075
A34: (a) | B34: Average | C34: =AVERAGE(C3:C32) -> 14.322 | D34: 52.67933333 | E34: 52.59466667 | F34: 78.572 | G34: 81.48766667 | H34: 50.02766667 | I34: 35.06266667 | J34: 54.909 | K34: 19.672 | L34: 61.36733333 | M34: 75.35966667 | N34: 79.07066667 | O34: 116.5026667 | P34: 84.62733333 | Q34: 51.97466667 | R34: 54.4516668 | S34: 98.91766667 | T34: 51.768 | U34: 84.53566667 | V34: 36.36083333 | W34: 29.20766667 | X34: 53.4710001 | Y34: 33.612 | Z34: 84.15433333 | AA34: 63.58933333 | AB34: 282.8903333 | AC34: 50.373 | AD34: 30.59166667 | AE34: 37.38783333 | AF34: 74.32466667 | AG34: 41.98933333 | AH34: 36.17233333 | AI34: 27.59966667 | AJ34: 53.57133333 | AK34: 120.1616667 | AL34: 53.91066667 | AM34: 96.52433333 | AN34: 69.55516667
A37: (a) | B37: Average of closing prices for 30 trading days ended Oct. 9, 2020.

Sheet Stock Price (Non-Utility)
C1: 1 | D1: =C1+1 -> 2 | E1: =D1+1 -> 3 | F1: 4 | G1: 5 | H1: 6 | I1: 7 | J1: 8 | K1: 9 | L1: 10 | M1: 11 | N1: 12 | O1: 13 | P1: 14 | Q1: 15 | R1: 16 | S1: 17 | T1: 18 | U1: 19 | V1: 20 | W1: 21 | X1: 22 | Y1: 23 | Z1: 24 | AA1: 25 | AB1: 26 | AC1: 27 | AD1: 28 | AE1: 29 | AF1: 30 | AG1: 31 | AH1: 32 | AI1: 33 | AJ1: 34 | AK1: 35 | AL1: 36 | AM1: 37 | AN1: 38 | AO1: =AN1+1 -> 39 | AP1: 40 | AQ1: 41 | AR1: 42 | AS1: 43 | AT1: 44 | AU1: 45
B2: Date | C2: =TRANSPOSE('Proxy Group Risk Measures'!C44:C88) -> APD | D2: DOX | E2: AMGN | F2: APH | G2: AAPL | H2: T | I2: BAX | J2: BMY | K2: BRO | L2: BF/B | M2: CHD | N2: CSCO | O2: KO | P2: CL | Q2: CMCSA | R2: CBSH | S2: COST | T2: CVS | U2: DHR | V2: GIS | W2: HRL | X2: INTC | Y2: IFF | Z2: JNJ | AA2: K | AB2: KMB | AC2: LLY | AD2: LMT | AE2: MMC | AF2: MKC | AG2: MCD | AH2: MRK | AI2: MSFT | AJ2: NOC | AK2: ORCL | AL2: PEP | AM2: PFE | AN2: PG | AO2: PSA | AP2: TXN | AQ2: TRV | AR2: UPS | AS2: VZ | AT2: WMT | AU2: WM
A3: =A2+1 -> 1 | B3: 2020-10-09 | C3: 300.6 | D3: 59.4 | E3: 236.7 | F3: 113.49 | G3: 116.97 | H3: 28.32 | I3: 78.5 | J3: 61.82 | K3: 47.22 | L3: 78.42 | M3: 92.76 | N3: 39.85 | O3: 50.81 | P3: 79.77 | Q3: 44.85 | R3: 60.51 | S3: 369.46 | T3: 59.4 | U3: 226.06 | V3: 61.87 | W3: 48.96 | X3: 52.82 | Y3: 119.41 | Z3: 150.97 | AA3: 65.85 | AB3: 152.49 | AC3: 156.88 | AD3: 385.93 | AE3: 115.71 | AF3: 196.11 | AG3: 224.83 | AH3: 80.36 | AI3: 215.81 | AJ3: 315.28 | AK3: 61.15 | AL3: 138.44 | AM3: 36.79 | AN3: 142.92 | AO3: 234.01 | AP3: 150.91 | AQ3: 115.83 | AR3: 174.69 | AS3: 59.33 | AT3: 142.78 | AU3: 115.35
A4: 2 | B4: 2020-10-08 | C4: 299.66 | D4: 58.9 | E4: 240.09 | F4: 113.5 | G4: 114.97 | H4: 28.61 | I4: 78.85 | J4: 61.62 | K4: 46.71 | L4: 78 | M4: 91.14 | N4: 39.79 | O4: 50.46 | P4: 78.74 | Q4: 45.3 | R4: 61.05 | S4: 365.09 | T4: 60.47 | U4: 220.71 | V4: 61.39 | W4: 49.1 | X4: 53.37 | Y4: 116.2 | Z4: 148.89 | AA4: 65.22 | AB4: 150.31 | AC4: 153.5 | AD4: 388.59 | AE4: 114.26 | AF4: 194.33 | AG4: 225.8 | AH4: 80.48 | AI4: 210.58 | AJ4: 319.68 | AK4: 60.89 | AL4: 137.85 | AM4: 36.89 | AN4: 141.65 | AO4: 232.02 | AP4: 148.06 | AQ4: 115.62 | AR4: 174.21 | AS4: 59.19 | AT4: 141.36 | AU4: 114.7
A5: 3 | B5: 2020-10-07 | C5: 302.11 | D5: 58.28 | E5: 257.67 | F5: 113.03 | G5: 115.08 | H5: 28.8 | I5: 81.65 | J5: 60.42 | K5: 46.27 | L5: 77.15 | M5: 90.93 | N5: 39.4 | O5: 49.56 | P5: 78.13 | Q5: 44.96 | R5: 60.37 | S5: 363.02 | T5: 59.42 | U5: 222.03 | V5: 61.59 | W5: 49.33 | X5: 52.67 | Y5: 116.51 | Z5: 147.88 | AA5: 64.86 | AB5: 150.85 | AC5: 148.96 | AD5: 382.94 | AE5: 114.69 | AF5: 194.18 | AG5: 226.48 | AH5: 80.04 | AI5: 209.83 | AJ5: 313.89 | AK5: 60.59 | AL5: 137.01 | AM5: 36.47 | AN5: 140.7 | AO5: 230.04 | AP5: 146.75 | AQ5: 113.8 | AR5: 174.99 | AS5: 59.61 | AT5: 140.89 | AU5: 113.88
A6: 4 | B6: 2020-10-06 | C6: 296.2 | D6: 57.65 | E6: 252.69 | F6: 110.14 | G6: 113.16 | H6: 28.71 | I6: 80.46 | J6: 57.74 | K6: 45.73 | L6: 76.16 | M6: 89.85 | N6: 38.57 | O6: 48.94 | P6: 77.54 | Q6: 44.51 | R6: 59.31 | S6: 358.35 | T6: 58.23 | U6: 218.24 | V6: 61.23 | W6: 48.85 | X6: 51.37 | Y6: 115.31 | Z6: 146.26 | AA6: 65.16 | AB6: 150 | AC6: 144.13 | AD6: 376.46 | AE6: 114.88 | AF6: 191.64 | AG6: 224.09 | AH6: 79.63 | AI6: 205.91 | AJ6: 308.97 | AK6: 59.51 | AL6: 135.7 | AM6: 36.17 | AN6: 139.61 | AO6: 228.29 | AP6: 143.85 | AQ6: 111.53 | AR6: 169.35 | AS6: 59.46 | AT6: 140.63 | AU6: 113.25
A7: 5 | B7: 2020-10-05 | C7: 300.32 | D7: 57.88 | E7: 256.01 | F7: 111.53 | G7: 116.5 | H7: 28.67 | I7: 80.57 | J7: 59.2 | K7: 45.73 | L7: 76.4 | M7: 90.73 | N7: 38.57 | O7: 49.38 | P7: 78.42 | Q7: 45.81 | R7: 58.75 | S7: 358.58 | T7: 58.95 | U7: 218.35 | V7: 62.68 | W7: 49.5 | X7: 51.69 | Y7: 118.36 | Z7: 148.23 | AA7: 65.45 | AB7: 149.53 | AC7: 146.63 | AD7: 383.96 | AE7: 115.66 | AF7: 195.08 | AG7: 226.07 | AH7: 81.24 | AI7: 210.38 | AJ7: 312.18 | AK7: 59.56 | AL7: 137.93 | AM7: 36.75 | AN7: 139.39 | AO7: 232.16 | AP7: 144.08 | AQ7: 111.91 | AR7: 169.16 | AS7: 59.66 | AT7: 141.8 | AU7: 114.24
A8: 6 | B8: 2020-10-02 | C8: 296.04 | D8: 57.49 | E8: 245.41 | F8: 109.36 | G8: 113.02 | H8: 28.68 | I8: 78.83 | J8: 58.72 | K8: 45.36 | L8: 75.63 | M8: 91.17 | N8: 38.27 | O8: 49.36 | P8: 77.4 | Q8: 45.15 | R8: 56.9 | S8: 355.01 | T8: 57.83 | U8: 212.5 | V8: 62.52 | W8: 49.02 | X8: 51.01 | Y8: 119.17 | Z8: 146.24 | AA8: 64.71 | AB8: 147.43 | AC8: 145.21 | AD8: 380.58 | AE8: 114.56 | AF8: 192.84 | AG8: 222.67 | AH8: 80.8 | AI8: 206.19 | AJ8: 313.95 | AK8: 58.83 | AL8: 138.06 | AM8: 36.38 | AN8: 138.12 | AO8: 230.59 | AP8: 141.09 | AQ8: 108.58 | AR8: 166.96 | AS8: 59.24 | AT8: 140.5 | AU8: 113.89
A9: 7 | B9: 2020-10-01 | C9: 294.67 | D9: 57.54 | E9: 255.39 | F9: 109.79 | G9: 116.79 | H9: 28.49 | I9: 79.72 | J9: 59.82 | K9: 44.94 | L9: 75.48 | M9: 93.1 | N9: 38.8 | O9: 49.18 | P9: 77.06 | Q9: 46.44 | R9: 55.86 | S9: 358.46 | T9: 57.84 | U9: 214.67 | V9: 62.57 | W9: 49.28 | X9: 52.24 | Y9: 120.09 | Z9: 147.32 | AA9: 64.38 | AB9: 147.63 | AC9: 144.29 | AD9: 380.89 | AE9: 114.23 | AF9: 193.2 | AG9: 219.59 | AH9: 81.64 | AI9: 212.46 | AJ9: 311.81 | AK9: 59.68 | AL9: 140.8 | AM9: 36.37 | AN9: 139.24 | AO9: 226.26 | AP9: 144.91 | AQ9: 107.81 | AR9: 167.65 | AS9: 59.45 | AT9: 143.08 | AU9: 112.89
A10: 8 | B10: 2020-09-30 | C10: 297.86 | D10: 57.41 | E10: 254.16 | F10: 108.27 | G10: 115.81 | H10: 28.51 | I10: 80.42 | J10: 60.29 | K10: 45.27 | L10: 75.32 | M10: 93.71 | N10: 39.39 | O10: 49.37 | P10: 77.15 | Q10: 46.26 | R10: 56.29 | S10: 355 | T10: 58.4 | U10: 215.33 | V10: 61.68 | W10: 48.89 | X10: 51.78 | Y10: 122.45 | Z10: 148.88 | AA10: 64.59 | AB10: 147.66 | AC10: 148.02 | AD10: 383.28 | AE10: 114.7 | AF10: 194.1 | AG10: 219.49 | AH10: 82.95 | AI10: 210.33 | AJ10: 315.49 | AK10: 59.7 | AL10: 138.6 | AM10: 36.7 | AN10: 138.99 | AO10: 222.72 | AP10: 142.79 | AQ10: 108.19 | AR10: 166.63 | AS10: 59.49 | AT10: 139.91 | AU10: 113.17
A11: 9 | B11: 2020-09-29 | C11: 293.86 | D11: 57.45 | E11: 248.3 | F11: 108.63 | G11: 114.09 | H11: 28.3 | I11: 79.09 | J11: 59.9 | K11: 45.17 | L11: 75.23 | M11: 92.85 | N11: 39.06 | O11: 48.92 | P11: 76.22 | Q11: 46.2 | R11: 55.17 | S11: 352.14 | T11: 57.54 | U11: 211.01 | V11: 59.86 | W11: 48.51 | X11: 51.19 | Y11: 121.5 | Z11: 147.06 | AA11: 63.44 | AB11: 146.34 | AC11: 146.26 | AD11: 388.74 | AE11: 114.05 | AF11: 189.89 | AG11: 218.68 | AH11: 81.9 | AI11: 207.26 | AJ11: 325.28 | AK11: 59.47 | AL11: 137.16 | AM11: 36.17 | AN11: 137.26 | AO11: 220.91 | AP11: 141.5 | AQ11: 107.44 | AR11: 168.5 | AS11: 59.24 | AT11: 137.14 | AU11: 113.41
A12: 10 | B12: 2020-09-28 | C12: 292.67 | D12: 58.14 | E12: 247.03 | F12: 108.18 | G12: 114.96 | H12: 28.38 | I12: 79.54 | J12: 59.71 | K12: 44.87 | L12: 75.63 | M12: 93.46 | N12: 39.13 | O12: 49.28 | P12: 76.61 | Q12: 46.76 | R12: 55.61 | S12: 349.62 | T12: 57.94 | U12: 209.79 | V12: 59.9 | W12: 48.96 | X12: 51.43 | Y12: 121.4 | Z12: 147.11 | AA12: 63.38 | AB12: 147.56 | AC12: 148.1 | AD12: 390.51 | AE12: 114.54 | AF12: 195.18 | AG12: 220.26 | AH12: 82.76 | AI12: 209.44 | AJ12: 329.52 | AK12: 59.58 | AL12: 137.97 | AM12: 36.39 | AN12: 138.01 | AO12: 221.13 | AP12: 141.94 | AQ12: 110.22 | AR12: 168.9 | AS12: 59.36 | AT12: 137.25 | AU12: 114.04
A13: 11 | B13: 2020-09-25 | C13: 290.71 | D13: 57.52 | E13: 243.82 | F13: 105.66 | G13: 112.28 | H13: 28.04 | I13: 79.64 | J13: 59.49 | K13: 43.94 | L13: 74.5 | M13: 92.95 | N13: 38.45 | O13: 48.72 | P13: 75.95 | Q13: 46.15 | R13: 54.07 | S13: 342.58 | T13: 57.32 | U13: 207.16 | V13: 59.67 | W13: 48.84 | X13: 49.94 | Y13: 118.97 | Z13: 145.66 | AA13: 63.08 | AB13: 146.42 | AC13: 150.26 | AD13: 386.7 | AE13: 112.96 | AF13: 191.57 | AG13: 218.18 | AH13: 82.93 | AI13: 207.82 | AJ13: 328 | AK13: 59.8 | AL13: 133.55 | AM13: 36.05 | AN13: 137.62 | AO13: 218.47 | AP13: 138.32 | AQ13: 108.11 | AR13: 166.12 | AS13: 59.39 | AT13: 137.27 | AU13: 113.63
A14: 12 | B14: 2020-09-24 | C14: 289.99 | D14: 57.19 | E14: 240.32 | F14: 104.19 | G14: 108.22 | H14: 28.04 | I14: 78.7 | J14: 58.25 | K14: 43.56 | L14: 74.79 | M14: 92.59 | N14: 37.85 | O14: 48.7 | P14: 75.76 | Q14: 45.7 | R14: 53.76 | S14: 347 | T14: 56.71 | U14: 203.67 | V14: 58.7 | W14: 48.28 | X14: 49.16 | Y14: 116.55 | Z14: 144.67 | AA14: 62.65 | AB14: 146.48 | AC14: 148.81 | AD14: 378.76 | AE14: 112.73 | AF14: 188.85 | AG14: 216.12 | AH14: 83.15 | AI14: 203.19 | AJ14: 324.72 | AK14: 59.3 | AL14: 131.58 | AM14: 35.76 | AN14: 136.92 | AO14: 214.64 | AP14: 136.69 | AQ14: 107.82 | AR14: 160.41 | AS14: 59.19 | AT14: 136.7 | AU14: 111.3
A15: 13 | B15: 2020-09-23 | C15: 285.43 | D15: 57.04 | E15: 242.59 | F15: 103.29 | G15: 107.12 | H15: 27.87 | I15: 78.33 | J15: 58.99 | K15: 43.34 | L15: 75.34 | M15: 91.61 | N15: 38.28 | O15: 48.21 | P15: 75.14 | Q15: 45.36 | R15: 53.5 | S15: 344.63 | T15: 57.4 | U15: 205.2 | V15: 57.72 | W15: 47.66 | X15: 48.82 | Y15: 116.12 | Z15: 144.44 | AA15: 61.13 | AB15: 144.82 | AC15: 149.81 | AD15: 383.24 | AE15: 114.54 | AF15: 185.49 | AG15: 214.97 | AH15: 82.63 | AI15: 200.59 | AJ15: 328.06 | AK15: 58.96 | AL15: 131 | AM15: 36 | AN15: 136.31 | AO15: 212.91 | AP15: 135.16 | AQ15: 107.49 | AR15: 161.55 | AS15: 58.91 | AT15: 135.99 | AU15: 111.73
A16: 14 | B16: 2020-09-22 | C16: 293.45 | D16: 57.99 | E16: 247.5 | F16: 104.62 | G16: 111.81 | H16: 28.51 | I16: 79.05 | J16: 58.76 | K16: 44.51 | L16: 76.15 | M16: 91.59 | N16: 39.32 | O16: 49.66 | P16: 76.07 | Q16: 46.19 | R16: 54.27 | S16: 344.45 | T16: 58.14 | U16: 207.15 | V16: 57.99 | W16: 48.71 | X16: 49.95 | Y16: 120.61 | Z16: 144.21 | AA16: 62.67 | AB16: 146.96 | AC16: 149.86 | AD16: 388.42 | AE16: 116.27 | AF16: 192.39 | AG16: 216.41 | AH16: 82.94 | AI16: 207.42 | AJ16: 332.8 | AK16: 60.62 | AL16: 132.15 | AM16: 36.25 | AN16: 137.96 | AO16: 219.37 | AP16: 138.65 | AQ16: 109.25 | AR16: 161.89 | AS16: 59.82 | AT16: 138.31 | AU16: 114.97
A17: 15 | B17: 2020-09-21 | C17: 290.78 | D17: 58.32 | E17: 243.19 | F17: 103.49 | G17: 110.08 | H17: 28.63 | I17: 80.25 | J17: 57.77 | K17: 44.02 | L17: 75.84 | M17: 89.64 | N17: 39.04 | O17: 49.09 | P17: 75.19 | Q17: 44.68 | R17: 54.39 | S17: 339.57 | T17: 58.87 | U17: 205.81 | V17: 57.87 | W17: 48.47 | X17: 49.72 | Y17: 120.43 | Z17: 145.1 | AA17: 62.72 | AB17: 145.87 | AC17: 151.18 | AD17: 379.61 | AE17: 116.27 | AF17: 190.4 | AG17: 216.41 | AH17: 83.13 | AI17: 202.54 | AJ17: 325.89 | AK17: 60.82 | AL17: 131.24 | AM17: 36.02 | AN17: 136.71 | AO17: 216.29 | AP17: 136.98 | AQ17: 109.45 | AR17: 161.06 | AS17: 59.61 | AT17: 137.07 | AU17: 114.3
A18: 16 | B18: 2020-09-18 | C18: 295.81 | D18: 57.995 | E18: 247.72 | F18: 108.87 | G18: 106.84 | H18: 28.93 | I18: 82.97 | J18: 59.27 | K18: 44.8 | L18: 76.36 | M18: 90.32 | N18: 39.81 | O18: 50.45 | P18: 75.83 | Q18: 45.26 | R18: 56.13 | S18: 335.96 | T18: 59.57 | U18: 206.31 | V18: 57.32 | W18: 48.75 | X18: 49.89 | Y18: 122.54 | Z18: 149.18 | AA18: 62.92 | AB18: 145.97 | AC18: 154.17 | AD18: 395.14 | AE18: 117.67 | AF18: 189.96 | AG18: 220.27 | AH18: 85.81 | AI18: 200.39 | AJ18: 341.5 | AK18: 59.75 | AL18: 131.47 | AM18: 36.63 | AN18: 137.37 | AO18: 221.01 | AP18: 138.66 | AQ18: 111.61 | AR18: 159.66 | AS18: 60.35 | AT18: 135.29 | AU18: 115.27
A19: 17 | B19: 2020-09-17 | C19: 301.98 | D19: 58.52 | E19: 248.08 | F19: 109.88 | G19: 110.34 | H19: 29.07 | I19: 82.32 | J19: 59.4 | K19: 44.76 | L19: 77.3 | M19: 92.06 | N19: 40.37 | O19: 50.55 | P19: 76.71 | Q19: 45.58 | R19: 56.66 | S19: 338.88 | T19: 58.41 | U19: 207.15 | V19: 57.58 | W19: 49.51 | X19: 50.32 | Y19: 124.18 | Z19: 147.17 | AA19: 63.51 | AB19: 146.62 | AC19: 152.47 | AD19: 395.94 | AE19: 117.88 | AF19: 192.73 | AG19: 222.58 | AH19: 85.64 | AI19: 202.91 | AJ19: 343.84 | AK19: 60.18 | AL19: 133.2 | AM19: 36.82 | AN19: 137.52 | AO19: 222.21 | AP19: 140.4 | AQ19: 112.6 | AR19: 159.75 | AS19: 60.59 | AT19: 136.69 | AU19: 115.56
A20: 18 | B20: 2020-09-16 | C20: 302.46 | D20: 59.51 | E20: 247.76 | F20: 109.08 | G20: 112.13 | H20: 29.24 | I20: 81.68 | J20: 59.45 | K20: 45.18 | L20: 77.94 | M20: 91.96 | N20: 40.42 | O20: 50.79 | P20: 76.91 | Q20: 46.81 | R20: 56.39 | S20: 343.73 | T20: 57.48 | U20: 207.05 | V20: 58.75 | W20: 49.45 | X20: 50.37 | Y20: 124.24 | Z20: 148.4 | AA20: 63.93 | AB20: 147.75 | AC20: 150.96 | AD20: 395.58 | AE20: 118.83 | AF20: 198.68 | AG20: 224.81 | AH20: 85.57 | AI20: 205.05 | AJ20: 343.47 | AK20: 60.43 | AL20: 134.98 | AM20: 36.78 | AN20: 137.7 | AO20: 224.51 | AP20: 139.68 | AQ20: 113.17 | AR20: 159.87 | AS20: 60.37 | AT20: 136.26 | AU20: 116.85
A21: 19 | B21: 2020-09-15 | C21: 304.04 | D21: 58.53 | E21: 248.35 | F21: 108.33 | G21: 115.54 | H21: 29.12 | I21: 80.51 | J21: 59.53 | K21: 45.16 | L21: 78.96 | M21: 92.33 | N21: 40.6 | O21: 51.05 | P21: 76.94 | Q21: 46.46 | R21: 55.84 | S21: 343.91 | T21: 57 | U21: 208.69 | V21: 59.02 | W21: 49.81 | X21: 50 | Y21: 124.24 | Z21: 148.89 | AA21: 65.63 | AB21: 146.48 | AC21: 150.08 | AD21: 392.55 | AE21: 118.62 | AF21: 200.35 | AG21: 222.37 | AH21: 84.21 | AI21: 208.78 | AJ21: 338.02 | AK21: 60.94 | AL21: 135.62 | AM21: 36.96 | AN21: 138.63 | AO21: 221.01 | AP21: 140.64 | AQ21: 112.15 | AR21: 161.53 | AS21: 60.6 | AT21: 137.36 | AU21: 117.07
A22: 20 | B22: 2020-09-14 | C22: 303.97 | D22: 57.92 | E22: 246.75 | F22: 106.78 | G22: 115.355 | H22: 29.14 | I22: 83.19 | J22: 59.7 | K22: 45.17 | L22: 79.49 | M22: 92.72 | N22: 40.37 | O22: 50.71 | P22: 77.15 | Q22: 45.27 | R22: 56.58 | S22: 342.92 | T22: 57.97 | U22: 207.93 | V22: 58.76 | W22: 50.25 | X22: 49.41 | Y22: 122.98 | Z22: 148.35 | AA22: 65.42 | AB22: 148.5 | AC22: 149 | AD22: 393.75 | AE22: 117.8 | AF22: 200.1 | AG22: 220.56 | AH22: 84.16 | AI22: 205.41 | AJ22: 338.45 | AK22: 59.46 | AL22: 136.67 | AM22: 37.01 | AN22: 138.63 | AO22: 224.74 | AP22: 138.53 | AQ22: 114.46 | AR22: 160.14 | AS22: 60.32 | AT22: 137.32 | AU22: 116.36
A23: 21 | B23: 2020-09-11 | C23: 300.32 | D23: 57.3 | E23: 243.21 | F23: 104.29 | G23: 112 | H23: 29 | I23: 83.1 | J23: 58.99 | K23: 44.64 | L23: 79.35 | M23: 92.87 | N23: 39.88 | O23: 51.06 | P23: 76.75 | Q23: 44.67 | R23: 55.23 | S23: 339.13 | T23: 57.4 | U23: 204.87 | V23: 58.54 | W23: 49.83 | X23: 49.28 | Y23: 121.03 | Z23: 147.78 | AA23: 65.44 | AB23: 148.5 | AC23: 148.09 | AD23: 389.45 | AE23: 115.78 | AF23: 198.64 | AG23: 218 | AH23: 84.48 | AI23: 204.03 | AJ23: 338.88 | AK23: 57 | AL23: 135.81 | AM23: 36.07 | AN23: 138.14 | AO23: 220.59 | AP23: 136.37 | AQ23: 113.4 | AR23: 158.87 | AS23: 59.79 | AT23: 136.7 | AU23: 113.15
A24: 22 | B24: 2020-09-10 | C24: 295.23 | D24: 57.04 | E24: 240.64 | F24: 104.53 | G24: 113.49 | H24: 28.91 | I24: 83.13 | J24: 58.29 | K24: 44.86 | L24: 79.57 | M24: 92.89 | N24: 39.57 | O24: 50 | P24: 76.41 | Q24: 44.02 | R24: 55.54 | S24: 339.53 | T24: 58 | U24: 203.09 | V24: 58.49 | W24: 49.72 | X24: 48.96 | Y24: 120.36 | Z24: 146.91 | AA24: 66 | AB24: 148.15 | AC24: 146.22 | AD24: 379.11 | AE24: 115.61 | AF24: 198.19 | AG24: 217.24 | AH24: 83.57 | AI24: 205.37 | AJ24: 330.02 | AK24: 57.33 | AL24: 134.76 | AM24: 35.65 | AN24: 136.7 | AO24: 218.14 | AP24: 137.19 | AQ24: 111.8 | AR24: 157.89 | AS24: 59.53 | AT24: 136.81 | AU24: 111.68
A25: 23 | B25: 2020-09-09 | C25: 303.27 | D25: 57.35 | E25: 245.57 | F25: 106.78 | G25: 117.32 | H25: 29.37 | I25: 82.86 | J25: 59.08 | K25: 45.4 | L25: 81.14 | M25: 94.04 | N25: 40.13 | O25: 50.19 | P25: 77.57 | Q25: 44.6 | R25: 56.5 | S25: 346.43 | T25: 59.53 | U25: 201.94 | V25: 59.98 | W25: 50.67 | X25: 49.62 | Y25: 122 | Z25: 149.7 | AA25: 66.53 | AB25: 151.45 | AC25: 151.97 | AD25: 385.24 | AE25: 116.75 | AF25: 202.69 | AG25: 215.71 | AH25: 84.88 | AI25: 211.29 | AJ25: 339.41 | AK25: 56.95 | AL25: 137.11 | AM25: 36.18 | AN25: 138.15 | AO25: 216.72 | AP25: 139.68 | AQ25: 113.63 | AR25: 159.8 | AS25: 60.04 | AT25: 139.89 | AU25: 112.56
A26: 24 | B26: 2020-09-08 | C26: 294.52 | D26: 57.14 | E26: 241.18 | F26: 105.06 | G26: 112.82 | H26: 29.51 | I26: 81.29 | J26: 58.53 | K26: 44.19 | L26: 78.95 | M26: 91.9 | N26: 40 | O26: 49.81 | P26: 75.64 | Q26: 43.81 | R26: 56.87 | S26: 338.86 | T26: 59.53 | U26: 196.15 | V26: 59.52 | W26: 50.25 | X26: 48.91 | Y26: 121.63 | Z26: 147.26 | AA26: 66.34 | AB26: 148.97 | AC26: 149.31 | AD26: 380.23 | AE26: 113.48 | AF26: 197.52 | AG26: 213.58 | AH26: 83.33 | AI26: 202.66 | AJ26: 334.56 | AK26: 55.32 | AL26: 135.55 | AM26: 35.93 | AN26: 135.94 | AO26: 213.95 | AP26: 136.04 | AQ26: 113.74 | AR26: 156.45 | AS26: 59.96 | AT26: 138.45 | AU26: 110.46
A27: 25 | B27: 2020-09-04 | C27: 298.43 | D27: 58.75 | E27: 248.4 | F27: 108.45 | G27: 120.96 | H27: 29.42 | I27: 82.3 | J27: 59.95 | K27: 45.25 | L27: 80.12 | M27: 93.3 | N27: 40.82 | O27: 51.04 | P27: 77.21 | Q27: 44.43 | R27: 60.03 | S27: 346.57 | T27: 60.24 | U27: 196.58 | V27: 63.15 | W27: 51.08 | X27: 50.08 | Y27: 123.12 | Z27: 148.59 | AA27: 69.22 | AB27: 152.23 | AC27: 150.91 | AD27: 385.02 | AE27: 115.41 | AF27: 201.85 | AG27: 211.73 | AH27: 85.24 | AI27: 214.25 | AJ27: 339.03 | AK27: 55.73 | AL27: 138.76 | AM27: 36.36 | AN27: 137.96 | AO27: 212.14 | AP27: 140.47 | AQ27: 116.57 | AR27: 160.78 | AS27: 60.48 | AT27: 142.83 | AU27: 111.21
A28: 26 | B28: 2020-09-03 | C28: 297.18 | D28: 60.96 | E28: 247.91 | F28: 108.47 | G28: 120.88 | H28: 29.59 | I28: 83.47 | J28: 60.05 | K28: 45.88 | L28: 79.35 | M28: 94.26 | N28: 40.95 | O28: 50.48 | P28: 77.67 | Q28: 44.44 | R28: 58.93 | S28: 348.3 | T28: 60.45 | U28: 200.91 | V28: 62.97 | W28: 50.99 | X28: 50.39 | Y28: 123.88 | Z28: 149.55 | AA28: 69.94 | AB28: 152.25 | AC28: 149.02 | AD28: 386.29 | AE28: 116.58 | AF28: 204.01 | AG28: 213.8 | AH28: 85.49 | AI28: 217.3 | AJ28: 342.23 | AK28: 57.1 | AL28: 139.37 | AM28: 36.4 | AN28: 138.26 | AO28: 212.93 | AP28: 141.67 | AQ28: 115.35 | AR28: 158.02 | AS28: 60.61 | AT28: 144.54 | AU28: 111.22
A29: 27 | B29: 2020-09-02 | C29: 310.31 | D29: 62.66 | E29: 258.12 | F29: 112.96 | G29: 131.4 | H29: 29.7 | I29: 85.91 | J29: 61.6 | K29: 47.18 | L29: 79.89 | M29: 98.16 | N29: 42.42 | O29: 51.19 | P29: 79.47 | Q29: 45.17 | R29: 59.17 | S29: 358.86 | T29: 60.91 | U29: 209.97 | V29: 64.5 | W29: 51.33 | X29: 52.25 | Y29: 125.96 | Z29: 153.83 | AA29: 70.42 | AB29: 156.51 | AC29: 149.55 | AD29: 398.07 | AE29: 118.91 | AF29: 209.78 | AG29: 216.23 | AH29: 86.93 | AI29: 231.65 | AJ29: 348.36 | AK29: 59.03 | AL29: 143.29 | AM29: 37.2 | AN29: 140.51 | AO29: 214.16 | AP29: 147.64 | AQ29: 117.48 | AR29: 165.78 | AS29: 60.53 | AT29: 147.68 | AU29: 114.15
A30: 28 | B30: 2020-09-01 | C30: 302.73 | D30: 61.55 | E30: 250.86 | F30: 110.79 | G30: 134.18 | H30: 29.47 | I30: 85.55 | J30: 60.97 | K30: 46.69 | L30: 72.6 | M30: 95.33 | N30: 42.03 | O30: 49.12 | P30: 78.09 | Q30: 45.05 | R30: 58.92 | S30: 351.38 | T30: 60.28 | U30: 208.38 | V30: 63.12 | W30: 50.69 | X30: 50.79 | Y30: 124.74 | Z30: 151.52 | AA30: 69.24 | AB30: 154.26 | AC30: 147.3 | AD30: 386.81 | AE30: 115.48 | AF30: 205.93 | AG30: 212.69 | AH30: 84.43 | AI30: 227.27 | AJ30: 340.38 | AK30: 57.66 | AL30: 139.19 | AM30: 36.88 | AN30: 138.18 | AO30: 213.4 | AP30: 144.96 | AQ30: 114.69 | AR30: 162.65 | AS30: 59.16 | AT30: 147.59 | AU30: 113.64
A31: 29 | B31: 2020-08-31 | C31: 292.26 | D31: 61.23 | E31: 253.32 | F31: 109.8 | G31: 129.04 | H31: 29.81 | I31: 87.07 | J31: 62.2 | K31: 46.4 | L31: 73.17 | M31: 95.83 | N31: 42.22 | O31: 49.53 | P31: 79.26 | Q31: 44.81 | R31: 59.57 | S31: 347.66 | T31: 62.12 | U31: 206.47 | V31: 63.95 | W31: 50.98 | X31: 50.95 | Y31: 123.79 | Z31: 153.41 | AA31: 70.91 | AB31: 157.76 | AC31: 148.39 | AD31: 390.26 | AE31: 114.91 | AF31: 206.2 | AG31: 213.52 | AH31: 85.27 | AI31: 225.53 | AJ31: 342.61 | AK31: 57.22 | AL31: 140.06 | AM31: 37.79 | AN31: 138.33 | AO31: 212.4 | AP31: 142.15 | AQ31: 116.04 | AR31: 163.62 | AS31: 59.27 | AT31: 138.85 | AU31: 114
A32: 30 | B32: 2020-08-28 | C32: 296.76 | D32: 60.83 | E32: 253.12 | F32: 109.78 | G32: 124.8075 | H32: 30.04 | I32: 86.03 | J32: 62.37 | K32: 46.21 | L32: 73.6 | M32: 94.91 | N32: 42.2 | O32: 49.83 | P32: 79.37 | Q32: 44.56 | R32: 59.59 | S32: 348.37 | T32: 63.21 | U32: 205.64 | V32: 63.39 | W32: 50.62 | X32: 50.43 | Y32: 124.47 | Z32: 153.64 | AA32: 70.54 | AB32: 156.5 | AC32: 147.34 | AD32: 395.59 | AE32: 114 | AF32: 204.59 | AG32: 214.91 | AH32: 85.65 | AI32: 228.91 | AJ32: 344.75 | AK32: 57.88 | AL32: 139.94 | AM32: 37.91 | AN32: 138.77 | AO32: 213.44 | AP32: 143.49 | AQ32: 115.89 | AR32: 162.36 | AS32: 59.26 | AT32: 140.3 | AU32: 114.01
B34: Average | C34: =AVERAGE(C3:C32) -> 297.454 | D34: =AVERAGE(D3:D32) -> 58.51616667 | E34: =AVERAGE(E3:E32) -> 247.7286667 | F34: 108.3673333 | G34: 115.9320833 | H34: 28.896 | I34: 81.49933333 | J34: 59.72933333 | K34: 45.28033333 | L34: 76.92766667 | M34: 92.69866667 | N34: 39.852 | O34: 49.848 | P34: 77.20433333 | Q34: 45.30866667 | R34: 57.05866667 | S34: 349.115 | T34: 58.88533333 | U34: 208.9603333 | V34: 60.54266667 | W34: 49.543 | X34: 50.627 | Y34: 121.0746667 | Z34: =AVERAGE(Z3:Z32) -> 148.2366667 | AA34: 65.50933333 | AB34: 149.4083333 | AC34: 149.2226667 | AD34: 386.9213333 | AE34: 115.592 | AF34: 196.549 | AG34: 218.935 | AH34: 83.37466667 | AI34: 210.3516667 | AJ34: 330.3676667 | AK34: 59.01466667 | AL34: 136.494 | AM34: 36.52433333 | AN34: 138.4066667 | AO34: 220.7053333 | AP34: 141.3083333 | AQ34: 112.1876667 | AR34: 163.9746667 | AS34: 59.727 | AT34: 139.5746667 | AU34: =AVERAGE(AU3:AU32) -> 113.7313333
A37: (a) | B37: Average of closing prices for 30 trading days ended Oct. 9, 2020.

Sheet 2020 10 Market DCF
E1: EPS Growth Rates | H1: Market | I1: Weighted | K1: Weighted | N1: Weighted | Q1: Weighted
D2: Dividend | E2: IBES | F2: Zacks | G2: VL | H2: Cap | I2: Dividend Yield | K2: IBES | N2: Zacks | Q2: Value Line | U2: IBES | W2: Value
B3: Company | C3: Ticker | D3: Yield | E3: Screened | F3: Screened | G3: Screened | H3: ($Millions) | I3: Weight | J3: Product | K3: Mkt. Cap. | L3: Weight | M3: Product | N3: Mkt. Cap. | O3: Weight | P3: Product | Q3: Mkt. Cap. | R3: Weight | S3: Product | U3: Yahoo | V3: Zacks | W3: Line
B4: (a) | D4: (b) | E4: (c) | F4: (d) | G4: (b) | H4: (b) | U4: (c) | V4: (d) | W4: (b)
A5: 1 | B5: Agilent Technologies, Inc. | C5: A | D5: 0.0074 | E5: =IF(AND(U5>=$D$399,U5<=$D$400),U5,"NMF") -> 0.094 | F5: =IF(AND(V5>=$D$399,V5<=$D$400),V5,"NMF") -> 0.1 | G5: 0.1 | H5: 29.90429 | I5: =H5/H$384 -> 0.001427222503 | J5: =D5*I5 -> 1.056144653e-05 | K5: =IF(E5="n/a","--",IF(E5="NMF","--",$H5)) -> 29.90429 | L5: =IF(K5="--","--",K5/K$384) -> 0.001651494947 | M5: =IF(L5="--","--",E5*L5) -> 0.000155240525 | N5: =IF(F5="n/a","--",IF(F5="NMF","--",$H5)) -> 29.90429 | O5: =IF(N5="--","--",N5/N$384) -> 0.001513124662 | P5: =IF(O5="--","--",F5*O5) -> 0.0001513124662 | Q5: =IF(G5="n/a","--",IF(G5="NMF","--",$H5)) -> 29.90429 | R5: =IF(Q5="--","--",Q5/Q$384) -> 0.001493799127 | S5: =IF(R5="--","--",G5*R5) -> 0.0001493799127 | U5: 0.094 | V5: 0.1 | W5: 0.1
A6: 2 | B6: Advance Auto Parts, Inc. | C6: AAP | D6: 0.0068 | E6: =IF(AND(U6>=$D$399,U6<=$D$400),U6,"NMF") -> 0.119 | F6: 0.1293 | G6: 0.11 | H6: 10.12541 | I6: 0.0004832488251 | J6: 3.286092011e-06 | K6: 10.12541 | L6: 0.000559186105 | M6: 6.654314649e-05 | N6: =IF(F6="n/a","--",IF(F6="NMF","--",$H6)) -> 10.12541 | O6: 0.0005123347715 | P6: 6.624488596e-05 | Q6: =IF(G6="n/a","--",IF(G6="NMF","--",$H6)) -> 10.12541 | R6: 0.0005057912633 | S6: =IF(R6="--","--",G6*R6) -> 5.563703896e-05 | U6: 0.119 | V6: 0.1293 | W6: 0.11
A7: 3 | B7: Apple Inc. | C7: AAPL | D7: 0.0079 | E7: 0.1246 | F7: 0.11 | G7: 0.155 | H7: 1835.582 | I7: 0.08760562238 | J7: 0.0006920844168 | K7: 1835.582 | L7: 0.10137189 | M7: 0.0126309375 | N7: 1835.582 | O7: 0.0928784597 | P7: 0.01021663057 | Q7: 1835.582 | R7: 0.09169222171 | S7: 0.01421229437 | U7: 0.1246 | V7: 0.11 | W7: 0.155
A8: 4 | B8: AbbVie Inc. | C8: ABBV | D8: 0.0542 | E8: 0.0795 | F8: 0.0596 | G8: 0.105 | H8: 153.7396 | I8: 0.007337429405 | J8: 0.0003976886738 | K8: 153.7396 | L8: 0.008490426373 | M8: 0.0006749888967 | N8: 153.7396 | O8: 0.007779057129 | P8: 0.0004636318049 | Q8: 153.7396 | R8: 0.007679703489 | S8: 0.0008063688663 | U8: 0.0795 | V8: 0.0596 | W8: 0.105
A9: 5 | B9: AmerisourceBergen Corporation | C9: ABC | D9: 0.0179 | E9: 0.0817 | F9: 0.0748 | G9: 0.07 | H9: 19.20089 | I9: 0.0009163883273 | J9: 1.640335106e-05 | K9: 19.20089 | L9: 0.001060388754 | M9: 8.663376118e-05 | N9: 19.20089 | O9: 0.000971544223 | P9: 7.267150788e-05 | Q9: 19.20089 | R9: 0.0009591357199 | S9: 6.713950039e-05 | U9: 0.0817 | V9: 0.0748 | W9: 0.07
A10: 6 | B10: Abbott Laboratories | C10: ABT | D10: 0.014 | E10: 0.149 | F10: 0.1098 | G10: 0.105 | H10: 181.8865 | I10: 0.008680778105 | J10: 0.0001215308935 | K10: 181.8865 | L10: 0.01004486766 | M10: 0.001496685282 | N10: 181.8865 | O10: 0.009203259762 | P10: 0.001010517922 | Q10: 181.8865 | R10: 0.009085716293 | S10: 0.0009540002108 | U10: 0.149 | V10: 0.1098 | W10: 0.105
A11: 7 | B11: Accenture PLC | C11: ACN | D11: 0.0143 | E11: 0.0951 | F11: 0.1 | G11: 0.075 | H11: 146.8207 | I11: 0.007007215587 | J11: 0.0001002031829 | K11: 146.8207 | L11: 0.008108323057 | M11: 0.0007711015227 | N11: 146.8207 | O11: 0.007428968288 | P11: 0.0007428968288 | Q11: 146.8207 | R11: 0.007334085961 | S11: 0.0005500564471 | U11: 0.0951 | V11: 0.1 | W11: 0.075
A12: 8 | B12: Analog Devices, Inc. | C12: ADI | D12: 0.022 | E12: 0.0844 | F12: 0.1 | G12: 0.07 | H12: 41.53118 | I12: 0.001982131483 | J12: 4.360689263e-05 | K12: 41.53118 | L12: 0.002293601818 | M12: 0.0001935799934 | N12: 41.53118 | O12: 0.002101432694 | P12: 0.0002101432694 | Q12: 41.53118 | R12: 0.002074593325 | S12: 0.0001452215327 | U12: 0.0844 | V12: 0.1 | W12: 0.07
A13: 9 | B13: Archer Daniels Midland Company | C13: ADM | D13: 0.0319 | E13: NMF | F13: NMF | G13: 0.09 | H13: 25.10896 | I13: 0.001198358923 | J13: 3.822764963e-05 | K13: -- | L13: -- | M13: -- | N13: -- | O13: -- | P13: -- | Q13: 25.10896 | R13: 0.00125425959 | S13: 0.0001128833631 | U13: -0.088 | V13: n/a | W13: 0.09
A14: 10 | B14: Automatic Data Processing, Inc. | C14: ADP | D14: 0.0287 | E14: 0.1057 | F14: 0.12 | G14: 0.11 | H14: 55.32386 | I14: 0.002640405707 | J14: 7.577964378e-05 | K14: 55.32386 | L14: 0.003055316652 | M14: 0.0003229469702 | N14: 55.32386 | O14: 0.002799327353 | P14: 0.0003359192824 | Q14: 55.32386 | R14: 0.002763574516 | S14: 0.0003039931968 | U14: 0.1057 | V14: 0.12 | W14: 0.11
A15: 11 | B15: Ameren Corporation | C15: AEE | D15: 0.0275 | E15: 0.06 | F15: 0.0689 | G15: 0.06 | H15: 18.68323 | I15: 0.0008916823069 | J15: 2.452126344e-05 | K15: 18.68323 | L15: 0.001031800452 | M15: 6.19080271e-05 | N15: 18.68323 | O15: 0.0009453511881 | P15: 6.513469686e-05 | Q15: 18.68323 | R15: 0.0009332772208 | S15: 5.599663325e-05 | U15: 0.06 | V15: 0.0689 | W15: 0.06
A16: 12 | B16: American Electric Power Company, Inc. | C16: AEP | D16: 0.0374 | E16: 0.0563 | F16: 0.0559 | G16: 0.06 | H16: 39.27415 | I16: 0.001874411687 | J16: 7.010299711e-05 | K16: 39.27415 | L16: 0.002168955031 | M16: 0.0001221121683 | N16: 39.27415 | O16: 0.001987229423 | P16: 0.0001110861247 | Q16: 39.27415 | R16: 0.00196184865 | S16: 0.000117710919 | U16: 0.0563 | V16: 0.0559 | W16: 0.06
A17: 13 | B17: The AES Corporation | C17: AES | D17: 0.0321 | E17: 0.0765 | F17: 0.0801 | G17: NMF | H17: 11.80926 | I17: 0.0005636128335 | J17: 1.809197195e-05 | K17: 11.80926 | L17: 0.0006521784404 | M17: 4.989165069e-05 | N17: 11.80926 | O17: 0.0005975357565 | P17: 4.786261409e-05 | Q17: -- | R17: -- | S17: -- | U17: 0.0765 | V17: 0.0801 | W17: 0.24
A18: 14 | B18: Aflac Incorporated | C18: AFL | D18: 0.0323 | E18: 0.016 | F18: 0.05 | G18: 0.085 | H18: 25.4294 | I18: 0.001213652353 | J18: 3.920097101e-05 | K18: 25.4294 | L18: 0.001404364578 | M18: 2.246983324e-05 | N18: 25.4294 | O18: 0.001286700078 | P18: 6.433500391e-05 | Q18: 25.4294 | R18: 0.001270266424 | S18: 0.000107972646 | U18: 0.016 | V18: 0.05 | W18: 0.085
A19: 15 | B19: American International Group, Inc. | C19: AIG | D19: 0.0484 | E19: 0.0396 | F19: 0.1 | G19: NMF | H19: 22.7677 | I19: 0.001086619137 | J19: 5.259236623e-05 | K19: 22.7677 | L19: 0.001257369478 | M19: 4.979183131e-05 | N19: 22.7677 | O19: 0.001152020943 | P19: 0.0001152020943 | Q19: -- | R19: -- | S19: -- | U19: 0.0396 | V19: 0.1 | W19: 0.285
A20: 16 | B20: Apartment Investment and Management Company | C20: AIV | D20: 0.049 | E20: 0.071 | F20: NMF | G20: NMF | H20: 5.10444 | I20: 0.0002436162716 | J20: 1.193719731e-05 | K20: 5.10444 | L20: 0.0002818979105 | M20: 2.001475164e-05 | N20: -- | O20: -- | P20: -- | Q20: -- | R20: -- | S20: -- | U20: 0.071 | V20: n/a | W20: -0.015
A21: 17 | B21: Assurant, Inc. | C21: AIZ | D21: 0.0212 | E21: 0.194 | F21: NMF | G21: 0.115 | H21: 7.07298 | I21: 0.0003375674936 | J21: 7.156430863e-06 | K21: 7.07298 | L21: 0.0003906125418 | M21: 7.577883311e-05 | N21: -- | O21: -- | P21: -- | Q21: 7.07298 | R21: 0.0003533142351 | S21: 4.063113704e-05 | U21: 0.194 | V21: n/a | W21: 0.115
A22: 18 | B22: Arthur J. Gallagher Co. | C22: AJG | D22: 0.0176 | E22: 0.1152 | F22: 0.0841 | G22: 0.13 | H22: 19.60194 | I22: 0.0009355289786 | J22: 1.646531002e-05 | K22: 19.60194 | L22: 0.001082537149 | M22: 0.0001247082796 | N22: 19.60194 | O22: 0.0009918369183 | P22: 8.341348483e-05 | Q22: 19.60194 | R22: 0.0009791692381 | S22: 0.000127292001 | U22: 0.1152 | V22: 0.0841 | W22: 0.13
A23: 19 | B23: Albemarle Corporation | C23: ALB | D23: 0.0192 | E23: 0.15 | F23: 0.0866 | G23: 0.04 | H23: 8.55162 | I23: 0.0004081375784 | J23: 7.836241505e-06 | K23: 8.55162 | L23: 0.0004722719454 | M23: 7.084079181e-05 | N23: 8.55162 | O23: 0.0004327027033 | P23: 3.74720541e-05 | Q23: 8.55162 | R23: 0.0004271762509 | S23: 1.708705004e-05 | U23: 0.15 | V23: 0.0866 | W23: 0.04
A24: 20 | B24: The Allstate Corporation | C24: ALL | D24: 0.0241 | E24: 0.0635 | F24: 0.075 | G24: 0.06 | H24: 28.05106 | I24: 0.001338774606 | J24: 3.226446802e-05 | K24: 28.05106 | L24: 0.001549148428 | M24: 9.837092516e-05 | N24: 28.05106 | O24: 0.001419353233 | P24: 0.0001064514925 | Q24: 28.05106 | R24: 0.00140122534 | S24: 8.407352042e-05 | U24: 0.0635 | V24: 0.075 | W24: 0.06
A25: 21 | B25: Allegion PLC | C25: ALLE | D25: 0.0134 | E25: NMF | F25: 0.061 | G25: 0.09 | H25: 8.79626 | I25: 0.0004198133518 | J25: 5.625498914e-06 | K25: -- | L25: -- | M25: -- | N25: 8.79626 | O25: 0.0004450812221 | P25: 2.714995455e-05 | Q25: 8.79626 | R25: 0.0004393966721 | S25: 3.954570049e-05 | U25: -0.004 | V25: 0.061 | W25: 0.09
A26: 22 | B26: Applied Materials, Inc. | C26: AMAT | D26: 0.0156 | E26: NMF | F26: 0.1266 | G26: 0.075 | H26: 52.28545 | I26: 0.002495393498 | J26: 3.892813857e-05 | K26: -- | L26: -- | M26: -- | N26: 52.28545 | O26: 0.0026455871 | P26: 0.0003349313269 | Q26: 52.28545 | R26: 0.002611797824 | S26: 0.0001958848368 | U26: 0.2008 | V26: 0.1266 | W26: 0.075
A27: 23 | B27: Amcor PLC | C27: AMCR | D27: 0.052 | E27: 0.0544 | F27: 0.0727 | G27: NMF | H27: 17.12902 | I27: 0.000817505542 | J27: 4.251028818e-05 | K27: 17.12902 | L27: 0.0009459676177 | M27: 5.14606384e-05 | N27: 17.12902 | O27: 0.0008667098466 | P27: 6.300980585e-05 | Q27: -- | R27: -- | S27: -- | U27: 0.0544 | V27: 0.0727 | W27: n/a
A28: 24 | B28: AMETEK, Inc. | C28: AME | D28: 0.0076 | E28: NMF | F28: 0.0711 | G28: 0.125 | H28: 21.88833 | I28: 0.00104465002 | J28: 7.93934015e-06 | K28: -- | L28: -- | M28: -- | N28: 21.88833 | O28: 0.001107525774 | P28: 7.874508255e-05 | Q28: 21.88833 | R28: 0.001093380523 | S28: 0.0001366725654 | U28: -0.012 | V28: 0.0711 | W28: 0.125
A29: 25 | B29: Amgen Inc. | C29: AMGN | D29: 0.0282 | E29: 0.0687 | F29: 0.0723 | G29: 0.065 | H29: 142.2548 | I29: 0.006789301862 | J29: 0.0001914583125 | K29: 142.2548 | L29: 0.007856166568 | M29: 0.0005397186432 | N29: 142.2548 | O29: 0.007197938696 | P29: 0.0005204109678 | Q29: 142.2548 | R29: 0.007106007065 | S29: 0.0004618904593 | U29: 0.0687 | V29: 0.0723 | W29: 0.065
A30: 26 | B30: Ameriprise Financial, Inc. | C30: AMP | D30: 0.0286 | E30: 0.0777 | F30: NMF | G30: 0.11 | H30: 17.53037 | I30: 0.0008366605111 | J30: 2.392849062e-05 | K30: 17.53037 | L30: 0.0009681325812 | M30: 7.522390156e-05 | N30: -- | O30: -- | P30: -- | Q30: 17.53037 | R30: 0.0008756887858 | S30: 9.632576643e-05 | U30: 0.0777 | V30: n/a | W30: 0.11
A31: 27 | B31: American Tower Corporation REIT | C31: AMT | D31: 0.0204 | E31: 0.1487 | F31: 0.1478 | G31: 0.09 | H31: 104.5518 | I31: 0.004989875424 | J31: 0.0001017934586 | K31: 104.5518 | L31: 0.005773979899 | M31: 0.000858590811 | N31: 104.5518 | O31: 0.005290207761 | P31: 0.0007818927071 | Q31: 104.5518 | R31: 0.005222641552 | S31: 0.0004700377397 | U31: 0.1487 | V31: 0.1478 | W31: 0.09
A32: 28 | B32: Anthem, Inc. | C32: ANTM | D32: 0.0167 | E32: 0.1452 | F32: 0.1464 | G32: 0.14 | H32: 61.95394 | I32: 0.002956835201 | J32: 4.937914786e-05 | K32: 61.95394 | L32: 0.003421469589 | M32: 0.0004967973844 | N32: 61.95394 | O32: 0.003134802215 | P32: 0.0004589350443 | Q32: 61.95394 | R32: 0.003094764714 | S32: 0.0004332670599 | U32: 0.1452 | V32: 0.1464 | W32: 0.14
A33: 29 | B33: Aon plc | C33: AON | D33: 0.009 | E33: 0.0677 | F33: NMF | G33: 0.075 | H33: 46.39491 | I33: 0.002214259546 | J33: 1.992833591e-05 | K33: 46.39491 | L33: 0.002562206272 | M33: 0.0001734613646 | N33: -- | O33: -- | P33: -- | Q33: 46.39491 | R33: 0.002317549624 | S33: 0.0001738162218 | U33: 0.0677 | V33: n/a | W33: 0.075
A34: 30 | B34: A. O. Smith Corporation | C34: AOS | D34: 0.0185 | E34: 0.08 | F34: 0.08 | G34: 0.05 | H34: 8.36119 | I34: 0.0003990490503 | J34: 7.38240743e-06 | K34: 8.36119 | L34: 0.0004617552543 | M34: 3.694042034e-05 | N34: 8.36119 | O34: 0.0004230671517 | P34: 3.384537213e-05 | Q34: 8.36119 | R34: 0.000417663764 | S34: 2.08831882e-05 | U34: 0.08 | V34: 0.08 | W34: 0.05
A35: 31 | B35: Apache Corporation | C35: APA | D35: 0.009 | E35: NMF | F35: NMF | G35: 0.03 | H35: 4.18978 | I35: 0.0001999628916 | J35: 1.799666025e-06 | K35: -- | L35: -- | M35: -- | N35: -- | O35: -- | P35: -- | Q35: 4.18978 | R35: 0.0002092906973 | S35: 6.278720918e-06 | U35: -0.24 | V35: n/a | W35: 0.03
A36: 32 | B36: Air Products and Chemicals, Inc. | C36: APD | D36: 0.0188 | E36: 0.1033 | F36: 0.0877 | G36: 0.12 | H36: 63.04977 | I36: 0.003009135163 | J36: 5.657174107e-05 | K36: 63.04977 | L36: 0.00348198792 | M36: 0.0003596893521 | N36: 63.04977 | O36: 0.003190250025 | P36: 0.0002797849272 | Q36: 63.04977 | R36: 0.003149504348 | S36: 0.0003779405217 | U36: 0.1033 | V36: 0.0877 | W36: 0.12
A37: 33 | B37: Amphenol Corporation | C37: APH | D37: 0.0097 | E37: 0.03 | F37: 0.0751 | G37: 0.105 | H37: 30.8114 | I37: 0.001470515549 | J37: 1.426400083e-05 | K37: 30.8114 | L37: 0.001701591022 | M37: 5.104773067e-05 | N37: 30.8114 | O37: 0.001559023445 | P37: 0.0001170826607 | Q37: 30.8114 | R37: 0.001539111693 | S37: 0.0001616067278 | U37: 0.03 | V37: 0.0751 | W37: 0.105
A38: 34 | B38: Alexandria Real Estate Equities, Inc. | C38: ARE | D38: 0.0271 | E38: 0.001 | F38: 0.0499 | G38: 0.165 | H38: 17.37671 | I38: 0.0008293268808 | J38: 2.247475847e-05 | K38: 17.37671 | L38: 0.0009596465508 | M38: 9.596465508e-07 | N38: 17.37671 | O38: 0.0008792426922 | P38: 4.387421034e-05 | Q38: 17.37671 | R38: 0.0008680130585 | S38: 0.0001432221547 | U38: 0.001 | V38: 0.0499 | W38: 0.165
A39: 35 | B39: Atmos Energy Corporation | C39: ATO | D39: 0.0265 | E39: 0.0725 | F39: 0.0726 | G39: 0.07 | H39: 11.45561 | I39: 0.0005467344111 | J39: 1.448846189e-05 | K39: 11.45561 | L39: 0.0006326477581 | M39: 4.586696246e-05 | N39: 11.45561 | O39: 0.0005796414498 | P39: 4.208196925e-05 | Q39: 11.45561 | R39: 0.0005722383048 | S39: 4.005668133e-05 | U39: 0.0725 | V39: 0.0726 | W39: 0.07
